Workbook

Sheet version control
A2: Version # | B2: Date | C2: Changes made
A3: 1 | B3: 2017-01-25 | C3: Update Waterfall Code so that Redraws and Further Advances are deducted prior to the waterfall
A4: 2 | B4: 2017-02-17 | C4: Added a "Load_Input_Sheet" button

Sheet Waterfall_1
B2: Reporting Template for Repo-Eligible Securities
B3: Asset Backed Securities
B5: Waterfall Template
B6: Waterfall
B9: Version 3 (August 2014)
B11: Instructions
B13: The specific variables in this sample Waterfall sheet are provide as an example only. This is not an exhaustive list of model variables.
B14: The reported Waterfall sheet should follow the requirements set out in the The Cash Flow Waterfall Reporting Template for Repo-Eligible Asset Backed Securities (available at http://www.rba.gov.au/mkt-operations/pdf/cash-flow-waterfall-template-for-repo-eligible-abs.pdf).
B15: The information provider is responsible for ensuring that the inputs and outputs in the waterfall template accurately represent the waterfall in the ABS Information Memorandum and other relevant documents.
C21: Transaction Identifiers
C22: Master Trust Name or SPV (same as RT003 in Transaction Level Data Template) | H22: Kingfisher Trust
C23: Series Trust Name or Series (same as RT004 in Transaction Level Data Template) | H23: 2016-1 | KC23: Summary of Discrepancy between Waterfall Program Output and Actual Distributions to ABS Note Holders and Service Providers
KC24: (Discrepancy as per cent of actual; averages reported since issuance of ABS; this summary is a key input of the validation of the Waterfall Template and the RBA reserves the right to further review the reported waterfall beyond this summary)
KC25: Variable | KD25: Senior Fees and Expenses Paid | KE25: Seller Redraws and Further Advances Paid | KF25: Accrued Interest Adjustment Paid | KG25: Liquidity Facility Fees Paid | KH25: Subordinated Liquidity Facility Provider Payments | KI25: Unpaid Interest and Fees on Liquidity Facility | KJ25: Liquidity Facility Repayment | KK25: Liquidity Facility Advance | KL25: Closing Liquidity Facility Advances Outstanding | KM25: Principal Draw | KN25: Principal Draw Repayment | KO25: Closing Balance Principal Draw | KP25: Redraw Note Issuance | KQ25: Class A1 Interest Paid | KR25: Redraw Notes Interest Paid | KS25: Class A2 Interest Paid | KT25: Class B Senior Interest Paid | KU25: Class C Senior Interest Paid | KV25: Class D Senior Interest Paid | KW25: Class E Senior Interest Paid | KX25: Class F Senior Interest Paid | KY25: Class B Residual Interest Paid | KZ25: Class C Residual Interest Paid | LA25: Class D Residual Interest Paid | LB25: Class E Residual Interest Paid | LC25: Class F Residual Interest Paid | LD25: Closing Unpaid Class A1 Interest | LE25: Closing Unpaid Redraw Note Interest | LF25: Closing Unpaid Class A2 Interest | LG25: Closing Unpaid Class B Senior Interest | LH25: Closing Unpaid Class C Senior Interest | LI25: Closing Unpaid Class D Senior Interest | LJ25: Closing Unpaid Class E Senior Interest | LK25: Closing Unpaid Class F Senior Interest | LL25: Closing Unpaid Class B Residual Interest | LM25: Closing Unpaid Class C Residual Interest | LN25: Closing Unpaid Class D Residual Interest | LO25: Closing Unpaid Class E Residual Interest | LP25: Closing Unpaid Class F Residual Interest | LQ25: Amounts paid to Basis Swap Provider | LR25: Amounts paid to Fixed Swap Provider | LS25: Participation Unitholder Payment | LT25: Residual Unitholder Payment | LU25: Collection Period Losses Reimbursed | LV25: Carryover Charge-offs Reimbursed | LW25: Principal Payment to Class A1 Notes | LX25: Principal Payment to Redraw Notes | LY25: Principal Payment to Class A2 Notes | LZ25: Principal Payment to Class B Notes | MA25: Principal Payment to Class C Notes | MB25: Principal Payment to Class D Notes | MC25: Principal Payment to Class E Notes | MD25: Principal Payment to Class F Notes | ME25: Closing Invested Amount of Class A1 Notes | MF25: Closing Invested Amount of Redraw Notes | MG25: Closing Invested Amount of Class A2 Notes | MH25: Closing Invested Amount of Class B Notes | MI25: Closing Invested Amount of Class C Notes | MJ25: Closing Invested Amount of Class D Notes | MK25: Closing Invested Amount of Class E Notes | ML25: Closing Invested Amount of Class F Notes | MM25: Closing Carryover Charge-offs on Class A1 Notes | MN25: Closing Carryover Charge-offs on Redraw Notes | MO25: Closing Carryover Charge-offs on Class A2 Notes | MP25: Closing Carryover Charge-offs on Class B Notes | MQ25: Closing Carryover Charge-offs on Class C Notes | MR25: Closing Carryover Charge-offs on Class D Notes | MS25: Closing Carryover Charge-offs on Class E Notes | MT25: Closing Carryover Charge-offs on Class F Notes | MU25: Closing Stated Amount of Class A1 Notes | MV25: Closing Stated Amount of Redraw Notes | MW25: Closing Stated Amount of Class A2 Notes | MX25: Closing Stated Amount of Class B Notes | MY25: Closing Stated Amount of Class C Notes | MZ25: Closing Stated Amount of Class D Notes | NA25: Closing Stated Amount of Class E Notes | NB25: Closing Stated Amount of Class F Notes | NC25: Tax Shortfall Retained | ND25: Tax Amount Paid | NE25: Pro-Rata Criteria Satisfied | NF25: Missed Payment Trigger | NG25: Clean-up Trigger | NH25: Other Amounts to Secured Creditors | NI25: Subsequent Encumbrance | NJ25: Remaining Enforcement Proceeds
KC26: Units | KD26: % | KE26: % | KF26: % | KG26: % | KH26: % | KI26: % | KJ26: % | KK26: % | KL26: % | KM26: % | KN26: % | KO26: % | KP26: % | KQ26: % | KR26: % | KS26: % | KT26: % | KU26: % | KV26: % | KW26: % | KX26: % | KY26: % | KZ26: % | LA26: % | LB26: % | LC26: % | LD26: % | LE26: % | LF26: % | LG26: % | LH26: % | LI26: % | LJ26: % | LK26: % | LL26: % | LM26: % | LN26: % | LO26: % | LP26: % | LQ26: % | LR26: % | LS26: % | LT26: % | LU26: % | LV26: % | LW26: % | LX26: % | LY26: % | LZ26: % | MA26: % | MB26: % | MC26: % | MD26: % | ME26: % | MF26: % | MG26: % | MH26: % | MI26: % | MJ26: % | MK26: % | ML26: % | MM26: % | MN26: % | MO26: % | MP26: % | MQ26: % | MR26: % | MS26: % | MT26: % | MU26: % | MV26: % | MW26: % | MX26: % | MY26: % | MZ26: % | NA26: % | NB26: % | NC26: % | ND26: % | NE26: % | NF26: % | NG26: % | NH26: % | NI26: % | NJ26: %
KC27: Simple Average of Discrepancies | KD27: =IF(ROUND(SUM(GW37:GW74),2)=0,0,ROUND(AVERAGE(KD37:KD74),2)/ROUND(SUM(GW37:GW74),2)) -> 0 | KE27: =IF(ROUND(SUM(GX37:GX74),2)=0,0,ROUND(AVERAGE(KE37:KE74),2)/ROUND(SUM(GX37:GX74),2)) -> 0 | KF27: 0 | KG27: 0 | KH27: 0 | KI27: 0 | KJ27: 0 | KK27: 0 | KL27: 0 | KM27: 0 | KN27: 0 | KO27: 0 | KP27: 0 | KQ27: 0 | KR27: 0 | KS27: 0 | KT27: 0 | KU27: 0 | KV27: 0 | KW27: 0 | KX27: 0 | KY27: 0 | KZ27: 0 | LA27: 0 | LB27: 0 | LC27: 0 | LD27: 0 | LE27: 0 | LF27: 0 | LG27: 0 | LH27: 0 | LI27: 0 | LJ27: 0 | LK27: 0 | LL27: 0 | LM27: 0 | LN27: 0 | LO27: 0 | LP27: 0 | LQ27: -0.06876105122 | LR27: -0.07834969634 | LS27: 0.02631574871 | LT27: 0 | LU27: 0.0263156467 | LV27: 0 | LW27: 0.0003037279656 | LX27: 0 | LY27: 0.004949785559 | LZ27: 0.004949783353 | MA27: 0.004949729595 | MB27: 0.004949715343 | MC27: 0.004949719878 | MD27: 0.004949719878 | ME27: -7.535171785e-06 | MF27: 0 | MG27: -1.207067295e-05 | MH27: -1.207066758e-05 | MI27: -1.207053646e-05 | MJ27: -1.207050171e-05 | MK27: -1.207051276e-05 | ML27: -1.207051276e-05 | MM27: 0 | MN27: 0 | MO27: 0 | MP27: 0 | MQ27: =IF(ROUND(SUM(JJ37:JJ74),2)=0,0,ROUND(AVERAGE(MQ37:MQ74),2)/ROUND(SUM(JJ37:JJ74),2)) -> 0 | MR27: 0 | MS27: 0 | MT27: 0 | MU27: -7.535171785e-06 | MV27: 0 | MW27: -1.207067295e-05 | MX27: -1.207066758e-05 | MY27: -1.207053646e-05 | MZ27: -1.207050171e-05 | NA27: -1.207051276e-05 | NB27: -4.18569979e-06 | NC27: 0 | ND27: 0 | NE27: ND5 | NF27: ND5 | NG27: ND5 | NH27: =IF(ROUND(SUM(KA37:KA74),2)=0,0,ROUND(AVERAGE(NH37:NH74),2)/ROUND(SUM(KA37:KA74),2)) -> 0 | NI27: 0 | NJ27: 0
KC28: Simple Average of Absolute Deviations | KD28: =SUM(ABS(KD37),ABS(KD38),ABS(KD39),ABS(KD40),ABS(KD41),ABS(KD42),ABS(KD43),ABS(KD44),ABS(KD45),ABS(KD46),ABS(KD47),ABS(KD48),ABS(KD49),ABS(KD50),ABS(KD51),ABS(KD52),ABS(KD53),ABS(KD54),ABS(KD55),ABS(KD56),ABS(KD57),ABS(KD58),ABS(KD59),ABS(KD60),ABS(KD61),ABS(KD62),ABS(KD63),ABS(KD64),ABS(KD65),ABS(KD66),ABS(KD67),ABS(KD68),ABS(KD69),ABS(KD70),ABS(KD71),ABS(KD72),ABS(KD73),ABS(KD74)) /COUNTIF(KD37:KD74,"<>"&"") -> 0 | KE28: =SUM(ABS(KE37),ABS(KE38),ABS(KE39),ABS(KE40),ABS(KE41),ABS(KE42),ABS(KE43),ABS(KE44),ABS(KE45),ABS(KE46),ABS(KE47),ABS(KE48),ABS(KE49),ABS(KE50),ABS(KE51),ABS(KE52),ABS(KE53),ABS(KE54),ABS(KE55),ABS(KE56),ABS(KE57),ABS(KE58),ABS(KE59),ABS(KE60),ABS(KE61),ABS(KE62),ABS(KE63),ABS(KE64),ABS(KE65),ABS(KE66),ABS(KE67),ABS(KE68),ABS(KE69),ABS(KE70),ABS(KE71),ABS(KE72),ABS(KE73),ABS(KE74)) /COUNTIF(KE37:KE74,"<>"&"") -> 0 | KF28: 0 | KG28: 0 | KH28: 0 | KI28: 0 | KJ28: 0 | KK28: 0 | KL28: 0 | KM28: 398221.2368 | KN28: 0 | KO28: 398221.2368 | KP28: 0 | KQ28: 0 | KR28: 0 | KS28: 0 | KT28: 0 | KU28: 0 | KV28: 0 | KW28: 0 | KX28: 0 | KY28: 0 | KZ28: 0 | LA28: 0 | LB28: 0 | LC28: 0 | LD28: 0 | LE28: 0 | LF28: 0 | LG28: 0 | LH28: 0 | LI28: 0 | LJ28: 0 | LK28: 0 | LL28: 0 | LM28: 0 | LN28: 0 | LO28: 0 | LP28: 0 | LQ28: 1151191.579 | LR28: 69604.21053 | LS28: 966137.7632 | LT28: 0 | LU28: 2376.684211 | LV28: 0 | LW28: 445395.4211 | LX28: 0 | LY28: 31836.15789 | LZ28: 21830.5 | MA28: 6367.157895 | MB28: 5457.552632 | MC28: 3638.368421 | MD28: 3638.368421 | ME28: 445395.4211 | MF28: 0 | MG28: 31836.15789 | MH28: 21830.5 | MI28: 6367.157895 | MJ28: 5457.552632 | MK28: 3638.368421 | ML28: 3638.368421 | MM28: 0 | MN28: 0 | MO28: 0 | MP28: 0 | MQ28: =SUM(ABS(MQ37),ABS(MQ38),ABS(MQ39),ABS(MQ40),ABS(MQ41),ABS(MQ42),ABS(MQ43),ABS(MQ44),ABS(MQ45),ABS(MQ46),ABS(MQ47),ABS(MQ48),ABS(MQ49),ABS(MQ50),ABS(MQ51),ABS(MQ52),ABS(MQ53),ABS(MQ54),ABS(MQ55),ABS(MQ56),ABS(MQ57),ABS(MQ58),ABS(MQ59),ABS(MQ60),ABS(MQ61),ABS(MQ62),ABS(MQ63),ABS(MQ64),ABS(MQ65),ABS(MQ66),ABS(MQ67),ABS(MQ68),ABS(MQ69),ABS(MQ70),ABS(MQ71),ABS(MQ72),ABS(MQ73),ABS(MQ74)) /COUNTIF(MQ37:MQ74,"<>"&"") -> 0 | MR28: 0 | MS28: 0 | MT28: 2376.684211 | MU28: 445395.4211 | MV28: 0 | MW28: 31836.15789 | MX28: 21830.5 | MY28: 6367.157895 | MZ28: 5457.552632 | NA28: 3638.368421 | NB28: 1261.684211 | NC28: 0 | ND28: 0 | NE28: ND5 | NF28: ND5 | NG28: ND5 | NH28: =SUM(ABS(NH37),ABS(NH38),ABS(NH39),ABS(NH40),ABS(NH41),ABS(NH42),ABS(NH43),ABS(NH44),ABS(NH45),ABS(NH46),ABS(NH47),ABS(NH48),ABS(NH49),ABS(NH50),ABS(NH51),ABS(NH52),ABS(NH53),ABS(NH54),ABS(NH55),ABS(NH56),ABS(NH57),ABS(NH58),ABS(NH59),ABS(NH60),ABS(NH61),ABS(NH62),ABS(NH63),ABS(NH64),ABS(NH65),ABS(NH66),ABS(NH67),ABS(NH68),ABS(NH69),ABS(NH70),ABS(NH71),ABS(NH72),ABS(NH73),ABS(NH74)) /COUNTIF(NH37:NH74,"<>"&"") -> 0 | NI28: 0 | NJ28: 0
B30: <DATA> | C30: Waterfall Program Inputs | DO30: Waterfall program | DP30: Waterfall Program Outputs (as produced by the waterfall function used for the reporting period) | GW30: Actual Distribution of Income, Principal and Losses | KD30: Discrepancy Between Waterfall Program Outputs and Actual Distributions (program output less actual)
B31: Variable Name | C31: Collection Start Date | D31: Collection End Date | E31: Determination Date | F31: Distribution Date | G31: Accrual Period | H31: 1-month Bank Bill Swap Rate | I31: Closing Date | J31: Closing Date Pool Balance | K31: Opening Pool Balance | L31: Opening Pool Balance (Fixed Rate Loans) | M31: Closing Pool Balance | N31: Closing Pool Balance (Fixed Rate Loans) | O31: Performing Pool Balance at start of Collection Period | P31: Performing Fixed Rate Pool Balance at start of Collection Period | Q31: Non-Performing Pool Balance | R31: Arrears Rate | S31: Collection Period Losses | T31: Customer Redraws and Further Advances (reimburse to Seller) | U31: Repurchase Proceeds | V31: Accrued Interest Adjustment | W31: Finance Charge Collections (Variable Rate Loans) | X31: Finance Charge Collections (Fixed Rate Loans) | Y31: Scheduled Principal Repayments | Z31: Principal Collections | AA31: Other Income | AB31: Damages and Indemnity Payments | AC31: Excess Note Proceeds | AD31: Excess Redraw Note Proceeds | AE31: Principal Draw Outstanding | AF31: Liquidity Facility Limit | AG31: Opening Liquidity Facility Draw Advances | AH31: Class A1 Initial Invested Amount | AI31: Redraw Notes Initial Invested Amount | AJ31: Class A2 Initial Invested Amount | AK31: Class B Initial Invested Amount | AL31: Class C Initial Invested Amount | AM31: Class D Initial Invested Amount | AN31: Class E Initial Invested Amount | AO31: Class F Initial Invested Amount | AP31: Redraw Notes Denomination | AQ31: Class A1 Opening Invested Amount | AR31: Redraw Notes Opening Invested Amount | AS31: Class A2 Opening Invested Amount | AT31: Class B Opening Invested Amount | AU31: Class C Opening Invested Amount | AV31: Class D Opening Invested Amount | AW31: Class E Opening Invested Amount | AX31: Class F Opening Invested Amount | AY31: Opening Class A1 Carryover Charge-Offs | AZ31: Opening Redraw Notes Carryover Charge-Offs | BA31: Opening Class A2 Carryover Charge-Offs | BB31: Opening Class B Carryover Charge-Offs | BC31: Opening Class C Carryover Charge-Offs | BD31: Opening Class D Carryover Charge-Offs | BE31: Opening Class E Carryover Charge-Offs | BF31: Opening Class F Carryover Charge-Offs | BG31: Participation Unitholder Dollar | BH31: Senior Fees and Expenses | BI31: Liquidity Facility Unpaid Fees | BJ31: Liquidity Facility Fees | BK31: Liquidity Facility Margin | BL31: Opening Unpaid Liquidity Facility Interest | BM31: Liquidity Facility Provider Amounts | BN31: Basis Swap Margin | BO31: Fixed Swap Margin | BP31: Basis Swap Termination Amounts | BQ31: Fixed Swap Termination Amounts | BR31: Class A1 Initial Margin | BS31: Redraw Notes Margin | BT31: Class A2 Initial Margin | BU31: Class B Initial Margin | BV31: Class C Initial Margin | BW31: Class D Initial Margin | BX31: Class E Initial Margin | BY31: Class F Initial Margin | BZ31: Class A1 Step-Up Margin | CA31: Class A2 Step-Up Margin | CB31: Class B Step-Down Margin | CC31: Class C Step-Down Margin | CD31: Class D Step-Down Margin | CE31: Class E Step-Down Margin | CF31: Class F Step-Down Margin | CG31: Opening Class A1 Unpaid Interest | CH31: Opening Redraw Notes Unpaid Interest | CI31: Opening Class A2 Unpaid Interest | CJ31: Opening Class B Unpaid Senior Interest | CK31: Opening Class C Unpaid Senior Interest | CL31: Opening Class D Unpaid Senior Interest | CM31: Opening Class E Unpaid Senior Interest | CN31: Opening Class F Unpaid Senior Interest | CO31: Opening Class B Unpaid Residual Interest | CP31: Opening Class C Unpaid Residual Interest | CQ31: Opening Class D Unpaid Residual Interest | CR31: Opening Class E Unpaid Residual Interest | CS31: Opening Class F Unpaid Residual Interest | CT31: Tax Shortfall | CU31: Tax Amount | CV31: Clean-up Call Factor | CW31: Class A1 CE Trigger Level | CX31: 3 Month Average Arrears Ratio | CY31: 3 Month Average Arrears Trigger Ratio | CZ31: Clean-up Call Trigger | DA31: Redeem Class A1 Notes at Stated Amount | DB31: Redeem Redraw Notes at Stated Amount | DC31: Redeem Class A2 Notes at Stated Amount | DD31: Redeem Class B Notes at Stated Amount | DE31: Redeem Class C Notes at Stated Amount | DF31: Redeem Class D Notes at Stated Amount | DG31: Redeem Class E Notes at Stated Amount | DH31: Redeem Class F Notes at Stated Amount | DI31: Event of Default Trigger | DJ31: Enforcement Proceeds | DK31: Secured Moneys to Basis Swap Provider | DL31: Secured Moneys to Fixed Swap Provider | DM31: Other Amounts to Secured Creditors | DN31: Subsequent Encumbrance | DO31: Version of the waterfall program used | DP31: Senior Fees and Expenses Paid | DQ31: Seller Redraws and Further Advances Paid | DR31: Accrued Interest Adjustment Paid | DS31: Liquidity Facility Fees and Interest Paid | DT31: Subordinated Liquidity Facility Provider Payments | DU31: Unpaid Interest and Fees on Liquidity Facility | DV31: Liquidity Facility Repayment | DW31: Liquidity Facility Advance | DX31: Closing Liquidity Facility Advances Outstanding | DY31: Principal Draw | DZ31: Principal Draw Repayment | EA31: Closing Balance Principal Draw | EB31: Redraw Note Issuance | EC31: Class A1 Interest Paid | ED31: Redraw Notes Interest Paid | EE31: Class A2 Interest Paid | EF31: Class B Senior Interest Paid | EG31: Class C Senior Interest Paid | EH31: Class D Senior Interest Paid | EI31: Class E Senior Interest Paid | EJ31: Class F Senior Interest Paid | EK31: Class B Residual Interest Paid | EL31: Class C Residual Interest Paid | EM31: Class D Residual Interest Paid | EN31: Class E Residual Interest Paid | EO31: Class F Residual Interest Paid | EP31: Closing Unpaid Class A1 Interest | EQ31: Closing Unpaid Redraw Note Interest | ER31: Closing Unpaid Class A2 Interest | ES31: Closing Unpaid Class B Senior Interest | ET31: Closing Unpaid Class C Senior Interest | EU31: Closing Unpaid Class D Senior Interest | EV31: Closing Unpaid Class E Senior Interest | EW31: Closing Unpaid Class F Senior Interest | EX31: Closing Unpaid Class B Residual Interest | EY31: Closing Unpaid Class C Residual Interest | EZ31: Closing Unpaid Class D Residual Interest | FA31: Closing Unpaid Class E Residual Interest | FB31: Closing Unpaid Class F Residual Interest | FC31: Amounts paid to Basis Swap Provider | FD31: Amounts paid to Fixed Swap Provider | FE31: Participation Unitholder Payment | FF31: Residual Unitholder Payment | FG31: Collection Period Losses Reimbursed | FH31: Carryover Charge-offs Reimbursed | FI31: Principal Payment to Class A1 Notes | FJ31: Principal Payment to Redraw Notes | FK31: Principal Payment to Class A2 Notes | FL31: Principal Payment to Class B Notes | FM31: Principal Payment to Class C Notes | FN31: Principal Payment to Class D Notes | FO31: Principal Payment to Class E Notes | FP31: Principal Payment to Class F Notes | FQ31: Closing Invested Amount of Class A1 Notes | FR31: Closing Invested Amount of Redraw Notes | FS31: Closing Invested Amount of Class A2 Notes | FT31: Closing Invested Amount of Class B Notes | FU31: Closing Invested Amount of Class C Notes | FV31: Closing Invested Amount of Class D Notes | FW31: Closing Invested Amount of Class E Notes | FX31: Closing Invested Amount of Class F Notes | FY31: Closing Carryover Charge-offs on Class A1 Notes | FZ31: Closing Carryover Charge-offs on Redraw Notes | GA31: Closing Carryover Charge-offs on Class A2 Notes | GB31: Closing Carryover Charge-offs on Class B Notes | GC31: Closing Carryover Charge-offs on Class C Notes | GD31: Closing Carryover Charge-offs on Class D Notes | GE31: Closing Carryover Charge-offs on Class E Notes | GF31: Closing Carryover Charge-offs on Class F Notes | GG31: Closing Stated Amount of Class A1 Notes | GH31: Closing Stated Amount of Redraw Notes | GI31: Closing Stated Amount of Class A2 Notes | GJ31: Closing Stated Amount of Class B Notes | GK31: Closing Stated Amount of Class C Notes | GL31: Closing Stated Amount of Class D Notes | GM31: Closing Stated Amount of Class E Notes | GN31: Closing Stated Amount of Class F Notes | GO31: Tax Shortfall Retained | GP31: Tax Amount Paid | GQ31: Pro-Rata Criteria Satisfied | GR31: Missed Payment Trigger | GS31: Clean-up Trigger | GT31: Other Amounts to Secured Creditors | GU31: Subsequent Encumbrance | GV31: Remaining Enforcement Proceeds | GW31: Senior Fees and Expenses Paid | GX31: Seller Redraws and Further Advances Paid | GY31: Accrued Interest Adjustment Paid | GZ31: Liquidity Facility Fees Paid | HA31: Subordinated Liquidity Facility Provider Payments | HB31: Unpaid Interest and Fees on Liquidity Facility | HC31: Liquidity Facility Repayment | HD31: Liquidity Facility Advance | HE31: Closing Liquidity Facility Advances Outstanding | HF31: Principal Draw | HG31: Principal Draw Repayment | HH31: Closing Balance Principal Draw | HI31: Redraw Note Issuance | HJ31: Class A1 Interest Paid | HK31: Redraw Notes Interest Paid | HL31: Class A2 Interest Paid | HM31: Class B Senior Interest Paid | HN31: Class C Senior Interest Paid | HO31: Class D Senior Interest Paid | HP31: Class E Senior Interest Paid | HQ31: Class F Senior Interest Paid | HR31: Class B Residual Interest Paid | HS31: Class C Residual Interest Paid | HT31: Class D Residual Interest Paid | HU31: Class E Residual Interest Paid | HV31: Class F Residual Interest Paid | HW31: Closing Unpaid Class A1 Interest | HX31: Closing Unpaid Redraw Note Interest | HY31: Closing Unpaid Class A2 Interest | HZ31: Closing Unpaid Class B Senior Interest | IA31: Closing Unpaid Class C Senior Interest | IB31: Closing Unpaid Class D Senior Interest | IC31: Closing Unpaid Class E Senior Interest | ID31: Closing Unpaid Class F Senior Interest | IE31: Closing Unpaid Class B Residual Interest | IF31: Closing Unpaid Class C Residual Interest | IG31: Closing Unpaid Class D Residual Interest | IH31: Closing Unpaid Class E Residual Interest | II31: Closing Unpaid Class F Residual Interest | IJ31: Amounts paid to Basis Swap Provider | IK31: Amounts paid to Fixed Swap Provider | IL31: Participation Unitholder Payment | IM31: Residual Unitholder Payment | IN31: Collection Period Losses Reimbursed | IO31: Carryover Charge-offs Reimbursed | IP31: Principal Payment to Class A1 Notes | IQ31: Principal Payment to Redraw Notes | IR31: Principal Payment to Class A2 Notes | IS31: Principal Payment to Class B Notes | IT31: Principal Payment to Class C Notes | IU31: Principal Payment to Class D Notes | IV31: Principal Payment to Class E Notes | IW31: Principal Payment to Class F Notes | IX31: Closing Invested Amount of Class A1 Notes | IY31: Closing Invested Amount of Redraw Notes | IZ31: Closing Invested Amount of Class A2 Notes | JA31: Closing Invested Amount of Class B Notes | JB31: Closing Invested Amount of Class C Notes | JC31: Closing Invested Amount of Class D Notes | JD31: Closing Invested Amount of Class E Notes | JE31: Closing Invested Amount of Class F Notes | JF31: Closing Carryover Charge-offs on Class A1 Notes | JG31: Closing Carryover Charge-offs on Redraw Notes | JH31: Closing Carryover Charge-offs on Class A2 Notes | JI31: Closing Carryover Charge-offs on Class B Notes | JJ31: Closing Carryover Charge-offs on Class C Notes | JK31: Closing Carryover Charge-offs on Class D Notes | JL31: Closing Carryover Charge-offs on Class E Notes | JM31: Closing Carryover Charge-offs on Class F Notes | JN31: Closing Stated Amount of Class A1 Notes | JO31: Closing Stated Amount of Redraw Notes | JP31: Closing Stated Amount of Class A2 Notes | JQ31: Closing Stated Amount of Class B Notes | JR31: Closing Stated Amount of Class C Notes | JS31: Closing Stated Amount of Class D Notes | JT31: Closing Stated Amount of Class E Notes | JU31: Closing Stated Amount of Class F Notes | JV31: Tax Shortfall Retained | JW31: Tax Amount Paid | JX31: Pro-Rata Criteria Satisfied | JY31: Missed Payment Trigger | JZ31: Clean-up Trigger | KA31: Other Amounts to Secured Creditors | KB31: Subsequent Encumbrance | KC31: Remaining Enforcement Proceeds | KD31: Senior Fees and Expenses Paid | KE31: Seller Redraws and Further Advances Paid | KF31: Accrued Interest Adjustment Paid | KG31: Liquidity Facility Fees Paid | KH31: Subordinated Liquidity Facility Provider Payments | KI31: Unpaid Interest and Fees on Liquidity Facility | KJ31: Liquidity Facility Repayment | KK31: Liquidity Facility Advance | KL31: Closing Liquidity Facility Advances Outstanding | KM31: Principal Draw | KN31: Principal Draw Repayment | KO31: Closing Balance Principal Draw | KP31: Redraw Note Issuance | KQ31: Class A1 Interest Paid | KR31: Redraw Notes Interest Paid | KS31: Class A2 Interest Paid | KT31: Class B Senior Interest Paid | KU31: Class C Senior Interest Paid | KV31: Class D Senior Interest Paid | KW31: Class E Senior Interest Paid | KX31: Class F Senior Interest Paid | KY31: Class B Residual Interest Paid | KZ31: Class C Residual Interest Paid | LA31: Class D Residual Interest Paid | LB31: Class E Residual Interest Paid | LC31: Class F Residual Interest Paid | LD31: Closing Unpaid Class A1 Interest | LE31: Closing Unpaid Redraw Note Interest | LF31: Closing Unpaid Class A2 Interest | LG31: Closing Unpaid Class B Senior Interest | LH31: Closing Unpaid Class C Senior Interest | LI31: Closing Unpaid Class D Senior Interest | LJ31: Closing Unpaid Class E Senior Interest | LK31: Closing Unpaid Class F Senior Interest | LL31: Closing Unpaid Class B Residual Interest | LM31: Closing Unpaid Class C Residual Interest | LN31: Closing Unpaid Class D Residual Interest | LO31: Closing Unpaid Class E Residual Interest | LP31: Closing Unpaid Class F Residual Interest | LQ31: Amounts paid to Basis Swap Provider | LR31: Amounts paid to Fixed Swap Provider | LS31: Participation Unitholder Payment | LT31: Residual Unitholder Payment | LU31: Collection Period Losses Reimbursed | LV31: Carryover Charge-offs Reimbursed | LW31: Principal Payment to Class A1 Notes | LX31: Principal Payment to Redraw Notes | LY31: Principal Payment to Class A2 Notes | LZ31: Principal Payment to Class B Notes | MA31: Principal Payment to Class C Notes | MB31: Principal Payment to Class D Notes | MC31: Principal Payment to Class E Notes | MD31: Principal Payment to Class F Notes | ME31: Closing Invested Amount of Class A1 Notes | MF31: Closing Invested Amount of Redraw Notes | MG31: Closing Invested Amount of Class A2 Notes | MH31: Closing Invested Amount of Class B Notes | MI31: Closing Invested Amount of Class C Notes | MJ31: Closing Invested Amount of Class D Notes | MK31: Closing Invested Amount of Class E Notes | ML31: Closing Invested Amount of Class F Notes | MM31: Closing Carryover Charge-offs on Class A1 Notes | MN31: Closing Carryover Charge-offs on Redraw Notes | MO31: Closing Carryover Charge-offs on Class A2 Notes | MP31: Closing Carryover Charge-offs on Class B Notes | MQ31: Closing Carryover Charge-offs on Class C Notes | MR31: Closing Carryover Charge-offs on Class D Notes | MS31: Closing Carryover Charge-offs on Class E Notes | MT31: Closing Carryover Charge-offs on Class F Notes | MU31: Closing Stated Amount of Class A1 Notes | MV31: Closing Stated Amount of Redraw Notes | MW31: Closing Stated Amount of Class A2 Notes | MX31: Closing Stated Amount of Class B Notes | MY31: Closing Stated Amount of Class C Notes | MZ31: Closing Stated Amount of Class D Notes | NA31: Closing Stated Amount of Class E Notes | NB31: Closing Stated Amount of Class F Notes | NC31: Tax Shortfall Retained | ND31: Tax Amount Paid | NE31: Pro-Rata Criteria Satisfied | NF31: Missed Payment Trigger | NG31: Clean-up Trigger | NH31: Other Amounts to Secured Creditors | NI31: Subsequent Encumbrance | NJ31: Remaining Enforcement Proceeds
B32: Data Type | C32: Date | D32: Date | E32: Date | F32: Date | G32: Numeric | H32: Numeric | I32: Date | J32: Numeric | K32: Numeric | L32: Numeric | M32: Numeric | N32: Numeric | O32: Numeric | P32: Numeric | Q32: Numeric | R32: Numeric | S32: Numeric | T32: Numeric | U32: Numeric | V32: Numeric | W32: Numeric | X32: Numeric | Y32: Numeric | Z32: Numeric | AA32: Numeric | AB32: Numeric | AC32: Numeric | AD32: Numeric | AE32: Numeric | AF32: Numeric | AG32: Numeric | AH32: Numeric | AI32: Numeric | AJ32: Numeric | AK32: Numeric | AL32: Numeric | AM32: Numeric | AN32: Numeric | AO32: Numeric | AP32: Numeric | AQ32: Numeric | AR32: Numeric | AS32: Numeric | AT32: Numeric | AU32: Numeric | AV32: Numeric | AW32: Numeric | AX32: Numeric | AY32: Numeric | AZ32: Numeric | BA32: Numeric | BB32: Numeric | BC32: Numeric | BD32: Numeric | BE32: Numeric | BF32: Numeric | BG32: Numeric | BH32: Numeric | BI32: Numeric | BJ32: Numeric | BK32: Numeric | BL32: Numeric | BM32: Numeric | BN32: Numeric | BO32: Numeric | BP32: Numeric | BQ32: Numeric | BR32: Numeric | BS32: Numeric | BT32: Numeric | BU32: Numeric | BV32: Numeric | BW32: Numeric | BX32: Numeric | BY32: Numeric | BZ32: Numeric | CA32: Numeric | CB32: Numeric | CC32: Numeric | CD32: Numeric | CE32: Numeric | CF32: Numeric | CG32: Numeric | CH32: Numeric | CI32: Numeric | CJ32: Numeric | CK32: Numeric | CL32: Numeric | CM32: Numeric | CN32: Numeric | CO32: Numeric | CP32: Numeric | CQ32: Numeric | CR32: Numeric | CS32: Numeric | CT32: Numeric | CU32: Numeric | CV32: Numeric | CW32: Numeric | CX32: Numeric | CY32: Numeric | CZ32: Boolean | DA32: Boolean | DB32: Boolean | DC32: Boolean | DD32: Boolean | DE32: Boolean | DF32: Boolean | DG32: Boolean | DH32: Boolean | DI32: Boolean | DJ32: Numeric | DK32: Numeric | DL32: Numeric | DM32: Numeric | DN32: Numeric | DP32: Numeric | DQ32: Numeric | DR32: Numeric | DS32: Numeric | DT32: Numeric | DU32: Numeric | DV32: Numeric | DW32: Numeric | DX32: Numeric | DY32: Numeric | DZ32: Numeric | EA32: Numeric | EB32: Numeric | EC32: Numeric | ED32: Numeric | EE32: Numeric | EF32: Numeric | EG32: Numeric | EH32: Numeric | EI32: Numeric | EJ32: Numeric | EK32: Numeric | EL32: Numeric | EM32: Numeric | EN32: Numeric | EO32: Numeric | EP32: Numeric | EQ32: Numeric | ER32: Numeric | ES32: Numeric | ET32: Numeric | EU32: Numeric | EV32: Numeric | EW32: Numeric | EX32: Numeric | EY32: Numeric | EZ32: Numeric | FA32: Numeric | FB32: Numeric | FC32: Numeric | FD32: Numeric | FE32: Numeric | FF32: Numeric | FG32: Numeric | FH32: Numeric | FI32: Numeric | FJ32: Numeric | FK32: Numeric | FL32: Numeric | FM32: Numeric | FN32: Numeric | FO32: Numeric | FP32: Numeric | FQ32: Numeric | FR32: Numeric | FS32: Numeric | FT32: Numeric | FU32: Numeric | FV32: Numeric | FW32: Numeric | FX32: Numeric | FY32: Numeric | FZ32: Numeric | GA32: Numeric | GB32: Numeric | GC32: Numeric | GD32: Numeric | GE32: Numeric | GF32: Numeric | GG32: Numeric | GH32: Numeric | GI32: Numeric | GJ32: Numeric | GK32: Numeric | GL32: Numeric | GM32: Numeric | GN32: Numeric | GO32: Numeric | GP32: Numeric | GQ32: Boolean | GR32: Boolean | GS32: Boolean | GT32: Numeric | GU32: Numeric | GV32: Numeric | GW32: Numeric | GX32: Numeric | GY32: Numeric | GZ32: Numeric | HA32: Numeric | HB32: Numeric | HC32: Numeric | HD32: Numeric | HE32: Numeric | HF32: Numeric | HG32: Numeric | HH32: Numeric | HI32: Numeric | HJ32: Numeric | HK32: Numeric | HL32: Numeric | HM32: Numeric | HN32: Numeric | HO32: Numeric | HP32: Numeric | HQ32: Numeric | HR32: Numeric | HS32: Numeric | HT32: Numeric | HU32: Numeric | HV32: Numeric | HW32: Numeric | HX32: Numeric | HY32: Numeric | HZ32: Numeric | IA32: Numeric | IB32: Numeric | IC32: Numeric | ID32: Numeric | IE32: Numeric | IF32: Numeric | IG32: Numeric | IH32: Numeric | II32: Numeric | IJ32: Numeric | IK32: Numeric | IL32: Numeric | IM32: Numeric | IN32: Numeric | IO32: Numeric | IP32: Numeric | IQ32: Numeric | IR32: Numeric | IS32: Numeric | IT32: Numeric | IU32: Numeric | IV32: Numeric | IW32: Numeric | IX32: Numeric | IY32: Numeric | IZ32: Numeric | JA32: Numeric | JB32: Numeric | JC32: Numeric | JD32: Numeric | JE32: Numeric | JF32: Numeric | JG32: Numeric | JH32: Numeric | JI32: Numeric | JJ32: Numeric | JK32: Numeric | JL32: Numeric | JM32: Numeric | JN32: Numeric | JO32: Numeric | JP32: Numeric | JQ32: Numeric | JR32: Numeric | JS32: Numeric | JT32: Numeric | JU32: Numeric | JV32: Numeric | JW32: Numeric | JX32: Boolean | JY32: Boolean | JZ32: Boolean | KA32: Numeric | KB32: Numeric | KC32: Numeric | KD32: Numeric | KE32: Numeric | KF32: Numeric | KG32: Numeric | KH32: Numeric | KI32: Numeric | KJ32: Numeric | KK32: Numeric | KL32: Numeric | KM32: Numeric | KN32: Numeric | KO32: Numeric | KP32: Numeric | KQ32: Numeric | KR32: Numeric | KS32: Numeric | KT32: Numeric | KU32: Numeric | KV32: Numeric | KW32: Numeric | KX32: Numeric | KY32: Numeric | KZ32: Numeric | LA32: Numeric | LB32: Numeric | LC32: Numeric | LD32: Numeric | LE32: Numeric | LF32: Numeric | LG32: Numeric | LH32: Numeric | LI32: Numeric | LJ32: Numeric | LK32: Numeric | LL32: Numeric | LM32: Numeric | LN32: Numeric | LO32: Numeric | LP32: Numeric | LQ32: Numeric | LR32: Numeric | LS32: Numeric | LT32: Numeric | LU32: Numeric | LV32: Numeric | LW32: Numeric | LX32: Numeric | LY32: Numeric | LZ32: Numeric | MA32: Numeric | MB32: Numeric | MC32: Numeric | MD32: Numeric | ME32: Numeric | MF32: Numeric | MG32: Numeric | MH32: Numeric | MI32: Numeric | MJ32: Numeric | MK32: Numeric | ML32: Numeric | MM32: Numeric | MN32: Numeric | MO32: Numeric | MP32: Numeric | MQ32: Numeric | MR32: Numeric | MS32: Numeric | MT32: Numeric | MU32: Numeric | MV32: Numeric | MW32: Numeric | MX32: Numeric | MY32: Numeric | MZ32: Numeric | NA32: Numeric | NB32: Numeric | NC32: Numeric | ND32: Numeric | NE32: Boolean | NF32: Boolean | NG32: Boolean | NH32: Numeric | NI32: Numeric | NJ32: Numeric
B33: Reported Value Type (one of AV, RV, NR) | C33: AV | D33: AV | E33: AV | F33: AV | G33: AV | H33: AV | I33: AV | J33: AV | K33: AV | L33: AV | M33: AV | N33: AV | O33: AV | P33: AV | Q33: AV | R33: AV | S33: AV | T33: AV | U33: AV | V33: AV | W33: AV | X33: AV | Y33: AV | Z33: AV | AA33: AV | AB33: AV | AC33: AV | AD33: AV | AE33: AV | AF33: AV | AG33: AV | AH33: AV | AI33: AV | AJ33: AV | AK33: AV | AL33: AV | AM33: AV | AN33: AV | AO33: AV | AP33: AV | AQ33: AV | AR33: AV | AS33: AV | AT33: AV | AU33: AV | AV33: AV | AW33: AV | AX33: AV | AY33: AV | AZ33: AV | BA33: AV | BB33: AV | BC33: AV | BD33: AV | BE33: AV | BF33: AV | BG33: AV | BH33: AV | BI33: AV | BJ33: AV | BK33: RV | BL33: AV | BM33: AV | BN33: RV | BO33: RV | BP33: AV | BQ33: AV | BR33: AV | BS33: AV | BT33: AV | BU33: AV | BV33: AV | BW33: AV | BX33: AV | BY33: AV | BZ33: AV | CA33: AV | CB33: AV | CC33: AV | CD33: AV | CE33: AV | CF33: AV | CG33: AV | CH33: AV | CI33: AV | CJ33: AV | CK33: AV | CL33: AV | CM33: AV | CN33: AV | CO33: AV | CP33: AV | CQ33: AV | CR33: AV | CS33: AV | CT33: AV | CU33: AV | CV33: AV | CW33: AV | CX33: AV | CY33: AV | CZ33: AV | DA33: AV | DB33: AV | DC33: AV | DD33: AV | DE33: AV | DF33: AV | DG33: AV | DH33: AV | DI33: AV | DJ33: AV | DK33: AV | DL33: AV | DM33: AV | DN33: AV | DP33: AV | DQ33: AV | DR33: AV | DS33: AV | DT33: AV | DU33: AV | DV33: AV | DW33: AV | DX33: AV | DY33: AV | DZ33: AV | EA33: AV | EB33: AV | EC33: AV | ED33: AV | EE33: AV | EF33: AV | EG33: AV | EH33: AV | EI33: AV | EJ33: AV | EK33: AV | EL33: AV | EM33: AV | EN33: AV | EO33: AV | EP33: AV | EQ33: AV | ER33: AV | ES33: AV | ET33: AV | EU33: AV | EV33: AV | EW33: AV | EX33: AV | EY33: AV | EZ33: AV | FA33: AV | FB33: AV | FC33: AV | FD33: AV | FE33: AV | FF33: AV | FG33: AV | FH33: AV | FI33: AV | FJ33: AV | FK33: AV | FL33: AV | FM33: AV | FN33: AV | FO33: AV | FP33: AV | FQ33: AV | FR33: AV | FS33: AV | FT33: AV | FU33: AV | FV33: AV | FW33: AV | FX33: AV | FY33: AV | FZ33: AV | GA33: AV | GB33: AV | GC33: AV | GD33: AV | GE33: AV | GF33: AV | GG33: AV | GH33: AV | GI33: AV | GJ33: AV | GK33: AV | GL33: AV | GM33: AV | GN33: AV | GO33: AV | GP33: AV | GQ33: AV | GR33: AV | GS33: AV | GT33: AV | GU33: AV | GV33: AV | GW33: AV | GX33: AV | GY33: AV | GZ33: AV | HA33: AV | HB33: AV | HC33: AV | HD33: AV | HE33: AV | HF33: AV | HG33: AV | HH33: AV | HI33: AV | HJ33: AV | HK33: AV | HL33: AV | HM33: AV | HN33: AV | HO33: AV | HP33: AV | HQ33: AV | HR33: AV | HS33: AV | HT33: AV | HU33: AV | HV33: AV | HW33: AV | HX33: AV | HY33: AV | HZ33: AV | IA33: AV | IB33: AV | IC33: AV | ID33: AV | IE33: AV | IF33: AV | IG33: AV | IH33: AV | II33: AV | IJ33: AV | IK33: AV | IL33: AV | IM33: AV | IN33: AV | IO33: AV | IP33: AV | IQ33: AV | IR33: AV | IS33: AV | IT33: AV | IU33: AV | IV33: AV | IW33: AV | IX33: AV | IY33: AV | IZ33: AV | JA33: AV | JB33: AV | JC33: AV | JD33: AV | JE33: AV | JF33: AV | JG33: AV | JH33: AV | JI33: AV | JJ33: AV | JK33: AV | JL33: AV | JM33: AV | JN33: AV | JO33: AV | JP33: AV | JQ33: AV | JR33: AV | JS33: AV | JT33: AV | JU33: AV | JV33: AV | JW33: AV | JX33: AV | JY33: AV | JZ33: AV | KA33: AV | KB33: AV | KC33: AV | KD33: AV | KE33: AV | KF33: AV | KG33: AV | KH33: AV | KI33: AV | KJ33: AV | KK33: AV | KL33: AV | KM33: AV | KN33: AV | KO33: AV | KP33: AV | KQ33: AV | KR33: AV | KS33: AV | KT33: AV | KU33: AV | KV33: AV | KW33: AV | KX33: AV | KY33: AV | KZ33: AV | LA33: AV | LB33: AV | LC33: AV | LD33: AV | LE33: AV | LF33: AV | LG33: AV | LH33: AV | LI33: AV | LJ33: AV | LK33: AV | LL33: AV | LM33: AV | LN33: AV | LO33: AV | LP33: AV | LQ33: AV | LR33: AV | LS33: AV | LT33: AV | LU33: AV | LV33: AV | LW33: AV | LX33: AV | LY33: AV | LZ33: AV | MA33: AV | MB33: AV | MC33: AV | MD33: AV | ME33: AV | MF33: AV | MG33: AV | MH33: AV | MI33: AV | MJ33: AV | MK33: AV | ML33: AV | MM33: AV | MN33: AV | MO33: AV | MP33: AV | MQ33: AV | MR33: AV | MS33: AV | MT33: AV | MU33: AV | MV33: AV | MW33: AV | MX33: AV | MY33: AV | MZ33: AV | NA33: AV | NB33: AV | NC33: AV | ND33: AV | NE33: AV | NF33: AV | NG33: AV | NH33: AV | NI33: AV | NJ33: AV
B34: Currency (if applicable) | C34: ND5 | D34: ND5 | E34: ND5 | F34: ND5 | G34: ND5 | H34: ND5 | I34: ND5 | J34: AUD | K34: AUD | L34: AUD | M34: AUD | N34: AUD | O34: AUD | P34: AUD | Q34: AUD | R34: ND5 | S34: AUD | T34: AUD | U34: AUD | V34: AUD | W34: AUD | X34: AUD | Y34: AUD | Z34: AUD | AA34: AUD | AB34: AUD | AC34: AUD | AD34: AUD | AE34: AUD | AF34: AUD | AG34: AUD | AH34: AUD | AI34: AUD | AJ34: AUD | AK34: AUD | AL34: AUD | AM34: AUD | AN34: AUD | AO34: AUD | AP34: AUD | AQ34: AUD | AR34: AUD | AS34: AUD | AT34: AUD | AU34: AUD | AV34: AUD | AW34: AUD | AX34: AUD | AY34: AUD | AZ34: AUD | BA34: AUD | BB34: AUD | BC34: AUD | BD34: AUD | BE34: AUD | BF34: AUD | BG34: AUD | BH34: AUD | BI34: AUD | BJ34: AUD | BK34: ND5 | BL34: AUD | BM34: AUD | BN34: ND5 | BO34: ND5 | BP34: AUD | BQ34: AUD | BR34: ND5 | BS34: ND5 | BT34: ND5 | BU34: ND5 | BV34: ND5 | BW34: ND5 | BX34: ND5 | BY34: ND5 | BZ34: ND5 | CA34: ND5 | CB34: ND5 | CC34: ND5 | CD34: ND5 | CE34: ND5 | CF34: ND5 | CG34: AUD | CH34: AUD | CI34: AUD | CJ34: AUD | CK34: AUD | CL34: AUD | CM34: AUD | CN34: AUD | CO34: AUD | CP34: AUD | CQ34: AUD | CR34: AUD | CS34: AUD | CT34: AUD | CU34: AUD | CV34: ND5 | CW34: ND5 | CX34: ND5 | CY34: ND5 | CZ34: ND5 | DA34: ND5 | DB34: ND5 | DC34: ND5 | DD34: ND5 | DE34: ND5 | DF34: ND5 | DG34: ND5 | DH34: ND5 | DI34: ND5 | DJ34: AUD | DK34: AUD | DL34: AUD | DM34: AUD | DN34: AUD | DP34: AUD | DQ34: AUD | DR34: AUD | DS34: AUD | DT34: AUD | DU34: AUD | DV34: AUD | DW34: AUD | DX34: AUD | DY34: AUD | DZ34: AUD | EA34: AUD | EB34: AUD | EC34: AUD | ED34: AUD | EE34: AUD | EF34: AUD | EG34: AUD | EH34: AUD | EI34: AUD | EJ34: AUD | EK34: AUD | EL34: AUD | EM34: AUD | EN34: AUD | EO34: AUD | EP34: AUD | EQ34: AUD | ER34: AUD | ES34: AUD | ET34: AUD | EU34: AUD | EV34: AUD | EW34: AUD | EX34: AUD | EY34: AUD | EZ34: AUD | FA34: AUD | FB34: AUD | FC34: AUD | FD34: AUD | FE34: AUD | FF34: AUD | FG34: AUD | FH34: AUD | FI34: AUD | FJ34: AUD | FK34: AUD | FL34: AUD | FM34: AUD | FN34: AUD | FO34: AUD | FP34: AUD | FQ34: AUD | FR34: AUD | FS34: AUD | FT34: AUD | FU34: AUD | FV34: AUD | FW34: AUD | FX34: AUD | FY34: AUD | FZ34: AUD | GA34: AUD | GB34: AUD | GC34: AUD | GD34: AUD | GE34: AUD | GF34: AUD | GG34: AUD | GH34: AUD | GI34: AUD | GJ34: AUD | GK34: AUD | GL34: AUD | GM34: AUD | GN34: AUD | GO34: AUD | GP34: AUD | GQ34: ND5 | GR34: ND5 | GS34: ND5 | GT34: AUD | GU34: AUD | GV34: AUD | GW34: AUD | GX34: AUD | GY34: AUD | GZ34: AUD | HA34: AUD | HB34: AUD | HC34: AUD | HD34: AUD | HE34: AUD | HF34: AUD | HG34: AUD | HH34: AUD | HI34: AUD | HJ34: AUD | HK34: AUD | HL34: AUD | HM34: AUD | HN34: AUD | HO34: AUD | HP34: AUD | HQ34: AUD | HR34: AUD | HS34: AUD | HT34: AUD | HU34: AUD | HV34: AUD | HW34: AUD | HX34: AUD | HY34: AUD | HZ34: AUD | IA34: AUD | IB34: AUD | IC34: AUD | ID34: AUD | IE34: AUD | IF34: AUD | IG34: AUD | IH34: AUD | II34: AUD | IJ34: AUD | IK34: AUD | IL34: AUD | IM34: AUD | IN34: AUD | IO34: AUD | IP34: AUD | IQ34: AUD | IR34: AUD | IS34: AUD | IT34: AUD | IU34: AUD | IV34: AUD | IW34: AUD | IX34: AUD | IY34: AUD | IZ34: AUD | JA34: AUD | JB34: AUD | JC34: AUD | JD34: AUD | JE34: AUD | JF34: AUD | JG34: AUD | JH34: AUD | JI34: AUD | JJ34: AUD | JK34: AUD | JL34: AUD | JM34: AUD | JN34: AUD | JO34: AUD | JP34: AUD | JQ34: AUD | JR34: AUD | JS34: AUD | JT34: AUD | JU34: AUD | JV34: AUD | JW34: AUD | JX34: ND5 | JY34: ND5 | JZ34: ND5 | KA34: AUD | KB34: AUD | KC34: AUD | KD34: AUD | KE34: AUD | KF34: AUD | KG34: AUD | KH34: AUD | KI34: AUD | KJ34: AUD | KK34: AUD | KL34: AUD | KM34: AUD | KN34: AUD | KO34: AUD | KP34: AUD | KQ34: AUD | KR34: AUD | KS34: AUD | KT34: AUD | KU34: AUD | KV34: AUD | KW34: AUD | KX34: AUD | KY34: AUD | KZ34: AUD | LA34: AUD | LB34: AUD | LC34: AUD | LD34: AUD | LE34: AUD | LF34: AUD | LG34: AUD | LH34: AUD | LI34: AUD | LJ34: AUD | LK34: AUD | LL34: AUD | LM34: AUD | LN34: AUD | LO34: AUD | LP34: AUD | LQ34: AUD | LR34: AUD | LS34: AUD | LT34: AUD | LU34: AUD | LV34: AUD | LW34: AUD | LX34: AUD | LY34: AUD | LZ34: AUD | MA34: AUD | MB34: AUD | MC34: AUD | MD34: AUD | ME34: AUD | MF34: AUD | MG34: AUD | MH34: AUD | MI34: AUD | MJ34: AUD | MK34: AUD | ML34: AUD | MM34: AUD | MN34: AUD | MO34: AUD | MP34: AUD | MQ34: AUD | MR34: AUD | MS34: AUD | MT34: AUD | MU34: AUD | MV34: AUD | MW34: AUD | MX34: AUD | MY34: AUD | MZ34: AUD | NA34: AUD | NB34: AUD | NC34: AUD | ND34: AUD | NE34: ND5 | NF34: ND5 | NG34: ND5 | NH34: AUD | NI34: AUD | NJ34: AUD
B35: Description | C35: First day of the Collection Period | D35: Last Day of the Collection Period | E35: Determination Date of the Trust | F35: Distribution Date of the Trust | G35: Number of days in the Interest Period | H35: 1-month Bank Bill Swap Rate | I35: Closing Date | J35: Pool Balance purchased on the Closing Date | K35: Pool Balance on the First Day of the Collection Period | L35: Balance of Fixed Rate Loans in the pool on the First Day of the Collection Period | M35: Final Pool Balance as at the end of the Collection Period | N35: Final Fixed Rate Pool Balance as at the end of the Collection Period | O35: Balance of loans in the pool which are not in Arrears by more than 90 Days | P35: Balance of Fixed Rate loans in the pool which are not in Arrears by more than 90 Days | Q35: Final Balance of Non-Performing Loans in the Pool as at the end of the Collection Period | R35: % (by current balance) of pools in 30+ days in Arrears | S35: Amount of losses recorded on the pool during the collection period | T35: Redraws and Further Advances to be reimbursed to the Seller | U35: Proceeds from the sale of assets from the Trust to the Seller | V35: Accrued Interest Adjustment Owing to Seller (to the extent it has not been net off in the calculation of Finance Charge Collections) | W35: Finance Charge Collections from Variable Rate Loans | X35: Finance Charge Collections from Fixed Rate Loans | Y35: Scheduled Principal Repayments | Z35: Principal Collections from the pool | AA35: Other Trust Income, e.g. interest on trust accounts | AB35: Damages and Indemnity Payments received by the Trust (Principal Amounts) | AC35: Excess Note Proceeds (only applicable for First Trust Payment Date after Closing Date) | AD35: Excess Redraw Note Proceeds (from issuance of Redraw Notes in prior period) | AE35: Amount of Principal Draws Outstanding | AF35: The maximum amount that can be drawn on the Liquidity Facility | AG35: Amount of Liquidity Facility Draws Outstanding | AH35: Class A1 Invested Amount on Closing Date | AI35: Redraw Notes Invested Amount on Closing Date | AJ35: Class A2 Invested Amount on Closing Date | AK35: Class B Invested Amount on Closing Date | AL35: Class C Invested Amount on Closing Date | AM35: Class D Invested Amount on Closing Date | AN35: Class E Invested Amount on Closing Date | AO35: Class F Invested Amount on Closing Date | AP35: The size of each Redraw Note when it is issued | AQ35: Class A1 Opening Invested Amount | AR35: Redraw Notes Opening Invested Amount | AS35: Class A2 Opening Invested Amount | AT35: Class B Opening Invested Amount | AU35: Class C Opening Invested Amount | AV35: Class D Opening Invested Amount | AW35: Class E Opening Invested Amount | AX35: Class F Opening Invested Amount | AY35: Unreimbursed Charge-offs on A1 Notes from prior collection periods | AZ35: Unreimbursed Charge-offs on Redraw Notes from prior collection periods | BA35: Unreimbursed Charge-offs on A2 Notes from prior collection periods | BB35: Unreimbursed Charge-offs on B Notes from prior collection periods | BC35: Unreimbursed Charge-offs on C Notes from prior collection periods | BD35: Unreimbursed Charge-offs on D Notes from prior collection periods | BE35: Unreimbursed Charge-offs on E Notes from prior collection periods | BF35: Unreimbursed Charge-offs on F Notes from prior collection periods | BG35: Discretionary payment to the Participation Unitholder | BH35: Senior Fees and Expenses to be paid this period | BI35: Unpaid Liquidity Facility Fees from prior periods | BJ35: Liquidity Facility Fees to be paid this period | BK35: This variable's value is redacted/not reported for reasons of commercial sensitivity. The investor/user of the waterfall template is responsible for replacing it with his or her estimate. | BL35: Unpaid Liquidity Facility Interest | BM35: Amounts owing to the Liquidity Facility Provider (other than fees, interest and principal) | BN35: This variable's value is redacted/not reported for reasons of commercial sensitivity. The investor/user of the waterfall template is responsible for replacing it with his or her estimate. | BO35: This variable's value is redacted/not reported for reasons of commercial sensitivity. The investor/user of the waterfall template is responsible for replacing it with his or her estimate. | BP35: Amounts owing to the Basis Swap Provider on termination of the Basis Swap | BQ35: Amounts owing to the Fixed Swap Provider on termination of the Fixed Swap | BR35: Initial Margin on Class A1 Notes prior to Step-Up Margin Date | BS35: Margin on Redraw Notes | BT35: Initial Margin on Class A2 Notes prior to Step-Up Margin Date | BU35: Initial Margin on Class B Notes prior to Step-Down Margin Date | BV35: Initial Margin on Class C Notes prior to Step-Down Margin Date | BW35: Initial Margin on Class D Notes prior to Step-Down Margin Date | BX35: Initial Margin on Class E Notes prior to Step-Down Margin Date | BY35: Initial Margin on Class F Notes prior to Step-Down Margin Date | BZ35: Step-Up Margin on Class A1 Notes on and after Step-Up Margin Date | CA35: Step-Up Margin on Class A2 Notes on and after Step-Up Margin Date | CB35: Step-Down Margin on Class B Notes on and after Step-Down Margin Date | CC35: Step-Down Margin on Class C Notes on and after Step-Down Margin Date | CD35: Step-Down Margin on Class D Notes on and after Step-Down Margin Date | CE35: Step-Down Margin on Class E Notes on and after Step-Down Margin Date | CF35: Step-Down Margin on Class F Notes on and after Step-Down Margin Date | CG35: Unpaid Class A1 Interest from prior periods | CH35: Unpaid Redraw Notes from prior periods | CI35: Unpaid Class A2 Interest from prior periods | CJ35: Unpaid Class B Senior Interest from prior periods | CK35: Unpaid Class C Senior Interest from prior periods | CL35: Unpaid Class D Senior Interest from prior periods | CM35: Unpaid Class E Senior Interest from prior periods | CN35: Unpaid Class F Senior Interest from prior periods | CO35: Unpaid Class B Residual Interest from prior periods | CP35: Unpaid Class C Residual Interest from prior periods | CQ35: Unpaid Class D Residual Interest from prior periods | CR35: Unpaid Class E Residual Interest from prior periods | CS35: Unpaid Class F Residual Interest from prior periods | CT35: Tax Shortfall to be paid in Income Waterfall | CU35: Tax Amount to be paid in Income Waterfall | CV35: Percentage at which the clean-up call can be triggered | CW35: Class A1 CE Trigger Level for Pro-Rata Test | CX35: 3 Month Average Arrears Ratio using last 3 collection periods for Pro-Rata Test | CY35: 3 Month Average Arrears Ratio Trigger Level for Pro-Rata Test | CZ35: Indicates whether the Clean-Up Call is being Triggered this Distribution Date | DA35: Indicates whether the Class A1 Notes should be redeemed at Stated Amount. If set to FALSE, notes are redeemed at Invested Amount | DB35: Indicates whether the Redraw Notes should be redeemed at Stated Amount. If set to FALSE, notes are redeemed at Invested Amount | DC35: Indicates whether the Class A2 Notes should be redeemed at Stated Amount. If set to FALSE, notes are redeemed at Invested Amount | DD35: Indicates whether the Class B Notes should be redeemed at Stated Amount. If set to FALSE, notes are redeemed at Invested Amount | DE35: Indicates whether the Class C Notes should be redeemed at Stated Amount. If set to FALSE, notes are redeemed at Invested Amount | DF35: Indicates whether the Class D Notes should be redeemed at Stated Amount. If set to FALSE, notes are redeemed at Invested Amount | DG35: Indicates whether the Class E Notes should be redeemed at Stated Amount. If set to FALSE, notes are redeemed at Invested Amount | DH35: Indicates whether the Class F Notes should be redeemed at Stated Amount. If set to FALSE, notes are redeemed at Invested Amount | DI35: Event of Default has occurred so Event of Default Waterfall Applies | DJ35: Total proceeds to be distributed in the Event of Default Waterfall | DK35: Secured Moneys to be paid to Basis Swap Provider in an Event of Default | DL35: Secured Moneys to be paid to Fixed Swap Provider in an Event of Default | DM35: Other Amounts to Secured Creditors to be paid in an Event of Default | DN35: Amounts owing to parties with a subsequent ranking Encumbrance over the Collateral (Event of Default Only) | DP35: Senior Fees and Expenses Paid | DQ35: Reimbursement to Seller for Redraws and Further Advances via Principal Waterfall | DR35: Accrued Interest Adjustment Paid to Seller (to the extent it has not been net off in the calculation of Finance Charge Collections) | DS35: Liquidity Facility Fees and Interest Paid | DT35: Subordinated Liquidity Facility Provider Amounts Paid | DU35: Unpaid Interest and Fees on Liquidity Facility | DV35: Repayment of outstanding Liquidity Facility Advances | DW35: Liquidity Facility Advance this period | DX35: Closing balance of Liquidity Facility Advances Outstanding | DY35: Amount of Principal Draw this period | DZ35: Amount of Principal Draw repaid this period | EA35: Closing Balance of outstanding Principal Draws | EB35: Redraw Notes Issued this period to meet Redraw Shortfall | EC35: Interest Paid on Class A1 Notes | ED35: Interest Paid on Redraw Notes | EE35: Interest Paid on Class A2 Notes | EF35: Senior Interest Paid on Class B Notes | EG35: Senior Interest Paid on Class C Notes | EH35: Senior Interest Paid on Class D Notes | EI35: Senior Interest Paid on Class E Notes | EJ35: Senior Interest Paid on Class F Notes | EK35: Residual Interest Paid on Class B Notes | EL35: Residual Interest Paid on Class C Notes | EM35: Residual Interest Paid on Class D Notes | EN35: Residual Interest Paid on Class E Notes | EO35: Residual Interest Paid on Class F Notes | EP35: Closing Unpaid Interest on the Class A1 Notes | EQ35: Closing Unpaid Interest on the Redraw Notes | ER35: Closing Unpaid Interest on the Class A2 Notes | ES35: Closing Unpaid Senior Interest on the Class B Notes | ET35: Closing Unpaid Senior Interest on the Class C Notes | EU35: Closing Unpaid Senior Interest on the Class D Notes | EV35: Closing Unpaid Senior Interest on the Class E Notes | EW35: Closing Unpaid Senior Interest on the Class F Notes | EX35: Closing Unpaid Residual Interest on the Class B Notes | EY35: Closing Unpaid Residual Interest on the Class C Notes | EZ35: Closing Unpaid Residual Interest on the Class D Notes | FA35: Closing Unpaid Residual Interest on the Class E Notes | FB35: Closing Unpaid Residual Interest on the Class F Notes | FC35: Amounts paid to the Basis Swap Provider including Net Payments, Termination Amounts, etc. | FD35: Amounts paid to the Fixed Swap Provider including Net Payments, Termination Amounts, etc. | FE35: Payments to Participation Unitholder from the Income Waterfall | FF35: Payments to the Residual Unitholder from the Principal Waterfall | FG35: Collection Period Losses Reimbursed in the Income Waterfall | FH35: Carryover Charge-offs Reimbursed in the Income Waterfall | FI35: Principal Payment to Class A1 Notes made in the Principal Waterfall | FJ35: Principal Payment to Redraw Notes made in the Principal Waterfall | FK35: Principal Payment to Class A2 Notes made in the Principal Waterfall | FL35: Principal Payment to Class B Notes made in the Principal Waterfall | FM35: Principal Payment to Class C Notes made in the Principal Waterfall | FN35: Principal Payment to Class D Notes made in the Principal Waterfall | FO35: Principal Payment to Class E Notes made in the Principal Waterfall | FP35: Principal Payment to Class F Notes made in the Principal Waterfall | FQ35: Closing Invested Amount of Class A1 Notes | FR35: Closing Invested Amount of Redraw Notes | FS35: Closing Invested Amount of Class A2 Notes | FT35: Closing Invested Amount of Class B Notes | FU35: Closing Invested Amount of Class C Notes | FV35: Closing Invested Amount of Class D Notes | FW35: Closing Invested Amount of Class E Notes | FX35: Closing Invested Amount of Class F Notes | FY35: Closing Carryover Charge-offs on Class A1 Notes | FZ35: Closing Carryover Charge-offs on Redraw Notes | GA35: Closing Carryover Charge-offs on Class A2 Notes | GB35: Closing Carryover Charge-offs on Class B Notes | GC35: Closing Carryover Charge-offs on Class C Notes | GD35: Closing Carryover Charge-offs on Class D Notes | GE35: Closing Carryover Charge-offs on Class E Notes | GF35: Closing Carryover Charge-offs on Class F Notes | GG35: Closing Stated Amount of Class A1 Notes | GH35: Closing Stated Amount of Redraw Notes | GI35: Closing Stated Amount of Class A2 Notes | GJ35: Closing Stated Amount of Class B Notes | GK35: Closing Stated Amount of Class C Notes | GL35: Closing Stated Amount of Class D Notes | GM35: Closing Stated Amount of Class E Notes | GN35: Closing Stated Amount of Class F Notes | GO35: Amount retained in the Tax Account to meet a Tax Shortfall (Income Waterfall) | GP35: Amount retained in the Tax Account to pay Tax Amount (Income Waterfall) | GQ35: Indicates if the Pro-Rata Criteria is satisfied | GR35: Indicates if any Required Payments in the Income or Principal Waterfall were missed | GS35: Clean-Up Call Condition is satisfied post Principal Repayments on Notes | GT35: Secured Creditor Payment (Event of Default Only) | GU35: Amounts paid to parties with a subsequent ranking Encumbrance over the Collateral (Event of Default Only) | GV35: Remaining Enforcement proceeds to be distributed by the Trustee | GW35: Senior Fees and Expenses Paid | GX35: Reimbursement to Seller for Redraws and Further Advances via Principal Waterfall | GY35: Accrued Interest Adjustment Paid to Seller (to the extent it has not been net off in the calculation of Finance Charge Collections) | GZ35: Liquidity Facility Fees and Interest Paid | HA35: Subordinated Liquidity Facility Provider Amounts Paid | HB35: Unpaid Interest and Fees on Liquidity Facility | HC35: Repayment of outstanding Liquidity Facility Advances | HD35: Liquidity Facility Advance this period | HE35: Closing balance of Liquidity Facility Advances Outstanding | HF35: Amount of Principal Draw this period | HG35: Amount of Principal Draw repaid this period | HH35: Closing Balance of outstanding Principal Draws | HI35: Redraw Notes Issued this period to meet Redraw Shortfall | HJ35: Interest Paid on Class A1 Notes | HK35: Interest Paid on Redraw Notes | HL35: Interest Paid on Class A2 Notes | HM35: Senior Interest Paid on Class B Notes | HN35: Senior Interest Paid on Class C Notes | HO35: Senior Interest Paid on Class D Notes | HP35: Senior Interest Paid on Class E Notes | HQ35: Senior Interest Paid on Class F Notes | HR35: Residual Interest Paid on Class B Notes | HS35: Residual Interest Paid on Class C Notes | HT35: Residual Interest Paid on Class D Notes | HU35: Residual Interest Paid on Class E Notes | HV35: Residual Interest Paid on Class F Notes | HW35: Closing Unpaid Interest on the Class A1 Notes | HX35: Closing Unpaid Interest on the Redraw Notes | HY35: Closing Unpaid Interest on the Class A2 Notes | HZ35: Closing Unpaid Senior Interest on the Class B Notes | IA35: Closing Unpaid Senior Interest on the Class C Notes | IB35: Closing Unpaid Senior Interest on the Class D Notes | IC35: Closing Unpaid Senior Interest on the Class E Notes | ID35: Closing Unpaid Senior Interest on the Class F Notes | IE35: Closing Unpaid Residual Interest on the Class B Notes | IF35: Closing Unpaid Residual Interest on the Class C Notes | IG35: Closing Unpaid Residual Interest on the Class D Notes | IH35: Closing Unpaid Residual Interest on the Class E Notes | II35: Closing Unpaid Residual Interest on the Class F Notes | IJ35: Amounts paid to the Basis Swap Provider including Net Payments, Termination Amounts, etc. | IK35: Amounts paid to the Fixed Swap Provider including Net Payments, Termination Amounts, etc. | IL35: Payments to Participation Unitholder from the Income Waterfall | IM35: Payments to the Residual Unitholder from the Principal Waterfall | IN35: Collection Period Losses Reimbursed in the Income Waterfall | IO35: Carryover Charge-offs Reimbursed in the Income Waterfall | IP35: Principal Payment to Class A1 Notes made in the Principal Waterfall | IQ35: Principal Payment to Redraw Notes made in the Principal Waterfall | IR35: Principal Payment to Class A2 Notes made in the Principal Waterfall | IS35: Principal Payment to Class B Notes made in the Principal Waterfall | IT35: Principal Payment to Class C Notes made in the Principal Waterfall | IU35: Principal Payment to Class D Notes made in the Principal Waterfall | IV35: Principal Payment to Class E Notes made in the Principal Waterfall | IW35: Principal Payment to Class F Notes made in the Principal Waterfall | IX35: Closing Invested Amount of Class A1 Notes | IY35: Closing Invested Amount of Redraw Notes | IZ35: Closing Invested Amount of Class A2 Notes | JA35: Closing Invested Amount of Class B Notes | JB35: Closing Invested Amount of Class C Notes | JC35: Closing Invested Amount of Class D Notes | JD35: Closing Invested Amount of Class E Notes | JE35: Closing Invested Amount of Class F Notes | JF35: Closing Carryover Charge-offs on Class A1 Notes | JG35: Closing Carryover Charge-offs on Redraw Notes | JH35: Closing Carryover Charge-offs on Class A2 Notes | JI35: Closing Carryover Charge-offs on Class B Notes | JJ35: Closing Carryover Charge-offs on Class C Notes | JK35: Closing Carryover Charge-offs on Class D Notes | JL35: Closing Carryover Charge-offs on Class E Notes | JM35: Closing Carryover Charge-offs on Class F Notes | JN35: Closing Stated Amount of Class A1 Notes | JO35: Closing Stated Amount of Redraw Notes | JP35: Closing Stated Amount of Class A2 Notes | JQ35: Closing Stated Amount of Class B Notes | JR35: Closing Stated Amount of Class C Notes | JS35: Closing Stated Amount of Class D Notes | JT35: Closing Stated Amount of Class E Notes | JU35: Closing Stated Amount of Class F Notes | JV35: Amount retained in the Tax Account to meet a Tax Shortfall (Income Waterfall) | JW35: Amount retained in the Tax Account to pay Tax Amount (Income Waterfall) | JX35: Indicates if the Pro-Rata Criteria is satisfied | JY35: Indicates if any Required Payments in the Income or Principal Waterfall were missed | JZ35: Clean-Up Call Condition is satisfied post Principal Repayments on Notes | KA35: Secured Creditor Payment (Event of Default Only) | KB35: Amounts paid to parties with a subsequent ranking Encumbrance over the Collateral (Event of Default Only) | KC35: Remaining Enforcement proceeds to be distributed by the Trustee | KD35: Senior Fees and Expenses Paid | KE35: Reimbursement to Seller for Redraws and Further Advances via Principal Waterfall | KF35: Accrued Interest Adjustment Paid to Seller (to the extent it has not been net off in the calculation of Finance Charge Collections) | KG35: Liquidity Facility Fees and Interest Paid | KH35: Subordinated Liquidity Facility Provider Amounts Paid | KI35: Unpaid Interest and Fees on Liquidity Facility | KJ35: Repayment of outstanding Liquidity Facility Advances | KK35: Liquidity Facility Advance this period | KL35: Closing balance of Liquidity Facility Advances Outstanding | KM35: Amount of Principal Draw this period | KN35: Amount of Principal Draw repaid this period | KO35: Closing Balance of outstanding Principal Draws | KP35: Redraw Notes Issued this period to meet Redraw Shortfall | KQ35: Interest Paid on Class A1 Notes | KR35: Interest Paid on Redraw Notes | KS35: Interest Paid on Class A2 Notes | KT35: Senior Interest Paid on Class B Notes | KU35: Senior Interest Paid on Class C Notes | KV35: Senior Interest Paid on Class D Notes | KW35: Senior Interest Paid on Class E Notes | KX35: Senior Interest Paid on Class F Notes | KY35: Residual Interest Paid on Class B Notes | KZ35: Residual Interest Paid on Class C Notes | LA35: Residual Interest Paid on Class D Notes | LB35: Residual Interest Paid on Class E Notes | LC35: Residual Interest Paid on Class F Notes | LD35: Closing Unpaid Interest on the Class A1 Notes | LE35: Closing Unpaid Interest on the Redraw Notes | LF35: Closing Unpaid Interest on the Class A2 Notes | LG35: Closing Unpaid Senior Interest on the Class B Notes | LH35: Closing Unpaid Senior Interest on the Class C Notes | LI35: Closing Unpaid Senior Interest on the Class D Notes | LJ35: Closing Unpaid Senior Interest on the Class E Notes | LK35: Closing Unpaid Senior Interest on the Class F Notes | LL35: Closing Unpaid Residual Interest on the Class B Notes | LM35: Closing Unpaid Residual Interest on the Class C Notes | LN35: Closing Unpaid Residual Interest on the Class D Notes | LO35: Closing Unpaid Residual Interest on the Class E Notes | LP35: Closing Unpaid Residual Interest on the Class F Notes | LQ35: Amounts paid to the Basis Swap Provider including Net Payments, Termination Amounts, etc. | LR35: Amounts paid to the Fixed Swap Provider including Net Payments, Termination Amounts, etc. | LS35: Payments to Participation Unitholder from the Income Waterfall | LT35: Payments to the Residual Unitholder from the Principal Waterfall | LU35: Collection Period Losses Reimbursed in the Income Waterfall | LV35: Carryover Charge-offs Reimbursed in the Income Waterfall | LW35: Principal Payment to Class A1 Notes made in the Principal Waterfall | LX35: Principal Payment to Redraw Notes made in the Principal Waterfall | LY35: Principal Payment to Class A2 Notes made in the Principal Waterfall | LZ35: Principal Payment to Class B Notes made in the Principal Waterfall | MA35: Principal Payment to Class C Notes made in the Principal Waterfall | MB35: Principal Payment to Class D Notes made in the Principal Waterfall | MC35: Principal Payment to Class E Notes made in the Principal Waterfall | MD35: Principal Payment to Class F Notes made in the Principal Waterfall | ME35: Closing Invested Amount of Class A1 Notes | MF35: Closing Invested Amount of Redraw Notes | MG35: Closing Invested Amount of Class A2 Notes | MH35: Closing Invested Amount of Class B Notes | MI35: Closing Invested Amount of Class C Notes | MJ35: Closing Invested Amount of Class D Notes | MK35: Closing Invested Amount of Class E Notes | ML35: Closing Invested Amount of Class F Notes | MM35: Closing Carryover Charge-offs on Class A1 Notes | MN35: Closing Carryover Charge-offs on Redraw Notes | MO35: Closing Carryover Charge-offs on Class A2 Notes | MP35: Closing Carryover Charge-offs on Class B Notes | MQ35: Closing Carryover Charge-offs on Class C Notes | MR35: Closing Carryover Charge-offs on Class D Notes | MS35: Closing Carryover Charge-offs on Class E Notes | MT35: Closing Carryover Charge-offs on Class F Notes | MU35: Closing Stated Amount of Class A1 Notes | MV35: Closing Stated Amount of Redraw Notes | MW35: Closing Stated Amount of Class A2 Notes | MX35: Closing Stated Amount of Class B Notes | MY35: Closing Stated Amount of Class C Notes | MZ35: Closing Stated Amount of Class D Notes | NA35: Closing Stated Amount of Class E Notes | NB35: Closing Stated Amount of Class F Notes | NC35: Amount retained in the Tax Account to meet a Tax Shortfall (Income Waterfall) | ND35: Amount retained in the Tax Account to pay Tax Amount (Income Waterfall) | NE35: Indicates if the Pro-Rata Criteria is satisfied | NF35: Indicates if any Required Payments in the Income or Principal Waterfall were missed | NG35: Clean-Up Call Condition is satisfied post Principal Repayments on Notes | NH35: Secured Creditor Payment (Event of Default Only) | NI35: Amounts paid to parties with a subsequent ranking Encumbrance over the Collateral (Event of Default Only) | NJ35: Remaining Enforcement proceeds to be distributed by the Trustee
B36: REPORT DATE | C36: INPUT | D36: INPUT | E36: INPUT | F36: INPUT | G36: INPUT | H36: INPUT | I36: INPUT | J36: INPUT | K36: INPUT | L36: INPUT | M36: INPUT | N36: INPUT | O36: INPUT | P36: INPUT | Q36: INPUT | R36: INPUT | S36: INPUT | T36: INPUT | U36: INPUT | V36: INPUT | W36: INPUT | X36: INPUT | Y36: INPUT | Z36: INPUT | AA36: INPUT | AB36: INPUT | AC36: INPUT | AD36: INPUT | AE36: INPUT | AF36: INPUT | AG36: INPUT | AH36: INPUT | AI36: INPUT | AJ36: INPUT | AK36: INPUT | AL36: INPUT | AM36: INPUT | AN36: INPUT | AO36: INPUT | AP36: INPUT | AQ36: INPUT | AR36: INPUT | AS36: INPUT | AT36: INPUT | AU36: INPUT | AV36: INPUT | AW36: INPUT | AX36: INPUT | AY36: INPUT | AZ36: INPUT | BA36: INPUT | BB36: INPUT | BC36: INPUT | BD36: INPUT | BE36: INPUT | BF36: INPUT | BG36: INPUT | BH36: INPUT | BI36: INPUT | BJ36: INPUT | BK36: INPUT | BL36: INPUT | BM36: INPUT | BN36: INPUT | BO36: INPUT | BP36: INPUT | BQ36: INPUT | BR36: INPUT | BS36: INPUT | BT36: INPUT | BU36: INPUT | BV36: INPUT | BW36: INPUT | BX36: INPUT | BY36: INPUT | BZ36: INPUT | CA36: INPUT | CB36: INPUT | CC36: INPUT | CD36: INPUT | CE36: INPUT | CF36: INPUT | CG36: INPUT | CH36: INPUT | CI36: INPUT | CJ36: INPUT | CK36: INPUT | CL36: INPUT | CM36: INPUT | CN36: INPUT | CO36: INPUT | CP36: INPUT | CQ36: INPUT | CR36: INPUT | CS36: INPUT | CT36: INPUT | CU36: INPUT | CV36: INPUT | CW36: INPUT | CX36: INPUT | CY36: INPUT | CZ36: INPUT | DA36: INPUT | DB36: INPUT | DC36: INPUT | DD36: INPUT | DE36: INPUT | DF36: INPUT | DG36: INPUT | DH36: INPUT | DI36: INPUT | DJ36: INPUT | DK36: INPUT | DL36: INPUT | DM36: INPUT | DN36: INPUT | DO36: MODEL VERSION | DP36: OUTPUT | DQ36: OUTPUT | DR36: OUTPUT | DS36: OUTPUT | DT36: OUTPUT | DU36: OUTPUT | DV36: OUTPUT | DW36: OUTPUT | DX36: OUTPUT | DY36: OUTPUT | DZ36: OUTPUT | EA36: OUTPUT | EB36: OUTPUT | EC36: OUTPUT | ED36: OUTPUT | EE36: OUTPUT | EF36: OUTPUT | EG36: OUTPUT | EH36: OUTPUT | EI36: OUTPUT | EJ36: OUTPUT | EK36: OUTPUT | EL36: OUTPUT | EM36: OUTPUT | EN36: OUTPUT | EO36: OUTPUT | EP36: OUTPUT | EQ36: OUTPUT | ER36: OUTPUT | ES36: OUTPUT | ET36: OUTPUT | EU36: OUTPUT | EV36: OUTPUT | EW36: OUTPUT | EX36: OUTPUT | EY36: OUTPUT | EZ36: OUTPUT | FA36: OUTPUT | FB36: OUTPUT | FC36: OUTPUT | FD36: OUTPUT | FE36: OUTPUT | FF36: OUTPUT | FG36: OUTPUT | FH36: OUTPUT | FI36: OUTPUT | FJ36: OUTPUT | FK36: OUTPUT | FL36: OUTPUT | FM36: OUTPUT | FN36: OUTPUT | FO36: OUTPUT | FP36: OUTPUT | FQ36: OUTPUT | FR36: OUTPUT | FS36: OUTPUT | FT36: OUTPUT | FU36: OUTPUT | FV36: OUTPUT | FW36: OUTPUT | FX36: OUTPUT | FY36: OUTPUT | FZ36: OUTPUT | GA36: OUTPUT | GB36: OUTPUT | GC36: OUTPUT | GD36: OUTPUT | GE36: OUTPUT | GF36: OUTPUT | GG36: OUTPUT | GH36: OUTPUT | GI36: OUTPUT | GJ36: OUTPUT | GK36: OUTPUT | GL36: OUTPUT | GM36: OUTPUT | GN36: OUTPUT | GO36: OUTPUT | GP36: OUTPUT | GQ36: OUTPUT | GR36: OUTPUT | GS36: OUTPUT | GT36: OUTPUT | GU36: OUTPUT | GV36: OUTPUT | GW36: DISTRIBUTION | GX36: DISTRIBUTION | GY36: DISTRIBUTION | GZ36: DISTRIBUTION | HA36: DISTRIBUTION | HB36: DISTRIBUTION | HC36: DISTRIBUTION | HD36: DISTRIBUTION | HE36: DISTRIBUTION | HF36: DISTRIBUTION | HG36: DISTRIBUTION | HH36: DISTRIBUTION | HI36: DISTRIBUTION | HJ36: DISTRIBUTION | HK36: DISTRIBUTION | HL36: DISTRIBUTION | HM36: DISTRIBUTION | HN36: DISTRIBUTION | HO36: DISTRIBUTION | HP36: DISTRIBUTION | HQ36: DISTRIBUTION | HR36: DISTRIBUTION | HS36: DISTRIBUTION | HT36: DISTRIBUTION | HU36: DISTRIBUTION | HV36: DISTRIBUTION | HW36: DISTRIBUTION | HX36: DISTRIBUTION | HY36: DISTRIBUTION | HZ36: DISTRIBUTION | IA36: DISTRIBUTION | IB36: DISTRIBUTION | IC36: DISTRIBUTION | ID36: DISTRIBUTION | IE36: DISTRIBUTION | IF36: DISTRIBUTION | IG36: DISTRIBUTION | IH36: DISTRIBUTION | II36: DISTRIBUTION | IJ36: DISTRIBUTION | IK36: DISTRIBUTION | IL36: DISTRIBUTION | IM36: DISTRIBUTION | IN36: DISTRIBUTION | IO36: DISTRIBUTION | IP36: DISTRIBUTION | IQ36: DISTRIBUTION | IR36: DISTRIBUTION | IS36: DISTRIBUTION | IT36: DISTRIBUTION | IU36: DISTRIBUTION | IV36: DISTRIBUTION | IW36: DISTRIBUTION | IX36: DISTRIBUTION | IY36: DISTRIBUTION | IZ36: DISTRIBUTION | JA36: DISTRIBUTION | JB36: DISTRIBUTION | JC36: DISTRIBUTION | JD36: DISTRIBUTION | JE36: DISTRIBUTION | JF36: DISTRIBUTION | JG36: DISTRIBUTION | JH36: DISTRIBUTION | JI36: DISTRIBUTION | JJ36: DISTRIBUTION | JK36: DISTRIBUTION | JL36: DISTRIBUTION | JM36: DISTRIBUTION | JN36: DISTRIBUTION | JO36: DISTRIBUTION | JP36: DISTRIBUTION | JQ36: DISTRIBUTION | JR36: DISTRIBUTION | JS36: DISTRIBUTION | JT36: DISTRIBUTION | JU36: DISTRIBUTION | JV36: DISTRIBUTION | JW36: DISTRIBUTION | JX36: DISTRIBUTION | JY36: DISTRIBUTION | JZ36: DISTRIBUTION | KA36: DISTRIBUTION | KB36: DISTRIBUTION | KC36: DISTRIBUTION | KD36: DISCREPANCY | KE36: DISCREPANCY | KF36: DISCREPANCY | KG36: DISCREPANCY | KH36: DISCREPANCY | KI36: DISCREPANCY | KJ36: DISCREPANCY | KK36: DISCREPANCY | KL36: DISCREPANCY | KM36: DISCREPANCY | KN36: DISCREPANCY | KO36: DISCREPANCY | KP36: DISCREPANCY | KQ36: DISCREPANCY | KR36: DISCREPANCY | KS36: DISCREPANCY | KT36: DISCREPANCY | KU36: DISCREPANCY | KV36: DISCREPANCY | KW36: DISCREPANCY | KX36: DISCREPANCY | KY36: DISCREPANCY | KZ36: DISCREPANCY | LA36: DISCREPANCY | LB36: DISCREPANCY | LC36: DISCREPANCY | LD36: DISCREPANCY | LE36: DISCREPANCY | LF36: DISCREPANCY | LG36: DISCREPANCY | LH36: DISCREPANCY | LI36: DISCREPANCY | LJ36: DISCREPANCY | LK36: DISCREPANCY | LL36: DISCREPANCY | LM36: DISCREPANCY | LN36: DISCREPANCY | LO36: DISCREPANCY | LP36: DISCREPANCY | LQ36: DISCREPANCY | LR36: DISCREPANCY | LS36: DISCREPANCY | LT36: DISCREPANCY | LU36: DISCREPANCY | LV36: DISCREPANCY | LW36: DISCREPANCY | LX36: DISCREPANCY | LY36: DISCREPANCY | LZ36: DISCREPANCY | MA36: DISCREPANCY | MB36: DISCREPANCY | MC36: DISCREPANCY | MD36: DISCREPANCY | ME36: DISCREPANCY | MF36: DISCREPANCY | MG36: DISCREPANCY | MH36: DISCREPANCY | MI36: DISCREPANCY | MJ36: DISCREPANCY | MK36: DISCREPANCY | ML36: DISCREPANCY | MM36: DISCREPANCY | MN36: DISCREPANCY | MO36: DISCREPANCY | MP36: DISCREPANCY | MQ36: DISCREPANCY | MR36: DISCREPANCY | MS36: DISCREPANCY | MT36: DISCREPANCY | MU36: DISCREPANCY | MV36: DISCREPANCY | MW36: DISCREPANCY | MX36: DISCREPANCY | MY36: DISCREPANCY | MZ36: DISCREPANCY | NA36: DISCREPANCY | NB36: DISCREPANCY | NC36: DISCREPANCY | ND36: DISCREPANCY | NE36: DISCREPANCY NR | NF36: DISCREPANCY NR | NG36: DISCREPANCY NR | NH36: DISCREPANCY | NI36: DISCREPANCY | NJ36: DISCREPANCY
B37: 2017-01-24 | C37: 2016-11-01 | D37: 2017-01-03 | E37: 2017-01-19 | F37: 2017-01-24 | G37: 54 | H37: 0.016888 | I37: 2016-12-01 | J37: 1999995073 | K37: 1999995073 | L37: 115118668.9 | M37: 1870951053 | N37: 111124788.4 | O37: 1999995073 | P37: 115118668.9 | Q37: 0 | R37: 0.0051 | S37: 0 | T37: 14214075.01 | U37: 17464528.07 | V37: 0 | W37: 1563580.08 | X37: 213255.19 | Y37: 4704639.97 | Z37: 125793567.7 | AA37: 0.13 | AB37: 0 | AC37: 4926.53 | AD37: 0 | AE37: 0 | AF37: 20000000 | AG37: 0 | AH37: 1840000000 | AI37: 0 | AJ37: 70000000 | AK37: 48000000 | AL37: 14000000 | AM37: 12000000 | AN37: 8000000 | AO37: 8000000 | AP37: 10000 | AQ37: 1840000000 | AR37: 0 | AS37: 70000000 | AT37: 48000000 | AU37: 14000000 | AV37: 12000000 | AW37: 8000000 | AX37: 8000000 | AY37: 0 | AZ37: 0 | BA37: 0 | BB37: 0 | BC37: 0 | BD37: 0 | BE37: 0 | BF37: 0 | BG37: 1 | BH37: 943429.58 | BI37: 0 | BJ37: 15616.44 | BK37: 0 | BL37: 0 | BM37: 0 | BN37: 0 | BO37: 0 | BP37: 0 | BQ37: 0 | BR37: 0.0107 | BS37: 0 | BT37: 0.016 | BU37: 0.0225 | BV37: 0.0275 | BW37: 0.0375 | BX37: 0.0475 | BY37: 0.06 | BZ37: 0.0025 | CA37: 0.0025 | CB37: 0.02 | CC37: 0.02 | CD37: 0.02 | CE37: 0.02 | CF37: 0.02 | CG37: 0 | CH37: 0 | CI37: 0 | CJ37: 0 | CK37: 0 | CL37: 0 | CM37: 0 | CN37: 0 | CO37: 0 | CP37: 0 | CQ37: 0 | CR37: 0 | CS37: 0 | CT37: 0 | CU37: 0 | CV37: 0.1 | CW37: 2 | CX37: 0.0003741879416 | CY37: 0.04 | CZ37: FALSE | DA37: FALSE | DB37: FALSE | DC37: FALSE | DD37: FALSE | DE37: FALSE | DF37: FALSE | DG37: FALSE | DH37: FALSE | DI37: FALSE | DJ37: 0 | DK37: 0 | DL37: 0 | DM37: 0 | DN37: 0 | DO37: Waterfall_1 | DP37: =waterfall_1(C37:DN37) -> 943429.58 | DQ37: 0 | DR37: 0 | DS37: 15616.44 | DT37: 0 | DU37: 0 | DV37: 0 | DW37: 0 | DX37: 0 | DY37: 959067.79 | DZ37: 0 | EA37: 959067.79 | EB37: 0 | EC37: 7509982.68 | ED37: 0 | EE37: 340593.53 | EF37: 279708.76 | EG37: 91937.88 | EH37: 96557.33 | EI37: 76207.17 | EJ37: 91001.69 | EK37: 0 | EL37: 0 | EM37: 0 | EN37: 0 | EO37: 0 | EP37: 0 | EQ37: 0 | ER37: 0 | ES37: 0 | ET37: 0 | EU37: 0 | EV37: 0 | EW37: 0 | EX37: 0 | EY37: 0 | EZ37: 0 | FA37: 0 | FB37: 0 | FC37: 0 | FD37: 0 | FE37: 1 | FF37: 0 | FG37: 0 | FH37: 0 | FI37: 128089879.5 | FJ37: 0 | FK37: 0 | FL37: 0 | FM37: 0 | FN37: 0 | FO37: 0 | FP37: 0 | FQ37: 1711910120 | FR37: 0 | FS37: 70000000 | FT37: 48000000 | FU37: 14000000 | FV37: 12000000 | FW37: 8000000 | FX37: 8000000 | FY37: 0 | FZ37: 0 | GA37: 0 | GB37: 0 | GC37: 0 | GD37: 0 | GE37: 0 | GF37: 0 | GG37: 1711910120 | GH37: 0 | GI37: 70000000 | GJ37: 48000000 | GK37: 14000000 | GL37: 12000000 | GM37: 8000000 | GN37: 8000000 | GO37: 0 | GP37: 0 | GQ37: FALSE | GR37: FALSE | GS37: FALSE | GT37: 0 | GU37: 0 | GV37: 0 | GW37: 943429.58 | GX37: 0 | GY37: 0 | GZ37: 15616.44 | HA37: 0 | HB37: 0 | HC37: 0 | HD37: 0 | HE37: 0 | HF37: 0 | HG37: 0 | HH37: 0 | HI37: 0 | HJ37: 7509982.68 | HK37: 0 | HL37: 340593.53 | HM37: 279708.76 | HN37: 91937.88 | HO37: 96557.33 | HP37: 76207.17 | HQ37: 91001.69 | HR37: 0 | HS37: 0 | HT37: 0 | HU37: 0 | HV37: 0 | HW37: 0 | HX37: 0 | HY37: 0 | HZ37: 0 | IA37: 0 | IB37: 0 | IC37: 0 | ID37: 0 | IE37: 0 | IF37: 0 | IG37: 0 | IH37: 0 | II37: 0 | IJ37: 0 | IK37: 0 | IL37: 2591609.39 | IM37: 0 | IN37: 0 | IO37: 0 | IP37: 129048947.3 | IQ37: 0 | IR37: 0 | IS37: 0 | IT37: 0 | IU37: 0 | IV37: 0 | IW37: 0 | IX37: 1710951053 | IY37: 0 | IZ37: 70000000 | JA37: 48000000 | JB37: 14000000 | JC37: 12000000 | JD37: 8000000 | JE37: 8000000 | JF37: 0 | JG37: 0 | JH37: 0 | JI37: 0 | JJ37: 0 | JK37: 0 | JL37: 0 | JM37: 0 | JN37: 1710951053 | JO37: 0 | JP37: 70000000 | JQ37: 48000000 | JR37: 14000000 | JS37: 12000000 | JT37: 8000000 | JU37: 8000000 | JV37: 0 | JW37: 0 | JX37: FALSE | JY37: FALSE | JZ37: FALSE | KA37: 0 | KB37: 0 | KC37: 0 | KD37: =IF(GW37="NR","NR",ROUNDDOWN(GW37-DP37,0)) -> 0 | KE37: =IF(GX37="NR","NR",ROUNDDOWN(GX37-DQ37,0)) -> 0 | KF37: =IF(GY37="NR","NR",ROUNDDOWN(GY37-DR37,0)) -> 0 | KG37: =IF(GZ37="NR","NR",ROUNDDOWN(GZ37-DS37,0)) -> 0 | KH37: =IF(HA37="NR","NR",ROUNDDOWN(HA37-DT37,0)) -> 0 | KI37: =IF(HB37="NR","NR",ROUNDDOWN(HB37-DU37,0)) -> 0 | KJ37: =IF(HC37="NR","NR",ROUNDDOWN(HC37-DV37,0)) -> 0 | KK37: =IF(HD37="NR","NR",ROUNDDOWN(HD37-DW37,0)) -> 0 | KL37: =IF(HE37="NR","NR",ROUNDDOWN(HE37-DX37,0)) -> 0 | KM37: =IF(HF37="NR","NR",ROUNDDOWN(HF37-DY37,0)) -> -959067 | KN37: =IF(HG37="NR","NR",ROUNDDOWN(HG37-DZ37,0)) -> 0 | KO37: =IF(HH37="NR","NR",ROUNDDOWN(HH37-EA37,0)) -> -959067 | KP37: =IF(HI37="NR","NR",ROUNDDOWN(HI37-EB37,0)) -> 0 | KQ37: =IF(HJ37="NR","NR",ROUNDDOWN(HJ37-EC37,0)) -> 0 | KR37: =IF(HK37="NR","NR",ROUNDDOWN(HK37-ED37,0)) -> 0 | KS37: =IF(HL37="NR","NR",ROUNDDOWN(HL37-EE37,0)) -> 0 | KT37: =IF(HM37="NR","NR",ROUNDDOWN(HM37-EF37,0)) -> 0 | KU37: =IF(HN37="NR","NR",ROUNDDOWN(HN37-EG37,0)) -> 0 | KV37: =IF(HO37="NR","NR",ROUNDDOWN(HO37-EH37,0)) -> 0 | KW37: =IF(HP37="NR","NR",ROUNDDOWN(HP37-EI37,0)) -> 0 | KX37: =IF(HQ37="NR","NR",ROUNDDOWN(HQ37-EJ37,0)) -> 0 | KY37: =IF(HR37="NR","NR",ROUNDDOWN(HR37-EK37,0)) -> 0 | KZ37: =IF(HS37="NR","NR",ROUNDDOWN(HS37-EL37,0)) -> 0 | LA37: =IF(HT37="NR","NR",ROUNDDOWN(HT37-EM37,0)) -> 0 | LB37: =IF(HU37="NR","NR",ROUNDDOWN(HU37-EN37,0)) -> 0 | LC37: =IF(HV37="NR","NR",ROUNDDOWN(HV37-EO37,0)) -> 0 | LD37: =IF(HW37="NR","NR",ROUNDDOWN(HW37-EP37,0)) -> 0 | LE37: =IF(HX37="NR","NR",ROUNDDOWN(HX37-EQ37,0)) -> 0 | LF37: =IF(HY37="NR","NR",ROUNDDOWN(HY37-ER37,0)) -> 0 | LG37: =IF(HZ37="NR","NR",ROUNDDOWN(HZ37-ES37,0)) -> 0 | LH37: =IF(IA37="NR","NR",ROUNDDOWN(IA37-ET37,0)) -> 0 | LI37: =IF(IB37="NR","NR",ROUNDDOWN(IB37-EU37,0)) -> 0 | LJ37: =IF(IC37="NR","NR",ROUNDDOWN(IC37-EV37,0)) -> 0 | LK37: =IF(ID37="NR","NR",ROUNDDOWN(ID37-EW37,0)) -> 0 | LL37: =IF(IE37="NR","NR",ROUNDDOWN(IE37-EX37,0)) -> 0 | LM37: =IF(IF37="NR","NR",ROUNDDOWN(IF37-EY37,0)) -> 0 | LN37: =IF(IG37="NR","NR",ROUNDDOWN(IG37-EZ37,0)) -> 0 | LO37: =IF(IH37="NR","NR",ROUNDDOWN(IH37-FA37,0)) -> 0 | LP37: =IF(II37="NR","NR",ROUNDDOWN(II37-FB37,0)) -> 0 | LQ37: =IF(IJ37="NR","NR",ROUNDDOWN(IJ37-FC37,0)) -> 0 | LR37: =IF(IK37="NR","NR",ROUNDDOWN(IK37-FD37,0)) -> 0 | LS37: =IF(IL37="NR","NR",ROUNDDOWN(IL37-FE37,0)) -> 2591608 | LT37: =IF(IM37="NR","NR",ROUNDDOWN(IM37-FF37,0)) -> 0 | LU37: =IF(IN37="NR","NR",ROUNDDOWN(IN37-FG37,0)) -> 0 | LV37: =IF(IO37="NR","NR",ROUNDDOWN(IO37-FH37,0)) -> 0 | LW37: =IF(IP37="NR","NR",ROUNDDOWN(IP37-FI37,0)) -> 959067 | LX37: =IF(IQ37="NR","NR",ROUNDDOWN(IQ37-FJ37,0)) -> 0 | LY37: =IF(IR37="NR","NR",ROUNDDOWN(IR37-FK37,0)) -> 0 | LZ37: =IF(IS37="NR","NR",ROUNDDOWN(IS37-FL37,0)) -> 0 | MA37: =IF(IT37="NR","NR",ROUNDDOWN(IT37-FM37,0)) -> 0 | MB37: =IF(IU37="NR","NR",ROUNDDOWN(IU37-FN37,0)) -> 0 | MC37: =IF(IV37="NR","NR",ROUNDDOWN(IV37-FO37,0)) -> 0 | MD37: =IF(IW37="NR","NR",ROUNDDOWN(IW37-FP37,0)) -> 0 | ME37: =IF(IX37="NR","NR",ROUNDDOWN(IX37-FQ37,0)) -> -959067 | MF37: =IF(IY37="NR","NR",ROUNDDOWN(IY37-FR37,0)) -> 0 | MG37: =IF(IZ37="NR","NR",ROUNDDOWN(IZ37-FS37,0)) -> 0 | MH37: =IF(JA37="NR","NR",ROUNDDOWN(JA37-FT37,0)) -> 0 | MI37: =IF(JB37="NR","NR",ROUNDDOWN(JB37-FU37,0)) -> 0 | MJ37: =IF(JC37="NR","NR",ROUNDDOWN(JC37-FV37,0)) -> 0 | MK37: =IF(JD37="NR","NR",ROUNDDOWN(JD37-FW37,0)) -> 0 | ML37: =IF(JE37="NR","NR",ROUNDDOWN(JE37-FX37,0)) -> 0 | MM37: =IF(JF37="NR","NR",ROUNDDOWN(JF37-FY37,0)) -> 0 | MN37: =IF(JG37="NR","NR",ROUNDDOWN(JG37-FZ37,0)) -> 0 | MO37: =IF(JH37="NR","NR",ROUNDDOWN(JH37-GA37,0)) -> 0 | MP37: =IF(JI37="NR","NR",ROUNDDOWN(JI37-GB37,0)) -> 0 | MQ37: =IF(JJ37="NR","NR",ROUNDDOWN(JJ37-GC37,0)) -> 0 | MR37: =IF(JK37="NR","NR",ROUNDDOWN(JK37-GD37,0)) -> 0 | MS37: =IF(JL37="NR","NR",ROUNDDOWN(JL37-GE37,0)) -> 0 | MT37: =IF(JM37="NR","NR",ROUNDDOWN(JM37-GF37,0)) -> 0 | MU37: =IF(JN37="NR","NR",ROUNDDOWN(JN37-GG37,0)) -> -959067 | MV37: =IF(JO37="NR","NR",ROUNDDOWN(JO37-GH37,0)) -> 0 | MW37: =IF(JP37="NR","NR",ROUNDDOWN(JP37-GI37,0)) -> 0 | MX37: =IF(JQ37="NR","NR",ROUNDDOWN(JQ37-GJ37,0)) -> 0 | MY37: =IF(JR37="NR","NR",ROUNDDOWN(JR37-GK37,0)) -> 0 | MZ37: =IF(JS37="NR","NR",ROUNDDOWN(JS37-GL37,0)) -> 0 | NA37: =IF(JT37="NR","NR",ROUNDDOWN(JT37-GM37,0)) -> 0 | NB37: =IF(JU37="NR","NR",ROUNDDOWN(JU37-GN37,0)) -> 0 | NC37: =IF(JV37="NR","NR",ROUNDDOWN(JV37-GO37,0)) -> 0 | ND37: =IF(JW37="NR","NR",ROUNDDOWN(JW37-GP37,0)) -> 0 | NE37: NR | NF37: NR | NG37: NR | NH37: =IF(KA37="NR","NR",ROUNDDOWN(KA37-GT37,0)) -> 0 | NI37: =IF(KB37="NR","NR",ROUNDDOWN(KB37-GU37,0)) -> 0 | NJ37: =IF(KC37="NR","NR",ROUNDDOWN(KC37-GV37,0)) -> 0
B38: 2017-02-24 | C38: 2017-01-04 | D38: 2017-01-31 | E38: 2017-02-21 | F38: 2017-02-24 | G38: 31 | H38: 0.01615 | I38: 2016-12-01 | J38: 1999995073 | K38: 1870951053 | L38: 111124788.4 | M38: 1827577748 | N38: 107597121.9 | O38: 1870951053 | P38: 111124788.4 | Q38: 726440.92 | R38: 0.005 | S38: 0 | T38: 5380486.43 | U38: 11592566.78 | V38: 0 | W38: 5397851.31 | X38: 423544.62 | Y38: 5523693.86 | Z38: 37161224.71 | AA38: 9.73 | AB38: 0 | AC38: 0 | AD38: 0 | AE38: 0 | AF38: 18709510.53 | AG38: 0 | AH38: 1840000000 | AI38: 0 | AJ38: 70000000 | AK38: 48000000 | AL38: 14000000 | AM38: 12000000 | AN38: 8000000 | AO38: 8000000 | AP38: 10000 | AQ38: 1710951053 | AR38: 0 | AS38: 70000000 | AT38: 48000000 | AU38: 14000000 | AV38: 12000000 | AW38: 8000000 | AX38: 8000000 | AY38: 0 | AZ38: 0 | BA38: 0 | BB38: 0 | BC38: 0 | BD38: 0 | BE38: 0 | BF38: 0 | BG38: 1 | BH38: 557675.4 | BI38: 0 | BJ38: 7945.13 | BK38: 0 | BL38: 0 | BM38: 0 | BN38: 0 | BO38: 0 | BP38: 0 | BQ38: 0 | BR38: 0.0107 | BS38: 0 | BT38: 0.016 | BU38: 0.0225 | BV38: 0.0275 | BW38: 0.0375 | BX38: 0.0475 | BY38: 0.06 | BZ38: 0.0025 | CA38: 0.0025 | CB38: 0.02 | CC38: 0.02 | CD38: 0.02 | CE38: 0.02 | CF38: 0.02 | CG38: 0 | CH38: 0 | CI38: 0 | CJ38: 0 | CK38: 0 | CL38: 0 | CM38: 0 | CN38: 0 | CO38: 0 | CP38: 0 | CQ38: 0 | CR38: 0 | CS38: 0 | CT38: 0 | CU38: 0 | CV38: 0.1 | CW38: 2 | CX38: 0.0008352675507 | CY38: 0.04 | CZ38: FALSE | DA38: FALSE | DB38: FALSE | DC38: FALSE | DD38: FALSE | DE38: FALSE | DF38: FALSE | DG38: FALSE | DH38: FALSE | DI38: FALSE | DJ38: 0 | DK38: 0 | DL38: 0 | DM38: 0 | DN38: 0 | DO38: Waterfall_1 | DP38: =waterfall_1(C38:DN38) -> 557675.4 | DQ38: 0 | DR38: 0 | DS38: 7945.13 | DT38: 0 | DU38: 0 | DV38: 0 | DW38: 0 | DX38: 0 | DY38: 565611.79 | DZ38: 0 | EA38: 565611.79 | EB38: 0 | EC38: 3901671.53 | ED38: 0 | EE38: 191138.36 | EF38: 157564.93 | EG38: 51901.64 | EH38: 54678.9 | EI38: 43247.12 | EJ38: 51740.27 | EK38: 0 | EL38: 0 | EM38: 0 | EN38: 0 | EO38: 0 | EP38: 0 | EQ38: 0 | ER38: 0 | ES38: 0 | ET38: 0 | EU38: 0 | EV38: 0 | EW38: 0 | EX38: 0 | EY38: 0 | EZ38: 0 | FA38: 0 | FB38: 0 | FC38: 1210330.86 | FD38: 159122.31 | FE38: 1 | FF38: 0 | FG38: 0 | FH38: 0 | FI38: 42807693.27 | FJ38: 0 | FK38: 0 | FL38: 0 | FM38: 0 | FN38: 0 | FO38: 0 | FP38: 0 | FQ38: 1668143359 | FR38: 0 | FS38: 70000000 | FT38: 48000000 | FU38: 14000000 | FV38: 12000000 | FW38: 8000000 | FX38: 8000000 | FY38: 0 | FZ38: 0 | GA38: 0 | GB38: 0 | GC38: 0 | GD38: 0 | GE38: 0 | GF38: 0 | GG38: 1668143359 | GH38: 0 | GI38: 70000000 | GJ38: 48000000 | GK38: 14000000 | GL38: 12000000 | GM38: 8000000 | GN38: 8000000 | GO38: 0 | GP38: 0 | GQ38: FALSE | GR38: FALSE | GS38: FALSE | GT38: 0 | GU38: 0 | GV38: 0 | GW38: 557675.4 | GX38: 0 | GY38: 0 | GZ38: 7945.13 | HA38: 0 | HB38: 0 | HC38: 0 | HD38: 0 | HE38: 0 | HF38: 0 | HG38: 0 | HH38: 0 | HI38: 0 | HJ38: 3901671.53 | HK38: 0 | HL38: 191138.36 | HM38: 157564.93 | HN38: 51901.64 | HO38: 54678.9 | HP38: 43247.12 | HQ38: 51740.27 | HR38: 0 | HS38: 0 | HT38: 0 | HU38: 0 | HV38: 0 | HW38: 0 | HX38: 0 | HY38: 0 | HZ38: 0 | IA38: 0 | IB38: 0 | IC38: 0 | ID38: 0 | IE38: 0 | IF38: 0 | IG38: 0 | IH38: 0 | II38: 0 | IJ38: 0 | IK38: 45866.36 | IL38: 1341221.52 | IM38: 0 | IN38: 0 | IO38: 0 | IP38: 43373305.06 | IQ38: 0 | IR38: 0 | IS38: 0 | IT38: 0 | IU38: 0 | IV38: 0 | IW38: 0 | IX38: 1667577748 | IY38: 0 | IZ38: 70000000 | JA38: 48000000 | JB38: 14000000 | JC38: 12000000 | JD38: 8000000 | JE38: 8000000 | JF38: 0 | JG38: 0 | JH38: 0 | JI38: 0 | JJ38: 0 | JK38: 0 | JL38: 0 | JM38: 0 | JN38: 1667577748 | JO38: 0 | JP38: 70000000 | JQ38: 48000000 | JR38: 14000000 | JS38: 12000000 | JT38: 8000000 | JU38: 8000000 | JV38: 0 | JW38: 0 | JX38: FALSE | JY38: FALSE | JZ38: FALSE | KA38: 0 | KB38: 0 | KC38: 0 | KD38: =IF(GW38="NR","NR",ROUNDDOWN(GW38-DP38,0)) -> 0 | KE38: =IF(GX38="NR","NR",ROUNDDOWN(GX38-DQ38,0)) -> 0 | KF38: =IF(GY38="NR","NR",ROUNDDOWN(GY38-DR38,0)) -> 0 | KG38: =IF(GZ38="NR","NR",ROUNDDOWN(GZ38-DS38,0)) -> 0 | KH38: =IF(HA38="NR","NR",ROUNDDOWN(HA38-DT38,0)) -> 0 | KI38: =IF(HB38="NR","NR",ROUNDDOWN(HB38-DU38,0)) -> 0 | KJ38: =IF(HC38="NR","NR",ROUNDDOWN(HC38-DV38,0)) -> 0 | KK38: =IF(HD38="NR","NR",ROUNDDOWN(HD38-DW38,0)) -> 0 | KL38: =IF(HE38="NR","NR",ROUNDDOWN(HE38-DX38,0)) -> 0 | KM38: =IF(HF38="NR","NR",ROUNDDOWN(HF38-DY38,0)) -> -565611 | KN38: =IF(HG38="NR","NR",ROUNDDOWN(HG38-DZ38,0)) -> 0 | KO38: =IF(HH38="NR","NR",ROUNDDOWN(HH38-EA38,0)) -> -565611 | KP38: =IF(HI38="NR","NR",ROUNDDOWN(HI38-EB38,0)) -> 0 | KQ38: =IF(HJ38="NR","NR",ROUNDDOWN(HJ38-EC38,0)) -> 0 | KR38: =IF(HK38="NR","NR",ROUNDDOWN(HK38-ED38,0)) -> 0 | KS38: =IF(HL38="NR","NR",ROUNDDOWN(HL38-EE38,0)) -> 0 | KT38: =IF(HM38="NR","NR",ROUNDDOWN(HM38-EF38,0)) -> 0 | KU38: =IF(HN38="NR","NR",ROUNDDOWN(HN38-EG38,0)) -> 0 | KV38: =IF(HO38="NR","NR",ROUNDDOWN(HO38-EH38,0)) -> 0 | KW38: =IF(HP38="NR","NR",ROUNDDOWN(HP38-EI38,0)) -> 0 | KX38: =IF(HQ38="NR","NR",ROUNDDOWN(HQ38-EJ38,0)) -> 0 | KY38: =IF(HR38="NR","NR",ROUNDDOWN(HR38-EK38,0)) -> 0 | KZ38: =IF(HS38="NR","NR",ROUNDDOWN(HS38-EL38,0)) -> 0 | LA38: =IF(HT38="NR","NR",ROUNDDOWN(HT38-EM38,0)) -> 0 | LB38: =IF(HU38="NR","NR",ROUNDDOWN(HU38-EN38,0)) -> 0 | LC38: =IF(HV38="NR","NR",ROUNDDOWN(HV38-EO38,0)) -> 0 | LD38: =IF(HW38="NR","NR",ROUNDDOWN(HW38-EP38,0)) -> 0 | LE38: =IF(HX38="NR","NR",ROUNDDOWN(HX38-EQ38,0)) -> 0 | LF38: =IF(HY38="NR","NR",ROUNDDOWN(HY38-ER38,0)) -> 0 | LG38: =IF(HZ38="NR","NR",ROUNDDOWN(HZ38-ES38,0)) -> 0 | LH38: =IF(IA38="NR","NR",ROUNDDOWN(IA38-ET38,0)) -> 0 | LI38: =IF(IB38="NR","NR",ROUNDDOWN(IB38-EU38,0)) -> 0 | LJ38: =IF(IC38="NR","NR",ROUNDDOWN(IC38-EV38,0)) -> 0 | LK38: =IF(ID38="NR","NR",ROUNDDOWN(ID38-EW38,0)) -> 0 | LL38: =IF(IE38="NR","NR",ROUNDDOWN(IE38-EX38,0)) -> 0 | LM38: =IF(IF38="NR","NR",ROUNDDOWN(IF38-EY38,0)) -> 0 | LN38: =IF(IG38="NR","NR",ROUNDDOWN(IG38-EZ38,0)) -> 0 | LO38: =IF(IH38="NR","NR",ROUNDDOWN(IH38-FA38,0)) -> 0 | LP38: =IF(II38="NR","NR",ROUNDDOWN(II38-FB38,0)) -> 0 | LQ38: =IF(IJ38="NR","NR",ROUNDDOWN(IJ38-FC38,0)) -> -1210330 | LR38: =IF(IK38="NR","NR",ROUNDDOWN(IK38-FD38,0)) -> -113255 | LS38: =IF(IL38="NR","NR",ROUNDDOWN(IL38-FE38,0)) -> 1341220 | LT38: =IF(IM38="NR","NR",ROUNDDOWN(IM38-FF38,0)) -> 0 | LU38: =IF(IN38="NR","NR",ROUNDDOWN(IN38-FG38,0)) -> 0 | LV38: =IF(IO38="NR","NR",ROUNDDOWN(IO38-FH38,0)) -> 0 | LW38: =IF(IP38="NR","NR",ROUNDDOWN(IP38-FI38,0)) -> 565611 | LX38: =IF(IQ38="NR","NR",ROUNDDOWN(IQ38-FJ38,0)) -> 0 | LY38: =IF(IR38="NR","NR",ROUNDDOWN(IR38-FK38,0)) -> 0 | LZ38: =IF(IS38="NR","NR",ROUNDDOWN(IS38-FL38,0)) -> 0 | MA38: =IF(IT38="NR","NR",ROUNDDOWN(IT38-FM38,0)) -> 0 | MB38: =IF(IU38="NR","NR",ROUNDDOWN(IU38-FN38,0)) -> 0 | MC38: =IF(IV38="NR","NR",ROUNDDOWN(IV38-FO38,0)) -> 0 | MD38: =IF(IW38="NR","NR",ROUNDDOWN(IW38-FP38,0)) -> 0 | ME38: =IF(IX38="NR","NR",ROUNDDOWN(IX38-FQ38,0)) -> -565611 | MF38: =IF(IY38="NR","NR",ROUNDDOWN(IY38-FR38,0)) -> 0 | MG38: =IF(IZ38="NR","NR",ROUNDDOWN(IZ38-FS38,0)) -> 0 | MH38: =IF(JA38="NR","NR",ROUNDDOWN(JA38-FT38,0)) -> 0 | MI38: =IF(JB38="NR","NR",ROUNDDOWN(JB38-FU38,0)) -> 0 | MJ38: =IF(JC38="NR","NR",ROUNDDOWN(JC38-FV38,0)) -> 0 | MK38: =IF(JD38="NR","NR",ROUNDDOWN(JD38-FW38,0)) -> 0 | ML38: =IF(JE38="NR","NR",ROUNDDOWN(JE38-FX38,0)) -> 0 | MM38: =IF(JF38="NR","NR",ROUNDDOWN(JF38-FY38,0)) -> 0 | MN38: =IF(JG38="NR","NR",ROUNDDOWN(JG38-FZ38,0)) -> 0 | MO38: =IF(JH38="NR","NR",ROUNDDOWN(JH38-GA38,0)) -> 0 | MP38: =IF(JI38="NR","NR",ROUNDDOWN(JI38-GB38,0)) -> 0 | MQ38: =IF(JJ38="NR","NR",ROUNDDOWN(JJ38-GC38,0)) -> 0 | MR38: =IF(JK38="NR","NR",ROUNDDOWN(JK38-GD38,0)) -> 0 | MS38: =IF(JL38="NR","NR",ROUNDDOWN(JL38-GE38,0)) -> 0 | MT38: =IF(JM38="NR","NR",ROUNDDOWN(JM38-GF38,0)) -> 0 | MU38: =IF(JN38="NR","NR",ROUNDDOWN(JN38-GG38,0)) -> -565611 | MV38: =IF(JO38="NR","NR",ROUNDDOWN(JO38-GH38,0)) -> 0 | MW38: =IF(JP38="NR","NR",ROUNDDOWN(JP38-GI38,0)) -> 0 | MX38: =IF(JQ38="NR","NR",ROUNDDOWN(JQ38-GJ38,0)) -> 0 | MY38: =IF(JR38="NR","NR",ROUNDDOWN(JR38-GK38,0)) -> 0 | MZ38: =IF(JS38="NR","NR",ROUNDDOWN(JS38-GL38,0)) -> 0 | NA38: =IF(JT38="NR","NR",ROUNDDOWN(JT38-GM38,0)) -> 0 | NB38: =IF(JU38="NR","NR",ROUNDDOWN(JU38-GN38,0)) -> 0 | NC38: =IF(JV38="NR","NR",ROUNDDOWN(JV38-GO38,0)) -> 0 | ND38: =IF(JW38="NR","NR",ROUNDDOWN(JW38-GP38,0)) -> 0 | NE38: NR | NF38: NR | NG38: NR | NH38: =IF(KA38="NR","NR",ROUNDDOWN(KA38-GT38,0)) -> 0 | NI38: =IF(KB38="NR","NR",ROUNDDOWN(KB38-GU38,0)) -> 0 | NJ38: =IF(KC38="NR","NR",ROUNDDOWN(KC38-GV38,0)) -> 0
B39: 2017-03-24 | C39: 2017-02-01 | D39: 2017-02-28 | E39: 2017-03-21 | F39: 2017-03-24 | G39: 28 | H39: 0.0162 | I39: 2016-12-01 | J39: 1999995073 | K39: 1827577748 | L39: 107597121.9 | M39: 1781447081 | N39: 100942717.4 | O39: 1826851307 | P39: 107597121.9 | Q39: 1024932.19 | R39: 0.0053 | S39: 0 | T39: 6132490.23 | U39: 12709919.66 | V39: 0 | W39: 5732865.09 | X39: 412979.86 | Y39: 5001710.19 | Z39: 39553237.11 | AA39: 31.21 | AB39: 0 | AC39: 0 | AD39: 0 | AE39: 0 | AF39: 18275777.48 | AG39: 0 | AH39: 1840000000 | AI39: 0 | AJ39: 70000000 | AK39: 48000000 | AL39: 14000000 | AM39: 12000000 | AN39: 8000000 | AO39: 8000000 | AP39: 10000 | AQ39: 1667577748 | AR39: 0 | AS39: 70000000 | AT39: 48000000 | AU39: 14000000 | AV39: 12000000 | AW39: 8000000 | AX39: 8000000 | AY39: 0 | AZ39: 0 | BA39: 0 | BB39: 0 | BC39: 0 | BD39: 0 | BE39: 0 | BF39: 0 | BG39: 1 | BH39: 441351.16 | BI39: 0 | BJ39: 7009.89 | BK39: 0 | BL39: 0 | BM39: 0 | BN39: 0 | BO39: 0 | BP39: 0 | BQ39: 0 | BR39: 0.0107 | BS39: 0 | BT39: 0.016 | BU39: 0.0225 | BV39: 0.0275 | BW39: 0.0375 | BX39: 0.0475 | BY39: 0.06 | BZ39: 0.0025 | CA39: 0.0025 | CB39: 0.02 | CC39: 0.02 | CD39: 0.02 | CE39: 0.02 | CF39: 0.02 | CG39: 0 | CH39: 0 | CI39: 0 | CJ39: 0 | CK39: 0 | CL39: 0 | CM39: 0 | CN39: 0 | CO39: 0 | CP39: 0 | CQ39: 0 | CR39: 0 | CS39: 0 | CT39: 0 | CU39: 0 | CV39: 0.1 | CW39: 2 | CX39: 0.001698333429 | CY39: 0.04 | CZ39: FALSE | DA39: FALSE | DB39: FALSE | DC39: FALSE | DD39: FALSE | DE39: FALSE | DF39: FALSE | DG39: FALSE | DH39: FALSE | DI39: FALSE | DJ39: 0 | DK39: 0 | DL39: 0 | DM39: 0 | DN39: 0 | DO39: Waterfall_1 | DP39: =waterfall_1(C39:DN39) -> 441351.16 | DQ39: 0 | DR39: 0 | DS39: 7009.89 | DT39: 0 | DU39: 0 | DV39: 0 | DW39: 0 | DX39: 0 | DY39: 449896.45 | DZ39: 0 | EA39: 449896.45 | EB39: 0 | EC39: 3441149.48 | ED39: 0 | EE39: 172909.59 | EF39: 142500.82 | EG39: 46932.6 | EH39: 49433.42 | EI39: 39092.6 | EJ39: 46763.84 | EK39: 0 | EL39: 0 | EM39: 0 | EN39: 0 | EO39: 0 | EP39: 0 | EQ39: 0 | ER39: 0 | ES39: 0 | ET39: 0 | EU39: 0 | EV39: 0 | EW39: 0 | EX39: 0 | EY39: 0 | EZ39: 0 | FA39: 0 | FB39: 0 | FC39: 2027540.89 | FD39: 181087.32 | FE39: 1 | FF39: 0 | FG39: 0 | FH39: 0 | FI39: 45680770.09 | FJ39: 0 | FK39: 0 | FL39: 0 | FM39: 0 | FN39: 0 | FO39: 0 | FP39: 0 | FQ39: 1621896978 | FR39: 0 | FS39: 70000000 | FT39: 48000000 | FU39: 14000000 | FV39: 12000000 | FW39: 8000000 | FX39: 8000000 | FY39: 0 | FZ39: 0 | GA39: 0 | GB39: 0 | GC39: 0 | GD39: 0 | GE39: 0 | GF39: 0 | GG39: 1621896978 | GH39: 0 | GI39: 70000000 | GJ39: 48000000 | GK39: 14000000 | GL39: 12000000 | GM39: 8000000 | GN39: 8000000 | GO39: 0 | GP39: 0 | GQ39: FALSE | GR39: FALSE | GS39: FALSE | GT39: 0 | GU39: 0 | GV39: 0 | GW39: 441351.16 | GX39: 0 | GY39: 0 | GZ39: 7009.89 | HA39: 0 | HB39: 0 | HC39: 0 | HD39: 0 | HE39: 0 | HF39: 0 | HG39: 0 | HH39: 0 | HI39: 0 | HJ39: 3441149.48 | HK39: 0 | HL39: 172909.59 | HM39: 142500.82 | HN39: 46932.6 | HO39: 49433.42 | HP39: 39092.6 | HQ39: 46763.84 | HR39: 0 | HS39: 0 | HT39: 0 | HU39: 0 | HV39: 0 | HW39: 0 | HX39: 0 | HY39: 0 | HZ39: 0 | IA39: 0 | IB39: 0 | IC39: 0 | ID39: 0 | IE39: 0 | IF39: 0 | IG39: 0 | IH39: 0 | II39: 0 | IJ39: 444884.99 | IK39: 82039.01 | IL39: 1231808.76 | IM39: 0 | IN39: 0 | IO39: 0 | IP39: 46130666.54 | IQ39: 0 | IR39: 0 | IS39: 0 | IT39: 0 | IU39: 0 | IV39: 0 | IW39: 0 | IX39: 1621447081 | IY39: 0 | IZ39: 70000000 | JA39: 48000000 | JB39: 14000000 | JC39: 12000000 | JD39: 8000000 | JE39: 8000000 | JF39: 0 | JG39: 0 | JH39: 0 | JI39: 0 | JJ39: 0 | JK39: 0 | JL39: 0 | JM39: 0 | JN39: 1621447081 | JO39: 0 | JP39: 70000000 | JQ39: 48000000 | JR39: 14000000 | JS39: 12000000 | JT39: 8000000 | JU39: 8000000 | JV39: 0 | JW39: 0 | JX39: FALSE | JY39: FALSE | JZ39: FALSE | KA39: 0 | KB39: 0 | KC39: 0 | KD39: =IF(GW39="NR","NR",ROUNDDOWN(GW39-DP39,0)) -> 0 | KE39: =IF(GX39="NR","NR",ROUNDDOWN(GX39-DQ39,0)) -> 0 | KF39: =IF(GY39="NR","NR",ROUNDDOWN(GY39-DR39,0)) -> 0 | KG39: =IF(GZ39="NR","NR",ROUNDDOWN(GZ39-DS39,0)) -> 0 | KH39: =IF(HA39="NR","NR",ROUNDDOWN(HA39-DT39,0)) -> 0 | KI39: =IF(HB39="NR","NR",ROUNDDOWN(HB39-DU39,0)) -> 0 | KJ39: =IF(HC39="NR","NR",ROUNDDOWN(HC39-DV39,0)) -> 0 | KK39: =IF(HD39="NR","NR",ROUNDDOWN(HD39-DW39,0)) -> 0 | KL39: =IF(HE39="NR","NR",ROUNDDOWN(HE39-DX39,0)) -> 0 | KM39: =IF(HF39="NR","NR",ROUNDDOWN(HF39-DY39,0)) -> -449896 | KN39: =IF(HG39="NR","NR",ROUNDDOWN(HG39-DZ39,0)) -> 0 | KO39: =IF(HH39="NR","NR",ROUNDDOWN(HH39-EA39,0)) -> -449896 | KP39: =IF(HI39="NR","NR",ROUNDDOWN(HI39-EB39,0)) -> 0 | KQ39: =IF(HJ39="NR","NR",ROUNDDOWN(HJ39-EC39,0)) -> 0 | KR39: =IF(HK39="NR","NR",ROUNDDOWN(HK39-ED39,0)) -> 0 | KS39: =IF(HL39="NR","NR",ROUNDDOWN(HL39-EE39,0)) -> 0 | KT39: =IF(HM39="NR","NR",ROUNDDOWN(HM39-EF39,0)) -> 0 | KU39: =IF(HN39="NR","NR",ROUNDDOWN(HN39-EG39,0)) -> 0 | KV39: =IF(HO39="NR","NR",ROUNDDOWN(HO39-EH39,0)) -> 0 | KW39: =IF(HP39="NR","NR",ROUNDDOWN(HP39-EI39,0)) -> 0 | KX39: =IF(HQ39="NR","NR",ROUNDDOWN(HQ39-EJ39,0)) -> 0 | KY39: =IF(HR39="NR","NR",ROUNDDOWN(HR39-EK39,0)) -> 0 | KZ39: =IF(HS39="NR","NR",ROUNDDOWN(HS39-EL39,0)) -> 0 | LA39: =IF(HT39="NR","NR",ROUNDDOWN(HT39-EM39,0)) -> 0 | LB39: =IF(HU39="NR","NR",ROUNDDOWN(HU39-EN39,0)) -> 0 | LC39: =IF(HV39="NR","NR",ROUNDDOWN(HV39-EO39,0)) -> 0 | LD39: =IF(HW39="NR","NR",ROUNDDOWN(HW39-EP39,0)) -> 0 | LE39: =IF(HX39="NR","NR",ROUNDDOWN(HX39-EQ39,0)) -> 0 | LF39: =IF(HY39="NR","NR",ROUNDDOWN(HY39-ER39,0)) -> 0 | LG39: =IF(HZ39="NR","NR",ROUNDDOWN(HZ39-ES39,0)) -> 0 | LH39: =IF(IA39="NR","NR",ROUNDDOWN(IA39-ET39,0)) -> 0 | LI39: =IF(IB39="NR","NR",ROUNDDOWN(IB39-EU39,0)) -> 0 | LJ39: =IF(IC39="NR","NR",ROUNDDOWN(IC39-EV39,0)) -> 0 | LK39: =IF(ID39="NR","NR",ROUNDDOWN(ID39-EW39,0)) -> 0 | LL39: =IF(IE39="NR","NR",ROUNDDOWN(IE39-EX39,0)) -> 0 | LM39: =IF(IF39="NR","NR",ROUNDDOWN(IF39-EY39,0)) -> 0 | LN39: =IF(IG39="NR","NR",ROUNDDOWN(IG39-EZ39,0)) -> 0 | LO39: =IF(IH39="NR","NR",ROUNDDOWN(IH39-FA39,0)) -> 0 | LP39: =IF(II39="NR","NR",ROUNDDOWN(II39-FB39,0)) -> 0 | LQ39: =IF(IJ39="NR","NR",ROUNDDOWN(IJ39-FC39,0)) -> -1582655 | LR39: =IF(IK39="NR","NR",ROUNDDOWN(IK39-FD39,0)) -> -99048 | LS39: =IF(IL39="NR","NR",ROUNDDOWN(IL39-FE39,0)) -> 1231807 | LT39: =IF(IM39="NR","NR",ROUNDDOWN(IM39-FF39,0)) -> 0 | LU39: =IF(IN39="NR","NR",ROUNDDOWN(IN39-FG39,0)) -> 0 | LV39: =IF(IO39="NR","NR",ROUNDDOWN(IO39-FH39,0)) -> 0 | LW39: =IF(IP39="NR","NR",ROUNDDOWN(IP39-FI39,0)) -> 449896 | LX39: =IF(IQ39="NR","NR",ROUNDDOWN(IQ39-FJ39,0)) -> 0 | LY39: =IF(IR39="NR","NR",ROUNDDOWN(IR39-FK39,0)) -> 0 | LZ39: =IF(IS39="NR","NR",ROUNDDOWN(IS39-FL39,0)) -> 0 | MA39: =IF(IT39="NR","NR",ROUNDDOWN(IT39-FM39,0)) -> 0 | MB39: =IF(IU39="NR","NR",ROUNDDOWN(IU39-FN39,0)) -> 0 | MC39: =IF(IV39="NR","NR",ROUNDDOWN(IV39-FO39,0)) -> 0 | MD39: =IF(IW39="NR","NR",ROUNDDOWN(IW39-FP39,0)) -> 0 | ME39: =IF(IX39="NR","NR",ROUNDDOWN(IX39-FQ39,0)) -> -449896 | MF39: =IF(IY39="NR","NR",ROUNDDOWN(IY39-FR39,0)) -> 0 | MG39: =IF(IZ39="NR","NR",ROUNDDOWN(IZ39-FS39,0)) -> 0 | MH39: =IF(JA39="NR","NR",ROUNDDOWN(JA39-FT39,0)) -> 0 | MI39: =IF(JB39="NR","NR",ROUNDDOWN(JB39-FU39,0)) -> 0 | MJ39: =IF(JC39="NR","NR",ROUNDDOWN(JC39-FV39,0)) -> 0 | MK39: =IF(JD39="NR","NR",ROUNDDOWN(JD39-FW39,0)) -> 0 | ML39: =IF(JE39="NR","NR",ROUNDDOWN(JE39-FX39,0)) -> 0 | MM39: =IF(JF39="NR","NR",ROUNDDOWN(JF39-FY39,0)) -> 0 | MN39: =IF(JG39="NR","NR",ROUNDDOWN(JG39-FZ39,0)) -> 0 | MO39: =IF(JH39="NR","NR",ROUNDDOWN(JH39-GA39,0)) -> 0 | MP39: =IF(JI39="NR","NR",ROUNDDOWN(JI39-GB39,0)) -> 0 | MQ39: =IF(JJ39="NR","NR",ROUNDDOWN(JJ39-GC39,0)) -> 0 | MR39: =IF(JK39="NR","NR",ROUNDDOWN(JK39-GD39,0)) -> 0 | MS39: =IF(JL39="NR","NR",ROUNDDOWN(JL39-GE39,0)) -> 0 | MT39: =IF(JM39="NR","NR",ROUNDDOWN(JM39-GF39,0)) -> 0 | MU39: =IF(JN39="NR","NR",ROUNDDOWN(JN39-GG39,0)) -> -449896 | MV39: =IF(JO39="NR","NR",ROUNDDOWN(JO39-GH39,0)) -> 0 | MW39: =IF(JP39="NR","NR",ROUNDDOWN(JP39-GI39,0)) -> 0 | MX39: =IF(JQ39="NR","NR",ROUNDDOWN(JQ39-GJ39,0)) -> 0 | MY39: =IF(JR39="NR","NR",ROUNDDOWN(JR39-GK39,0)) -> 0 | MZ39: =IF(JS39="NR","NR",ROUNDDOWN(JS39-GL39,0)) -> 0 | NA39: =IF(JT39="NR","NR",ROUNDDOWN(JT39-GM39,0)) -> 0 | NB39: =IF(JU39="NR","NR",ROUNDDOWN(JU39-GN39,0)) -> 0 | NC39: =IF(JV39="NR","NR",ROUNDDOWN(JV39-GO39,0)) -> 0 | ND39: =IF(JW39="NR","NR",ROUNDDOWN(JW39-GP39,0)) -> 0 | NE39: NR | NF39: NR | NG39: NR | NH39: =IF(KA39="NR","NR",ROUNDDOWN(KA39-GT39,0)) -> 0 | NI39: =IF(KB39="NR","NR",ROUNDDOWN(KB39-GU39,0)) -> 0 | NJ39: =IF(KC39="NR","NR",ROUNDDOWN(KC39-GV39,0)) -> 0
B40: 2017-04-24 | C40: 2017-03-01 | D40: 2017-03-31 | E40: 2017-04-19 | F40: 2017-04-24 | G40: 31 | H40: 0.01625 | I40: 2016-12-01 | J40: 1999995073 | K40: 1781447081 | L40: 100942717.4 | M40: 1732697004 | N40: 96369667.24 | O40: 1780422149 | P40: 100942717.4 | Q40: 1406103 | R40: 0.0063 | S40: 0 | T40: 6705937.14 | U40: 14528335.85 | V40: 0 | W40: 5131267.32 | X40: 382290.82 | Y40: 5389900.19 | Z40: 40927678.59 | AA40: 55.03 | AB40: 0 | AC40: 0 | AD40: 0 | AE40: 0 | AF40: 17814470.81 | AG40: 0 | AH40: 1840000000 | AI40: 0 | AJ40: 70000000 | AK40: 48000000 | AL40: 14000000 | AM40: 12000000 | AN40: 8000000 | AO40: 8000000 | AP40: 10000 | AQ40: 1621447081 | AR40: 0 | AS40: 70000000 | AT40: 48000000 | AU40: 14000000 | AV40: 12000000 | AW40: 8000000 | AX40: 8000000 | AY40: 0 | AZ40: 0 | BA40: 0 | BB40: 0 | BC40: 0 | BD40: 0 | BE40: 0 | BF40: 0 | BG40: 1 | BH40: 474015.03 | BI40: 0 | BJ40: 7565.05 | BK40: 0 | BL40: 0 | BM40: 0 | BN40: 0 | BO40: 0 | BP40: 0 | BQ40: 0 | BR40: 0.0107 | BS40: 0 | BT40: 0.016 | BU40: 0.0225 | BV40: 0.0275 | BW40: 0.0375 | BX40: 0.0475 | BY40: 0.06 | BZ40: 0.0025 | CA40: 0.0025 | CB40: 0.02 | CC40: 0.02 | CD40: 0.02 | CE40: 0.02 | CF40: 0.02 | CG40: 0 | CH40: 0 | CI40: 0 | CJ40: 0 | CK40: 0 | CL40: 0 | CM40: 0 | CN40: 0 | CO40: 0 | CP40: 0 | CQ40: 0 | CR40: 0 | CS40: 0 | CT40: 0 | CU40: 0 | CV40: 0.1 | CW40: 2 | CX40: 0.00198908196 | CY40: 0.04 | CZ40: FALSE | DA40: FALSE | DB40: FALSE | DC40: FALSE | DD40: FALSE | DE40: FALSE | DF40: FALSE | DG40: FALSE | DH40: FALSE | DI40: FALSE | DJ40: 0 | DK40: 0 | DL40: 0 | DM40: 0 | DN40: 0 | DO40: Waterfall_1 | DP40: =waterfall_1(C40:DN40) -> 474015.03 | DQ40: 0 | DR40: 0 | DS40: 7565.05 | DT40: 0 | DU40: 0 | DV40: 0 | DW40: 0 | DX40: 0 | DY40: 483978.7 | DZ40: 0 | EA40: 483978.7 | EB40: 0 | EC40: 3711336.89 | ED40: 0 | EE40: 191732.88 | EF40: 157972.6 | EG40: 52020.55 | EH40: 54780.82 | EI40: 43315.07 | EJ40: 51808.22 | EK40: 0 | EL40: 0 | EM40: 0 | EN40: 0 | EO40: 0 | EP40: 0 | EQ40: 0 | ER40: 0 | ES40: 0 | ET40: 0 | EU40: 0 | EV40: 0 | EW40: 0 | EX40: 0 | EY40: 0 | EZ40: 0 | FA40: 0 | FB40: 0 | FC40: 1112306.83 | FD40: 140736.93 | FE40: 1 | FF40: 0 | FG40: 0 | FH40: 0 | FI40: 48266098.6 | FJ40: 0 | FK40: 0 | FL40: 0 | FM40: 0 | FN40: 0 | FO40: 0 | FP40: 0 | FQ40: 1573180982 | FR40: 0 | FS40: 70000000 | FT40: 48000000 | FU40: 14000000 | FV40: 12000000 | FW40: 8000000 | FX40: 8000000 | FY40: 0 | FZ40: 0 | GA40: 0 | GB40: 0 | GC40: 0 | GD40: 0 | GE40: 0 | GF40: 0 | GG40: 1573180982 | GH40: 0 | GI40: 70000000 | GJ40: 48000000 | GK40: 14000000 | GL40: 12000000 | GM40: 8000000 | GN40: 8000000 | GO40: 0 | GP40: 0 | GQ40: FALSE | GR40: FALSE | GS40: FALSE | GT40: 0 | GU40: 0 | GV40: 0 | GW40: 474015.03 | GX40: 0 | GY40: 0 | GZ40: 7565.05 | HA40: 0 | HB40: 0 | HC40: 0 | HD40: 0 | HE40: 0 | HF40: 0 | HG40: 0 | HH40: 0 | HI40: 0 | HJ40: 3711336.89 | HK40: 0 | HL40: 191732.88 | HM40: 157972.6 | HN40: 52020.55 | HO40: 54780.82 | HP40: 43315.07 | HQ40: 51808.22 | HR40: 0 | HS40: 0 | HT40: 0 | HU40: 0 | HV40: 0 | HW40: 0 | HX40: 0 | HY40: 0 | HZ40: 0 | IA40: 0 | IB40: 0 | IC40: 0 | ID40: 0 | IE40: 0 | IF40: 0 | IG40: 0 | IH40: 0 | II40: 0 | IJ40: 0 | IK40: 37858.32 | IL40: 1330589.54 | IM40: 0 | IN40: 0 | IO40: 0 | IP40: 48750077.3 | IQ40: 0 | IR40: 0 | IS40: 0 | IT40: 0 | IU40: 0 | IV40: 0 | IW40: 0 | IX40: 1572697004 | IY40: 0 | IZ40: 70000000 | JA40: 48000000 | JB40: 14000000 | JC40: 12000000 | JD40: 8000000 | JE40: 8000000 | JF40: 0 | JG40: 0 | JH40: 0 | JI40: 0 | JJ40: 0 | JK40: 0 | JL40: 0 | JM40: 0 | JN40: 1572697004 | JO40: 0 | JP40: 70000000 | JQ40: 48000000 | JR40: 14000000 | JS40: 12000000 | JT40: 8000000 | JU40: 8000000 | JV40: 0 | JW40: 0 | JX40: FALSE | JY40: FALSE | JZ40: FALSE | KA40: 0 | KB40: 0 | KC40: 0 | KD40: =IF(GW40="NR","NR",ROUNDDOWN(GW40-DP40,0)) -> 0 | KE40: =IF(GX40="NR","NR",ROUNDDOWN(GX40-DQ40,0)) -> 0 | KF40: =IF(GY40="NR","NR",ROUNDDOWN(GY40-DR40,0)) -> 0 | KG40: =IF(GZ40="NR","NR",ROUNDDOWN(GZ40-DS40,0)) -> 0 | KH40: =IF(HA40="NR","NR",ROUNDDOWN(HA40-DT40,0)) -> 0 | KI40: =IF(HB40="NR","NR",ROUNDDOWN(HB40-DU40,0)) -> 0 | KJ40: =IF(HC40="NR","NR",ROUNDDOWN(HC40-DV40,0)) -> 0 | KK40: =IF(HD40="NR","NR",ROUNDDOWN(HD40-DW40,0)) -> 0 | KL40: =IF(HE40="NR","NR",ROUNDDOWN(HE40-DX40,0)) -> 0 | KM40: =IF(HF40="NR","NR",ROUNDDOWN(HF40-DY40,0)) -> -483978 | KN40: =IF(HG40="NR","NR",ROUNDDOWN(HG40-DZ40,0)) -> 0 | KO40: =IF(HH40="NR","NR",ROUNDDOWN(HH40-EA40,0)) -> -483978 | KP40: =IF(HI40="NR","NR",ROUNDDOWN(HI40-EB40,0)) -> 0 | KQ40: =IF(HJ40="NR","NR",ROUNDDOWN(HJ40-EC40,0)) -> 0 | KR40: =IF(HK40="NR","NR",ROUNDDOWN(HK40-ED40,0)) -> 0 | KS40: =IF(HL40="NR","NR",ROUNDDOWN(HL40-EE40,0)) -> 0 | KT40: =IF(HM40="NR","NR",ROUNDDOWN(HM40-EF40,0)) -> 0 | KU40: =IF(HN40="NR","NR",ROUNDDOWN(HN40-EG40,0)) -> 0 | KV40: =IF(HO40="NR","NR",ROUNDDOWN(HO40-EH40,0)) -> 0 | KW40: =IF(HP40="NR","NR",ROUNDDOWN(HP40-EI40,0)) -> 0 | KX40: =IF(HQ40="NR","NR",ROUNDDOWN(HQ40-EJ40,0)) -> 0 | KY40: =IF(HR40="NR","NR",ROUNDDOWN(HR40-EK40,0)) -> 0 | KZ40: =IF(HS40="NR","NR",ROUNDDOWN(HS40-EL40,0)) -> 0 | LA40: =IF(HT40="NR","NR",ROUNDDOWN(HT40-EM40,0)) -> 0 | LB40: =IF(HU40="NR","NR",ROUNDDOWN(HU40-EN40,0)) -> 0 | LC40: =IF(HV40="NR","NR",ROUNDDOWN(HV40-EO40,0)) -> 0 | LD40: =IF(HW40="NR","NR",ROUNDDOWN(HW40-EP40,0)) -> 0 | LE40: =IF(HX40="NR","NR",ROUNDDOWN(HX40-EQ40,0)) -> 0 | LF40: =IF(HY40="NR","NR",ROUNDDOWN(HY40-ER40,0)) -> 0 | LG40: =IF(HZ40="NR","NR",ROUNDDOWN(HZ40-ES40,0)) -> 0 | LH40: =IF(IA40="NR","NR",ROUNDDOWN(IA40-ET40,0)) -> 0 | LI40: =IF(IB40="NR","NR",ROUNDDOWN(IB40-EU40,0)) -> 0 | LJ40: =IF(IC40="NR","NR",ROUNDDOWN(IC40-EV40,0)) -> 0 | LK40: =IF(ID40="NR","NR",ROUNDDOWN(ID40-EW40,0)) -> 0 | LL40: =IF(IE40="NR","NR",ROUNDDOWN(IE40-EX40,0)) -> 0 | LM40: =IF(IF40="NR","NR",ROUNDDOWN(IF40-EY40,0)) -> 0 | LN40: =IF(IG40="NR","NR",ROUNDDOWN(IG40-EZ40,0)) -> 0 | LO40: =IF(IH40="NR","NR",ROUNDDOWN(IH40-FA40,0)) -> 0 | LP40: =IF(II40="NR","NR",ROUNDDOWN(II40-FB40,0)) -> 0 | LQ40: =IF(IJ40="NR","NR",ROUNDDOWN(IJ40-FC40,0)) -> -1112306 | LR40: =IF(IK40="NR","NR",ROUNDDOWN(IK40-FD40,0)) -> -102878 | LS40: =IF(IL40="NR","NR",ROUNDDOWN(IL40-FE40,0)) -> 1330588 | LT40: =IF(IM40="NR","NR",ROUNDDOWN(IM40-FF40,0)) -> 0 | LU40: =IF(IN40="NR","NR",ROUNDDOWN(IN40-FG40,0)) -> 0 | LV40: =IF(IO40="NR","NR",ROUNDDOWN(IO40-FH40,0)) -> 0 | LW40: =IF(IP40="NR","NR",ROUNDDOWN(IP40-FI40,0)) -> 483978 | LX40: =IF(IQ40="NR","NR",ROUNDDOWN(IQ40-FJ40,0)) -> 0 | LY40: =IF(IR40="NR","NR",ROUNDDOWN(IR40-FK40,0)) -> 0 | LZ40: =IF(IS40="NR","NR",ROUNDDOWN(IS40-FL40,0)) -> 0 | MA40: =IF(IT40="NR","NR",ROUNDDOWN(IT40-FM40,0)) -> 0 | MB40: =IF(IU40="NR","NR",ROUNDDOWN(IU40-FN40,0)) -> 0 | MC40: =IF(IV40="NR","NR",ROUNDDOWN(IV40-FO40,0)) -> 0 | MD40: =IF(IW40="NR","NR",ROUNDDOWN(IW40-FP40,0)) -> 0 | ME40: =IF(IX40="NR","NR",ROUNDDOWN(IX40-FQ40,0)) -> -483978 | MF40: =IF(IY40="NR","NR",ROUNDDOWN(IY40-FR40,0)) -> 0 | MG40: =IF(IZ40="NR","NR",ROUNDDOWN(IZ40-FS40,0)) -> 0 | MH40: =IF(JA40="NR","NR",ROUNDDOWN(JA40-FT40,0)) -> 0 | MI40: =IF(JB40="NR","NR",ROUNDDOWN(JB40-FU40,0)) -> 0 | MJ40: =IF(JC40="NR","NR",ROUNDDOWN(JC40-FV40,0)) -> 0 | MK40: =IF(JD40="NR","NR",ROUNDDOWN(JD40-FW40,0)) -> 0 | ML40: =IF(JE40="NR","NR",ROUNDDOWN(JE40-FX40,0)) -> 0 | MM40: =IF(JF40="NR","NR",ROUNDDOWN(JF40-FY40,0)) -> 0 | MN40: =IF(JG40="NR","NR",ROUNDDOWN(JG40-FZ40,0)) -> 0 | MO40: =IF(JH40="NR","NR",ROUNDDOWN(JH40-GA40,0)) -> 0 | MP40: =IF(JI40="NR","NR",ROUNDDOWN(JI40-GB40,0)) -> 0 | MQ40: =IF(JJ40="NR","NR",ROUNDDOWN(JJ40-GC40,0)) -> 0 | MR40: =IF(JK40="NR","NR",ROUNDDOWN(JK40-GD40,0)) -> 0 | MS40: =IF(JL40="NR","NR",ROUNDDOWN(JL40-GE40,0)) -> 0 | MT40: =IF(JM40="NR","NR",ROUNDDOWN(JM40-GF40,0)) -> 0 | MU40: =IF(JN40="NR","NR",ROUNDDOWN(JN40-GG40,0)) -> -483978 | MV40: =IF(JO40="NR","NR",ROUNDDOWN(JO40-GH40,0)) -> 0 | MW40: =IF(JP40="NR","NR",ROUNDDOWN(JP40-GI40,0)) -> 0 | MX40: =IF(JQ40="NR","NR",ROUNDDOWN(JQ40-GJ40,0)) -> 0 | MY40: =IF(JR40="NR","NR",ROUNDDOWN(JR40-GK40,0)) -> 0 | MZ40: =IF(JS40="NR","NR",ROUNDDOWN(JS40-GL40,0)) -> 0 | NA40: =IF(JT40="NR","NR",ROUNDDOWN(JT40-GM40,0)) -> 0 | NB40: =IF(JU40="NR","NR",ROUNDDOWN(JU40-GN40,0)) -> 0 | NC40: =IF(JV40="NR","NR",ROUNDDOWN(JV40-GO40,0)) -> 0 | ND40: =IF(JW40="NR","NR",ROUNDDOWN(JW40-GP40,0)) -> 0 | NE40: NR | NF40: NR | NG40: NR | NH40: =IF(KA40="NR","NR",ROUNDDOWN(KA40-GT40,0)) -> 0 | NI40: =IF(KB40="NR","NR",ROUNDDOWN(KB40-GU40,0)) -> 0 | NJ40: =IF(KC40="NR","NR",ROUNDDOWN(KC40-GV40,0)) -> 0
B41: 2017-05-24 | C41: 2017-04-01 | D41: 2017-05-01 | E41: 2017-05-19 | F41: 2017-05-24 | G41: 30 | H41: 0.0162 | I41: 2016-12-01 | J41: 1999995073 | K41: 1732697004 | L41: 96369667.24 | M41: 1692643612 | N41: 92841168.33 | O41: 1731290901 | P41: 96369667.24 | Q41: 2186533.52 | R41: 0.0082 | S41: 0 | T41: 5648916.86 | U41: 10564165.86 | V41: 0 | W41: 6511213.6 | X41: 392512.9 | Y41: 4768259.93 | Z41: 35138143.09 | AA41: 5799.63 | AB41: 0 | AC41: 0 | AD41: 0 | AE41: 0 | AF41: 17326970.04 | AG41: 0 | AH41: 1840000000 | AI41: 0 | AJ41: 70000000 | AK41: 48000000 | AL41: 14000000 | AM41: 12000000 | AN41: 8000000 | AO41: 8000000 | AP41: 10000 | AQ41: 1572697004 | AR41: 0 | AS41: 70000000 | AT41: 48000000 | AU41: 14000000 | AV41: 12000000 | AW41: 8000000 | AX41: 8000000 | AY41: 0 | AZ41: 0 | BA41: 0 | BB41: 0 | BC41: 0 | BD41: 0 | BE41: 0 | BF41: 0 | BG41: 1 | BH41: 460701.19 | BI41: 0 | BJ41: 7120.67 | BK41: 0 | BL41: 0 | BM41: 0 | BN41: 0 | BO41: 0 | BP41: 0 | BQ41: 0 | BR41: 0.0107 | BS41: 0 | BT41: 0.016 | BU41: 0.0225 | BV41: 0.0275 | BW41: 0.0375 | BX41: 0.0475 | BY41: 0.06 | BZ41: 0.0025 | CA41: 0.0025 | CB41: 0.02 | CC41: 0.02 | CD41: 0.02 | CE41: 0.02 | CF41: 0.02 | CG41: 0 | CH41: 0 | CI41: 0 | CJ41: 0 | CK41: 0 | CL41: 0 | CM41: 0 | CN41: 0 | CO41: 0 | CP41: 0 | CQ41: 0 | CR41: 0 | CS41: 0 | CT41: 0 | CU41: 0 | CV41: 0.1 | CW41: 2 | CX41: 0.002573707315 | CY41: 0.04 | CZ41: FALSE | DA41: FALSE | DB41: FALSE | DC41: FALSE | DD41: FALSE | DE41: FALSE | DF41: FALSE | DG41: FALSE | DH41: FALSE | DI41: FALSE | DJ41: 0 | DK41: 0 | DL41: 0 | DM41: 0 | DN41: 0 | DO41: Waterfall_1 | DP41: =waterfall_1(C41:DN41) -> 460701.19 | DQ41: 0 | DR41: 0 | DS41: 7120.67 | DT41: 0 | DU41: 0 | DV41: 0 | DW41: 0 | DX41: 0 | DY41: 465277.65 | DZ41: 0 | EA41: 465277.65 | EB41: 0 | EC41: 3477168.44 | ED41: 0 | EE41: 185260.27 | EF41: 152679.45 | EG41: 50284.93 | EH41: 52964.38 | EI41: 41884.93 | EJ41: 50104.11 | EK41: 0 | EL41: 0 | EM41: 0 | EN41: 0 | EO41: 0 | EP41: 0 | EQ41: 0 | ER41: 0 | ES41: 0 | ET41: 0 | EU41: 0 | EV41: 0 | EW41: 0 | EX41: 0 | EY41: 0 | EZ41: 0 | FA41: 0 | FB41: 0 | FC41: 2727170.18 | FD41: 169464.23 | FE41: 1 | FF41: 0 | FG41: 0 | FH41: 0 | FI41: 39588114.44 | FJ41: 0 | FK41: 0 | FL41: 0 | FM41: 0 | FN41: 0 | FO41: 0 | FP41: 0 | FQ41: 1533108889 | FR41: 0 | FS41: 70000000 | FT41: 48000000 | FU41: 14000000 | FV41: 12000000 | FW41: 8000000 | FX41: 8000000 | FY41: 0 | FZ41: 0 | GA41: 0 | GB41: 0 | GC41: 0 | GD41: 0 | GE41: 0 | GF41: 0 | GG41: 1533108889 | GH41: 0 | GI41: 70000000 | GJ41: 48000000 | GK41: 14000000 | GL41: 12000000 | GM41: 8000000 | GN41: 8000000 | GO41: 0 | GP41: 0 | GQ41: FALSE | GR41: FALSE | GS41: FALSE | GT41: 0 | GU41: 0 | GV41: 0 | GW41: 460701.19 | GX41: 0 | GY41: 0 | GZ41: 7120.67 | HA41: 0 | HB41: 0 | HC41: 0 | HD41: 0 | HE41: 0 | HF41: 0 | HG41: 0 | HH41: 0 | HI41: 0 | HJ41: 3477168.44 | HK41: 0 | HL41: 185260.27 | HM41: 152679.45 | HN41: 50284.93 | HO41: 52964.38 | HP41: 41884.93 | HQ41: 50104.11 | HR41: 0 | HS41: 0 | HT41: 0 | HU41: 0 | HV41: 0 | HW41: 0 | HX41: 0 | HY41: 0 | HZ41: 0 | IA41: 0 | IB41: 0 | IC41: 0 | ID41: 0 | IE41: 0 | IF41: 0 | IG41: 0 | IH41: 0 | II41: 0 | IJ41: 1114645.13 | IK41: 74414.7 | IL41: 1242297.93 | IM41: 0 | IN41: 0 | IO41: 0 | IP41: 40053392.09 | IQ41: 0 | IR41: 0 | IS41: 0 | IT41: 0 | IU41: 0 | IV41: 0 | IW41: 0 | IX41: 1532643612 | IY41: 0 | IZ41: 70000000 | JA41: 48000000 | JB41: 14000000 | JC41: 12000000 | JD41: 8000000 | JE41: 8000000 | JF41: 0 | JG41: 0 | JH41: 0 | JI41: 0 | JJ41: 0 | JK41: 0 | JL41: 0 | JM41: 0 | JN41: 1532643612 | JO41: 0 | JP41: 70000000 | JQ41: 48000000 | JR41: 14000000 | JS41: 12000000 | JT41: 8000000 | JU41: 8000000 | JV41: 0 | JW41: 0 | JX41: FALSE | JY41: FALSE | JZ41: FALSE | KA41: 0 | KB41: 0 | KC41: 0 | KD41: =IF(GW41="NR","NR",ROUNDDOWN(GW41-DP41,0)) -> 0 | KE41: =IF(GX41="NR","NR",ROUNDDOWN(GX41-DQ41,0)) -> 0 | KF41: =IF(GY41="NR","NR",ROUNDDOWN(GY41-DR41,0)) -> 0 | KG41: =IF(GZ41="NR","NR",ROUNDDOWN(GZ41-DS41,0)) -> 0 | KH41: =IF(HA41="NR","NR",ROUNDDOWN(HA41-DT41,0)) -> 0 | KI41: =IF(HB41="NR","NR",ROUNDDOWN(HB41-DU41,0)) -> 0 | KJ41: =IF(HC41="NR","NR",ROUNDDOWN(HC41-DV41,0)) -> 0 | KK41: =IF(HD41="NR","NR",ROUNDDOWN(HD41-DW41,0)) -> 0 | KL41: =IF(HE41="NR","NR",ROUNDDOWN(HE41-DX41,0)) -> 0 | KM41: =IF(HF41="NR","NR",ROUNDDOWN(HF41-DY41,0)) -> -465277 | KN41: =IF(HG41="NR","NR",ROUNDDOWN(HG41-DZ41,0)) -> 0 | KO41: =IF(HH41="NR","NR",ROUNDDOWN(HH41-EA41,0)) -> -465277 | KP41: =IF(HI41="NR","NR",ROUNDDOWN(HI41-EB41,0)) -> 0 | KQ41: =IF(HJ41="NR","NR",ROUNDDOWN(HJ41-EC41,0)) -> 0 | KR41: =IF(HK41="NR","NR",ROUNDDOWN(HK41-ED41,0)) -> 0 | KS41: =IF(HL41="NR","NR",ROUNDDOWN(HL41-EE41,0)) -> 0 | KT41: =IF(HM41="NR","NR",ROUNDDOWN(HM41-EF41,0)) -> 0 | KU41: =IF(HN41="NR","NR",ROUNDDOWN(HN41-EG41,0)) -> 0 | KV41: =IF(HO41="NR","NR",ROUNDDOWN(HO41-EH41,0)) -> 0 | KW41: =IF(HP41="NR","NR",ROUNDDOWN(HP41-EI41,0)) -> 0 | KX41: =IF(HQ41="NR","NR",ROUNDDOWN(HQ41-EJ41,0)) -> 0 | KY41: =IF(HR41="NR","NR",ROUNDDOWN(HR41-EK41,0)) -> 0 | KZ41: =IF(HS41="NR","NR",ROUNDDOWN(HS41-EL41,0)) -> 0 | LA41: =IF(HT41="NR","NR",ROUNDDOWN(HT41-EM41,0)) -> 0 | LB41: =IF(HU41="NR","NR",ROUNDDOWN(HU41-EN41,0)) -> 0 | LC41: =IF(HV41="NR","NR",ROUNDDOWN(HV41-EO41,0)) -> 0 | LD41: =IF(HW41="NR","NR",ROUNDDOWN(HW41-EP41,0)) -> 0 | LE41: =IF(HX41="NR","NR",ROUNDDOWN(HX41-EQ41,0)) -> 0 | LF41: =IF(HY41="NR","NR",ROUNDDOWN(HY41-ER41,0)) -> 0 | LG41: =IF(HZ41="NR","NR",ROUNDDOWN(HZ41-ES41,0)) -> 0 | LH41: =IF(IA41="NR","NR",ROUNDDOWN(IA41-ET41,0)) -> 0 | LI41: =IF(IB41="NR","NR",ROUNDDOWN(IB41-EU41,0)) -> 0 | LJ41: =IF(IC41="NR","NR",ROUNDDOWN(IC41-EV41,0)) -> 0 | LK41: =IF(ID41="NR","NR",ROUNDDOWN(ID41-EW41,0)) -> 0 | LL41: =IF(IE41="NR","NR",ROUNDDOWN(IE41-EX41,0)) -> 0 | LM41: =IF(IF41="NR","NR",ROUNDDOWN(IF41-EY41,0)) -> 0 | LN41: =IF(IG41="NR","NR",ROUNDDOWN(IG41-EZ41,0)) -> 0 | LO41: =IF(IH41="NR","NR",ROUNDDOWN(IH41-FA41,0)) -> 0 | LP41: =IF(II41="NR","NR",ROUNDDOWN(II41-FB41,0)) -> 0 | LQ41: =IF(IJ41="NR","NR",ROUNDDOWN(IJ41-FC41,0)) -> -1612525 | LR41: =IF(IK41="NR","NR",ROUNDDOWN(IK41-FD41,0)) -> -95049 | LS41: =IF(IL41="NR","NR",ROUNDDOWN(IL41-FE41,0)) -> 1242296 | LT41: =IF(IM41="NR","NR",ROUNDDOWN(IM41-FF41,0)) -> 0 | LU41: =IF(IN41="NR","NR",ROUNDDOWN(IN41-FG41,0)) -> 0 | LV41: =IF(IO41="NR","NR",ROUNDDOWN(IO41-FH41,0)) -> 0 | LW41: =IF(IP41="NR","NR",ROUNDDOWN(IP41-FI41,0)) -> 465277 | LX41: =IF(IQ41="NR","NR",ROUNDDOWN(IQ41-FJ41,0)) -> 0 | LY41: =IF(IR41="NR","NR",ROUNDDOWN(IR41-FK41,0)) -> 0 | LZ41: =IF(IS41="NR","NR",ROUNDDOWN(IS41-FL41,0)) -> 0 | MA41: =IF(IT41="NR","NR",ROUNDDOWN(IT41-FM41,0)) -> 0 | MB41: =IF(IU41="NR","NR",ROUNDDOWN(IU41-FN41,0)) -> 0 | MC41: =IF(IV41="NR","NR",ROUNDDOWN(IV41-FO41,0)) -> 0 | MD41: =IF(IW41="NR","NR",ROUNDDOWN(IW41-FP41,0)) -> 0 | ME41: =IF(IX41="NR","NR",ROUNDDOWN(IX41-FQ41,0)) -> -465277 | MF41: =IF(IY41="NR","NR",ROUNDDOWN(IY41-FR41,0)) -> 0 | MG41: =IF(IZ41="NR","NR",ROUNDDOWN(IZ41-FS41,0)) -> 0 | MH41: =IF(JA41="NR","NR",ROUNDDOWN(JA41-FT41,0)) -> 0 | MI41: =IF(JB41="NR","NR",ROUNDDOWN(JB41-FU41,0)) -> 0 | MJ41: =IF(JC41="NR","NR",ROUNDDOWN(JC41-FV41,0)) -> 0 | MK41: =IF(JD41="NR","NR",ROUNDDOWN(JD41-FW41,0)) -> 0 | ML41: =IF(JE41="NR","NR",ROUNDDOWN(JE41-FX41,0)) -> 0 | MM41: =IF(JF41="NR","NR",ROUNDDOWN(JF41-FY41,0)) -> 0 | MN41: =IF(JG41="NR","NR",ROUNDDOWN(JG41-FZ41,0)) -> 0 | MO41: =IF(JH41="NR","NR",ROUNDDOWN(JH41-GA41,0)) -> 0 | MP41: =IF(JI41="NR","NR",ROUNDDOWN(JI41-GB41,0)) -> 0 | MQ41: =IF(JJ41="NR","NR",ROUNDDOWN(JJ41-GC41,0)) -> 0 | MR41: =IF(JK41="NR","NR",ROUNDDOWN(JK41-GD41,0)) -> 0 | MS41: =IF(JL41="NR","NR",ROUNDDOWN(JL41-GE41,0)) -> 0 | MT41: =IF(JM41="NR","NR",ROUNDDOWN(JM41-GF41,0)) -> 0 | MU41: =IF(JN41="NR","NR",ROUNDDOWN(JN41-GG41,0)) -> -465277 | MV41: =IF(JO41="NR","NR",ROUNDDOWN(JO41-GH41,0)) -> 0 | MW41: =IF(JP41="NR","NR",ROUNDDOWN(JP41-GI41,0)) -> 0 | MX41: =IF(JQ41="NR","NR",ROUNDDOWN(JQ41-GJ41,0)) -> 0 | MY41: =IF(JR41="NR","NR",ROUNDDOWN(JR41-GK41,0)) -> 0 | MZ41: =IF(JS41="NR","NR",ROUNDDOWN(JS41-GL41,0)) -> 0 | NA41: =IF(JT41="NR","NR",ROUNDDOWN(JT41-GM41,0)) -> 0 | NB41: =IF(JU41="NR","NR",ROUNDDOWN(JU41-GN41,0)) -> 0 | NC41: =IF(JV41="NR","NR",ROUNDDOWN(JV41-GO41,0)) -> 0 | ND41: =IF(JW41="NR","NR",ROUNDDOWN(JW41-GP41,0)) -> 0 | NE41: NR | NF41: NR | NG41: NR | NH41: =IF(KA41="NR","NR",ROUNDDOWN(KA41-GT41,0)) -> 0 | NI41: =IF(KB41="NR","NR",ROUNDDOWN(KB41-GU41,0)) -> 0 | NJ41: =IF(KC41="NR","NR",ROUNDDOWN(KC41-GV41,0)) -> 0
B42: 2017-06-26 | C42: 2017-05-02 | D42: 2017-05-31 | E42: 2017-06-21 | F42: 2017-06-26 | G42: 33 | H42: 0.01625 | I42: 2016-12-01 | J42: 1999995073 | K42: 1692643612 | L42: 92841168.33 | M42: 1649516025 | N42: 90952501.04 | O42: 1690457078 | P42: 92841168.33 | Q42: 3335029.69 | R42: 0.0079 | S42: 0 | T42: 6232842.46 | U42: 12472063.18 | V42: 0 | W42: 5882934.9 | X42: 344897.65 | Y42: 5130177.39 | Z42: 36888365.57 | AA42: 93.67 | AB42: 0 | AC42: 0 | AD42: 0 | AE42: 0 | AF42: 16926436.12 | AG42: 0 | AH42: 1840000000 | AI42: 0 | AJ42: 70000000 | AK42: 48000000 | AL42: 14000000 | AM42: 12000000 | AN42: 8000000 | AO42: 8000000 | AP42: 10000 | AQ42: 1532643612 | AR42: 0 | AS42: 70000000 | AT42: 48000000 | AU42: 14000000 | AV42: 12000000 | AW42: 8000000 | AX42: 8000000 | AY42: 0 | AZ42: 0 | BA42: 0 | BB42: 0 | BC42: 0 | BD42: 0 | BE42: 0 | BF42: 0 | BG42: 1 | BH42: 495805.6 | BI42: 0 | BJ42: 7651.68 | BK42: 0 | BL42: 0 | BM42: 0 | BN42: 0 | BO42: 0 | BP42: 0 | BQ42: 0 | BR42: 0.0107 | BS42: 0 | BT42: 0.016 | BU42: 0.0225 | BV42: 0.0275 | BW42: 0.0375 | BX42: 0.0475 | BY42: 0.06 | BZ42: 0.0025 | CA42: 0.0025 | CB42: 0.02 | CC42: 0.02 | CD42: 0.02 | CE42: 0.02 | CF42: 0.02 | CG42: 0 | CH42: 0 | CI42: 0 | CJ42: 0 | CK42: 0 | CL42: 0 | CM42: 0 | CN42: 0 | CO42: 0 | CP42: 0 | CQ42: 0 | CR42: 0 | CS42: 0 | CT42: 0 | CU42: 0 | CV42: 0.1 | CW42: 2 | CX42: 0.003142581751 | CY42: 0.04 | CZ42: FALSE | DA42: FALSE | DB42: FALSE | DC42: FALSE | DD42: FALSE | DE42: FALSE | DF42: FALSE | DG42: FALSE | DH42: FALSE | DI42: FALSE | DJ42: 0 | DK42: 0 | DL42: 0 | DM42: 0 | DN42: 0 | DO42: Waterfall_1 | DP42: =waterfall_1(C42:DN42) -> 495805.6 | DQ42: 0 | DR42: 0 | DS42: 7651.68 | DT42: 0 | DU42: 0 | DV42: 0 | DW42: 0 | DX42: 0 | DY42: 508947.21 | DZ42: 0 | EA42: 508947.21 | EB42: 0 | EC42: 3734401.63 | ED42: 0 | EE42: 204102.74 | EF42: 168164.38 | EG42: 55376.71 | EH42: 58315.07 | EI42: 46109.59 | EJ42: 55150.68 | EK42: 0 | EL42: 0 | EM42: 0 | EN42: 0 | EO42: 0 | EP42: 0 | EQ42: 0 | ER42: 0 | ES42: 0 | ET42: 0 | EU42: 0 | EV42: 0 | EW42: 0 | EX42: 0 | EY42: 0 | EZ42: 0 | FA42: 0 | FB42: 0 | FC42: 1803936.75 | FD42: 107857.6 | FE42: 1 | FF42: 0 | FG42: 0 | FH42: 0 | FI42: 42618639.08 | FJ42: 0 | FK42: 0 | FL42: 0 | FM42: 0 | FN42: 0 | FO42: 0 | FP42: 0 | FQ42: 1490024973 | FR42: 0 | FS42: 70000000 | FT42: 48000000 | FU42: 14000000 | FV42: 12000000 | FW42: 8000000 | FX42: 8000000 | FY42: 0 | FZ42: 0 | GA42: 0 | GB42: 0 | GC42: 0 | GD42: 0 | GE42: 0 | GF42: 0 | GG42: 1490024973 | GH42: 0 | GI42: 70000000 | GJ42: 48000000 | GK42: 14000000 | GL42: 12000000 | GM42: 8000000 | GN42: 8000000 | GO42: 0 | GP42: 0 | GQ42: FALSE | GR42: FALSE | GS42: FALSE | GT42: 0 | GU42: 0 | GV42: 0 | GW42: 495805.6 | GX42: 0 | GY42: 0 | GZ42: 7651.68 | HA42: 0 | HB42: 0 | HC42: 0 | HD42: 0 | HE42: 0 | HF42: 0 | HG42: 0 | HH42: 0 | HI42: 0 | HJ42: 3734401.63 | HK42: 0 | HL42: 204102.74 | HM42: 168164.38 | HN42: 55376.71 | HO42: 58315.07 | HP42: 46109.59 | HQ42: 55150.68 | HR42: 0 | HS42: 0 | HT42: 0 | HU42: 0 | HV42: 0 | HW42: 0 | HX42: 0 | HY42: 0 | HZ42: 0 | IA42: 0 | IB42: 0 | IC42: 0 | ID42: 0 | IE42: 0 | IF42: 0 | IG42: 0 | IH42: 0 | II42: 0 | IJ42: 70632.91 | IK42: 7131.29 | IL42: 1325083.94 | IM42: 0 | IN42: 0 | IO42: 0 | IP42: 43127586.29 | IQ42: 0 | IR42: 0 | IS42: 0 | IT42: 0 | IU42: 0 | IV42: 0 | IW42: 0 | IX42: 1489516025 | IY42: 0 | IZ42: 70000000 | JA42: 48000000 | JB42: 14000000 | JC42: 12000000 | JD42: 8000000 | JE42: 8000000 | JF42: 0 | JG42: 0 | JH42: 0 | JI42: 0 | JJ42: 0 | JK42: 0 | JL42: 0 | JM42: 0 | JN42: 1489516025 | JO42: 0 | JP42: 70000000 | JQ42: 48000000 | JR42: 14000000 | JS42: 12000000 | JT42: 8000000 | JU42: 8000000 | JV42: 0 | JW42: 0 | JX42: FALSE | JY42: FALSE | JZ42: FALSE | KA42: 0 | KB42: 0 | KC42: 0 | KD42: =IF(GW42="NR","NR",ROUNDDOWN(GW42-DP42,0)) -> 0 | KE42: =IF(GX42="NR","NR",ROUNDDOWN(GX42-DQ42,0)) -> 0 | KF42: =IF(GY42="NR","NR",ROUNDDOWN(GY42-DR42,0)) -> 0 | KG42: =IF(GZ42="NR","NR",ROUNDDOWN(GZ42-DS42,0)) -> 0 | KH42: =IF(HA42="NR","NR",ROUNDDOWN(HA42-DT42,0)) -> 0 | KI42: =IF(HB42="NR","NR",ROUNDDOWN(HB42-DU42,0)) -> 0 | KJ42: =IF(HC42="NR","NR",ROUNDDOWN(HC42-DV42,0)) -> 0 | KK42: =IF(HD42="NR","NR",ROUNDDOWN(HD42-DW42,0)) -> 0 | KL42: =IF(HE42="NR","NR",ROUNDDOWN(HE42-DX42,0)) -> 0 | KM42: =IF(HF42="NR","NR",ROUNDDOWN(HF42-DY42,0)) -> -508947 | KN42: =IF(HG42="NR","NR",ROUNDDOWN(HG42-DZ42,0)) -> 0 | KO42: =IF(HH42="NR","NR",ROUNDDOWN(HH42-EA42,0)) -> -508947 | KP42: =IF(HI42="NR","NR",ROUNDDOWN(HI42-EB42,0)) -> 0 | KQ42: =IF(HJ42="NR","NR",ROUNDDOWN(HJ42-EC42,0)) -> 0 | KR42: =IF(HK42="NR","NR",ROUNDDOWN(HK42-ED42,0)) -> 0 | KS42: =IF(HL42="NR","NR",ROUNDDOWN(HL42-EE42,0)) -> 0 | KT42: =IF(HM42="NR","NR",ROUNDDOWN(HM42-EF42,0)) -> 0 | KU42: =IF(HN42="NR","NR",ROUNDDOWN(HN42-EG42,0)) -> 0 | KV42: =IF(HO42="NR","NR",ROUNDDOWN(HO42-EH42,0)) -> 0 | KW42: =IF(HP42="NR","NR",ROUNDDOWN(HP42-EI42,0)) -> 0 | KX42: =IF(HQ42="NR","NR",ROUNDDOWN(HQ42-EJ42,0)) -> 0 | KY42: =IF(HR42="NR","NR",ROUNDDOWN(HR42-EK42,0)) -> 0 | KZ42: =IF(HS42="NR","NR",ROUNDDOWN(HS42-EL42,0)) -> 0 | LA42: =IF(HT42="NR","NR",ROUNDDOWN(HT42-EM42,0)) -> 0 | LB42: =IF(HU42="NR","NR",ROUNDDOWN(HU42-EN42,0)) -> 0 | LC42: =IF(HV42="NR","NR",ROUNDDOWN(HV42-EO42,0)) -> 0 | LD42: =IF(HW42="NR","NR",ROUNDDOWN(HW42-EP42,0)) -> 0 | LE42: =IF(HX42="NR","NR",ROUNDDOWN(HX42-EQ42,0)) -> 0 | LF42: =IF(HY42="NR","NR",ROUNDDOWN(HY42-ER42,0)) -> 0 | LG42: =IF(HZ42="NR","NR",ROUNDDOWN(HZ42-ES42,0)) -> 0 | LH42: =IF(IA42="NR","NR",ROUNDDOWN(IA42-ET42,0)) -> 0 | LI42: =IF(IB42="NR","NR",ROUNDDOWN(IB42-EU42,0)) -> 0 | LJ42: =IF(IC42="NR","NR",ROUNDDOWN(IC42-EV42,0)) -> 0 | LK42: =IF(ID42="NR","NR",ROUNDDOWN(ID42-EW42,0)) -> 0 | LL42: =IF(IE42="NR","NR",ROUNDDOWN(IE42-EX42,0)) -> 0 | LM42: =IF(IF42="NR","NR",ROUNDDOWN(IF42-EY42,0)) -> 0 | LN42: =IF(IG42="NR","NR",ROUNDDOWN(IG42-EZ42,0)) -> 0 | LO42: =IF(IH42="NR","NR",ROUNDDOWN(IH42-FA42,0)) -> 0 | LP42: =IF(II42="NR","NR",ROUNDDOWN(II42-FB42,0)) -> 0 | LQ42: =IF(IJ42="NR","NR",ROUNDDOWN(IJ42-FC42,0)) -> -1733303 | LR42: =IF(IK42="NR","NR",ROUNDDOWN(IK42-FD42,0)) -> -100726 | LS42: =IF(IL42="NR","NR",ROUNDDOWN(IL42-FE42,0)) -> 1325082 | LT42: =IF(IM42="NR","NR",ROUNDDOWN(IM42-FF42,0)) -> 0 | LU42: =IF(IN42="NR","NR",ROUNDDOWN(IN42-FG42,0)) -> 0 | LV42: =IF(IO42="NR","NR",ROUNDDOWN(IO42-FH42,0)) -> 0 | LW42: =IF(IP42="NR","NR",ROUNDDOWN(IP42-FI42,0)) -> 508947 | LX42: =IF(IQ42="NR","NR",ROUNDDOWN(IQ42-FJ42,0)) -> 0 | LY42: =IF(IR42="NR","NR",ROUNDDOWN(IR42-FK42,0)) -> 0 | LZ42: =IF(IS42="NR","NR",ROUNDDOWN(IS42-FL42,0)) -> 0 | MA42: =IF(IT42="NR","NR",ROUNDDOWN(IT42-FM42,0)) -> 0 | MB42: =IF(IU42="NR","NR",ROUNDDOWN(IU42-FN42,0)) -> 0 | MC42: =IF(IV42="NR","NR",ROUNDDOWN(IV42-FO42,0)) -> 0 | MD42: =IF(IW42="NR","NR",ROUNDDOWN(IW42-FP42,0)) -> 0 | ME42: =IF(IX42="NR","NR",ROUNDDOWN(IX42-FQ42,0)) -> -508947 | MF42: =IF(IY42="NR","NR",ROUNDDOWN(IY42-FR42,0)) -> 0 | MG42: =IF(IZ42="NR","NR",ROUNDDOWN(IZ42-FS42,0)) -> 0 | MH42: =IF(JA42="NR","NR",ROUNDDOWN(JA42-FT42,0)) -> 0 | MI42: =IF(JB42="NR","NR",ROUNDDOWN(JB42-FU42,0)) -> 0 | MJ42: =IF(JC42="NR","NR",ROUNDDOWN(JC42-FV42,0)) -> 0 | MK42: =IF(JD42="NR","NR",ROUNDDOWN(JD42-FW42,0)) -> 0 | ML42: =IF(JE42="NR","NR",ROUNDDOWN(JE42-FX42,0)) -> 0 | MM42: =IF(JF42="NR","NR",ROUNDDOWN(JF42-FY42,0)) -> 0 | MN42: =IF(JG42="NR","NR",ROUNDDOWN(JG42-FZ42,0)) -> 0 | MO42: =IF(JH42="NR","NR",ROUNDDOWN(JH42-GA42,0)) -> 0 | MP42: =IF(JI42="NR","NR",ROUNDDOWN(JI42-GB42,0)) -> 0 | MQ42: =IF(JJ42="NR","NR",ROUNDDOWN(JJ42-GC42,0)) -> 0 | MR42: =IF(JK42="NR","NR",ROUNDDOWN(JK42-GD42,0)) -> 0 | MS42: =IF(JL42="NR","NR",ROUNDDOWN(JL42-GE42,0)) -> 0 | MT42: =IF(JM42="NR","NR",ROUNDDOWN(JM42-GF42,0)) -> 0 | MU42: =IF(JN42="NR","NR",ROUNDDOWN(JN42-GG42,0)) -> -508947 | MV42: =IF(JO42="NR","NR",ROUNDDOWN(JO42-GH42,0)) -> 0 | MW42: =IF(JP42="NR","NR",ROUNDDOWN(JP42-GI42,0)) -> 0 | MX42: =IF(JQ42="NR","NR",ROUNDDOWN(JQ42-GJ42,0)) -> 0 | MY42: =IF(JR42="NR","NR",ROUNDDOWN(JR42-GK42,0)) -> 0 | MZ42: =IF(JS42="NR","NR",ROUNDDOWN(JS42-GL42,0)) -> 0 | NA42: =IF(JT42="NR","NR",ROUNDDOWN(JT42-GM42,0)) -> 0 | NB42: =IF(JU42="NR","NR",ROUNDDOWN(JU42-GN42,0)) -> 0 | NC42: =IF(JV42="NR","NR",ROUNDDOWN(JV42-GO42,0)) -> 0 | ND42: =IF(JW42="NR","NR",ROUNDDOWN(JW42-GP42,0)) -> 0 | NE42: NR | NF42: NR | NG42: NR | NH42: =IF(KA42="NR","NR",ROUNDDOWN(KA42-GT42,0)) -> 0 | NI42: =IF(KB42="NR","NR",ROUNDDOWN(KB42-GU42,0)) -> 0 | NJ42: =IF(KC42="NR","NR",ROUNDDOWN(KC42-GV42,0)) -> 0
B43: 2017-07-24 | C43: 2017-06-01 | D43: 2017-06-30 | E43: 2017-07-19 | F43: 2017-07-24 | G43: 28 | H43: 0.01615 | I43: 2016-12-01 | J43: 1999995073 | K43: 1649516025 | L43: 90952501.04 | M43: 1611305581 | N43: 87268711.78 | O43: 1646180996 | P43: 90952501.04 | Q43: 4297419.49 | R43: 0.0094 | S43: 0 | T43: 7523096.82 | U43: 8993430.69 | V43: 0 | W43: 6092061.08 | X43: 339760.89 | Y43: 4797652.31 | Z43: 36740110.65 | AA43: 81.71 | AB43: 0 | AC43: 0 | AD43: 0 | AE43: 0 | AF43: 16495160.25 | AG43: 0 | AH43: 1840000000 | AI43: 0 | AJ43: 70000000 | AK43: 48000000 | AL43: 14000000 | AM43: 12000000 | AN43: 8000000 | AO43: 8000000 | AP43: 10000 | AQ43: 1489516025 | AR43: 0 | AS43: 70000000 | AT43: 48000000 | AU43: 14000000 | AV43: 12000000 | AW43: 8000000 | AX43: 8000000 | AY43: 0 | AZ43: 0 | BA43: 0 | BB43: 0 | BC43: 0 | BD43: 0 | BE43: 0 | BF43: 0 | BG43: 1 | BH43: 409101.43 | BI43: 0 | BJ43: 6326.91 | BK43: 0 | BL43: 0 | BM43: 0 | BN43: 0 | BO43: 0 | BP43: 0 | BQ43: 0 | BR43: 0.0107 | BS43: 0 | BT43: 0.016 | BU43: 0.0225 | BV43: 0.0275 | BW43: 0.0375 | BX43: 0.0475 | BY43: 0.06 | BZ43: 0.0025 | CA43: 0.0025 | CB43: 0.02 | CC43: 0.02 | CD43: 0.02 | CE43: 0.02 | CF43: 0.02 | CG43: 0 | CH43: 0 | CI43: 0 | CJ43: 0 | CK43: 0 | CL43: 0 | CM43: 0 | CN43: 0 | CO43: 0 | CP43: 0 | CQ43: 0 | CR43: 0 | CS43: 0 | CT43: 0 | CU43: 0 | CV43: 0.1 | CW43: 2 | CX43: 0.003980335322 | CY43: 0.04 | CZ43: FALSE | DA43: FALSE | DB43: FALSE | DC43: FALSE | DD43: FALSE | DE43: FALSE | DF43: FALSE | DG43: FALSE | DH43: FALSE | DI43: FALSE | DJ43: 0 | DK43: 0 | DL43: 0 | DM43: 0 | DN43: 0 | DO43: Waterfall_1 | DP43: =waterfall_1(C43:DN43) -> 409101.43 | DQ43: 0 | DR43: 0 | DS43: 6326.91 | DT43: 0 | DU43: 0 | DV43: 0 | DW43: 0 | DX43: 0 | DY43: 422555.46 | DZ43: 0 | EA43: 422555.46 | EB43: 0 | EC43: 3067994.93 | ED43: 0 | EE43: 172641.1 | EF43: 142316.71 | EG43: 46878.9 | EH43: 49387.4 | EI43: 39061.92 | EJ43: 46733.15 | EK43: 0 | EL43: 0 | EM43: 0 | EN43: 0 | EO43: 0 | EP43: 0 | EQ43: 0 | ER43: 0 | ES43: 0 | ET43: 0 | EU43: 0 | EV43: 0 | EW43: 0 | EX43: 0 | EY43: 0 | EZ43: 0 | FA43: 0 | FB43: 0 | FC43: 2730825.76 | FD43: 143189.93 | FE43: 1 | FF43: 0 | FG43: 0 | FH43: 0 | FI43: 37787889.06 | FJ43: 0 | FK43: 0 | FL43: 0 | FM43: 0 | FN43: 0 | FO43: 0 | FP43: 0 | FQ43: 1451728136 | FR43: 0 | FS43: 70000000 | FT43: 48000000 | FU43: 14000000 | FV43: 12000000 | FW43: 8000000 | FX43: 8000000 | FY43: 0 | FZ43: 0 | GA43: 0 | GB43: 0 | GC43: 0 | GD43: 0 | GE43: 0 | GF43: 0 | GG43: 1451728136 | GH43: 0 | GI43: 70000000 | GJ43: 48000000 | GK43: 14000000 | GL43: 12000000 | GM43: 8000000 | GN43: 8000000 | GO43: 0 | GP43: 0 | GQ43: FALSE | GR43: FALSE | GS43: FALSE | GT43: 0 | GU43: 0 | GV43: 0 | GW43: 409101.43 | GX43: 0 | GY43: 0 | GZ43: 6326.91 | HA43: 0 | HB43: 0 | HC43: 0 | HD43: 0 | HE43: 0 | HF43: 0 | HG43: 0 | HH43: 0 | HI43: 0 | HJ43: 3067994.93 | HK43: 0 | HL43: 172641.1 | HM43: 142316.71 | HN43: 46878.9 | HO43: 49387.4 | HP43: 39061.92 | HQ43: 46733.15 | HR43: 0 | HS43: 0 | HT43: 0 | HU43: 0 | HV43: 0 | HW43: 0 | HX43: 0 | HY43: 0 | HZ43: 0 | IA43: 0 | IB43: 0 | IC43: 0 | ID43: 0 | IE43: 0 | IF43: 0 | IG43: 0 | IH43: 0 | II43: 0 | IJ43: 1299163.37 | IK43: 59463.79 | IL43: 1092834.07 | IM43: 0 | IN43: 0 | IO43: 0 | IP43: 38210444.52 | IQ43: 0 | IR43: 0 | IS43: 0 | IT43: 0 | IU43: 0 | IV43: 0 | IW43: 0 | IX43: 1451305581 | IY43: 0 | IZ43: 70000000 | JA43: 48000000 | JB43: 14000000 | JC43: 12000000 | JD43: 8000000 | JE43: 8000000 | JF43: 0 | JG43: 0 | JH43: 0 | JI43: 0 | JJ43: 0 | JK43: 0 | JL43: 0 | JM43: 0 | JN43: 1451305581 | JO43: 0 | JP43: 70000000 | JQ43: 48000000 | JR43: 14000000 | JS43: 12000000 | JT43: 8000000 | JU43: 8000000 | JV43: 0 | JW43: 0 | JX43: FALSE | JY43: FALSE | JZ43: FALSE | KA43: 0 | KB43: 0 | KC43: 0 | KD43: =IF(GW43="NR","NR",ROUNDDOWN(GW43-DP43,0)) -> 0 | KE43: =IF(GX43="NR","NR",ROUNDDOWN(GX43-DQ43,0)) -> 0 | KF43: =IF(GY43="NR","NR",ROUNDDOWN(GY43-DR43,0)) -> 0 | KG43: =IF(GZ43="NR","NR",ROUNDDOWN(GZ43-DS43,0)) -> 0 | KH43: =IF(HA43="NR","NR",ROUNDDOWN(HA43-DT43,0)) -> 0 | KI43: =IF(HB43="NR","NR",ROUNDDOWN(HB43-DU43,0)) -> 0 | KJ43: =IF(HC43="NR","NR",ROUNDDOWN(HC43-DV43,0)) -> 0 | KK43: =IF(HD43="NR","NR",ROUNDDOWN(HD43-DW43,0)) -> 0 | KL43: =IF(HE43="NR","NR",ROUNDDOWN(HE43-DX43,0)) -> 0 | KM43: =IF(HF43="NR","NR",ROUNDDOWN(HF43-DY43,0)) -> -422555 | KN43: =IF(HG43="NR","NR",ROUNDDOWN(HG43-DZ43,0)) -> 0 | KO43: =IF(HH43="NR","NR",ROUNDDOWN(HH43-EA43,0)) -> -422555 | KP43: =IF(HI43="NR","NR",ROUNDDOWN(HI43-EB43,0)) -> 0 | KQ43: =IF(HJ43="NR","NR",ROUNDDOWN(HJ43-EC43,0)) -> 0 | KR43: =IF(HK43="NR","NR",ROUNDDOWN(HK43-ED43,0)) -> 0 | KS43: =IF(HL43="NR","NR",ROUNDDOWN(HL43-EE43,0)) -> 0 | KT43: =IF(HM43="NR","NR",ROUNDDOWN(HM43-EF43,0)) -> 0 | KU43: =IF(HN43="NR","NR",ROUNDDOWN(HN43-EG43,0)) -> 0 | KV43: =IF(HO43="NR","NR",ROUNDDOWN(HO43-EH43,0)) -> 0 | KW43: =IF(HP43="NR","NR",ROUNDDOWN(HP43-EI43,0)) -> 0 | KX43: =IF(HQ43="NR","NR",ROUNDDOWN(HQ43-EJ43,0)) -> 0 | KY43: =IF(HR43="NR","NR",ROUNDDOWN(HR43-EK43,0)) -> 0 | KZ43: =IF(HS43="NR","NR",ROUNDDOWN(HS43-EL43,0)) -> 0 | LA43: =IF(HT43="NR","NR",ROUNDDOWN(HT43-EM43,0)) -> 0 | LB43: =IF(HU43="NR","NR",ROUNDDOWN(HU43-EN43,0)) -> 0 | LC43: =IF(HV43="NR","NR",ROUNDDOWN(HV43-EO43,0)) -> 0 | LD43: =IF(HW43="NR","NR",ROUNDDOWN(HW43-EP43,0)) -> 0 | LE43: =IF(HX43="NR","NR",ROUNDDOWN(HX43-EQ43,0)) -> 0 | LF43: =IF(HY43="NR","NR",ROUNDDOWN(HY43-ER43,0)) -> 0 | LG43: =IF(HZ43="NR","NR",ROUNDDOWN(HZ43-ES43,0)) -> 0 | LH43: =IF(IA43="NR","NR",ROUNDDOWN(IA43-ET43,0)) -> 0 | LI43: =IF(IB43="NR","NR",ROUNDDOWN(IB43-EU43,0)) -> 0 | LJ43: =IF(IC43="NR","NR",ROUNDDOWN(IC43-EV43,0)) -> 0 | LK43: =IF(ID43="NR","NR",ROUNDDOWN(ID43-EW43,0)) -> 0 | LL43: =IF(IE43="NR","NR",ROUNDDOWN(IE43-EX43,0)) -> 0 | LM43: =IF(IF43="NR","NR",ROUNDDOWN(IF43-EY43,0)) -> 0 | LN43: =IF(IG43="NR","NR",ROUNDDOWN(IG43-EZ43,0)) -> 0 | LO43: =IF(IH43="NR","NR",ROUNDDOWN(IH43-FA43,0)) -> 0 | LP43: =IF(II43="NR","NR",ROUNDDOWN(II43-FB43,0)) -> 0 | LQ43: =IF(IJ43="NR","NR",ROUNDDOWN(IJ43-FC43,0)) -> -1431662 | LR43: =IF(IK43="NR","NR",ROUNDDOWN(IK43-FD43,0)) -> -83726 | LS43: =IF(IL43="NR","NR",ROUNDDOWN(IL43-FE43,0)) -> 1092833 | LT43: =IF(IM43="NR","NR",ROUNDDOWN(IM43-FF43,0)) -> 0 | LU43: =IF(IN43="NR","NR",ROUNDDOWN(IN43-FG43,0)) -> 0 | LV43: =IF(IO43="NR","NR",ROUNDDOWN(IO43-FH43,0)) -> 0 | LW43: =IF(IP43="NR","NR",ROUNDDOWN(IP43-FI43,0)) -> 422555 | LX43: =IF(IQ43="NR","NR",ROUNDDOWN(IQ43-FJ43,0)) -> 0 | LY43: =IF(IR43="NR","NR",ROUNDDOWN(IR43-FK43,0)) -> 0 | LZ43: =IF(IS43="NR","NR",ROUNDDOWN(IS43-FL43,0)) -> 0 | MA43: =IF(IT43="NR","NR",ROUNDDOWN(IT43-FM43,0)) -> 0 | MB43: =IF(IU43="NR","NR",ROUNDDOWN(IU43-FN43,0)) -> 0 | MC43: =IF(IV43="NR","NR",ROUNDDOWN(IV43-FO43,0)) -> 0 | MD43: =IF(IW43="NR","NR",ROUNDDOWN(IW43-FP43,0)) -> 0 | ME43: =IF(IX43="NR","NR",ROUNDDOWN(IX43-FQ43,0)) -> -422555 | MF43: =IF(IY43="NR","NR",ROUNDDOWN(IY43-FR43,0)) -> 0 | MG43: =IF(IZ43="NR","NR",ROUNDDOWN(IZ43-FS43,0)) -> 0 | MH43: =IF(JA43="NR","NR",ROUNDDOWN(JA43-FT43,0)) -> 0 | MI43: =IF(JB43="NR","NR",ROUNDDOWN(JB43-FU43,0)) -> 0 | MJ43: =IF(JC43="NR","NR",ROUNDDOWN(JC43-FV43,0)) -> 0 | MK43: =IF(JD43="NR","NR",ROUNDDOWN(JD43-FW43,0)) -> 0 | ML43: =IF(JE43="NR","NR",ROUNDDOWN(JE43-FX43,0)) -> 0 | MM43: =IF(JF43="NR","NR",ROUNDDOWN(JF43-FY43,0)) -> 0 | MN43: =IF(JG43="NR","NR",ROUNDDOWN(JG43-FZ43,0)) -> 0 | MO43: =IF(JH43="NR","NR",ROUNDDOWN(JH43-GA43,0)) -> 0 | MP43: =IF(JI43="NR","NR",ROUNDDOWN(JI43-GB43,0)) -> 0 | MQ43: =IF(JJ43="NR","NR",ROUNDDOWN(JJ43-GC43,0)) -> 0 | MR43: =IF(JK43="NR","NR",ROUNDDOWN(JK43-GD43,0)) -> 0 | MS43: =IF(JL43="NR","NR",ROUNDDOWN(JL43-GE43,0)) -> 0 | MT43: =IF(JM43="NR","NR",ROUNDDOWN(JM43-GF43,0)) -> 0 | MU43: =IF(JN43="NR","NR",ROUNDDOWN(JN43-GG43,0)) -> -422555 | MV43: =IF(JO43="NR","NR",ROUNDDOWN(JO43-GH43,0)) -> 0 | MW43: =IF(JP43="NR","NR",ROUNDDOWN(JP43-GI43,0)) -> 0 | MX43: =IF(JQ43="NR","NR",ROUNDDOWN(JQ43-GJ43,0)) -> 0 | MY43: =IF(JR43="NR","NR",ROUNDDOWN(JR43-GK43,0)) -> 0 | MZ43: =IF(JS43="NR","NR",ROUNDDOWN(JS43-GL43,0)) -> 0 | NA43: =IF(JT43="NR","NR",ROUNDDOWN(JT43-GM43,0)) -> 0 | NB43: =IF(JU43="NR","NR",ROUNDDOWN(JU43-GN43,0)) -> 0 | NC43: =IF(JV43="NR","NR",ROUNDDOWN(JV43-GO43,0)) -> 0 | ND43: =IF(JW43="NR","NR",ROUNDDOWN(JW43-GP43,0)) -> 0 | NE43: NR | NF43: NR | NG43: NR | NH43: =IF(KA43="NR","NR",ROUNDDOWN(KA43-GT43,0)) -> 0 | NI43: =IF(KB43="NR","NR",ROUNDDOWN(KB43-GU43,0)) -> 0 | NJ43: =IF(KC43="NR","NR",ROUNDDOWN(KC43-GV43,0)) -> 0
B44: 2017-08-24 | C44: 2017-07-01 | D44: 2017-07-31 | E44: 2017-08-21 | F44: 2017-08-24 | G44: 31 | H44: 0.01595 | I44: 2016-12-01 | J44: 1999995073 | K44: 1611305581 | L44: 87268711.78 | M44: 1580150711 | N44: 86940533.82 | O44: 1607008161 | P44: 87268711.78 | Q44: 5061442.7 | R44: 0.0103 | S44: 0 | T44: 4972873.37 | U44: 6303143.57 | V44: 0 | W44: 5674851.32 | X44: 335180.1 | Y44: 4923066.24 | Z44: 29824599.82 | AA44: 5018.03 | AB44: 0 | AC44: 0 | AD44: 0 | AE44: 0 | AF44: 16113055.81 | AG44: 0 | AH44: 1840000000 | AI44: 0 | AJ44: 70000000 | AK44: 48000000 | AL44: 14000000 | AM44: 12000000 | AN44: 8000000 | AO44: 8000000 | AP44: 10000 | AQ44: 1451305581 | AR44: 0 | AS44: 70000000 | AT44: 48000000 | AU44: 14000000 | AV44: 12000000 | AW44: 8000000 | AX44: 8000000 | AY44: 0 | AZ44: 0 | BA44: 0 | BB44: 0 | BC44: 0 | BD44: 0 | BE44: 0 | BF44: 0 | BG44: 1 | BH44: 442552.61 | BI44: 0 | BJ44: 6842.53 | BK44: 0 | BL44: 0 | BM44: 0 | BN44: 0 | BO44: 0 | BP44: 0 | BQ44: 0 | BR44: 0.0107 | BS44: 0 | BT44: 0.016 | BU44: 0.0225 | BV44: 0.0275 | BW44: 0.0375 | BX44: 0.0475 | BY44: 0.06 | BZ44: 0.0025 | CA44: 0.0025 | CB44: 0.02 | CC44: 0.02 | CD44: 0.02 | CE44: 0.02 | CF44: 0.02 | CG44: 0 | CH44: 0 | CI44: 0 | CJ44: 0 | CK44: 0 | CL44: 0 | CM44: 0 | CN44: 0 | CO44: 0 | CP44: 0 | CQ44: 0 | CR44: 0 | CS44: 0 | CT44: 0 | CU44: 0 | CV44: 0.1 | CW44: 2 | CX44: 0.004657595958 | CY44: 0.04 | CZ44: FALSE | DA44: FALSE | DB44: FALSE | DC44: FALSE | DD44: FALSE | DE44: FALSE | DF44: FALSE | DG44: FALSE | DH44: FALSE | DI44: FALSE | DJ44: 0 | DK44: 0 | DL44: 0 | DM44: 0 | DN44: 0 | DO44: Waterfall_1 | DP44: =waterfall_1(C44:DN44) -> 442552.61 | DQ44: 0 | DR44: 0 | DS44: 6842.53 | DT44: 0 | DU44: 0 | DV44: 0 | DW44: 0 | DX44: 0 | DY44: 454599.49 | DZ44: 0 | EA44: 454599.49 | EB44: 0 | EC44: 3284920.84 | ED44: 0 | EE44: 189949.32 | EF44: 156749.59 | EG44: 51663.84 | EH44: 54475.07 | EI44: 43111.23 | EJ44: 51604.38 | EK44: 0 | EL44: 0 | EM44: 0 | EN44: 0 | EO44: 0 | EP44: 0 | EQ44: 0 | ER44: 0 | ES44: 0 | ET44: 0 | EU44: 0 | EV44: 0 | EW44: 0 | EX44: 0 | EY44: 0 | EZ44: 0 | FA44: 0 | FB44: 0 | FC44: 2060166.19 | FD44: 127612.34 | FE44: 1 | FF44: 0 | FG44: 0 | FH44: 0 | FI44: 30700270.53 | FJ44: 0 | FK44: 0 | FL44: 0 | FM44: 0 | FN44: 0 | FO44: 0 | FP44: 0 | FQ44: 1420605310 | FR44: 0 | FS44: 70000000 | FT44: 48000000 | FU44: 14000000 | FV44: 12000000 | FW44: 8000000 | FX44: 8000000 | FY44: 0 | FZ44: 0 | GA44: 0 | GB44: 0 | GC44: 0 | GD44: 0 | GE44: 0 | GF44: 0 | GG44: 1420605310 | GH44: 0 | GI44: 70000000 | GJ44: 48000000 | GK44: 14000000 | GL44: 12000000 | GM44: 8000000 | GN44: 8000000 | GO44: 0 | GP44: 0 | GQ44: FALSE | GR44: FALSE | GS44: FALSE | GT44: 0 | GU44: 0 | GV44: 0 | GW44: 442552.61 | GX44: 0 | GY44: 0 | GZ44: 6842.53 | HA44: 0 | HB44: 0 | HC44: 0 | HD44: 0 | HE44: 0 | HF44: 0 | HG44: 0 | HH44: 0 | HI44: 0 | HJ44: 3284920.84 | HK44: 0 | HL44: 189949.32 | HM44: 156749.59 | HN44: 51663.84 | HO44: 54475.07 | HP44: 43111.23 | HQ44: 51604.38 | HR44: 0 | HS44: 0 | HT44: 0 | HU44: 0 | HV44: 0 | HW44: 0 | HX44: 0 | HY44: 0 | HZ44: 0 | IA44: 0 | IB44: 0 | IC44: 0 | ID44: 0 | IE44: 0 | IF44: 0 | IG44: 0 | IH44: 0 | II44: 0 | IJ44: 511281.05 | IK44: 38669.98 | IL44: 1183229.01 | IM44: 0 | IN44: 0 | IO44: 0 | IP44: 31154870.02 | IQ44: 0 | IR44: 0 | IS44: 0 | IT44: 0 | IU44: 0 | IV44: 0 | IW44: 0 | IX44: 1420150711 | IY44: 0 | IZ44: 70000000 | JA44: 48000000 | JB44: 14000000 | JC44: 12000000 | JD44: 8000000 | JE44: 8000000 | JF44: 0 | JG44: 0 | JH44: 0 | JI44: 0 | JJ44: 0 | JK44: 0 | JL44: 0 | JM44: 0 | JN44: 1420150711 | JO44: 0 | JP44: 70000000 | JQ44: 48000000 | JR44: 14000000 | JS44: 12000000 | JT44: 8000000 | JU44: 8000000 | JV44: 0 | JW44: 0 | JX44: FALSE | JY44: FALSE | JZ44: FALSE | KA44: 0 | KB44: 0 | KC44: 0 | KD44: =IF(GW44="NR","NR",ROUNDDOWN(GW44-DP44,0)) -> 0 | KE44: =IF(GX44="NR","NR",ROUNDDOWN(GX44-DQ44,0)) -> 0 | KF44: =IF(GY44="NR","NR",ROUNDDOWN(GY44-DR44,0)) -> 0 | KG44: =IF(GZ44="NR","NR",ROUNDDOWN(GZ44-DS44,0)) -> 0 | KH44: =IF(HA44="NR","NR",ROUNDDOWN(HA44-DT44,0)) -> 0 | KI44: =IF(HB44="NR","NR",ROUNDDOWN(HB44-DU44,0)) -> 0 | KJ44: =IF(HC44="NR","NR",ROUNDDOWN(HC44-DV44,0)) -> 0 | KK44: =IF(HD44="NR","NR",ROUNDDOWN(HD44-DW44,0)) -> 0 | KL44: =IF(HE44="NR","NR",ROUNDDOWN(HE44-DX44,0)) -> 0 | KM44: =IF(HF44="NR","NR",ROUNDDOWN(HF44-DY44,0)) -> -454599 | KN44: =IF(HG44="NR","NR",ROUNDDOWN(HG44-DZ44,0)) -> 0 | KO44: =IF(HH44="NR","NR",ROUNDDOWN(HH44-EA44,0)) -> -454599 | KP44: =IF(HI44="NR","NR",ROUNDDOWN(HI44-EB44,0)) -> 0 | KQ44: =IF(HJ44="NR","NR",ROUNDDOWN(HJ44-EC44,0)) -> 0 | KR44: =IF(HK44="NR","NR",ROUNDDOWN(HK44-ED44,0)) -> 0 | KS44: =IF(HL44="NR","NR",ROUNDDOWN(HL44-EE44,0)) -> 0 | KT44: =IF(HM44="NR","NR",ROUNDDOWN(HM44-EF44,0)) -> 0 | KU44: =IF(HN44="NR","NR",ROUNDDOWN(HN44-EG44,0)) -> 0 | KV44: =IF(HO44="NR","NR",ROUNDDOWN(HO44-EH44,0)) -> 0 | KW44: =IF(HP44="NR","NR",ROUNDDOWN(HP44-EI44,0)) -> 0 | KX44: =IF(HQ44="NR","NR",ROUNDDOWN(HQ44-EJ44,0)) -> 0 | KY44: =IF(HR44="NR","NR",ROUNDDOWN(HR44-EK44,0)) -> 0 | KZ44: =IF(HS44="NR","NR",ROUNDDOWN(HS44-EL44,0)) -> 0 | LA44: =IF(HT44="NR","NR",ROUNDDOWN(HT44-EM44,0)) -> 0 | LB44: =IF(HU44="NR","NR",ROUNDDOWN(HU44-EN44,0)) -> 0 | LC44: =IF(HV44="NR","NR",ROUNDDOWN(HV44-EO44,0)) -> 0 | LD44: =IF(HW44="NR","NR",ROUNDDOWN(HW44-EP44,0)) -> 0 | LE44: =IF(HX44="NR","NR",ROUNDDOWN(HX44-EQ44,0)) -> 0 | LF44: =IF(HY44="NR","NR",ROUNDDOWN(HY44-ER44,0)) -> 0 | LG44: =IF(HZ44="NR","NR",ROUNDDOWN(HZ44-ES44,0)) -> 0 | LH44: =IF(IA44="NR","NR",ROUNDDOWN(IA44-ET44,0)) -> 0 | LI44: =IF(IB44="NR","NR",ROUNDDOWN(IB44-EU44,0)) -> 0 | LJ44: =IF(IC44="NR","NR",ROUNDDOWN(IC44-EV44,0)) -> 0 | LK44: =IF(ID44="NR","NR",ROUNDDOWN(ID44-EW44,0)) -> 0 | LL44: =IF(IE44="NR","NR",ROUNDDOWN(IE44-EX44,0)) -> 0 | LM44: =IF(IF44="NR","NR",ROUNDDOWN(IF44-EY44,0)) -> 0 | LN44: =IF(IG44="NR","NR",ROUNDDOWN(IG44-EZ44,0)) -> 0 | LO44: =IF(IH44="NR","NR",ROUNDDOWN(IH44-FA44,0)) -> 0 | LP44: =IF(II44="NR","NR",ROUNDDOWN(II44-FB44,0)) -> 0 | LQ44: =IF(IJ44="NR","NR",ROUNDDOWN(IJ44-FC44,0)) -> -1548885 | LR44: =IF(IK44="NR","NR",ROUNDDOWN(IK44-FD44,0)) -> -88942 | LS44: =IF(IL44="NR","NR",ROUNDDOWN(IL44-FE44,0)) -> 1183228 | LT44: =IF(IM44="NR","NR",ROUNDDOWN(IM44-FF44,0)) -> 0 | LU44: =IF(IN44="NR","NR",ROUNDDOWN(IN44-FG44,0)) -> 0 | LV44: =IF(IO44="NR","NR",ROUNDDOWN(IO44-FH44,0)) -> 0 | LW44: =IF(IP44="NR","NR",ROUNDDOWN(IP44-FI44,0)) -> 454599 | LX44: =IF(IQ44="NR","NR",ROUNDDOWN(IQ44-FJ44,0)) -> 0 | LY44: =IF(IR44="NR","NR",ROUNDDOWN(IR44-FK44,0)) -> 0 | LZ44: =IF(IS44="NR","NR",ROUNDDOWN(IS44-FL44,0)) -> 0 | MA44: =IF(IT44="NR","NR",ROUNDDOWN(IT44-FM44,0)) -> 0 | MB44: =IF(IU44="NR","NR",ROUNDDOWN(IU44-FN44,0)) -> 0 | MC44: =IF(IV44="NR","NR",ROUNDDOWN(IV44-FO44,0)) -> 0 | MD44: =IF(IW44="NR","NR",ROUNDDOWN(IW44-FP44,0)) -> 0 | ME44: =IF(IX44="NR","NR",ROUNDDOWN(IX44-FQ44,0)) -> -454599 | MF44: =IF(IY44="NR","NR",ROUNDDOWN(IY44-FR44,0)) -> 0 | MG44: =IF(IZ44="NR","NR",ROUNDDOWN(IZ44-FS44,0)) -> 0 | MH44: =IF(JA44="NR","NR",ROUNDDOWN(JA44-FT44,0)) -> 0 | MI44: =IF(JB44="NR","NR",ROUNDDOWN(JB44-FU44,0)) -> 0 | MJ44: =IF(JC44="NR","NR",ROUNDDOWN(JC44-FV44,0)) -> 0 | MK44: =IF(JD44="NR","NR",ROUNDDOWN(JD44-FW44,0)) -> 0 | ML44: =IF(JE44="NR","NR",ROUNDDOWN(JE44-FX44,0)) -> 0 | MM44: =IF(JF44="NR","NR",ROUNDDOWN(JF44-FY44,0)) -> 0 | MN44: =IF(JG44="NR","NR",ROUNDDOWN(JG44-FZ44,0)) -> 0 | MO44: =IF(JH44="NR","NR",ROUNDDOWN(JH44-GA44,0)) -> 0 | MP44: =IF(JI44="NR","NR",ROUNDDOWN(JI44-GB44,0)) -> 0 | MQ44: =IF(JJ44="NR","NR",ROUNDDOWN(JJ44-GC44,0)) -> 0 | MR44: =IF(JK44="NR","NR",ROUNDDOWN(JK44-GD44,0)) -> 0 | MS44: =IF(JL44="NR","NR",ROUNDDOWN(JL44-GE44,0)) -> 0 | MT44: =IF(JM44="NR","NR",ROUNDDOWN(JM44-GF44,0)) -> 0 | MU44: =IF(JN44="NR","NR",ROUNDDOWN(JN44-GG44,0)) -> -454599 | MV44: =IF(JO44="NR","NR",ROUNDDOWN(JO44-GH44,0)) -> 0 | MW44: =IF(JP44="NR","NR",ROUNDDOWN(JP44-GI44,0)) -> 0 | MX44: =IF(JQ44="NR","NR",ROUNDDOWN(JQ44-GJ44,0)) -> 0 | MY44: =IF(JR44="NR","NR",ROUNDDOWN(JR44-GK44,0)) -> 0 | MZ44: =IF(JS44="NR","NR",ROUNDDOWN(JS44-GL44,0)) -> 0 | NA44: =IF(JT44="NR","NR",ROUNDDOWN(JT44-GM44,0)) -> 0 | NB44: =IF(JU44="NR","NR",ROUNDDOWN(JU44-GN44,0)) -> 0 | NC44: =IF(JV44="NR","NR",ROUNDDOWN(JV44-GO44,0)) -> 0 | ND44: =IF(JW44="NR","NR",ROUNDDOWN(JW44-GP44,0)) -> 0 | NE44: NR | NF44: NR | NG44: NR | NH44: =IF(KA44="NR","NR",ROUNDDOWN(KA44-GT44,0)) -> 0 | NI44: =IF(KB44="NR","NR",ROUNDDOWN(KB44-GU44,0)) -> 0 | NJ44: =IF(KC44="NR","NR",ROUNDDOWN(KC44-GV44,0)) -> 0
B45: 2017-09-25 | C45: 2017-08-01 | D45: 2017-08-31 | E45: 2017-09-20 | F45: 2017-09-25 | G45: 32 | H45: 0.01595 | I45: 2016-12-01 | J45: 1999995073 | K45: 1580150711 | L45: 86940533.82 | M45: 1551102359 | N45: 88281607.93 | O45: 1575089268 | P45: 86940533.82 | Q45: 6045296.11 | R45: 0.009398 | S45: 0 | T45: 6072416.23 | U45: 6360790.12 | V45: 0 | W45: 5737699.42 | X45: 330437.31 | Y45: 4718268.11 | Z45: 28759978.11 | AA45: 1582.85 | AB45: 0 | AC45: 0 | AD45: 0 | AE45: 0 | AF45: 15801507.11 | AG45: 0 | AH45: 1840000000 | AI45: 0 | AJ45: 70000000 | AK45: 48000000 | AL45: 14000000 | AM45: 12000000 | AN45: 8000000 | AO45: 8000000 | AP45: 10000 | AQ45: 1420150711 | AR45: 0 | AS45: 70000000 | AT45: 48000000 | AU45: 14000000 | AV45: 12000000 | AW45: 8000000 | AX45: 8000000 | AY45: 0 | AZ45: 0 | BA45: 0 | BB45: 0 | BC45: 0 | BD45: 0 | BE45: 0 | BF45: 0 | BG45: 1 | BH45: 448041.53 | BI45: 0 | BJ45: 6926.69 | BK45: 0 | BL45: 0 | BM45: 0 | BN45: 0 | BO45: 0 | BP45: 0 | BQ45: 0 | BR45: 0.0107 | BS45: 0 | BT45: 0.016 | BU45: 0.0225 | BV45: 0.0275 | BW45: 0.0375 | BX45: 0.0475 | BY45: 0.06 | BZ45: 0.0025 | CA45: 0.0025 | CB45: 0.02 | CC45: 0.02 | CD45: 0.02 | CE45: 0.02 | CF45: 0.02 | CG45: 0 | CH45: 0 | CI45: 0 | CJ45: 0 | CK45: 0 | CL45: 0 | CM45: 0 | CN45: 0 | CO45: 0 | CP45: 0 | CQ45: 0 | CR45: 0 | CS45: 0 | CT45: 0 | CU45: 0 | CV45: 0.1 | CW45: 2 | CX45: 0.005133077267 | CY45: 0.04 | CZ45: FALSE | DA45: FALSE | DB45: FALSE | DC45: FALSE | DD45: FALSE | DE45: FALSE | DF45: FALSE | DG45: FALSE | DH45: FALSE | DI45: FALSE | DJ45: 0 | DK45: 0 | DL45: 0 | DM45: 0 | DN45: 0 | DO45: Waterfall_1 | DP45: =waterfall_1(C45:DN45) -> 448041.53 | DQ45: 0 | DR45: 0 | DS45: 6926.69 | DT45: 0 | DU45: 0 | DV45: 0 | DW45: 0 | DX45: 0 | DY45: 465825.15 | DZ45: 0 | EA45: 465825.15 | EB45: 0 | EC45: 3318094.59 | ED45: 0 | EE45: 196076.71 | EF45: 161806.03 | EG45: 53330.41 | EH45: 56232.33 | EI45: 44501.92 | EJ45: 53269.04 | EK45: 0 | EL45: 0 | EM45: 0 | EN45: 0 | EO45: 0 | EP45: 0 | EQ45: 0 | ER45: 0 | ES45: 0 | ET45: 0 | EU45: 0 | EV45: 0 | EW45: 0 | EX45: 0 | EY45: 0 | EZ45: 0 | FA45: 0 | FB45: 0 | FC45: 2080488.52 | FD45: 116775.96 | FE45: 1 | FF45: 0 | FG45: 0 | FH45: 0 | FI45: 28582526.85 | FJ45: 0 | FK45: 0 | FL45: 0 | FM45: 0 | FN45: 0 | FO45: 0 | FP45: 0 | FQ45: 1391568184 | FR45: 0 | FS45: 70000000 | FT45: 48000000 | FU45: 14000000 | FV45: 12000000 | FW45: 8000000 | FX45: 8000000 | FY45: 0 | FZ45: 0 | GA45: 0 | GB45: 0 | GC45: 0 | GD45: 0 | GE45: 0 | GF45: 0 | GG45: 1391568184 | GH45: 0 | GI45: 70000000 | GJ45: 48000000 | GK45: 14000000 | GL45: 12000000 | GM45: 8000000 | GN45: 8000000 | GO45: 0 | GP45: 0 | GQ45: FALSE | GR45: FALSE | GS45: FALSE | GT45: 0 | GU45: 0 | GV45: 0 | GW45: 448041.53 | GX45: 0 | GY45: 0 | GZ45: 6926.69 | HA45: 0 | HB45: 0 | HC45: 0 | HD45: 0 | HE45: 0 | HF45: 0 | HG45: 0 | HH45: 0 | HI45: 0 | HJ45: 3318094.59 | HK45: 0 | HL45: 196076.71 | HM45: 161806.03 | HN45: 53330.41 | HO45: 56232.33 | HP45: 44501.92 | HQ45: 53269.04 | HR45: 0 | HS45: 0 | HT45: 0 | HU45: 0 | HV45: 0 | HW45: 0 | HX45: 0 | HY45: 0 | HZ45: 0 | IA45: 0 | IB45: 0 | IC45: 0 | ID45: 0 | IE45: 0 | IF45: 0 | IG45: 0 | IH45: 0 | II45: 0 | IJ45: 514874.51 | IK45: 25309.75 | IL45: 1191256.08 | IM45: 0 | IN45: 0 | IO45: 0 | IP45: 29048352 | IQ45: 0 | IR45: 0 | IS45: 0 | IT45: 0 | IU45: 0 | IV45: 0 | IW45: 0 | IX45: 1391102359 | IY45: 0 | IZ45: 70000000 | JA45: 48000000 | JB45: 14000000 | JC45: 12000000 | JD45: 8000000 | JE45: 8000000 | JF45: 0 | JG45: 0 | JH45: 0 | JI45: 0 | JJ45: 0 | JK45: 0 | JL45: 0 | JM45: 0 | JN45: 1391102359 | JO45: 0 | JP45: 70000000 | JQ45: 48000000 | JR45: 14000000 | JS45: 12000000 | JT45: 8000000 | JU45: 8000000 | JV45: 0 | JW45: 0 | JX45: FALSE | JY45: FALSE | JZ45: FALSE | KA45: 0 | KB45: 0 | KC45: 0 | KD45: =IF(GW45="NR","NR",ROUNDDOWN(GW45-DP45,0)) -> 0 | KE45: =IF(GX45="NR","NR",ROUNDDOWN(GX45-DQ45,0)) -> 0 | KF45: =IF(GY45="NR","NR",ROUNDDOWN(GY45-DR45,0)) -> 0 | KG45: =IF(GZ45="NR","NR",ROUNDDOWN(GZ45-DS45,0)) -> 0 | KH45: =IF(HA45="NR","NR",ROUNDDOWN(HA45-DT45,0)) -> 0 | KI45: =IF(HB45="NR","NR",ROUNDDOWN(HB45-DU45,0)) -> 0 | KJ45: =IF(HC45="NR","NR",ROUNDDOWN(HC45-DV45,0)) -> 0 | KK45: =IF(HD45="NR","NR",ROUNDDOWN(HD45-DW45,0)) -> 0 | KL45: =IF(HE45="NR","NR",ROUNDDOWN(HE45-DX45,0)) -> 0 | KM45: =IF(HF45="NR","NR",ROUNDDOWN(HF45-DY45,0)) -> -465825 | KN45: =IF(HG45="NR","NR",ROUNDDOWN(HG45-DZ45,0)) -> 0 | KO45: =IF(HH45="NR","NR",ROUNDDOWN(HH45-EA45,0)) -> -465825 | KP45: =IF(HI45="NR","NR",ROUNDDOWN(HI45-EB45,0)) -> 0 | KQ45: =IF(HJ45="NR","NR",ROUNDDOWN(HJ45-EC45,0)) -> 0 | KR45: =IF(HK45="NR","NR",ROUNDDOWN(HK45-ED45,0)) -> 0 | KS45: =IF(HL45="NR","NR",ROUNDDOWN(HL45-EE45,0)) -> 0 | KT45: =IF(HM45="NR","NR",ROUNDDOWN(HM45-EF45,0)) -> 0 | KU45: =IF(HN45="NR","NR",ROUNDDOWN(HN45-EG45,0)) -> 0 | KV45: =IF(HO45="NR","NR",ROUNDDOWN(HO45-EH45,0)) -> 0 | KW45: =IF(HP45="NR","NR",ROUNDDOWN(HP45-EI45,0)) -> 0 | KX45: =IF(HQ45="NR","NR",ROUNDDOWN(HQ45-EJ45,0)) -> 0 | KY45: =IF(HR45="NR","NR",ROUNDDOWN(HR45-EK45,0)) -> 0 | KZ45: =IF(HS45="NR","NR",ROUNDDOWN(HS45-EL45,0)) -> 0 | LA45: =IF(HT45="NR","NR",ROUNDDOWN(HT45-EM45,0)) -> 0 | LB45: =IF(HU45="NR","NR",ROUNDDOWN(HU45-EN45,0)) -> 0 | LC45: =IF(HV45="NR","NR",ROUNDDOWN(HV45-EO45,0)) -> 0 | LD45: =IF(HW45="NR","NR",ROUNDDOWN(HW45-EP45,0)) -> 0 | LE45: =IF(HX45="NR","NR",ROUNDDOWN(HX45-EQ45,0)) -> 0 | LF45: =IF(HY45="NR","NR",ROUNDDOWN(HY45-ER45,0)) -> 0 | LG45: =IF(HZ45="NR","NR",ROUNDDOWN(HZ45-ES45,0)) -> 0 | LH45: =IF(IA45="NR","NR",ROUNDDOWN(IA45-ET45,0)) -> 0 | LI45: =IF(IB45="NR","NR",ROUNDDOWN(IB45-EU45,0)) -> 0 | LJ45: =IF(IC45="NR","NR",ROUNDDOWN(IC45-EV45,0)) -> 0 | LK45: =IF(ID45="NR","NR",ROUNDDOWN(ID45-EW45,0)) -> 0 | LL45: =IF(IE45="NR","NR",ROUNDDOWN(IE45-EX45,0)) -> 0 | LM45: =IF(IF45="NR","NR",ROUNDDOWN(IF45-EY45,0)) -> 0 | LN45: =IF(IG45="NR","NR",ROUNDDOWN(IG45-EZ45,0)) -> 0 | LO45: =IF(IH45="NR","NR",ROUNDDOWN(IH45-FA45,0)) -> 0 | LP45: =IF(II45="NR","NR",ROUNDDOWN(II45-FB45,0)) -> 0 | LQ45: =IF(IJ45="NR","NR",ROUNDDOWN(IJ45-FC45,0)) -> -1565614 | LR45: =IF(IK45="NR","NR",ROUNDDOWN(IK45-FD45,0)) -> -91466 | LS45: =IF(IL45="NR","NR",ROUNDDOWN(IL45-FE45,0)) -> 1191255 | LT45: =IF(IM45="NR","NR",ROUNDDOWN(IM45-FF45,0)) -> 0 | LU45: =IF(IN45="NR","NR",ROUNDDOWN(IN45-FG45,0)) -> 0 | LV45: =IF(IO45="NR","NR",ROUNDDOWN(IO45-FH45,0)) -> 0 | LW45: =IF(IP45="NR","NR",ROUNDDOWN(IP45-FI45,0)) -> 465825 | LX45: =IF(IQ45="NR","NR",ROUNDDOWN(IQ45-FJ45,0)) -> 0 | LY45: =IF(IR45="NR","NR",ROUNDDOWN(IR45-FK45,0)) -> 0 | LZ45: =IF(IS45="NR","NR",ROUNDDOWN(IS45-FL45,0)) -> 0 | MA45: =IF(IT45="NR","NR",ROUNDDOWN(IT45-FM45,0)) -> 0 | MB45: =IF(IU45="NR","NR",ROUNDDOWN(IU45-FN45,0)) -> 0 | MC45: =IF(IV45="NR","NR",ROUNDDOWN(IV45-FO45,0)) -> 0 | MD45: =IF(IW45="NR","NR",ROUNDDOWN(IW45-FP45,0)) -> 0 | ME45: =IF(IX45="NR","NR",ROUNDDOWN(IX45-FQ45,0)) -> -465825 | MF45: =IF(IY45="NR","NR",ROUNDDOWN(IY45-FR45,0)) -> 0 | MG45: =IF(IZ45="NR","NR",ROUNDDOWN(IZ45-FS45,0)) -> 0 | MH45: =IF(JA45="NR","NR",ROUNDDOWN(JA45-FT45,0)) -> 0 | MI45: =IF(JB45="NR","NR",ROUNDDOWN(JB45-FU45,0)) -> 0 | MJ45: =IF(JC45="NR","NR",ROUNDDOWN(JC45-FV45,0)) -> 0 | MK45: =IF(JD45="NR","NR",ROUNDDOWN(JD45-FW45,0)) -> 0 | ML45: =IF(JE45="NR","NR",ROUNDDOWN(JE45-FX45,0)) -> 0 | MM45: =IF(JF45="NR","NR",ROUNDDOWN(JF45-FY45,0)) -> 0 | MN45: =IF(JG45="NR","NR",ROUNDDOWN(JG45-FZ45,0)) -> 0 | MO45: =IF(JH45="NR","NR",ROUNDDOWN(JH45-GA45,0)) -> 0 | MP45: =IF(JI45="NR","NR",ROUNDDOWN(JI45-GB45,0)) -> 0 | MQ45: =IF(JJ45="NR","NR",ROUNDDOWN(JJ45-GC45,0)) -> 0 | MR45: =IF(JK45="NR","NR",ROUNDDOWN(JK45-GD45,0)) -> 0 | MS45: =IF(JL45="NR","NR",ROUNDDOWN(JL45-GE45,0)) -> 0 | MT45: =IF(JM45="NR","NR",ROUNDDOWN(JM45-GF45,0)) -> 0 | MU45: =IF(JN45="NR","NR",ROUNDDOWN(JN45-GG45,0)) -> -465825 | MV45: =IF(JO45="NR","NR",ROUNDDOWN(JO45-GH45,0)) -> 0 | MW45: =IF(JP45="NR","NR",ROUNDDOWN(JP45-GI45,0)) -> 0 | MX45: =IF(JQ45="NR","NR",ROUNDDOWN(JQ45-GJ45,0)) -> 0 | MY45: =IF(JR45="NR","NR",ROUNDDOWN(JR45-GK45,0)) -> 0 | MZ45: =IF(JS45="NR","NR",ROUNDDOWN(JS45-GL45,0)) -> 0 | NA45: =IF(JT45="NR","NR",ROUNDDOWN(JT45-GM45,0)) -> 0 | NB45: =IF(JU45="NR","NR",ROUNDDOWN(JU45-GN45,0)) -> 0 | NC45: =IF(JV45="NR","NR",ROUNDDOWN(JV45-GO45,0)) -> 0 | ND45: =IF(JW45="NR","NR",ROUNDDOWN(JW45-GP45,0)) -> 0 | NE45: NR | NF45: NR | NG45: NR | NH45: =IF(KA45="NR","NR",ROUNDDOWN(KA45-GT45,0)) -> 0 | NI45: =IF(KB45="NR","NR",ROUNDDOWN(KB45-GU45,0)) -> 0 | NJ45: =IF(KC45="NR","NR",ROUNDDOWN(KC45-GV45,0)) -> 0
B46: 2017-10-24 | C46: 2017-09-01 | D46: 2017-10-02 | E46: 2017-10-19 | F46: 2017-10-24 | G46: 29 | H46: 0.01605 | I46: 2016-12-01 | J46: 1999995073 | K46: 1551102359 | L46: 88281607.93 | M46: 1520861718 | N46: 89826178.77 | O46: 1545057063 | P46: 88281607.93 | Q46: 6495285.79 | R46: 0.009449 | S46: 0 | T46: 5971165.27 | U46: 5901925 | V46: 0 | W46: 5938894 | X46: 354325.86 | Y46: 4429382.77 | Z46: 30309880.82 | AA46: 777.2 | AB46: 0 | AC46: 0 | AD46: 0 | AE46: 0 | AF46: 15511023.59 | AG46: 0 | AH46: 1840000000 | AI46: 0 | AJ46: 70000000 | AK46: 48000000 | AL46: 14000000 | AM46: 12000000 | AN46: 8000000 | AO46: 8000000 | AP46: 10000 | AQ46: 1391102359 | AR46: 0 | AS46: 70000000 | AT46: 48000000 | AU46: 14000000 | AV46: 12000000 | AW46: 8000000 | AX46: 8000000 | AY46: 0 | AZ46: 0 | BA46: 0 | BB46: 0 | BC46: 0 | BD46: 0 | BE46: 0 | BF46: 0 | BG46: 1 | BH46: 404291.69 | BI46: 0 | BJ46: 6161.91 | BK46: 0 | BL46: 0 | BM46: 0 | BN46: 0 | BO46: 0 | BP46: 0 | BQ46: 0 | BR46: 0.0107 | BS46: 0 | BT46: 0.016 | BU46: 0.0225 | BV46: 0.0275 | BW46: 0.0375 | BX46: 0.0475 | BY46: 0.06 | BZ46: 0.0025 | CA46: 0.0025 | CB46: 0.02 | CC46: 0.02 | CD46: 0.02 | CE46: 0.02 | CF46: 0.02 | CG46: 0 | CH46: 0 | CI46: 0 | CJ46: 0 | CK46: 0 | CL46: 0 | CM46: 0 | CN46: 0 | CO46: 0 | CP46: 0 | CQ46: 0 | CR46: 0 | CS46: 0 | CT46: 0 | CU46: 0 | CV46: 0.1 | CW46: 2 | CX46: 0.00552220531 | CY46: 0.04 | CZ46: FALSE | DA46: FALSE | DB46: FALSE | DC46: FALSE | DD46: FALSE | DE46: FALSE | DF46: FALSE | DG46: FALSE | DH46: FALSE | DI46: FALSE | DJ46: 0 | DK46: 0 | DL46: 0 | DM46: 0 | DN46: 0 | DO46: Waterfall_1 | DP46: =waterfall_1(C46:DN46) -> 404291.69 | DQ46: 0 | DR46: 0 | DS46: 6161.91 | DT46: 0 | DU46: 0 | DV46: 0 | DW46: 0 | DX46: 0 | DY46: 423201.7 | DZ46: 0 | EA46: 423201.7 | EB46: 0 | EC46: 2956568.92 | ED46: 0 | EE46: 178250.68 | EF46: 147018.08 | EG46: 48441.92 | EH46: 51055.89 | EI46: 40393.42 | EJ46: 48338.63 | EK46: 0 | EL46: 0 | EM46: 0 | EN46: 0 | EO46: 0 | EP46: 0 | EQ46: 0 | ER46: 0 | ES46: 0 | ET46: 0 | EU46: 0 | EV46: 0 | EW46: 0 | EX46: 0 | EY46: 0 | EZ46: 0 | FA46: 0 | FB46: 0 | FC46: 2679851.04 | FD46: 156825.58 | FE46: 1 | FF46: 0 | FG46: 0 | FH46: 0 | FI46: 29817438.85 | FJ46: 0 | FK46: 0 | FL46: 0 | FM46: 0 | FN46: 0 | FO46: 0 | FP46: 0 | FQ46: 1361284920 | FR46: 0 | FS46: 70000000 | FT46: 48000000 | FU46: 14000000 | FV46: 12000000 | FW46: 8000000 | FX46: 8000000 | FY46: 0 | FZ46: 0 | GA46: 0 | GB46: 0 | GC46: 0 | GD46: 0 | GE46: 0 | GF46: 0 | GG46: 1361284920 | GH46: 0 | GI46: 70000000 | GJ46: 48000000 | GK46: 14000000 | GL46: 12000000 | GM46: 8000000 | GN46: 8000000 | GO46: 0 | GP46: 0 | GQ46: FALSE | GR46: FALSE | GS46: FALSE | GT46: 0 | GU46: 0 | GV46: 0 | GW46: 404291.69 | GX46: 0 | GY46: 0 | GZ46: 6161.91 | HA46: 0 | HB46: 0 | HC46: 0 | HD46: 0 | HE46: 0 | HF46: 0 | HG46: 0 | HH46: 0 | HI46: 0 | HJ46: 2956568.92 | HK46: 0 | HL46: 178250.68 | HM46: 147018.08 | HN46: 48441.92 | HO46: 51055.89 | HP46: 40393.42 | HQ46: 48338.63 | HR46: 0 | HS46: 0 | HT46: 0 | HU46: 0 | HV46: 0 | HW46: 0 | HX46: 0 | HY46: 0 | HZ46: 0 | IA46: 0 | IB46: 0 | IC46: 0 | ID46: 0 | IE46: 0 | IF46: 0 | IG46: 0 | IH46: 0 | II46: 0 | IJ46: 1290925.4 | IK46: 72655.72 | IL46: 1049894.8 | IM46: 0 | IN46: 0 | IO46: 0 | IP46: 30240640.55 | IQ46: 0 | IR46: 0 | IS46: 0 | IT46: 0 | IU46: 0 | IV46: 0 | IW46: 0 | IX46: 1360861718 | IY46: 0 | IZ46: 70000000 | JA46: 48000000 | JB46: 14000000 | JC46: 12000000 | JD46: 8000000 | JE46: 8000000 | JF46: 0 | JG46: 0 | JH46: 0 | JI46: 0 | JJ46: 0 | JK46: 0 | JL46: 0 | JM46: 0 | JN46: 1360861718 | JO46: 0 | JP46: 70000000 | JQ46: 48000000 | JR46: 14000000 | JS46: 12000000 | JT46: 8000000 | JU46: 8000000 | JV46: 0 | JW46: 0 | JX46: FALSE | JY46: FALSE | JZ46: FALSE | KA46: 0 | KB46: 0 | KC46: 0 | KD46: =IF(GW46="NR","NR",ROUNDDOWN(GW46-DP46,0)) -> 0 | KE46: =IF(GX46="NR","NR",ROUNDDOWN(GX46-DQ46,0)) -> 0 | KF46: =IF(GY46="NR","NR",ROUNDDOWN(GY46-DR46,0)) -> 0 | KG46: =IF(GZ46="NR","NR",ROUNDDOWN(GZ46-DS46,0)) -> 0 | KH46: =IF(HA46="NR","NR",ROUNDDOWN(HA46-DT46,0)) -> 0 | KI46: =IF(HB46="NR","NR",ROUNDDOWN(HB46-DU46,0)) -> 0 | KJ46: =IF(HC46="NR","NR",ROUNDDOWN(HC46-DV46,0)) -> 0 | KK46: =IF(HD46="NR","NR",ROUNDDOWN(HD46-DW46,0)) -> 0 | KL46: =IF(HE46="NR","NR",ROUNDDOWN(HE46-DX46,0)) -> 0 | KM46: =IF(HF46="NR","NR",ROUNDDOWN(HF46-DY46,0)) -> -423201 | KN46: =IF(HG46="NR","NR",ROUNDDOWN(HG46-DZ46,0)) -> 0 | KO46: =IF(HH46="NR","NR",ROUNDDOWN(HH46-EA46,0)) -> -423201 | KP46: =IF(HI46="NR","NR",ROUNDDOWN(HI46-EB46,0)) -> 0 | KQ46: =IF(HJ46="NR","NR",ROUNDDOWN(HJ46-EC46,0)) -> 0 | KR46: =IF(HK46="NR","NR",ROUNDDOWN(HK46-ED46,0)) -> 0 | KS46: =IF(HL46="NR","NR",ROUNDDOWN(HL46-EE46,0)) -> 0 | KT46: =IF(HM46="NR","NR",ROUNDDOWN(HM46-EF46,0)) -> 0 | KU46: =IF(HN46="NR","NR",ROUNDDOWN(HN46-EG46,0)) -> 0 | KV46: =IF(HO46="NR","NR",ROUNDDOWN(HO46-EH46,0)) -> 0 | KW46: =IF(HP46="NR","NR",ROUNDDOWN(HP46-EI46,0)) -> 0 | KX46: =IF(HQ46="NR","NR",ROUNDDOWN(HQ46-EJ46,0)) -> 0 | KY46: =IF(HR46="NR","NR",ROUNDDOWN(HR46-EK46,0)) -> 0 | KZ46: =IF(HS46="NR","NR",ROUNDDOWN(HS46-EL46,0)) -> 0 | LA46: =IF(HT46="NR","NR",ROUNDDOWN(HT46-EM46,0)) -> 0 | LB46: =IF(HU46="NR","NR",ROUNDDOWN(HU46-EN46,0)) -> 0 | LC46: =IF(HV46="NR","NR",ROUNDDOWN(HV46-EO46,0)) -> 0 | LD46: =IF(HW46="NR","NR",ROUNDDOWN(HW46-EP46,0)) -> 0 | LE46: =IF(HX46="NR","NR",ROUNDDOWN(HX46-EQ46,0)) -> 0 | LF46: =IF(HY46="NR","NR",ROUNDDOWN(HY46-ER46,0)) -> 0 | LG46: =IF(HZ46="NR","NR",ROUNDDOWN(HZ46-ES46,0)) -> 0 | LH46: =IF(IA46="NR","NR",ROUNDDOWN(IA46-ET46,0)) -> 0 | LI46: =IF(IB46="NR","NR",ROUNDDOWN(IB46-EU46,0)) -> 0 | LJ46: =IF(IC46="NR","NR",ROUNDDOWN(IC46-EV46,0)) -> 0 | LK46: =IF(ID46="NR","NR",ROUNDDOWN(ID46-EW46,0)) -> 0 | LL46: =IF(IE46="NR","NR",ROUNDDOWN(IE46-EX46,0)) -> 0 | LM46: =IF(IF46="NR","NR",ROUNDDOWN(IF46-EY46,0)) -> 0 | LN46: =IF(IG46="NR","NR",ROUNDDOWN(IG46-EZ46,0)) -> 0 | LO46: =IF(IH46="NR","NR",ROUNDDOWN(IH46-FA46,0)) -> 0 | LP46: =IF(II46="NR","NR",ROUNDDOWN(II46-FB46,0)) -> 0 | LQ46: =IF(IJ46="NR","NR",ROUNDDOWN(IJ46-FC46,0)) -> -1388925 | LR46: =IF(IK46="NR","NR",ROUNDDOWN(IK46-FD46,0)) -> -84169 | LS46: =IF(IL46="NR","NR",ROUNDDOWN(IL46-FE46,0)) -> 1049893 | LT46: =IF(IM46="NR","NR",ROUNDDOWN(IM46-FF46,0)) -> 0 | LU46: =IF(IN46="NR","NR",ROUNDDOWN(IN46-FG46,0)) -> 0 | LV46: =IF(IO46="NR","NR",ROUNDDOWN(IO46-FH46,0)) -> 0 | LW46: =IF(IP46="NR","NR",ROUNDDOWN(IP46-FI46,0)) -> 423201 | LX46: =IF(IQ46="NR","NR",ROUNDDOWN(IQ46-FJ46,0)) -> 0 | LY46: =IF(IR46="NR","NR",ROUNDDOWN(IR46-FK46,0)) -> 0 | LZ46: =IF(IS46="NR","NR",ROUNDDOWN(IS46-FL46,0)) -> 0 | MA46: =IF(IT46="NR","NR",ROUNDDOWN(IT46-FM46,0)) -> 0 | MB46: =IF(IU46="NR","NR",ROUNDDOWN(IU46-FN46,0)) -> 0 | MC46: =IF(IV46="NR","NR",ROUNDDOWN(IV46-FO46,0)) -> 0 | MD46: =IF(IW46="NR","NR",ROUNDDOWN(IW46-FP46,0)) -> 0 | ME46: =IF(IX46="NR","NR",ROUNDDOWN(IX46-FQ46,0)) -> -423201 | MF46: =IF(IY46="NR","NR",ROUNDDOWN(IY46-FR46,0)) -> 0 | MG46: =IF(IZ46="NR","NR",ROUNDDOWN(IZ46-FS46,0)) -> 0 | MH46: =IF(JA46="NR","NR",ROUNDDOWN(JA46-FT46,0)) -> 0 | MI46: =IF(JB46="NR","NR",ROUNDDOWN(JB46-FU46,0)) -> 0 | MJ46: =IF(JC46="NR","NR",ROUNDDOWN(JC46-FV46,0)) -> 0 | MK46: =IF(JD46="NR","NR",ROUNDDOWN(JD46-FW46,0)) -> 0 | ML46: =IF(JE46="NR","NR",ROUNDDOWN(JE46-FX46,0)) -> 0 | MM46: =IF(JF46="NR","NR",ROUNDDOWN(JF46-FY46,0)) -> 0 | MN46: =IF(JG46="NR","NR",ROUNDDOWN(JG46-FZ46,0)) -> 0 | MO46: =IF(JH46="NR","NR",ROUNDDOWN(JH46-GA46,0)) -> 0 | MP46: =IF(JI46="NR","NR",ROUNDDOWN(JI46-GB46,0)) -> 0 | MQ46: =IF(JJ46="NR","NR",ROUNDDOWN(JJ46-GC46,0)) -> 0 | MR46: =IF(JK46="NR","NR",ROUNDDOWN(JK46-GD46,0)) -> 0 | MS46: =IF(JL46="NR","NR",ROUNDDOWN(JL46-GE46,0)) -> 0 | MT46: =IF(JM46="NR","NR",ROUNDDOWN(JM46-GF46,0)) -> 0 | MU46: =IF(JN46="NR","NR",ROUNDDOWN(JN46-GG46,0)) -> -423201 | MV46: =IF(JO46="NR","NR",ROUNDDOWN(JO46-GH46,0)) -> 0 | MW46: =IF(JP46="NR","NR",ROUNDDOWN(JP46-GI46,0)) -> 0 | MX46: =IF(JQ46="NR","NR",ROUNDDOWN(JQ46-GJ46,0)) -> 0 | MY46: =IF(JR46="NR","NR",ROUNDDOWN(JR46-GK46,0)) -> 0 | MZ46: =IF(JS46="NR","NR",ROUNDDOWN(JS46-GL46,0)) -> 0 | NA46: =IF(JT46="NR","NR",ROUNDDOWN(JT46-GM46,0)) -> 0 | NB46: =IF(JU46="NR","NR",ROUNDDOWN(JU46-GN46,0)) -> 0 | NC46: =IF(JV46="NR","NR",ROUNDDOWN(JV46-GO46,0)) -> 0 | ND46: =IF(JW46="NR","NR",ROUNDDOWN(JW46-GP46,0)) -> 0 | NE46: NR | NF46: NR | NG46: NR | NH46: =IF(KA46="NR","NR",ROUNDDOWN(KA46-GT46,0)) -> 0 | NI46: =IF(KB46="NR","NR",ROUNDDOWN(KB46-GU46,0)) -> 0 | NJ46: =IF(KC46="NR","NR",ROUNDDOWN(KC46-GV46,0)) -> 0
B47: 2017-11-24 | C47: 2017-10-03 | D47: 2017-10-31 | E47: 2017-11-21 | F47: 2017-11-24 | G47: 31 | H47: 0.01595 | I47: 2016-12-01 | J47: 1999995073 | K47: 1520861718 | L47: 89826178.77 | M47: 1486250599 | N47: 89609774.13 | O47: 1514366433 | P47: 89826178.77 | Q47: 6476483.59 | R47: 0.009388 | S47: 0 | T47: 4819341.38 | U47: 7445087.97 | V47: 0 | W47: 5049261.76 | X47: 319382.91 | Y47: 5044735.93 | Z47: 31985372.25 | AA47: 19.28 | AB47: 0 | AC47: 0 | AD47: 0 | AE47: 0 | AF47: 15208617.18 | AG47: 0 | AH47: 1840000000 | AI47: 0 | AJ47: 70000000 | AK47: 48000000 | AL47: 14000000 | AM47: 12000000 | AN47: 8000000 | AO47: 8000000 | AP47: 10000 | AQ47: 1360861718 | AR47: 0 | AS47: 70000000 | AT47: 48000000 | AU47: 14000000 | AV47: 12000000 | AW47: 8000000 | AX47: 8000000 | AY47: 0 | AZ47: 0 | BA47: 0 | BB47: 0 | BC47: 0 | BD47: 0 | BE47: 0 | BF47: 0 | BG47: 1 | BH47: 417744.49 | BI47: 0 | BJ47: 6458.45 | BK47: 0 | BL47: 0 | BM47: 0 | BN47: 0 | BO47: 0 | BP47: 0 | BQ47: 0 | BR47: 0.0107 | BS47: 0 | BT47: 0.016 | BU47: 0.0225 | BV47: 0.0275 | BW47: 0.0375 | BX47: 0.0475 | BY47: 0.06 | BZ47: 0.0025 | CA47: 0.0025 | CB47: 0.02 | CC47: 0.02 | CD47: 0.02 | CE47: 0.02 | CF47: 0.02 | CG47: 0 | CH47: 0 | CI47: 0 | CJ47: 0 | CK47: 0 | CL47: 0 | CM47: 0 | CN47: 0 | CO47: 0 | CP47: 0 | CQ47: 0 | CR47: 0 | CS47: 0 | CT47: 0 | CU47: 0 | CV47: 0.1 | CW47: 2 | CX47: 0.00564137835 | CY47: 0.04 | CZ47: FALSE | DA47: FALSE | DB47: FALSE | DC47: FALSE | DD47: FALSE | DE47: FALSE | DF47: FALSE | DG47: FALSE | DH47: FALSE | DI47: FALSE | DJ47: 0 | DK47: 0 | DL47: 0 | DM47: 0 | DN47: 0 | DO47: Waterfall_1 | DP47: =waterfall_1(C47:DN47) -> 417744.49 | DQ47: 0 | DR47: 0 | DS47: 6458.45 | DT47: 0 | DU47: 0 | DV47: 0 | DW47: 0 | DX47: 0 | DY47: 439678.09 | DZ47: 0 | EA47: 439678.09 | EB47: 0 | EC47: 3080207.97 | ED47: 0 | EE47: 189949.32 | EF47: 156749.59 | EG47: 51663.84 | EH47: 54475.07 | EI47: 43111.23 | EJ47: 51604.38 | EK47: 0 | EL47: 0 | EM47: 0 | EN47: 0 | EO47: 0 | EP47: 0 | EQ47: 0 | ER47: 0 | ES47: 0 | ET47: 0 | EU47: 0 | EV47: 0 | EW47: 0 | EX47: 0 | EY47: 0 | EZ47: 0 | FA47: 0 | FB47: 0 | FC47: 1651259.12 | FD47: 105117.58 | FE47: 1 | FF47: 0 | FG47: 0 | FH47: 0 | FI47: 34171440.75 | FJ47: 0 | FK47: 0 | FL47: 0 | FM47: 0 | FN47: 0 | FO47: 0 | FP47: 0 | FQ47: 1326690278 | FR47: 0 | FS47: 70000000 | FT47: 48000000 | FU47: 14000000 | FV47: 12000000 | FW47: 8000000 | FX47: 8000000 | FY47: 0 | FZ47: 0 | GA47: 0 | GB47: 0 | GC47: 0 | GD47: 0 | GE47: 0 | GF47: 0 | GG47: 1326690278 | GH47: 0 | GI47: 70000000 | GJ47: 48000000 | GK47: 14000000 | GL47: 12000000 | GM47: 8000000 | GN47: 8000000 | GO47: 0 | GP47: 0 | GQ47: FALSE | GR47: FALSE | GS47: FALSE | GT47: 0 | GU47: 0 | GV47: 0 | GW47: 417744.49 | GX47: 0 | GY47: 0 | GZ47: 6458.45 | HA47: 0 | HB47: 0 | HC47: 0 | HD47: 0 | HE47: 0 | HF47: 0 | HG47: 0 | HH47: 0 | HI47: 0 | HJ47: 3080207.97 | HK47: 0 | HL47: 189949.32 | HM47: 156749.59 | HN47: 51663.84 | HO47: 54475.07 | HP47: 43111.23 | HQ47: 51604.38 | HR47: 0 | HS47: 0 | HT47: 0 | HU47: 0 | HV47: 0 | HW47: 0 | HX47: 0 | HY47: 0 | HZ47: 0 | IA47: 0 | IB47: 0 | IC47: 0 | ID47: 0 | IE47: 0 | IF47: 0 | IG47: 0 | IH47: 0 | II47: 0 | IJ47: 199398.91 | IK47: 13568.7 | IL47: 1103732 | IM47: 0 | IN47: 0 | IO47: 0 | IP47: 34611118.84 | IQ47: 0 | IR47: 0 | IS47: 0 | IT47: 0 | IU47: 0 | IV47: 0 | IW47: 0 | IX47: 1326250599 | IY47: 0 | IZ47: 70000000 | JA47: 48000000 | JB47: 14000000 | JC47: 12000000 | JD47: 8000000 | JE47: 8000000 | JF47: 0 | JG47: 0 | JH47: 0 | JI47: 0 | JJ47: 0 | JK47: 0 | JL47: 0 | JM47: 0 | JN47: 1326250599 | JO47: 0 | JP47: 70000000 | JQ47: 48000000 | JR47: 14000000 | JS47: 12000000 | JT47: 8000000 | JU47: 8000000 | JV47: 0 | JW47: 0 | JX47: FALSE | JY47: FALSE | JZ47: FALSE | KA47: 0 | KB47: 0 | KC47: 0 | KD47: =IF(GW47="NR","NR",ROUNDDOWN(GW47-DP47,0)) -> 0 | KE47: =IF(GX47="NR","NR",ROUNDDOWN(GX47-DQ47,0)) -> 0 | KF47: =IF(GY47="NR","NR",ROUNDDOWN(GY47-DR47,0)) -> 0 | KG47: =IF(GZ47="NR","NR",ROUNDDOWN(GZ47-DS47,0)) -> 0 | KH47: =IF(HA47="NR","NR",ROUNDDOWN(HA47-DT47,0)) -> 0 | KI47: =IF(HB47="NR","NR",ROUNDDOWN(HB47-DU47,0)) -> 0 | KJ47: =IF(HC47="NR","NR",ROUNDDOWN(HC47-DV47,0)) -> 0 | KK47: =IF(HD47="NR","NR",ROUNDDOWN(HD47-DW47,0)) -> 0 | KL47: =IF(HE47="NR","NR",ROUNDDOWN(HE47-DX47,0)) -> 0 | KM47: =IF(HF47="NR","NR",ROUNDDOWN(HF47-DY47,0)) -> -439678 | KN47: =IF(HG47="NR","NR",ROUNDDOWN(HG47-DZ47,0)) -> 0 | KO47: =IF(HH47="NR","NR",ROUNDDOWN(HH47-EA47,0)) -> -439678 | KP47: =IF(HI47="NR","NR",ROUNDDOWN(HI47-EB47,0)) -> 0 | KQ47: =IF(HJ47="NR","NR",ROUNDDOWN(HJ47-EC47,0)) -> 0 | KR47: =IF(HK47="NR","NR",ROUNDDOWN(HK47-ED47,0)) -> 0 | KS47: =IF(HL47="NR","NR",ROUNDDOWN(HL47-EE47,0)) -> 0 | KT47: =IF(HM47="NR","NR",ROUNDDOWN(HM47-EF47,0)) -> 0 | KU47: =IF(HN47="NR","NR",ROUNDDOWN(HN47-EG47,0)) -> 0 | KV47: =IF(HO47="NR","NR",ROUNDDOWN(HO47-EH47,0)) -> 0 | KW47: =IF(HP47="NR","NR",ROUNDDOWN(HP47-EI47,0)) -> 0 | KX47: =IF(HQ47="NR","NR",ROUNDDOWN(HQ47-EJ47,0)) -> 0 | KY47: =IF(HR47="NR","NR",ROUNDDOWN(HR47-EK47,0)) -> 0 | KZ47: =IF(HS47="NR","NR",ROUNDDOWN(HS47-EL47,0)) -> 0 | LA47: =IF(HT47="NR","NR",ROUNDDOWN(HT47-EM47,0)) -> 0 | LB47: =IF(HU47="NR","NR",ROUNDDOWN(HU47-EN47,0)) -> 0 | LC47: =IF(HV47="NR","NR",ROUNDDOWN(HV47-EO47,0)) -> 0 | LD47: =IF(HW47="NR","NR",ROUNDDOWN(HW47-EP47,0)) -> 0 | LE47: =IF(HX47="NR","NR",ROUNDDOWN(HX47-EQ47,0)) -> 0 | LF47: =IF(HY47="NR","NR",ROUNDDOWN(HY47-ER47,0)) -> 0 | LG47: =IF(HZ47="NR","NR",ROUNDDOWN(HZ47-ES47,0)) -> 0 | LH47: =IF(IA47="NR","NR",ROUNDDOWN(IA47-ET47,0)) -> 0 | LI47: =IF(IB47="NR","NR",ROUNDDOWN(IB47-EU47,0)) -> 0 | LJ47: =IF(IC47="NR","NR",ROUNDDOWN(IC47-EV47,0)) -> 0 | LK47: =IF(ID47="NR","NR",ROUNDDOWN(ID47-EW47,0)) -> 0 | LL47: =IF(IE47="NR","NR",ROUNDDOWN(IE47-EX47,0)) -> 0 | LM47: =IF(IF47="NR","NR",ROUNDDOWN(IF47-EY47,0)) -> 0 | LN47: =IF(IG47="NR","NR",ROUNDDOWN(IG47-EZ47,0)) -> 0 | LO47: =IF(IH47="NR","NR",ROUNDDOWN(IH47-FA47,0)) -> 0 | LP47: =IF(II47="NR","NR",ROUNDDOWN(II47-FB47,0)) -> 0 | LQ47: =IF(IJ47="NR","NR",ROUNDDOWN(IJ47-FC47,0)) -> -1451860 | LR47: =IF(IK47="NR","NR",ROUNDDOWN(IK47-FD47,0)) -> -91548 | LS47: =IF(IL47="NR","NR",ROUNDDOWN(IL47-FE47,0)) -> 1103731 | LT47: =IF(IM47="NR","NR",ROUNDDOWN(IM47-FF47,0)) -> 0 | LU47: =IF(IN47="NR","NR",ROUNDDOWN(IN47-FG47,0)) -> 0 | LV47: =IF(IO47="NR","NR",ROUNDDOWN(IO47-FH47,0)) -> 0 | LW47: =IF(IP47="NR","NR",ROUNDDOWN(IP47-FI47,0)) -> 439678 | LX47: =IF(IQ47="NR","NR",ROUNDDOWN(IQ47-FJ47,0)) -> 0 | LY47: =IF(IR47="NR","NR",ROUNDDOWN(IR47-FK47,0)) -> 0 | LZ47: =IF(IS47="NR","NR",ROUNDDOWN(IS47-FL47,0)) -> 0 | MA47: =IF(IT47="NR","NR",ROUNDDOWN(IT47-FM47,0)) -> 0 | MB47: =IF(IU47="NR","NR",ROUNDDOWN(IU47-FN47,0)) -> 0 | MC47: =IF(IV47="NR","NR",ROUNDDOWN(IV47-FO47,0)) -> 0 | MD47: =IF(IW47="NR","NR",ROUNDDOWN(IW47-FP47,0)) -> 0 | ME47: =IF(IX47="NR","NR",ROUNDDOWN(IX47-FQ47,0)) -> -439678 | MF47: =IF(IY47="NR","NR",ROUNDDOWN(IY47-FR47,0)) -> 0 | MG47: =IF(IZ47="NR","NR",ROUNDDOWN(IZ47-FS47,0)) -> 0 | MH47: =IF(JA47="NR","NR",ROUNDDOWN(JA47-FT47,0)) -> 0 | MI47: =IF(JB47="NR","NR",ROUNDDOWN(JB47-FU47,0)) -> 0 | MJ47: =IF(JC47="NR","NR",ROUNDDOWN(JC47-FV47,0)) -> 0 | MK47: =IF(JD47="NR","NR",ROUNDDOWN(JD47-FW47,0)) -> 0 | ML47: =IF(JE47="NR","NR",ROUNDDOWN(JE47-FX47,0)) -> 0 | MM47: =IF(JF47="NR","NR",ROUNDDOWN(JF47-FY47,0)) -> 0 | MN47: =IF(JG47="NR","NR",ROUNDDOWN(JG47-FZ47,0)) -> 0 | MO47: =IF(JH47="NR","NR",ROUNDDOWN(JH47-GA47,0)) -> 0 | MP47: =IF(JI47="NR","NR",ROUNDDOWN(JI47-GB47,0)) -> 0 | MQ47: =IF(JJ47="NR","NR",ROUNDDOWN(JJ47-GC47,0)) -> 0 | MR47: =IF(JK47="NR","NR",ROUNDDOWN(JK47-GD47,0)) -> 0 | MS47: =IF(JL47="NR","NR",ROUNDDOWN(JL47-GE47,0)) -> 0 | MT47: =IF(JM47="NR","NR",ROUNDDOWN(JM47-GF47,0)) -> 0 | MU47: =IF(JN47="NR","NR",ROUNDDOWN(JN47-GG47,0)) -> -439678 | MV47: =IF(JO47="NR","NR",ROUNDDOWN(JO47-GH47,0)) -> 0 | MW47: =IF(JP47="NR","NR",ROUNDDOWN(JP47-GI47,0)) -> 0 | MX47: =IF(JQ47="NR","NR",ROUNDDOWN(JQ47-GJ47,0)) -> 0 | MY47: =IF(JR47="NR","NR",ROUNDDOWN(JR47-GK47,0)) -> 0 | MZ47: =IF(JS47="NR","NR",ROUNDDOWN(JS47-GL47,0)) -> 0 | NA47: =IF(JT47="NR","NR",ROUNDDOWN(JT47-GM47,0)) -> 0 | NB47: =IF(JU47="NR","NR",ROUNDDOWN(JU47-GN47,0)) -> 0 | NC47: =IF(JV47="NR","NR",ROUNDDOWN(JV47-GO47,0)) -> 0 | ND47: =IF(JW47="NR","NR",ROUNDDOWN(JW47-GP47,0)) -> 0 | NE47: NR | NF47: NR | NG47: NR | NH47: =IF(KA47="NR","NR",ROUNDDOWN(KA47-GT47,0)) -> 0 | NI47: =IF(KB47="NR","NR",ROUNDDOWN(KB47-GU47,0)) -> 0 | NJ47: =IF(KC47="NR","NR",ROUNDDOWN(KC47-GV47,0)) -> 0
B48: 2017-12-27 | C48: 2017-11-01 | D48: 2017-11-30 | E48: 2017-12-20 | F48: 2017-12-27 | G48: 33 | H48: 0.0165 | I48: 2016-12-01 | J48: 1999995073 | K48: 1486250599 | L48: 89609774.13 | M48: 1455642767 | N48: 87791707.14 | O48: 1479774116 | P48: 89609774.13 | Q48: 5477828.06 | R48: 0.01064 | S48: 0 | T48: 5405477.3 | U48: 6751270.12 | V48: 0 | W48: 5397758.59 | X48: 341096.3 | Y48: 4614408.8 | Z48: 29262039.37 | AA48: 4.35 | AB48: 0 | AC48: 0 | AD48: 0 | AE48: 0 | AF48: 14862505.99 | AG48: 0 | AH48: 1840000000 | AI48: 0 | AJ48: 70000000 | AK48: 48000000 | AL48: 14000000 | AM48: 12000000 | AN48: 8000000 | AO48: 8000000 | AP48: 10000 | AQ48: 1326250599 | AR48: 0 | AS48: 70000000 | AT48: 48000000 | AU48: 14000000 | AV48: 12000000 | AW48: 8000000 | AX48: 8000000 | AY48: 0 | AZ48: 0 | BA48: 0 | BB48: 0 | BC48: 0 | BD48: 0 | BE48: 0 | BF48: 0 | BG48: 1 | BH48: 473310.58 | BI48: 0 | BJ48: 6718.67 | BK48: 0 | BL48: 0 | BM48: 0 | BN48: 0 | BO48: 0 | BP48: 0 | BQ48: 0 | BR48: 0.0107 | BS48: 0 | BT48: 0.016 | BU48: 0.0225 | BV48: 0.0275 | BW48: 0.0375 | BX48: 0.0475 | BY48: 0.06 | BZ48: 0.0025 | CA48: 0.0025 | CB48: 0.02 | CC48: 0.02 | CD48: 0.02 | CE48: 0.02 | CF48: 0.02 | CG48: 0 | CH48: 0 | CI48: 0 | CJ48: 0 | CK48: 0 | CL48: 0 | CM48: 0 | CN48: 0 | CO48: 0 | CP48: 0 | CQ48: 0 | CR48: 0 | CS48: 0 | CT48: 0 | CU48: 0 | CV48: 0.1 | CW48: 2 | CX48: 0.005453887799 | CY48: 0.04 | CZ48: FALSE | DA48: FALSE | DB48: FALSE | DC48: FALSE | DD48: FALSE | DE48: FALSE | DF48: FALSE | DG48: FALSE | DH48: FALSE | DI48: FALSE | DJ48: 0 | DK48: 0 | DL48: 0 | DM48: 0 | DN48: 0 | DO48: Waterfall_1 | DP48: =waterfall_1(C48:DN48) -> 473310.58 | DQ48: 0 | DR48: 0 | DS48: 6718.67 | DT48: 0 | DU48: 0 | DV48: 0 | DW48: 0 | DX48: 0 | DY48: 496812.78 | DZ48: 0 | EA48: 496812.78 | EB48: 0 | EC48: 3261486.41 | ED48: 0 | EE48: 205684.93 | EF48: 169249.32 | EG48: 55693.15 | EH48: 58586.3 | EI48: 46290.41 | EJ48: 55331.51 | EK48: 0 | EL48: 0 | EM48: 0 | EN48: 0 | EO48: 0 | EP48: 0 | EQ48: 0 | ER48: 0 | ES48: 0 | ET48: 0 | EU48: 0 | EV48: 0 | EW48: 0 | EX48: 0 | EY48: 0 | EZ48: 0 | FA48: 0 | FB48: 0 | FC48: 1794489.59 | FD48: 108830.15 | FE48: 1 | FF48: 0 | FG48: 0 | FH48: 0 | FI48: 30111019.41 | FJ48: 0 | FK48: 0 | FL48: 0 | FM48: 0 | FN48: 0 | FO48: 0 | FP48: 0 | FQ48: 1296139580 | FR48: 0 | FS48: 70000000 | FT48: 48000000 | FU48: 14000000 | FV48: 12000000 | FW48: 8000000 | FX48: 8000000 | FY48: 0 | FZ48: 0 | GA48: 0 | GB48: 0 | GC48: 0 | GD48: 0 | GE48: 0 | GF48: 0 | GG48: 1296139580 | GH48: 0 | GI48: 70000000 | GJ48: 48000000 | GK48: 14000000 | GL48: 12000000 | GM48: 8000000 | GN48: 8000000 | GO48: 0 | GP48: 0 | GQ48: FALSE | GR48: FALSE | GS48: FALSE | GT48: 0 | GU48: 0 | GV48: 0 | GW48: 473310.58 | GX48: 0 | GY48: 0 | GZ48: 6718.67 | HA48: 0 | HB48: 0 | HC48: 0 | HD48: 0 | HE48: 0 | HF48: 0 | HG48: 0 | HH48: 0 | HI48: 0 | HJ48: 3261486.41 | HK48: 0 | HL48: 205684.93 | HM48: 169249.32 | HN48: 55693.15 | HO48: 58586.3 | HP48: 46290.41 | HQ48: 55331.51 | HR48: 0 | HS48: 0 | HT48: 0 | HU48: 0 | HV48: 0 | HW48: 0 | HX48: 0 | HY48: 0 | HZ48: 0 | IA48: 0 | IB48: 0 | IC48: 0 | ID48: 0 | IE48: 0 | IF48: 0 | IG48: 0 | IH48: 0 | II48: 0 | IJ48: 286256.5 | IK48: 11609.68 | IL48: 1108641.78 | IM48: 0 | IN48: 0 | IO48: 0 | IP48: 30607832.19 | IQ48: 0 | IR48: 0 | IS48: 0 | IT48: 0 | IU48: 0 | IV48: 0 | IW48: 0 | IX48: 1295642767 | IY48: 0 | IZ48: 70000000 | JA48: 48000000 | JB48: 14000000 | JC48: 12000000 | JD48: 8000000 | JE48: 8000000 | JF48: 0 | JG48: 0 | JH48: 0 | JI48: 0 | JJ48: 0 | JK48: 0 | JL48: 0 | JM48: 0 | JN48: 1295642767 | JO48: 0 | JP48: 70000000 | JQ48: 48000000 | JR48: 14000000 | JS48: 12000000 | JT48: 8000000 | JU48: 8000000 | JV48: 0 | JW48: 0 | JX48: FALSE | JY48: FALSE | JZ48: FALSE | KA48: 0 | KB48: 0 | KC48: 0 | KD48: =IF(GW48="NR","NR",ROUNDDOWN(GW48-DP48,0)) -> 0 | KE48: =IF(GX48="NR","NR",ROUNDDOWN(GX48-DQ48,0)) -> 0 | KF48: =IF(GY48="NR","NR",ROUNDDOWN(GY48-DR48,0)) -> 0 | KG48: =IF(GZ48="NR","NR",ROUNDDOWN(GZ48-DS48,0)) -> 0 | KH48: =IF(HA48="NR","NR",ROUNDDOWN(HA48-DT48,0)) -> 0 | KI48: =IF(HB48="NR","NR",ROUNDDOWN(HB48-DU48,0)) -> 0 | KJ48: =IF(HC48="NR","NR",ROUNDDOWN(HC48-DV48,0)) -> 0 | KK48: =IF(HD48="NR","NR",ROUNDDOWN(HD48-DW48,0)) -> 0 | KL48: =IF(HE48="NR","NR",ROUNDDOWN(HE48-DX48,0)) -> 0 | KM48: =IF(HF48="NR","NR",ROUNDDOWN(HF48-DY48,0)) -> -496812 | KN48: =IF(HG48="NR","NR",ROUNDDOWN(HG48-DZ48,0)) -> 0 | KO48: =IF(HH48="NR","NR",ROUNDDOWN(HH48-EA48,0)) -> -496812 | KP48: =IF(HI48="NR","NR",ROUNDDOWN(HI48-EB48,0)) -> 0 | KQ48: =IF(HJ48="NR","NR",ROUNDDOWN(HJ48-EC48,0)) -> 0 | KR48: =IF(HK48="NR","NR",ROUNDDOWN(HK48-ED48,0)) -> 0 | KS48: =IF(HL48="NR","NR",ROUNDDOWN(HL48-EE48,0)) -> 0 | KT48: =IF(HM48="NR","NR",ROUNDDOWN(HM48-EF48,0)) -> 0 | KU48: =IF(HN48="NR","NR",ROUNDDOWN(HN48-EG48,0)) -> 0 | KV48: =IF(HO48="NR","NR",ROUNDDOWN(HO48-EH48,0)) -> 0 | KW48: =IF(HP48="NR","NR",ROUNDDOWN(HP48-EI48,0)) -> 0 | KX48: =IF(HQ48="NR","NR",ROUNDDOWN(HQ48-EJ48,0)) -> 0 | KY48: =IF(HR48="NR","NR",ROUNDDOWN(HR48-EK48,0)) -> 0 | KZ48: =IF(HS48="NR","NR",ROUNDDOWN(HS48-EL48,0)) -> 0 | LA48: =IF(HT48="NR","NR",ROUNDDOWN(HT48-EM48,0)) -> 0 | LB48: =IF(HU48="NR","NR",ROUNDDOWN(HU48-EN48,0)) -> 0 | LC48: =IF(HV48="NR","NR",ROUNDDOWN(HV48-EO48,0)) -> 0 | LD48: =IF(HW48="NR","NR",ROUNDDOWN(HW48-EP48,0)) -> 0 | LE48: =IF(HX48="NR","NR",ROUNDDOWN(HX48-EQ48,0)) -> 0 | LF48: =IF(HY48="NR","NR",ROUNDDOWN(HY48-ER48,0)) -> 0 | LG48: =IF(HZ48="NR","NR",ROUNDDOWN(HZ48-ES48,0)) -> 0 | LH48: =IF(IA48="NR","NR",ROUNDDOWN(IA48-ET48,0)) -> 0 | LI48: =IF(IB48="NR","NR",ROUNDDOWN(IB48-EU48,0)) -> 0 | LJ48: =IF(IC48="NR","NR",ROUNDDOWN(IC48-EV48,0)) -> 0 | LK48: =IF(ID48="NR","NR",ROUNDDOWN(ID48-EW48,0)) -> 0 | LL48: =IF(IE48="NR","NR",ROUNDDOWN(IE48-EX48,0)) -> 0 | LM48: =IF(IF48="NR","NR",ROUNDDOWN(IF48-EY48,0)) -> 0 | LN48: =IF(IG48="NR","NR",ROUNDDOWN(IG48-EZ48,0)) -> 0 | LO48: =IF(IH48="NR","NR",ROUNDDOWN(IH48-FA48,0)) -> 0 | LP48: =IF(II48="NR","NR",ROUNDDOWN(II48-FB48,0)) -> 0 | LQ48: =IF(IJ48="NR","NR",ROUNDDOWN(IJ48-FC48,0)) -> -1508233 | LR48: =IF(IK48="NR","NR",ROUNDDOWN(IK48-FD48,0)) -> -97220 | LS48: =IF(IL48="NR","NR",ROUNDDOWN(IL48-FE48,0)) -> 1108640 | LT48: =IF(IM48="NR","NR",ROUNDDOWN(IM48-FF48,0)) -> 0 | LU48: =IF(IN48="NR","NR",ROUNDDOWN(IN48-FG48,0)) -> 0 | LV48: =IF(IO48="NR","NR",ROUNDDOWN(IO48-FH48,0)) -> 0 | LW48: =IF(IP48="NR","NR",ROUNDDOWN(IP48-FI48,0)) -> 496812 | LX48: =IF(IQ48="NR","NR",ROUNDDOWN(IQ48-FJ48,0)) -> 0 | LY48: =IF(IR48="NR","NR",ROUNDDOWN(IR48-FK48,0)) -> 0 | LZ48: =IF(IS48="NR","NR",ROUNDDOWN(IS48-FL48,0)) -> 0 | MA48: =IF(IT48="NR","NR",ROUNDDOWN(IT48-FM48,0)) -> 0 | MB48: =IF(IU48="NR","NR",ROUNDDOWN(IU48-FN48,0)) -> 0 | MC48: =IF(IV48="NR","NR",ROUNDDOWN(IV48-FO48,0)) -> 0 | MD48: =IF(IW48="NR","NR",ROUNDDOWN(IW48-FP48,0)) -> 0 | ME48: =IF(IX48="NR","NR",ROUNDDOWN(IX48-FQ48,0)) -> -496812 | MF48: =IF(IY48="NR","NR",ROUNDDOWN(IY48-FR48,0)) -> 0 | MG48: =IF(IZ48="NR","NR",ROUNDDOWN(IZ48-FS48,0)) -> 0 | MH48: =IF(JA48="NR","NR",ROUNDDOWN(JA48-FT48,0)) -> 0 | MI48: =IF(JB48="NR","NR",ROUNDDOWN(JB48-FU48,0)) -> 0 | MJ48: =IF(JC48="NR","NR",ROUNDDOWN(JC48-FV48,0)) -> 0 | MK48: =IF(JD48="NR","NR",ROUNDDOWN(JD48-FW48,0)) -> 0 | ML48: =IF(JE48="NR","NR",ROUNDDOWN(JE48-FX48,0)) -> 0 | MM48: =IF(JF48="NR","NR",ROUNDDOWN(JF48-FY48,0)) -> 0 | MN48: =IF(JG48="NR","NR",ROUNDDOWN(JG48-FZ48,0)) -> 0 | MO48: =IF(JH48="NR","NR",ROUNDDOWN(JH48-GA48,0)) -> 0 | MP48: =IF(JI48="NR","NR",ROUNDDOWN(JI48-GB48,0)) -> 0 | MQ48: =IF(JJ48="NR","NR",ROUNDDOWN(JJ48-GC48,0)) -> 0 | MR48: =IF(JK48="NR","NR",ROUNDDOWN(JK48-GD48,0)) -> 0 | MS48: =IF(JL48="NR","NR",ROUNDDOWN(JL48-GE48,0)) -> 0 | MT48: =IF(JM48="NR","NR",ROUNDDOWN(JM48-GF48,0)) -> 0 | MU48: =IF(JN48="NR","NR",ROUNDDOWN(JN48-GG48,0)) -> -496812 | MV48: =IF(JO48="NR","NR",ROUNDDOWN(JO48-GH48,0)) -> 0 | MW48: =IF(JP48="NR","NR",ROUNDDOWN(JP48-GI48,0)) -> 0 | MX48: =IF(JQ48="NR","NR",ROUNDDOWN(JQ48-GJ48,0)) -> 0 | MY48: =IF(JR48="NR","NR",ROUNDDOWN(JR48-GK48,0)) -> 0 | MZ48: =IF(JS48="NR","NR",ROUNDDOWN(JS48-GL48,0)) -> 0 | NA48: =IF(JT48="NR","NR",ROUNDDOWN(JT48-GM48,0)) -> 0 | NB48: =IF(JU48="NR","NR",ROUNDDOWN(JU48-GN48,0)) -> 0 | NC48: =IF(JV48="NR","NR",ROUNDDOWN(JV48-GO48,0)) -> 0 | ND48: =IF(JW48="NR","NR",ROUNDDOWN(JW48-GP48,0)) -> 0 | NE48: NR | NF48: NR | NG48: NR | NH48: =IF(KA48="NR","NR",ROUNDDOWN(KA48-GT48,0)) -> 0 | NI48: =IF(KB48="NR","NR",ROUNDDOWN(KB48-GU48,0)) -> 0 | NJ48: =IF(KC48="NR","NR",ROUNDDOWN(KC48-GV48,0)) -> 0
B49: 2018-01-24 | C49: 2017-12-01 | D49: 2018-01-02 | E49: 2018-01-19 | F49: 2018-01-24 | G49: 28 | H49: 0.0171 | I49: 2016-12-01 | J49: 1999995073 | K49: 1455642767 | L49: 87791707.14 | M49: 1419356725 | N49: 87197745.48 | O49: 1450164939 | P49: 87791707.14 | Q49: 6087973.77 | R49: 0.012387 | S49: 0 | T49: 4990277.56 | U49: 3762808.22 | V49: 0 | W49: 5424920.16 | X49: 331565.2 | Y49: 4450730.61 | Z49: 37513511.98 | AA49: 397.13 | AB49: 0 | AC49: 0 | AD49: 0 | AE49: 0 | AF49: 14556427.67 | AG49: 0 | AH49: 1840000000 | AI49: 0 | AJ49: 70000000 | AK49: 48000000 | AL49: 14000000 | AM49: 12000000 | AN49: 8000000 | AO49: 8000000 | AP49: 10000 | AQ49: 1295642767 | AR49: 0 | AS49: 70000000 | AT49: 48000000 | AU49: 14000000 | AV49: 12000000 | AW49: 8000000 | AX49: 8000000 | AY49: 0 | AZ49: 0 | BA49: 0 | BB49: 0 | BC49: 0 | BD49: 0 | BE49: 0 | BF49: 0 | BG49: 1 | BH49: 361299.77 | BI49: 0 | BJ49: 5583.29 | BK49: 0 | BL49: 0 | BM49: 0 | BN49: 0 | BO49: 0 | BP49: 0 | BQ49: 0 | BR49: 0.0107 | BS49: 0 | BT49: 0.016 | BU49: 0.0225 | BV49: 0.0275 | BW49: 0.0375 | BX49: 0.0475 | BY49: 0.06 | BZ49: 0.0025 | CA49: 0.0025 | CB49: 0.02 | CC49: 0.02 | CD49: 0.02 | CE49: 0.02 | CF49: 0.02 | CG49: 0 | CH49: 0 | CI49: 0 | CJ49: 0 | CK49: 0 | CL49: 0 | CM49: 0 | CN49: 0 | CO49: 0 | CP49: 0 | CQ49: 0 | CR49: 0 | CS49: 0 | CT49: 0 | CU49: 0 | CV49: 0.1 | CW49: 2 | CX49: 0.005681881094 | CY49: 0.04 | CZ49: FALSE | DA49: FALSE | DB49: FALSE | DC49: FALSE | DD49: FALSE | DE49: FALSE | DF49: FALSE | DG49: FALSE | DH49: FALSE | DI49: FALSE | DJ49: 0 | DK49: 0 | DL49: 0 | DM49: 0 | DN49: 0 | DO49: Waterfall_1 | DP49: =waterfall_1(C49:DN49) -> 361299.77 | DQ49: 0 | DR49: 0 | DS49: 5583.29 | DT49: 0 | DU49: 0 | DV49: 0 | DW49: 0 | DX49: 0 | DY49: 378799.15 | DZ49: 0 | EA49: 378799.15 | EB49: 0 | EC49: 2763091.32 | ED49: 0 | EE49: 177742.47 | EF49: 145814.79 | EG49: 47899.18 | EH49: 50261.92 | EI49: 39644.93 | EJ49: 47316.16 | EK49: 0 | EL49: 0 | EM49: 0 | EN49: 0 | EO49: 0 | EP49: 0 | EQ49: 0 | ER49: 0 | ES49: 0 | ET49: 0 | EU49: 0 | EV49: 0 | EW49: 0 | EX49: 0 | EY49: 0 | EZ49: 0 | FA49: 0 | FB49: 0 | FC49: 2362786.36 | FD49: 134240.45 | FE49: 1 | FF49: 0 | FG49: 0 | FH49: 0 | FI49: 35907243.49 | FJ49: 0 | FK49: 0 | FL49: 0 | FM49: 0 | FN49: 0 | FO49: 0 | FP49: 0 | FQ49: 1259735524 | FR49: 0 | FS49: 70000000 | FT49: 48000000 | FU49: 14000000 | FV49: 12000000 | FW49: 8000000 | FX49: 8000000 | FY49: 0 | FZ49: 0 | GA49: 0 | GB49: 0 | GC49: 0 | GD49: 0 | GE49: 0 | GF49: 0 | GG49: 1259735524 | GH49: 0 | GI49: 70000000 | GJ49: 48000000 | GK49: 14000000 | GL49: 12000000 | GM49: 8000000 | GN49: 8000000 | GO49: 0 | GP49: 0 | GQ49: FALSE | GR49: FALSE | GS49: FALSE | GT49: 0 | GU49: 0 | GV49: 0 | GW49: 361299.77 | GX49: 0 | GY49: 0 | GZ49: 5583.29 | HA49: 0 | HB49: 0 | HC49: 0 | HD49: 0 | HE49: 0 | HF49: 0 | HG49: 0 | HH49: 0 | HI49: 0 | HJ49: 2763091.32 | HK49: 0 | HL49: 177742.47 | HM49: 145814.79 | HN49: 47899.18 | HO49: 50261.92 | HP49: 39644.93 | HQ49: 47316.16 | HR49: 0 | HS49: 0 | HT49: 0 | HU49: 0 | HV49: 0 | HW49: 0 | HX49: 0 | HY49: 0 | HZ49: 0 | IA49: 0 | IB49: 0 | IC49: 0 | ID49: 0 | IE49: 0 | IF49: 0 | IG49: 0 | IH49: 0 | II49: 0 | IJ49: 1108656.48 | IK49: 53423.98 | IL49: 956148.21 | IM49: 0 | IN49: 0 | IO49: 0 | IP49: 36286042.64 | IQ49: 0 | IR49: 0 | IS49: 0 | IT49: 0 | IU49: 0 | IV49: 0 | IW49: 0 | IX49: 1259356725 | IY49: 0 | IZ49: 70000000 | JA49: 48000000 | JB49: 14000000 | JC49: 12000000 | JD49: 8000000 | JE49: 8000000 | JF49: 0 | JG49: 0 | JH49: 0 | JI49: 0 | JJ49: 0 | JK49: 0 | JL49: 0 | JM49: 0 | JN49: 1259356725 | JO49: 0 | JP49: 70000000 | JQ49: 48000000 | JR49: 14000000 | JS49: 12000000 | JT49: 8000000 | JU49: 8000000 | JV49: 0 | JW49: 0 | JX49: FALSE | JY49: FALSE | JZ49: FALSE | KA49: 0 | KB49: 0 | KC49: 0 | KD49: =IF(GW49="NR","NR",ROUNDDOWN(GW49-DP49,0)) -> 0 | KE49: =IF(GX49="NR","NR",ROUNDDOWN(GX49-DQ49,0)) -> 0 | KF49: =IF(GY49="NR","NR",ROUNDDOWN(GY49-DR49,0)) -> 0 | KG49: =IF(GZ49="NR","NR",ROUNDDOWN(GZ49-DS49,0)) -> 0 | KH49: =IF(HA49="NR","NR",ROUNDDOWN(HA49-DT49,0)) -> 0 | KI49: =IF(HB49="NR","NR",ROUNDDOWN(HB49-DU49,0)) -> 0 | KJ49: =IF(HC49="NR","NR",ROUNDDOWN(HC49-DV49,0)) -> 0 | KK49: =IF(HD49="NR","NR",ROUNDDOWN(HD49-DW49,0)) -> 0 | KL49: =IF(HE49="NR","NR",ROUNDDOWN(HE49-DX49,0)) -> 0 | KM49: =IF(HF49="NR","NR",ROUNDDOWN(HF49-DY49,0)) -> -378799 | KN49: =IF(HG49="NR","NR",ROUNDDOWN(HG49-DZ49,0)) -> 0 | KO49: =IF(HH49="NR","NR",ROUNDDOWN(HH49-EA49,0)) -> -378799 | KP49: =IF(HI49="NR","NR",ROUNDDOWN(HI49-EB49,0)) -> 0 | KQ49: =IF(HJ49="NR","NR",ROUNDDOWN(HJ49-EC49,0)) -> 0 | KR49: =IF(HK49="NR","NR",ROUNDDOWN(HK49-ED49,0)) -> 0 | KS49: =IF(HL49="NR","NR",ROUNDDOWN(HL49-EE49,0)) -> 0 | KT49: =IF(HM49="NR","NR",ROUNDDOWN(HM49-EF49,0)) -> 0 | KU49: =IF(HN49="NR","NR",ROUNDDOWN(HN49-EG49,0)) -> 0 | KV49: =IF(HO49="NR","NR",ROUNDDOWN(HO49-EH49,0)) -> 0 | KW49: =IF(HP49="NR","NR",ROUNDDOWN(HP49-EI49,0)) -> 0 | KX49: =IF(HQ49="NR","NR",ROUNDDOWN(HQ49-EJ49,0)) -> 0 | KY49: =IF(HR49="NR","NR",ROUNDDOWN(HR49-EK49,0)) -> 0 | KZ49: =IF(HS49="NR","NR",ROUNDDOWN(HS49-EL49,0)) -> 0 | LA49: =IF(HT49="NR","NR",ROUNDDOWN(HT49-EM49,0)) -> 0 | LB49: =IF(HU49="NR","NR",ROUNDDOWN(HU49-EN49,0)) -> 0 | LC49: =IF(HV49="NR","NR",ROUNDDOWN(HV49-EO49,0)) -> 0 | LD49: =IF(HW49="NR","NR",ROUNDDOWN(HW49-EP49,0)) -> 0 | LE49: =IF(HX49="NR","NR",ROUNDDOWN(HX49-EQ49,0)) -> 0 | LF49: =IF(HY49="NR","NR",ROUNDDOWN(HY49-ER49,0)) -> 0 | LG49: =IF(HZ49="NR","NR",ROUNDDOWN(HZ49-ES49,0)) -> 0 | LH49: =IF(IA49="NR","NR",ROUNDDOWN(IA49-ET49,0)) -> 0 | LI49: =IF(IB49="NR","NR",ROUNDDOWN(IB49-EU49,0)) -> 0 | LJ49: =IF(IC49="NR","NR",ROUNDDOWN(IC49-EV49,0)) -> 0 | LK49: =IF(ID49="NR","NR",ROUNDDOWN(ID49-EW49,0)) -> 0 | LL49: =IF(IE49="NR","NR",ROUNDDOWN(IE49-EX49,0)) -> 0 | LM49: =IF(IF49="NR","NR",ROUNDDOWN(IF49-EY49,0)) -> 0 | LN49: =IF(IG49="NR","NR",ROUNDDOWN(IG49-EZ49,0)) -> 0 | LO49: =IF(IH49="NR","NR",ROUNDDOWN(IH49-FA49,0)) -> 0 | LP49: =IF(II49="NR","NR",ROUNDDOWN(II49-FB49,0)) -> 0 | LQ49: =IF(IJ49="NR","NR",ROUNDDOWN(IJ49-FC49,0)) -> -1254129 | LR49: =IF(IK49="NR","NR",ROUNDDOWN(IK49-FD49,0)) -> -80816 | LS49: =IF(IL49="NR","NR",ROUNDDOWN(IL49-FE49,0)) -> 956147 | LT49: =IF(IM49="NR","NR",ROUNDDOWN(IM49-FF49,0)) -> 0 | LU49: =IF(IN49="NR","NR",ROUNDDOWN(IN49-FG49,0)) -> 0 | LV49: =IF(IO49="NR","NR",ROUNDDOWN(IO49-FH49,0)) -> 0 | LW49: =IF(IP49="NR","NR",ROUNDDOWN(IP49-FI49,0)) -> 378799 | LX49: =IF(IQ49="NR","NR",ROUNDDOWN(IQ49-FJ49,0)) -> 0 | LY49: =IF(IR49="NR","NR",ROUNDDOWN(IR49-FK49,0)) -> 0 | LZ49: =IF(IS49="NR","NR",ROUNDDOWN(IS49-FL49,0)) -> 0 | MA49: =IF(IT49="NR","NR",ROUNDDOWN(IT49-FM49,0)) -> 0 | MB49: =IF(IU49="NR","NR",ROUNDDOWN(IU49-FN49,0)) -> 0 | MC49: =IF(IV49="NR","NR",ROUNDDOWN(IV49-FO49,0)) -> 0 | MD49: =IF(IW49="NR","NR",ROUNDDOWN(IW49-FP49,0)) -> 0 | ME49: =IF(IX49="NR","NR",ROUNDDOWN(IX49-FQ49,0)) -> -378799 | MF49: =IF(IY49="NR","NR",ROUNDDOWN(IY49-FR49,0)) -> 0 | MG49: =IF(IZ49="NR","NR",ROUNDDOWN(IZ49-FS49,0)) -> 0 | MH49: =IF(JA49="NR","NR",ROUNDDOWN(JA49-FT49,0)) -> 0 | MI49: =IF(JB49="NR","NR",ROUNDDOWN(JB49-FU49,0)) -> 0 | MJ49: =IF(JC49="NR","NR",ROUNDDOWN(JC49-FV49,0)) -> 0 | MK49: =IF(JD49="NR","NR",ROUNDDOWN(JD49-FW49,0)) -> 0 | ML49: =IF(JE49="NR","NR",ROUNDDOWN(JE49-FX49,0)) -> 0 | MM49: =IF(JF49="NR","NR",ROUNDDOWN(JF49-FY49,0)) -> 0 | MN49: =IF(JG49="NR","NR",ROUNDDOWN(JG49-FZ49,0)) -> 0 | MO49: =IF(JH49="NR","NR",ROUNDDOWN(JH49-GA49,0)) -> 0 | MP49: =IF(JI49="NR","NR",ROUNDDOWN(JI49-GB49,0)) -> 0 | MQ49: =IF(JJ49="NR","NR",ROUNDDOWN(JJ49-GC49,0)) -> 0 | MR49: =IF(JK49="NR","NR",ROUNDDOWN(JK49-GD49,0)) -> 0 | MS49: =IF(JL49="NR","NR",ROUNDDOWN(JL49-GE49,0)) -> 0 | MT49: =IF(JM49="NR","NR",ROUNDDOWN(JM49-GF49,0)) -> 0 | MU49: =IF(JN49="NR","NR",ROUNDDOWN(JN49-GG49,0)) -> -378799 | MV49: =IF(JO49="NR","NR",ROUNDDOWN(JO49-GH49,0)) -> 0 | MW49: =IF(JP49="NR","NR",ROUNDDOWN(JP49-GI49,0)) -> 0 | MX49: =IF(JQ49="NR","NR",ROUNDDOWN(JQ49-GJ49,0)) -> 0 | MY49: =IF(JR49="NR","NR",ROUNDDOWN(JR49-GK49,0)) -> 0 | MZ49: =IF(JS49="NR","NR",ROUNDDOWN(JS49-GL49,0)) -> 0 | NA49: =IF(JT49="NR","NR",ROUNDDOWN(JT49-GM49,0)) -> 0 | NB49: =IF(JU49="NR","NR",ROUNDDOWN(JU49-GN49,0)) -> 0 | NC49: =IF(JV49="NR","NR",ROUNDDOWN(JV49-GO49,0)) -> 0 | ND49: =IF(JW49="NR","NR",ROUNDDOWN(JW49-GP49,0)) -> 0 | NE49: NR | NF49: NR | NG49: NR | NH49: =IF(KA49="NR","NR",ROUNDDOWN(KA49-GT49,0)) -> 0 | NI49: =IF(KB49="NR","NR",ROUNDDOWN(KB49-GU49,0)) -> 0 | NJ49: =IF(KC49="NR","NR",ROUNDDOWN(KC49-GV49,0)) -> 0
B50: 2018-02-26 | C50: 2018-01-03 | D50: 2018-01-31 | E50: 2018-02-21 | F50: 2018-02-26 | G50: 33 | H50: 0.01695 | I50: 2016-12-01 | J50: 1999995073 | K50: 1419356725 | L50: 87197745.48 | M50: 1391648332 | N50: 85624975.81 | O50: 1413268751 | P50: 87197745.48 | Q50: 7336032.78 | R50: 0.012835 | S50: 0 | T50: 4700691.26 | U50: 5043975.65 | V50: 0 | W50: 4837031.41 | X50: 296931.62 | Y50: 4791465.83 | Z50: 27365107.85 | AA50: 1714.22 | AB50: 0 | AC50: 0 | AD50: 0 | AE50: 0 | AF50: 14193567.25 | AG50: 0 | AH50: 1840000000 | AI50: 0 | AJ50: 70000000 | AK50: 48000000 | AL50: 14000000 | AM50: 12000000 | AN50: 8000000 | AO50: 8000000 | AP50: 10000 | AQ50: 1259356725 | AR50: 0 | AS50: 70000000 | AT50: 48000000 | AU50: 14000000 | AV50: 12000000 | AW50: 8000000 | AX50: 8000000 | AY50: 0 | AZ50: 0 | BA50: 0 | BB50: 0 | BC50: 0 | BD50: 0 | BE50: 0 | BF50: 0 | BG50: 1 | BH50: 470615.47 | BI50: 0 | BJ50: 6416.27 | BK50: 0 | BL50: 0 | BM50: 0 | BN50: 0 | BO50: 0 | BP50: 0 | BQ50: 0 | BR50: 0.0107 | BS50: 0 | BT50: 0.016 | BU50: 0.0225 | BV50: 0.0275 | BW50: 0.0375 | BX50: 0.0475 | BY50: 0.06 | BZ50: 0.0025 | CA50: 0.0025 | CB50: 0.02 | CC50: 0.02 | CD50: 0.02 | CE50: 0.02 | CF50: 0.02 | CG50: 0 | CH50: 0 | CI50: 0 | CJ50: 0 | CK50: 0 | CL50: 0 | CM50: 0 | CN50: 0 | CO50: 0 | CP50: 0 | CQ50: 0 | CR50: 0 | CS50: 0 | CT50: 0 | CU50: 0 | CV50: 0.1 | CW50: 2 | CX50: 0.006225294882 | CY50: 0.04 | CZ50: FALSE | DA50: FALSE | DB50: FALSE | DC50: FALSE | DD50: FALSE | DE50: FALSE | DF50: FALSE | DG50: FALSE | DH50: FALSE | DI50: FALSE | DJ50: 0 | DK50: 0 | DL50: 0 | DM50: 0 | DN50: 0 | DO50: Waterfall_1 | DP50: =waterfall_1(C50:DN50) -> 470615.47 | DQ50: 0 | DR50: 0 | DS50: 6416.27 | DT50: 0 | DU50: 0 | DV50: 0 | DW50: 0 | DX50: 0 | DY50: 491384.18 | DZ50: 0 | EA50: 491384.18 | EB50: 0 | EC50: 3148219.3 | ED50: 0 | EE50: 208532.88 | EF50: 171202.19 | EG50: 56262.74 | EH50: 59074.52 | EI50: 46615.89 | EJ50: 55656.99 | EK50: 0 | EL50: 0 | EM50: 0 | EN50: 0 | EO50: 0 | EP50: 0 | EQ50: 0 | ER50: 0 | ES50: 0 | ET50: 0 | EU50: 0 | EV50: 0 | EW50: 0 | EX50: 0 | EY50: 0 | EZ50: 0 | FA50: 0 | FB50: 0 | FC50: 1337640.17 | FD50: 66824.01 | FE50: 1 | FF50: 0 | FG50: 0 | FH50: 0 | FI50: 27217008.06 | FJ50: 0 | FK50: 0 | FL50: 0 | FM50: 0 | FN50: 0 | FO50: 0 | FP50: 0 | FQ50: 1232139717 | FR50: 0 | FS50: 70000000 | FT50: 48000000 | FU50: 14000000 | FV50: 12000000 | FW50: 8000000 | FX50: 8000000 | FY50: 0 | FZ50: 0 | GA50: 0 | GB50: 0 | GC50: 0 | GD50: 0 | GE50: 0 | GF50: 0 | GG50: 1232139717 | GH50: 0 | GI50: 70000000 | GJ50: 48000000 | GK50: 14000000 | GL50: 12000000 | GM50: 8000000 | GN50: 8000000 | GO50: 0 | GP50: 0 | GQ50: FALSE | GR50: FALSE | GS50: FALSE | GT50: 0 | GU50: 0 | GV50: 0 | GW50: 470615.47 | GX50: 0 | GY50: 0 | GZ50: 6416.27 | HA50: 0 | HB50: 0 | HC50: 0 | HD50: 0 | HE50: 0 | HF50: 0 | HG50: 0 | HH50: 0 | HI50: 0 | HJ50: 3148219.3 | HK50: 0 | HL50: 208532.88 | HM50: 171202.19 | HN50: 56262.74 | HO50: 59074.52 | HP50: 46615.89 | HQ50: 55656.99 | HR50: 0 | HS50: 0 | HT50: 0 | HU50: 0 | HV50: 0 | HW50: 0 | HX50: 0 | HY50: 0 | HZ50: 0 | IA50: 0 | IB50: 0 | IC50: 0 | ID50: 0 | IE50: 0 | IF50: 0 | IG50: 0 | IH50: 0 | II50: 0 | IJ50: 0 | IK50: 0 | IL50: 1041916.61 | IM50: 0 | IN50: 0 | IO50: 0 | IP50: 27708392.24 | IQ50: 0 | IR50: 0 | IS50: 0 | IT50: 0 | IU50: 0 | IV50: 0 | IW50: 0 | IX50: 1231648332 | IY50: 0 | IZ50: 70000000 | JA50: 48000000 | JB50: 14000000 | JC50: 12000000 | JD50: 8000000 | JE50: 8000000 | JF50: 0 | JG50: 0 | JH50: 0 | JI50: 0 | JJ50: 0 | JK50: 0 | JL50: 0 | JM50: 0 | JN50: 1231648332 | JO50: 0 | JP50: 70000000 | JQ50: 48000000 | JR50: 14000000 | JS50: 12000000 | JT50: 8000000 | JU50: 8000000 | JV50: 0 | JW50: 0 | JX50: FALSE | JY50: FALSE | JZ50: FALSE | KA50: 0 | KB50: 0 | KC50: 0 | KD50: =IF(GW50="NR","NR",ROUNDDOWN(GW50-DP50,0)) -> 0 | KE50: =IF(GX50="NR","NR",ROUNDDOWN(GX50-DQ50,0)) -> 0 | KF50: =IF(GY50="NR","NR",ROUNDDOWN(GY50-DR50,0)) -> 0 | KG50: =IF(GZ50="NR","NR",ROUNDDOWN(GZ50-DS50,0)) -> 0 | KH50: =IF(HA50="NR","NR",ROUNDDOWN(HA50-DT50,0)) -> 0 | KI50: =IF(HB50="NR","NR",ROUNDDOWN(HB50-DU50,0)) -> 0 | KJ50: =IF(HC50="NR","NR",ROUNDDOWN(HC50-DV50,0)) -> 0 | KK50: =IF(HD50="NR","NR",ROUNDDOWN(HD50-DW50,0)) -> 0 | KL50: =IF(HE50="NR","NR",ROUNDDOWN(HE50-DX50,0)) -> 0 | KM50: =IF(HF50="NR","NR",ROUNDDOWN(HF50-DY50,0)) -> -491384 | KN50: =IF(HG50="NR","NR",ROUNDDOWN(HG50-DZ50,0)) -> 0 | KO50: =IF(HH50="NR","NR",ROUNDDOWN(HH50-EA50,0)) -> -491384 | KP50: =IF(HI50="NR","NR",ROUNDDOWN(HI50-EB50,0)) -> 0 | KQ50: =IF(HJ50="NR","NR",ROUNDDOWN(HJ50-EC50,0)) -> 0 | KR50: =IF(HK50="NR","NR",ROUNDDOWN(HK50-ED50,0)) -> 0 | KS50: =IF(HL50="NR","NR",ROUNDDOWN(HL50-EE50,0)) -> 0 | KT50: =IF(HM50="NR","NR",ROUNDDOWN(HM50-EF50,0)) -> 0 | KU50: =IF(HN50="NR","NR",ROUNDDOWN(HN50-EG50,0)) -> 0 | KV50: =IF(HO50="NR","NR",ROUNDDOWN(HO50-EH50,0)) -> 0 | KW50: =IF(HP50="NR","NR",ROUNDDOWN(HP50-EI50,0)) -> 0 | KX50: =IF(HQ50="NR","NR",ROUNDDOWN(HQ50-EJ50,0)) -> 0 | KY50: =IF(HR50="NR","NR",ROUNDDOWN(HR50-EK50,0)) -> 0 | KZ50: =IF(HS50="NR","NR",ROUNDDOWN(HS50-EL50,0)) -> 0 | LA50: =IF(HT50="NR","NR",ROUNDDOWN(HT50-EM50,0)) -> 0 | LB50: =IF(HU50="NR","NR",ROUNDDOWN(HU50-EN50,0)) -> 0 | LC50: =IF(HV50="NR","NR",ROUNDDOWN(HV50-EO50,0)) -> 0 | LD50: =IF(HW50="NR","NR",ROUNDDOWN(HW50-EP50,0)) -> 0 | LE50: =IF(HX50="NR","NR",ROUNDDOWN(HX50-EQ50,0)) -> 0 | LF50: =IF(HY50="NR","NR",ROUNDDOWN(HY50-ER50,0)) -> 0 | LG50: =IF(HZ50="NR","NR",ROUNDDOWN(HZ50-ES50,0)) -> 0 | LH50: =IF(IA50="NR","NR",ROUNDDOWN(IA50-ET50,0)) -> 0 | LI50: =IF(IB50="NR","NR",ROUNDDOWN(IB50-EU50,0)) -> 0 | LJ50: =IF(IC50="NR","NR",ROUNDDOWN(IC50-EV50,0)) -> 0 | LK50: =IF(ID50="NR","NR",ROUNDDOWN(ID50-EW50,0)) -> 0 | LL50: =IF(IE50="NR","NR",ROUNDDOWN(IE50-EX50,0)) -> 0 | LM50: =IF(IF50="NR","NR",ROUNDDOWN(IF50-EY50,0)) -> 0 | LN50: =IF(IG50="NR","NR",ROUNDDOWN(IG50-EZ50,0)) -> 0 | LO50: =IF(IH50="NR","NR",ROUNDDOWN(IH50-FA50,0)) -> 0 | LP50: =IF(II50="NR","NR",ROUNDDOWN(II50-FB50,0)) -> 0 | LQ50: =IF(IJ50="NR","NR",ROUNDDOWN(IJ50-FC50,0)) -> -1337640 | LR50: =IF(IK50="NR","NR",ROUNDDOWN(IK50-FD50,0)) -> -66824 | LS50: =IF(IL50="NR","NR",ROUNDDOWN(IL50-FE50,0)) -> 1041915 | LT50: =IF(IM50="NR","NR",ROUNDDOWN(IM50-FF50,0)) -> 0 | LU50: =IF(IN50="NR","NR",ROUNDDOWN(IN50-FG50,0)) -> 0 | LV50: =IF(IO50="NR","NR",ROUNDDOWN(IO50-FH50,0)) -> 0 | LW50: =IF(IP50="NR","NR",ROUNDDOWN(IP50-FI50,0)) -> 491384 | LX50: =IF(IQ50="NR","NR",ROUNDDOWN(IQ50-FJ50,0)) -> 0 | LY50: =IF(IR50="NR","NR",ROUNDDOWN(IR50-FK50,0)) -> 0 | LZ50: =IF(IS50="NR","NR",ROUNDDOWN(IS50-FL50,0)) -> 0 | MA50: =IF(IT50="NR","NR",ROUNDDOWN(IT50-FM50,0)) -> 0 | MB50: =IF(IU50="NR","NR",ROUNDDOWN(IU50-FN50,0)) -> 0 | MC50: =IF(IV50="NR","NR",ROUNDDOWN(IV50-FO50,0)) -> 0 | MD50: =IF(IW50="NR","NR",ROUNDDOWN(IW50-FP50,0)) -> 0 | ME50: =IF(IX50="NR","NR",ROUNDDOWN(IX50-FQ50,0)) -> -491384 | MF50: =IF(IY50="NR","NR",ROUNDDOWN(IY50-FR50,0)) -> 0 | MG50: =IF(IZ50="NR","NR",ROUNDDOWN(IZ50-FS50,0)) -> 0 | MH50: =IF(JA50="NR","NR",ROUNDDOWN(JA50-FT50,0)) -> 0 | MI50: =IF(JB50="NR","NR",ROUNDDOWN(JB50-FU50,0)) -> 0 | MJ50: =IF(JC50="NR","NR",ROUNDDOWN(JC50-FV50,0)) -> 0 | MK50: =IF(JD50="NR","NR",ROUNDDOWN(JD50-FW50,0)) -> 0 | ML50: =IF(JE50="NR","NR",ROUNDDOWN(JE50-FX50,0)) -> 0 | MM50: =IF(JF50="NR","NR",ROUNDDOWN(JF50-FY50,0)) -> 0 | MN50: =IF(JG50="NR","NR",ROUNDDOWN(JG50-FZ50,0)) -> 0 | MO50: =IF(JH50="NR","NR",ROUNDDOWN(JH50-GA50,0)) -> 0 | MP50: =IF(JI50="NR","NR",ROUNDDOWN(JI50-GB50,0)) -> 0 | MQ50: =IF(JJ50="NR","NR",ROUNDDOWN(JJ50-GC50,0)) -> 0 | MR50: =IF(JK50="NR","NR",ROUNDDOWN(JK50-GD50,0)) -> 0 | MS50: =IF(JL50="NR","NR",ROUNDDOWN(JL50-GE50,0)) -> 0 | MT50: =IF(JM50="NR","NR",ROUNDDOWN(JM50-GF50,0)) -> 0 | MU50: =IF(JN50="NR","NR",ROUNDDOWN(JN50-GG50,0)) -> -491384 | MV50: =IF(JO50="NR","NR",ROUNDDOWN(JO50-GH50,0)) -> 0 | MW50: =IF(JP50="NR","NR",ROUNDDOWN(JP50-GI50,0)) -> 0 | MX50: =IF(JQ50="NR","NR",ROUNDDOWN(JQ50-GJ50,0)) -> 0 | MY50: =IF(JR50="NR","NR",ROUNDDOWN(JR50-GK50,0)) -> 0 | MZ50: =IF(JS50="NR","NR",ROUNDDOWN(JS50-GL50,0)) -> 0 | NA50: =IF(JT50="NR","NR",ROUNDDOWN(JT50-GM50,0)) -> 0 | NB50: =IF(JU50="NR","NR",ROUNDDOWN(JU50-GN50,0)) -> 0 | NC50: =IF(JV50="NR","NR",ROUNDDOWN(JV50-GO50,0)) -> 0 | ND50: =IF(JW50="NR","NR",ROUNDDOWN(JW50-GP50,0)) -> 0 | NE50: NR | NF50: NR | NG50: NR | NH50: =IF(KA50="NR","NR",ROUNDDOWN(KA50-GT50,0)) -> 0 | NI50: =IF(KB50="NR","NR",ROUNDDOWN(KB50-GU50,0)) -> 0 | NJ50: =IF(KC50="NR","NR",ROUNDDOWN(KC50-GV50,0)) -> 0
B51: 2018-03-26 | C51: 2018-02-01 | D51: 2018-02-28 | E51: 2018-03-21 | F51: 2018-03-26 | G51: 28 | H51: 0.017 | I51: 2016-12-01 | J51: 1999995073 | K51: 1391648332 | L51: 85624975.81 | M51: 1369905726 | N51: 84613039.07 | O51: 1384312300 | P51: 85624975.81 | Q51: 7739482.5 | R51: 0.013411 | S51: 0 | T51: 5417526.11 | U51: 3807077.6 | V51: 0 | W51: 4987170.69 | X51: 312521.11 | Y51: 4524971.89 | Z51: 23353055.13 | AA51: 42.18 | AB51: 0 | AC51: 0 | AD51: 0 | AE51: 0 | AF51: 13916483.32 | AG51: 0 | AH51: 1840000000 | AI51: 0 | AJ51: 70000000 | AK51: 48000000 | AL51: 14000000 | AM51: 12000000 | AN51: 8000000 | AO51: 8000000 | AP51: 10000 | AQ51: 1231648332 | AR51: 0 | AS51: 70000000 | AT51: 48000000 | AU51: 14000000 | AV51: 12000000 | AW51: 8000000 | AX51: 8000000 | AY51: 0 | AZ51: 0 | BA51: 0 | BB51: 0 | BC51: 0 | BD51: 0 | BE51: 0 | BF51: 0 | BG51: 1 | BH51: 367296.66 | BI51: 0 | BJ51: 5337.83 | BK51: 0 | BL51: 0 | BM51: 0 | BN51: 0 | BO51: 0 | BP51: 0 | BQ51: 0 | BR51: 0.0107 | BS51: 0 | BT51: 0.016 | BU51: 0.0225 | BV51: 0.0275 | BW51: 0.0375 | BX51: 0.0475 | BY51: 0.06 | BZ51: 0.0025 | CA51: 0.0025 | CB51: 0.02 | CC51: 0.02 | CD51: 0.02 | CE51: 0.02 | CF51: 0.02 | CG51: 0 | CH51: 0 | CI51: 0 | CJ51: 0 | CK51: 0 | CL51: 0 | CM51: 0 | CN51: 0 | CO51: 0 | CP51: 0 | CQ51: 0 | CR51: 0 | CS51: 0 | CT51: 0 | CU51: 0 | CV51: 0.1 | CW51: 2 | CX51: 0.006864954036 | CY51: 0.04 | CZ51: FALSE | DA51: FALSE | DB51: FALSE | DC51: FALSE | DD51: FALSE | DE51: FALSE | DF51: FALSE | DG51: FALSE | DH51: FALSE | DI51: FALSE | DJ51: 0 | DK51: 0 | DL51: 0 | DM51: 0 | DN51: 0 | DO51: Waterfall_1 | DP51: =waterfall_1(C51:DN51) -> 367296.66 | DQ51: 0 | DR51: 0 | DS51: 5337.83 | DT51: 0 | DU51: 0 | DV51: 0 | DW51: 0 | DX51: 0 | DY51: 389064.65 | DZ51: 0 | EA51: 389064.65 | EB51: 0 | EC51: 2617168.35 | ED51: 0 | EE51: 177205.48 | EF51: 145446.58 | EG51: 47791.78 | EH51: 50169.86 | EI51: 39583.56 | EJ51: 47254.79 | EK51: 0 | EL51: 0 | EM51: 0 | EN51: 0 | EO51: 0 | EP51: 0 | EQ51: 0 | ER51: 0 | ES51: 0 | ET51: 0 | EU51: 0 | EV51: 0 | EW51: 0 | EX51: 0 | EY51: 0 | EZ51: 0 | FA51: 0 | FB51: 0 | FC51: 2071272.46 | FD51: 120270.28 | FE51: 1 | FF51: 0 | FG51: 0 | FH51: 0 | FI51: 21353541.97 | FJ51: 0 | FK51: 0 | FL51: 0 | FM51: 0 | FN51: 0 | FO51: 0 | FP51: 0 | FQ51: 1210294790 | FR51: 0 | FS51: 70000000 | FT51: 48000000 | FU51: 14000000 | FV51: 12000000 | FW51: 8000000 | FX51: 8000000 | FY51: 0 | FZ51: 0 | GA51: 0 | GB51: 0 | GC51: 0 | GD51: 0 | GE51: 0 | GF51: 0 | GG51: 1210294790 | GH51: 0 | GI51: 70000000 | GJ51: 48000000 | GK51: 14000000 | GL51: 12000000 | GM51: 8000000 | GN51: 8000000 | GO51: 0 | GP51: 0 | GQ51: FALSE | GR51: FALSE | GS51: FALSE | GT51: 0 | GU51: 0 | GV51: 0 | GW51: 367296.66 | GX51: 0 | GY51: 0 | GZ51: 5337.83 | HA51: 0 | HB51: 0 | HC51: 0 | HD51: 0 | HE51: 0 | HF51: 0 | HG51: 0 | HH51: 0 | HI51: 0 | HJ51: 2617168.35 | HK51: 0 | HL51: 177205.48 | HM51: 145446.58 | HN51: 47791.78 | HO51: 50169.86 | HP51: 39583.56 | HQ51: 47254.79 | HR51: 0 | HS51: 0 | HT51: 0 | HU51: 0 | HV51: 0 | HW51: 0 | HX51: 0 | HY51: 0 | HZ51: 0 | IA51: 0 | IB51: 0 | IC51: 0 | ID51: 0 | IE51: 0 | IF51: 0 | IG51: 0 | IH51: 0 | II51: 0 | IJ51: 875768.51 | IK51: 41448.38 | IL51: 885262.2 | IM51: 0 | IN51: 0 | IO51: 0 | IP51: 21742606.62 | IQ51: 0 | IR51: 0 | IS51: 0 | IT51: 0 | IU51: 0 | IV51: 0 | IW51: 0 | IX51: 1209905726 | IY51: 0 | IZ51: 70000000 | JA51: 48000000 | JB51: 14000000 | JC51: 12000000 | JD51: 8000000 | JE51: 8000000 | JF51: 0 | JG51: 0 | JH51: 0 | JI51: 0 | JJ51: 0 | JK51: 0 | JL51: 0 | JM51: 0 | JN51: 1209905726 | JO51: 0 | JP51: 70000000 | JQ51: 48000000 | JR51: 14000000 | JS51: 12000000 | JT51: 8000000 | JU51: 8000000 | JV51: 0 | JW51: 0 | JX51: FALSE | JY51: FALSE | JZ51: FALSE | KA51: 0 | KB51: 0 | KC51: 0 | KD51: =IF(GW51="NR","NR",ROUNDDOWN(GW51-DP51,0)) -> 0 | KE51: =IF(GX51="NR","NR",ROUNDDOWN(GX51-DQ51,0)) -> 0 | KF51: =IF(GY51="NR","NR",ROUNDDOWN(GY51-DR51,0)) -> 0 | KG51: =IF(GZ51="NR","NR",ROUNDDOWN(GZ51-DS51,0)) -> 0 | KH51: =IF(HA51="NR","NR",ROUNDDOWN(HA51-DT51,0)) -> 0 | KI51: =IF(HB51="NR","NR",ROUNDDOWN(HB51-DU51,0)) -> 0 | KJ51: =IF(HC51="NR","NR",ROUNDDOWN(HC51-DV51,0)) -> 0 | KK51: =IF(HD51="NR","NR",ROUNDDOWN(HD51-DW51,0)) -> 0 | KL51: =IF(HE51="NR","NR",ROUNDDOWN(HE51-DX51,0)) -> 0 | KM51: =IF(HF51="NR","NR",ROUNDDOWN(HF51-DY51,0)) -> -389064 | KN51: =IF(HG51="NR","NR",ROUNDDOWN(HG51-DZ51,0)) -> 0 | KO51: =IF(HH51="NR","NR",ROUNDDOWN(HH51-EA51,0)) -> -389064 | KP51: =IF(HI51="NR","NR",ROUNDDOWN(HI51-EB51,0)) -> 0 | KQ51: =IF(HJ51="NR","NR",ROUNDDOWN(HJ51-EC51,0)) -> 0 | KR51: =IF(HK51="NR","NR",ROUNDDOWN(HK51-ED51,0)) -> 0 | KS51: =IF(HL51="NR","NR",ROUNDDOWN(HL51-EE51,0)) -> 0 | KT51: =IF(HM51="NR","NR",ROUNDDOWN(HM51-EF51,0)) -> 0 | KU51: =IF(HN51="NR","NR",ROUNDDOWN(HN51-EG51,0)) -> 0 | KV51: =IF(HO51="NR","NR",ROUNDDOWN(HO51-EH51,0)) -> 0 | KW51: =IF(HP51="NR","NR",ROUNDDOWN(HP51-EI51,0)) -> 0 | KX51: =IF(HQ51="NR","NR",ROUNDDOWN(HQ51-EJ51,0)) -> 0 | KY51: =IF(HR51="NR","NR",ROUNDDOWN(HR51-EK51,0)) -> 0 | KZ51: =IF(HS51="NR","NR",ROUNDDOWN(HS51-EL51,0)) -> 0 | LA51: =IF(HT51="NR","NR",ROUNDDOWN(HT51-EM51,0)) -> 0 | LB51: =IF(HU51="NR","NR",ROUNDDOWN(HU51-EN51,0)) -> 0 | LC51: =IF(HV51="NR","NR",ROUNDDOWN(HV51-EO51,0)) -> 0 | LD51: =IF(HW51="NR","NR",ROUNDDOWN(HW51-EP51,0)) -> 0 | LE51: =IF(HX51="NR","NR",ROUNDDOWN(HX51-EQ51,0)) -> 0 | LF51: =IF(HY51="NR","NR",ROUNDDOWN(HY51-ER51,0)) -> 0 | LG51: =IF(HZ51="NR","NR",ROUNDDOWN(HZ51-ES51,0)) -> 0 | LH51: =IF(IA51="NR","NR",ROUNDDOWN(IA51-ET51,0)) -> 0 | LI51: =IF(IB51="NR","NR",ROUNDDOWN(IB51-EU51,0)) -> 0 | LJ51: =IF(IC51="NR","NR",ROUNDDOWN(IC51-EV51,0)) -> 0 | LK51: =IF(ID51="NR","NR",ROUNDDOWN(ID51-EW51,0)) -> 0 | LL51: =IF(IE51="NR","NR",ROUNDDOWN(IE51-EX51,0)) -> 0 | LM51: =IF(IF51="NR","NR",ROUNDDOWN(IF51-EY51,0)) -> 0 | LN51: =IF(IG51="NR","NR",ROUNDDOWN(IG51-EZ51,0)) -> 0 | LO51: =IF(IH51="NR","NR",ROUNDDOWN(IH51-FA51,0)) -> 0 | LP51: =IF(II51="NR","NR",ROUNDDOWN(II51-FB51,0)) -> 0 | LQ51: =IF(IJ51="NR","NR",ROUNDDOWN(IJ51-FC51,0)) -> -1195503 | LR51: =IF(IK51="NR","NR",ROUNDDOWN(IK51-FD51,0)) -> -78821 | LS51: =IF(IL51="NR","NR",ROUNDDOWN(IL51-FE51,0)) -> 885261 | LT51: =IF(IM51="NR","NR",ROUNDDOWN(IM51-FF51,0)) -> 0 | LU51: =IF(IN51="NR","NR",ROUNDDOWN(IN51-FG51,0)) -> 0 | LV51: =IF(IO51="NR","NR",ROUNDDOWN(IO51-FH51,0)) -> 0 | LW51: =IF(IP51="NR","NR",ROUNDDOWN(IP51-FI51,0)) -> 389064 | LX51: =IF(IQ51="NR","NR",ROUNDDOWN(IQ51-FJ51,0)) -> 0 | LY51: =IF(IR51="NR","NR",ROUNDDOWN(IR51-FK51,0)) -> 0 | LZ51: =IF(IS51="NR","NR",ROUNDDOWN(IS51-FL51,0)) -> 0 | MA51: =IF(IT51="NR","NR",ROUNDDOWN(IT51-FM51,0)) -> 0 | MB51: =IF(IU51="NR","NR",ROUNDDOWN(IU51-FN51,0)) -> 0 | MC51: =IF(IV51="NR","NR",ROUNDDOWN(IV51-FO51,0)) -> 0 | MD51: =IF(IW51="NR","NR",ROUNDDOWN(IW51-FP51,0)) -> 0 | ME51: =IF(IX51="NR","NR",ROUNDDOWN(IX51-FQ51,0)) -> -389064 | MF51: =IF(IY51="NR","NR",ROUNDDOWN(IY51-FR51,0)) -> 0 | MG51: =IF(IZ51="NR","NR",ROUNDDOWN(IZ51-FS51,0)) -> 0 | MH51: =IF(JA51="NR","NR",ROUNDDOWN(JA51-FT51,0)) -> 0 | MI51: =IF(JB51="NR","NR",ROUNDDOWN(JB51-FU51,0)) -> 0 | MJ51: =IF(JC51="NR","NR",ROUNDDOWN(JC51-FV51,0)) -> 0 | MK51: =IF(JD51="NR","NR",ROUNDDOWN(JD51-FW51,0)) -> 0 | ML51: =IF(JE51="NR","NR",ROUNDDOWN(JE51-FX51,0)) -> 0 | MM51: =IF(JF51="NR","NR",ROUNDDOWN(JF51-FY51,0)) -> 0 | MN51: =IF(JG51="NR","NR",ROUNDDOWN(JG51-FZ51,0)) -> 0 | MO51: =IF(JH51="NR","NR",ROUNDDOWN(JH51-GA51,0)) -> 0 | MP51: =IF(JI51="NR","NR",ROUNDDOWN(JI51-GB51,0)) -> 0 | MQ51: =IF(JJ51="NR","NR",ROUNDDOWN(JJ51-GC51,0)) -> 0 | MR51: =IF(JK51="NR","NR",ROUNDDOWN(JK51-GD51,0)) -> 0 | MS51: =IF(JL51="NR","NR",ROUNDDOWN(JL51-GE51,0)) -> 0 | MT51: =IF(JM51="NR","NR",ROUNDDOWN(JM51-GF51,0)) -> 0 | MU51: =IF(JN51="NR","NR",ROUNDDOWN(JN51-GG51,0)) -> -389064 | MV51: =IF(JO51="NR","NR",ROUNDDOWN(JO51-GH51,0)) -> 0 | MW51: =IF(JP51="NR","NR",ROUNDDOWN(JP51-GI51,0)) -> 0 | MX51: =IF(JQ51="NR","NR",ROUNDDOWN(JQ51-GJ51,0)) -> 0 | MY51: =IF(JR51="NR","NR",ROUNDDOWN(JR51-GK51,0)) -> 0 | MZ51: =IF(JS51="NR","NR",ROUNDDOWN(JS51-GL51,0)) -> 0 | NA51: =IF(JT51="NR","NR",ROUNDDOWN(JT51-GM51,0)) -> 0 | NB51: =IF(JU51="NR","NR",ROUNDDOWN(JU51-GN51,0)) -> 0 | NC51: =IF(JV51="NR","NR",ROUNDDOWN(JV51-GO51,0)) -> 0 | ND51: =IF(JW51="NR","NR",ROUNDDOWN(JW51-GP51,0)) -> 0 | NE51: NR | NF51: NR | NG51: NR | NH51: =IF(KA51="NR","NR",ROUNDDOWN(KA51-GT51,0)) -> 0 | NI51: =IF(KB51="NR","NR",ROUNDDOWN(KB51-GU51,0)) -> 0 | NJ51: =IF(KC51="NR","NR",ROUNDDOWN(KC51-GV51,0)) -> 0
B52: 2018-04-24 | C52: 2018-03-01 | D52: 2018-04-03 | E52: 2018-04-19 | F52: 2018-04-24 | G52: 29 | H52: 0.0181 | I52: 2016-12-01 | J52: 1999995073 | K52: 1369905726 | L52: 84613039.07 | M52: 1342312461 | N52: 81763987.47 | O52: 1362166243 | P52: 84613039.07 | Q52: 6828315.61 | R52: 0.014715 | S52: 0 | T52: 5600240.59 | U52: 6306958.48 | V52: 0 | W52: 4919077.99 | X52: 307554.42 | Y52: 4464993.69 | Z52: 26886546.68 | AA52: 3858.57 | AB52: 0 | AC52: 0 | AD52: 0 | AE52: 0 | AF52: 13699057.26 | AG52: 0 | AH52: 1840000000 | AI52: 0 | AJ52: 70000000 | AK52: 48000000 | AL52: 14000000 | AM52: 12000000 | AN52: 8000000 | AO52: 8000000 | AP52: 10000 | AQ52: 1209905726 | AR52: 0 | AS52: 70000000 | AT52: 48000000 | AU52: 14000000 | AV52: 12000000 | AW52: 8000000 | AX52: 8000000 | AY52: 0 | AZ52: 0 | BA52: 0 | BB52: 0 | BC52: 0 | BD52: 0 | BE52: 0 | BF52: 0 | BG52: 1 | BH52: 351895.69 | BI52: 0 | BJ52: 5442.09 | BK52: 0 | BL52: 0 | BM52: 0 | BN52: 0 | BO52: 0 | BP52: 0 | BQ52: 0 | BR52: 0.0107 | BS52: 0 | BT52: 0.016 | BU52: 0.0225 | BV52: 0.0275 | BW52: 0.0375 | BX52: 0.0475 | BY52: 0.06 | BZ52: 0.0025 | CA52: 0.0025 | CB52: 0.02 | CC52: 0.02 | CD52: 0.02 | CE52: 0.02 | CF52: 0.02 | CG52: 0 | CH52: 0 | CI52: 0 | CJ52: 0 | CK52: 0 | CL52: 0 | CM52: 0 | CN52: 0 | CO52: 0 | CP52: 0 | CQ52: 0 | CR52: 0 | CS52: 0 | CT52: 0 | CU52: 0 | CV52: 0.1 | CW52: 2 | CX52: 0.007309432619 | CY52: 0.04 | CZ52: FALSE | DA52: FALSE | DB52: FALSE | DC52: FALSE | DD52: FALSE | DE52: FALSE | DF52: FALSE | DG52: FALSE | DH52: FALSE | DI52: FALSE | DJ52: 0 | DK52: 0 | DL52: 0 | DM52: 0 | DN52: 0 | DO52: Waterfall_1 | DP52: =waterfall_1(C52:DN52) -> 351895.69 | DQ52: 0 | DR52: 0 | DS52: 5442.09 | DT52: 0 | DU52: 0 | DV52: 0 | DW52: 0 | DX52: 0 | DY52: 372169.73 | DZ52: 0 | EA52: 372169.73 | EB52: 0 | EC52: 2768529.49 | ED52: 0 | EE52: 189652.05 | EF52: 154836.16 | EG52: 50722.19 | EH52: 53010.41 | EI52: 41696.44 | EJ52: 49641.64 | EK52: 0 | EL52: 0 | EM52: 0 | EN52: 0 | EO52: 0 | EP52: 0 | EQ52: 0 | ER52: 0 | ES52: 0 | ET52: 0 | EU52: 0 | EV52: 0 | EW52: 0 | EX52: 0 | EY52: 0 | EZ52: 0 | FA52: 0 | FB52: 0 | FC52: 1834005.17 | FD52: 103228.38 | FE52: 1 | FF52: 0 | FG52: 0 | FH52: 0 | FI52: 27221094.84 | FJ52: 0 | FK52: 0 | FL52: 0 | FM52: 0 | FN52: 0 | FO52: 0 | FP52: 0 | FQ52: 1182684631 | FR52: 0 | FS52: 70000000 | FT52: 48000000 | FU52: 14000000 | FV52: 12000000 | FW52: 8000000 | FX52: 8000000 | FY52: 0 | FZ52: 0 | GA52: 0 | GB52: 0 | GC52: 0 | GD52: 0 | GE52: 0 | GF52: 0 | GG52: 1182684631 | GH52: 0 | GI52: 70000000 | GJ52: 48000000 | GK52: 14000000 | GL52: 12000000 | GM52: 8000000 | GN52: 8000000 | GO52: 0 | GP52: 0 | GQ52: FALSE | GR52: FALSE | GS52: FALSE | GT52: 0 | GU52: 0 | GV52: 0 | GW52: 351895.69 | GX52: 0 | GY52: 0 | GZ52: 5442.09 | HA52: 0 | HB52: 0 | HC52: 0 | HD52: 0 | HE52: 0 | HF52: 0 | HG52: 0 | HH52: 0 | HI52: 0 | HJ52: 2768529.49 | HK52: 0 | HL52: 189652.05 | HM52: 154836.16 | HN52: 50722.19 | HO52: 53010.41 | HP52: 41696.44 | HQ52: 49641.64 | HR52: 0 | HS52: 0 | HT52: 0 | HU52: 0 | HV52: 0 | HW52: 0 | HX52: 0 | HY52: 0 | HZ52: 0 | IA52: 0 | IB52: 0 | IC52: 0 | ID52: 0 | IE52: 0 | IF52: 0 | IG52: 0 | IH52: 0 | II52: 0 | IJ52: 615954.44 | IK52: 22556.22 | IL52: 926554.16 | IM52: 0 | IN52: 0 | IO52: 0 | IP52: 27593264.57 | IQ52: 0 | IR52: 0 | IS52: 0 | IT52: 0 | IU52: 0 | IV52: 0 | IW52: 0 | IX52: 1182312461 | IY52: 0 | IZ52: 70000000 | JA52: 48000000 | JB52: 14000000 | JC52: 12000000 | JD52: 8000000 | JE52: 8000000 | JF52: 0 | JG52: 0 | JH52: 0 | JI52: 0 | JJ52: 0 | JK52: 0 | JL52: 0 | JM52: 0 | JN52: 1182312461 | JO52: 0 | JP52: 70000000 | JQ52: 48000000 | JR52: 14000000 | JS52: 12000000 | JT52: 8000000 | JU52: 8000000 | JV52: 0 | JW52: 0 | JX52: FALSE | JY52: FALSE | JZ52: FALSE | KA52: 0 | KB52: 0 | KC52: 0 | KD52: =IF(GW52="NR","NR",ROUNDDOWN(GW52-DP52,0)) -> 0 | KE52: =IF(GX52="NR","NR",ROUNDDOWN(GX52-DQ52,0)) -> 0 | KF52: =IF(GY52="NR","NR",ROUNDDOWN(GY52-DR52,0)) -> 0 | KG52: =IF(GZ52="NR","NR",ROUNDDOWN(GZ52-DS52,0)) -> 0 | KH52: =IF(HA52="NR","NR",ROUNDDOWN(HA52-DT52,0)) -> 0 | KI52: =IF(HB52="NR","NR",ROUNDDOWN(HB52-DU52,0)) -> 0 | KJ52: =IF(HC52="NR","NR",ROUNDDOWN(HC52-DV52,0)) -> 0 | KK52: =IF(HD52="NR","NR",ROUNDDOWN(HD52-DW52,0)) -> 0 | KL52: =IF(HE52="NR","NR",ROUNDDOWN(HE52-DX52,0)) -> 0 | KM52: =IF(HF52="NR","NR",ROUNDDOWN(HF52-DY52,0)) -> -372169 | KN52: =IF(HG52="NR","NR",ROUNDDOWN(HG52-DZ52,0)) -> 0 | KO52: =IF(HH52="NR","NR",ROUNDDOWN(HH52-EA52,0)) -> -372169 | KP52: =IF(HI52="NR","NR",ROUNDDOWN(HI52-EB52,0)) -> 0 | KQ52: =IF(HJ52="NR","NR",ROUNDDOWN(HJ52-EC52,0)) -> 0 | KR52: =IF(HK52="NR","NR",ROUNDDOWN(HK52-ED52,0)) -> 0 | KS52: =IF(HL52="NR","NR",ROUNDDOWN(HL52-EE52,0)) -> 0 | KT52: =IF(HM52="NR","NR",ROUNDDOWN(HM52-EF52,0)) -> 0 | KU52: =IF(HN52="NR","NR",ROUNDDOWN(HN52-EG52,0)) -> 0 | KV52: =IF(HO52="NR","NR",ROUNDDOWN(HO52-EH52,0)) -> 0 | KW52: =IF(HP52="NR","NR",ROUNDDOWN(HP52-EI52,0)) -> 0 | KX52: =IF(HQ52="NR","NR",ROUNDDOWN(HQ52-EJ52,0)) -> 0 | KY52: =IF(HR52="NR","NR",ROUNDDOWN(HR52-EK52,0)) -> 0 | KZ52: =IF(HS52="NR","NR",ROUNDDOWN(HS52-EL52,0)) -> 0 | LA52: =IF(HT52="NR","NR",ROUNDDOWN(HT52-EM52,0)) -> 0 | LB52: =IF(HU52="NR","NR",ROUNDDOWN(HU52-EN52,0)) -> 0 | LC52: =IF(HV52="NR","NR",ROUNDDOWN(HV52-EO52,0)) -> 0 | LD52: =IF(HW52="NR","NR",ROUNDDOWN(HW52-EP52,0)) -> 0 | LE52: =IF(HX52="NR","NR",ROUNDDOWN(HX52-EQ52,0)) -> 0 | LF52: =IF(HY52="NR","NR",ROUNDDOWN(HY52-ER52,0)) -> 0 | LG52: =IF(HZ52="NR","NR",ROUNDDOWN(HZ52-ES52,0)) -> 0 | LH52: =IF(IA52="NR","NR",ROUNDDOWN(IA52-ET52,0)) -> 0 | LI52: =IF(IB52="NR","NR",ROUNDDOWN(IB52-EU52,0)) -> 0 | LJ52: =IF(IC52="NR","NR",ROUNDDOWN(IC52-EV52,0)) -> 0 | LK52: =IF(ID52="NR","NR",ROUNDDOWN(ID52-EW52,0)) -> 0 | LL52: =IF(IE52="NR","NR",ROUNDDOWN(IE52-EX52,0)) -> 0 | LM52: =IF(IF52="NR","NR",ROUNDDOWN(IF52-EY52,0)) -> 0 | LN52: =IF(IG52="NR","NR",ROUNDDOWN(IG52-EZ52,0)) -> 0 | LO52: =IF(IH52="NR","NR",ROUNDDOWN(IH52-FA52,0)) -> 0 | LP52: =IF(II52="NR","NR",ROUNDDOWN(II52-FB52,0)) -> 0 | LQ52: =IF(IJ52="NR","NR",ROUNDDOWN(IJ52-FC52,0)) -> -1218050 | LR52: =IF(IK52="NR","NR",ROUNDDOWN(IK52-FD52,0)) -> -80672 | LS52: =IF(IL52="NR","NR",ROUNDDOWN(IL52-FE52,0)) -> 926553 | LT52: =IF(IM52="NR","NR",ROUNDDOWN(IM52-FF52,0)) -> 0 | LU52: =IF(IN52="NR","NR",ROUNDDOWN(IN52-FG52,0)) -> 0 | LV52: =IF(IO52="NR","NR",ROUNDDOWN(IO52-FH52,0)) -> 0 | LW52: =IF(IP52="NR","NR",ROUNDDOWN(IP52-FI52,0)) -> 372169 | LX52: =IF(IQ52="NR","NR",ROUNDDOWN(IQ52-FJ52,0)) -> 0 | LY52: =IF(IR52="NR","NR",ROUNDDOWN(IR52-FK52,0)) -> 0 | LZ52: =IF(IS52="NR","NR",ROUNDDOWN(IS52-FL52,0)) -> 0 | MA52: =IF(IT52="NR","NR",ROUNDDOWN(IT52-FM52,0)) -> 0 | MB52: =IF(IU52="NR","NR",ROUNDDOWN(IU52-FN52,0)) -> 0 | MC52: =IF(IV52="NR","NR",ROUNDDOWN(IV52-FO52,0)) -> 0 | MD52: =IF(IW52="NR","NR",ROUNDDOWN(IW52-FP52,0)) -> 0 | ME52: =IF(IX52="NR","NR",ROUNDDOWN(IX52-FQ52,0)) -> -372169 | MF52: =IF(IY52="NR","NR",ROUNDDOWN(IY52-FR52,0)) -> 0 | MG52: =IF(IZ52="NR","NR",ROUNDDOWN(IZ52-FS52,0)) -> 0 | MH52: =IF(JA52="NR","NR",ROUNDDOWN(JA52-FT52,0)) -> 0 | MI52: =IF(JB52="NR","NR",ROUNDDOWN(JB52-FU52,0)) -> 0 | MJ52: =IF(JC52="NR","NR",ROUNDDOWN(JC52-FV52,0)) -> 0 | MK52: =IF(JD52="NR","NR",ROUNDDOWN(JD52-FW52,0)) -> 0 | ML52: =IF(JE52="NR","NR",ROUNDDOWN(JE52-FX52,0)) -> 0 | MM52: =IF(JF52="NR","NR",ROUNDDOWN(JF52-FY52,0)) -> 0 | MN52: =IF(JG52="NR","NR",ROUNDDOWN(JG52-FZ52,0)) -> 0 | MO52: =IF(JH52="NR","NR",ROUNDDOWN(JH52-GA52,0)) -> 0 | MP52: =IF(JI52="NR","NR",ROUNDDOWN(JI52-GB52,0)) -> 0 | MQ52: =IF(JJ52="NR","NR",ROUNDDOWN(JJ52-GC52,0)) -> 0 | MR52: =IF(JK52="NR","NR",ROUNDDOWN(JK52-GD52,0)) -> 0 | MS52: =IF(JL52="NR","NR",ROUNDDOWN(JL52-GE52,0)) -> 0 | MT52: =IF(JM52="NR","NR",ROUNDDOWN(JM52-GF52,0)) -> 0 | MU52: =IF(JN52="NR","NR",ROUNDDOWN(JN52-GG52,0)) -> -372169 | MV52: =IF(JO52="NR","NR",ROUNDDOWN(JO52-GH52,0)) -> 0 | MW52: =IF(JP52="NR","NR",ROUNDDOWN(JP52-GI52,0)) -> 0 | MX52: =IF(JQ52="NR","NR",ROUNDDOWN(JQ52-GJ52,0)) -> 0 | MY52: =IF(JR52="NR","NR",ROUNDDOWN(JR52-GK52,0)) -> 0 | MZ52: =IF(JS52="NR","NR",ROUNDDOWN(JS52-GL52,0)) -> 0 | NA52: =IF(JT52="NR","NR",ROUNDDOWN(JT52-GM52,0)) -> 0 | NB52: =IF(JU52="NR","NR",ROUNDDOWN(JU52-GN52,0)) -> 0 | NC52: =IF(JV52="NR","NR",ROUNDDOWN(JV52-GO52,0)) -> 0 | ND52: =IF(JW52="NR","NR",ROUNDDOWN(JW52-GP52,0)) -> 0 | NE52: NR | NF52: NR | NG52: NR | NH52: =IF(KA52="NR","NR",ROUNDDOWN(KA52-GT52,0)) -> 0 | NI52: =IF(KB52="NR","NR",ROUNDDOWN(KB52-GU52,0)) -> 0 | NJ52: =IF(KC52="NR","NR",ROUNDDOWN(KC52-GV52,0)) -> 0
B53: 2018-05-24 | C53: 2018-04-04 | D53: 2018-04-30 | E53: 2018-05-21 | F53: 2018-05-24 | G53: 30 | H53: 0.01895 | I53: 2016-12-01 | J53: 1999995073 | K53: 1342312461 | L53: 81763987.47 | M53: 1318148511 | N53: 79929361.3 | O53: 1335484146 | P53: 81763987.47 | Q53: 5331611.08 | R53: 0.013608 | S53: 0 | T53: 4493967.91 | U53: 4668238.63 | V53: 0 | W53: 4419489.05 | X53: 274594.81 | Y53: 4830008.1 | Z53: 23989679.51 | AA53: 70.8 | AB53: 0 | AC53: 0 | AD53: 0 | AE53: 0 | AF53: 13423124.61 | AG53: 0 | AH53: 1840000000 | AI53: 0 | AJ53: 70000000 | AK53: 48000000 | AL53: 14000000 | AM53: 12000000 | AN53: 8000000 | AO53: 8000000 | AP53: 10000 | AQ53: 1182312461 | AR53: 0 | AS53: 70000000 | AT53: 48000000 | AU53: 14000000 | AV53: 12000000 | AW53: 8000000 | AX53: 8000000 | AY53: 0 | AZ53: 0 | BA53: 0 | BB53: 0 | BC53: 0 | BD53: 0 | BE53: 0 | BF53: 0 | BG53: 1 | BH53: 356977.35 | BI53: 0 | BJ53: 5516.35 | BK53: 0 | BL53: 0 | BM53: 0 | BN53: 0 | BO53: 0 | BP53: 0 | BQ53: 0 | BR53: 0.0107 | BS53: 0 | BT53: 0.016 | BU53: 0.0225 | BV53: 0.0275 | BW53: 0.0375 | BX53: 0.0475 | BY53: 0.06 | BZ53: 0.0025 | CA53: 0.0025 | CB53: 0.02 | CC53: 0.02 | CD53: 0.02 | CE53: 0.02 | CF53: 0.02 | CG53: 0 | CH53: 0 | CI53: 0 | CJ53: 0 | CK53: 0 | CL53: 0 | CM53: 0 | CN53: 0 | CO53: 0 | CP53: 0 | CQ53: 0 | CR53: 0 | CS53: 0 | CT53: 0 | CU53: 0 | CV53: 0.1 | CW53: 2 | CX53: 0.007519929212 | CY53: 0.04 | CZ53: FALSE | DA53: FALSE | DB53: FALSE | DC53: FALSE | DD53: FALSE | DE53: FALSE | DF53: FALSE | DG53: FALSE | DH53: FALSE | DI53: FALSE | DJ53: 0 | DK53: 0 | DL53: 0 | DM53: 0 | DN53: 0 | DO53: Waterfall_1 | DP53: =waterfall_1(C53:DN53) -> 356977.35 | DQ53: 0 | DR53: 0 | DS53: 5516.35 | DT53: 0 | DU53: 0 | DV53: 0 | DW53: 0 | DX53: 0 | DY53: 379977.15 | DZ53: 0 | EA53: 379977.15 | EB53: 0 | EC53: 2881279.27 | ED53: 0 | EE53: 201082.19 | EF53: 163528.77 | EG53: 53449.32 | EH53: 55676.71 | EI53: 43693.15 | EJ53: 51912.33 | EK53: 0 | EL53: 0 | EM53: 0 | EN53: 0 | EO53: 0 | EP53: 0 | EQ53: 0 | ER53: 0 | ES53: 0 | ET53: 0 | EU53: 0 | EV53: 0 | EW53: 0 | EX53: 0 | EY53: 0 | EZ53: 0 | FA53: 0 | FB53: 0 | FC53: 1196607.53 | FD53: 64407.84 | FE53: 1 | FF53: 0 | FG53: 0 | FH53: 0 | FI53: 23783973.08 | FJ53: 0 | FK53: 0 | FL53: 0 | FM53: 0 | FN53: 0 | FO53: 0 | FP53: 0 | FQ53: 1158528488 | FR53: 0 | FS53: 70000000 | FT53: 48000000 | FU53: 14000000 | FV53: 12000000 | FW53: 8000000 | FX53: 8000000 | FY53: 0 | FZ53: 0 | GA53: 0 | GB53: 0 | GC53: 0 | GD53: 0 | GE53: 0 | GF53: 0 | GG53: 1158528488 | GH53: 0 | GI53: 70000000 | GJ53: 48000000 | GK53: 14000000 | GL53: 12000000 | GM53: 8000000 | GN53: 8000000 | GO53: 0 | GP53: 0 | GQ53: FALSE | GR53: FALSE | GS53: FALSE | GT53: 0 | GU53: 0 | GV53: 0 | GW53: 356977.35 | GX53: 0 | GY53: 0 | GZ53: 5516.35 | HA53: 0 | HB53: 0 | HC53: 0 | HD53: 0 | HE53: 0 | HF53: 0 | HG53: 0 | HH53: 0 | HI53: 0 | HJ53: 2881279.27 | HK53: 0 | HL53: 201082.19 | HM53: 163528.77 | HN53: 53449.32 | HO53: 55676.71 | HP53: 43693.15 | HQ53: 51912.33 | HR53: 0 | HS53: 0 | HT53: 0 | HU53: 0 | HV53: 0 | HW53: 0 | HX53: 0 | HY53: 0 | HZ53: 0 | IA53: 0 | IB53: 0 | IC53: 0 | ID53: 0 | IE53: 0 | IF53: 0 | IG53: 0 | IH53: 0 | II53: 0 | IJ53: 0 | IK53: 0 | IL53: 937213.7 | IM53: 0 | IN53: 0 | IO53: 0 | IP53: 24163950.23 | IQ53: 0 | IR53: 0 | IS53: 0 | IT53: 0 | IU53: 0 | IV53: 0 | IW53: 0 | IX53: 1158148511 | IY53: 0 | IZ53: 70000000 | JA53: 48000000 | JB53: 14000000 | JC53: 12000000 | JD53: 8000000 | JE53: 8000000 | JF53: 0 | JG53: 0 | JH53: 0 | JI53: 0 | JJ53: 0 | JK53: 0 | JL53: 0 | JM53: 0 | JN53: 1158148511 | JO53: 0 | JP53: 70000000 | JQ53: 48000000 | JR53: 14000000 | JS53: 12000000 | JT53: 8000000 | JU53: 8000000 | JV53: 0 | JW53: 0 | JX53: FALSE | JY53: FALSE | JZ53: FALSE | KA53: 0 | KB53: 0 | KC53: 0 | KD53: =IF(GW53="NR","NR",ROUNDDOWN(GW53-DP53,0)) -> 0 | KE53: =IF(GX53="NR","NR",ROUNDDOWN(GX53-DQ53,0)) -> 0 | KF53: =IF(GY53="NR","NR",ROUNDDOWN(GY53-DR53,0)) -> 0 | KG53: =IF(GZ53="NR","NR",ROUNDDOWN(GZ53-DS53,0)) -> 0 | KH53: =IF(HA53="NR","NR",ROUNDDOWN(HA53-DT53,0)) -> 0 | KI53: =IF(HB53="NR","NR",ROUNDDOWN(HB53-DU53,0)) -> 0 | KJ53: =IF(HC53="NR","NR",ROUNDDOWN(HC53-DV53,0)) -> 0 | KK53: =IF(HD53="NR","NR",ROUNDDOWN(HD53-DW53,0)) -> 0 | KL53: =IF(HE53="NR","NR",ROUNDDOWN(HE53-DX53,0)) -> 0 | KM53: =IF(HF53="NR","NR",ROUNDDOWN(HF53-DY53,0)) -> -379977 | KN53: =IF(HG53="NR","NR",ROUNDDOWN(HG53-DZ53,0)) -> 0 | KO53: =IF(HH53="NR","NR",ROUNDDOWN(HH53-EA53,0)) -> -379977 | KP53: =IF(HI53="NR","NR",ROUNDDOWN(HI53-EB53,0)) -> 0 | KQ53: =IF(HJ53="NR","NR",ROUNDDOWN(HJ53-EC53,0)) -> 0 | KR53: =IF(HK53="NR","NR",ROUNDDOWN(HK53-ED53,0)) -> 0 | KS53: =IF(HL53="NR","NR",ROUNDDOWN(HL53-EE53,0)) -> 0 | KT53: =IF(HM53="NR","NR",ROUNDDOWN(HM53-EF53,0)) -> 0 | KU53: =IF(HN53="NR","NR",ROUNDDOWN(HN53-EG53,0)) -> 0 | KV53: =IF(HO53="NR","NR",ROUNDDOWN(HO53-EH53,0)) -> 0 | KW53: =IF(HP53="NR","NR",ROUNDDOWN(HP53-EI53,0)) -> 0 | KX53: =IF(HQ53="NR","NR",ROUNDDOWN(HQ53-EJ53,0)) -> 0 | KY53: =IF(HR53="NR","NR",ROUNDDOWN(HR53-EK53,0)) -> 0 | KZ53: =IF(HS53="NR","NR",ROUNDDOWN(HS53-EL53,0)) -> 0 | LA53: =IF(HT53="NR","NR",ROUNDDOWN(HT53-EM53,0)) -> 0 | LB53: =IF(HU53="NR","NR",ROUNDDOWN(HU53-EN53,0)) -> 0 | LC53: =IF(HV53="NR","NR",ROUNDDOWN(HV53-EO53,0)) -> 0 | LD53: =IF(HW53="NR","NR",ROUNDDOWN(HW53-EP53,0)) -> 0 | LE53: =IF(HX53="NR","NR",ROUNDDOWN(HX53-EQ53,0)) -> 0 | LF53: =IF(HY53="NR","NR",ROUNDDOWN(HY53-ER53,0)) -> 0 | LG53: =IF(HZ53="NR","NR",ROUNDDOWN(HZ53-ES53,0)) -> 0 | LH53: =IF(IA53="NR","NR",ROUNDDOWN(IA53-ET53,0)) -> 0 | LI53: =IF(IB53="NR","NR",ROUNDDOWN(IB53-EU53,0)) -> 0 | LJ53: =IF(IC53="NR","NR",ROUNDDOWN(IC53-EV53,0)) -> 0 | LK53: =IF(ID53="NR","NR",ROUNDDOWN(ID53-EW53,0)) -> 0 | LL53: =IF(IE53="NR","NR",ROUNDDOWN(IE53-EX53,0)) -> 0 | LM53: =IF(IF53="NR","NR",ROUNDDOWN(IF53-EY53,0)) -> 0 | LN53: =IF(IG53="NR","NR",ROUNDDOWN(IG53-EZ53,0)) -> 0 | LO53: =IF(IH53="NR","NR",ROUNDDOWN(IH53-FA53,0)) -> 0 | LP53: =IF(II53="NR","NR",ROUNDDOWN(II53-FB53,0)) -> 0 | LQ53: =IF(IJ53="NR","NR",ROUNDDOWN(IJ53-FC53,0)) -> -1196607 | LR53: =IF(IK53="NR","NR",ROUNDDOWN(IK53-FD53,0)) -> -64407 | LS53: =IF(IL53="NR","NR",ROUNDDOWN(IL53-FE53,0)) -> 937212 | LT53: =IF(IM53="NR","NR",ROUNDDOWN(IM53-FF53,0)) -> 0 | LU53: =IF(IN53="NR","NR",ROUNDDOWN(IN53-FG53,0)) -> 0 | LV53: =IF(IO53="NR","NR",ROUNDDOWN(IO53-FH53,0)) -> 0 | LW53: =IF(IP53="NR","NR",ROUNDDOWN(IP53-FI53,0)) -> 379977 | LX53: =IF(IQ53="NR","NR",ROUNDDOWN(IQ53-FJ53,0)) -> 0 | LY53: =IF(IR53="NR","NR",ROUNDDOWN(IR53-FK53,0)) -> 0 | LZ53: =IF(IS53="NR","NR",ROUNDDOWN(IS53-FL53,0)) -> 0 | MA53: =IF(IT53="NR","NR",ROUNDDOWN(IT53-FM53,0)) -> 0 | MB53: =IF(IU53="NR","NR",ROUNDDOWN(IU53-FN53,0)) -> 0 | MC53: =IF(IV53="NR","NR",ROUNDDOWN(IV53-FO53,0)) -> 0 | MD53: =IF(IW53="NR","NR",ROUNDDOWN(IW53-FP53,0)) -> 0 | ME53: =IF(IX53="NR","NR",ROUNDDOWN(IX53-FQ53,0)) -> -379977 | MF53: =IF(IY53="NR","NR",ROUNDDOWN(IY53-FR53,0)) -> 0 | MG53: =IF(IZ53="NR","NR",ROUNDDOWN(IZ53-FS53,0)) -> 0 | MH53: =IF(JA53="NR","NR",ROUNDDOWN(JA53-FT53,0)) -> 0 | MI53: =IF(JB53="NR","NR",ROUNDDOWN(JB53-FU53,0)) -> 0 | MJ53: =IF(JC53="NR","NR",ROUNDDOWN(JC53-FV53,0)) -> 0 | MK53: =IF(JD53="NR","NR",ROUNDDOWN(JD53-FW53,0)) -> 0 | ML53: =IF(JE53="NR","NR",ROUNDDOWN(JE53-FX53,0)) -> 0 | MM53: =IF(JF53="NR","NR",ROUNDDOWN(JF53-FY53,0)) -> 0 | MN53: =IF(JG53="NR","NR",ROUNDDOWN(JG53-FZ53,0)) -> 0 | MO53: =IF(JH53="NR","NR",ROUNDDOWN(JH53-GA53,0)) -> 0 | MP53: =IF(JI53="NR","NR",ROUNDDOWN(JI53-GB53,0)) -> 0 | MQ53: =IF(JJ53="NR","NR",ROUNDDOWN(JJ53-GC53,0)) -> 0 | MR53: =IF(JK53="NR","NR",ROUNDDOWN(JK53-GD53,0)) -> 0 | MS53: =IF(JL53="NR","NR",ROUNDDOWN(JL53-GE53,0)) -> 0 | MT53: =IF(JM53="NR","NR",ROUNDDOWN(JM53-GF53,0)) -> 0 | MU53: =IF(JN53="NR","NR",ROUNDDOWN(JN53-GG53,0)) -> -379977 | MV53: =IF(JO53="NR","NR",ROUNDDOWN(JO53-GH53,0)) -> 0 | MW53: =IF(JP53="NR","NR",ROUNDDOWN(JP53-GI53,0)) -> 0 | MX53: =IF(JQ53="NR","NR",ROUNDDOWN(JQ53-GJ53,0)) -> 0 | MY53: =IF(JR53="NR","NR",ROUNDDOWN(JR53-GK53,0)) -> 0 | MZ53: =IF(JS53="NR","NR",ROUNDDOWN(JS53-GL53,0)) -> 0 | NA53: =IF(JT53="NR","NR",ROUNDDOWN(JT53-GM53,0)) -> 0 | NB53: =IF(JU53="NR","NR",ROUNDDOWN(JU53-GN53,0)) -> 0 | NC53: =IF(JV53="NR","NR",ROUNDDOWN(JV53-GO53,0)) -> 0 | ND53: =IF(JW53="NR","NR",ROUNDDOWN(JW53-GP53,0)) -> 0 | NE53: NR | NF53: NR | NG53: NR | NH53: =IF(KA53="NR","NR",ROUNDDOWN(KA53-GT53,0)) -> 0 | NI53: =IF(KB53="NR","NR",ROUNDDOWN(KB53-GU53,0)) -> 0 | NJ53: =IF(KC53="NR","NR",ROUNDDOWN(KC53-GV53,0)) -> 0
B54: 2018-06-25 | C54: 2018-05-01 | D54: 2018-05-31 | E54: 2018-06-20 | F54: 2018-06-25 | G54: 32 | H54: 0.01845 | I54: 2016-12-01 | J54: 1999995073 | K54: 1318148511 | L54: 79929361.3 | M54: 1299469407 | N54: 78128554.13 | O54: 1312816900 | P54: 79929361.3 | Q54: 6240157.03 | R54: 0.012086 | S54: 0 | T54: 5135263.53 | U54: 1601809.03 | V54: 0 | W54: 4596280.13 | X54: 282361.13 | Y54: 4547413.1 | Z54: 22212558.8 | AA54: 71.57 | AB54: 0 | AC54: 0 | AD54: 0 | AE54: 0 | AF54: 13181485.11 | AG54: 0 | AH54: 1840000000 | AI54: 0 | AJ54: 70000000 | AK54: 48000000 | AL54: 14000000 | AM54: 12000000 | AN54: 8000000 | AO54: 8000000 | AP54: 10000 | AQ54: 1158148511 | AR54: 0 | AS54: 70000000 | AT54: 48000000 | AU54: 14000000 | AV54: 12000000 | AW54: 8000000 | AX54: 8000000 | AY54: 0 | AZ54: 0 | BA54: 0 | BB54: 0 | BC54: 0 | BD54: 0 | BE54: 0 | BF54: 0 | BG54: 1 | BH54: 373906.18 | BI54: 0 | BJ54: 5778.19 | BK54: 0 | BL54: 0 | BM54: 0 | BN54: 0 | BO54: 0 | BP54: 0 | BQ54: 0 | BR54: 0.0107 | BS54: 0 | BT54: 0.016 | BU54: 0.0225 | BV54: 0.0275 | BW54: 0.0375 | BX54: 0.0475 | BY54: 0.06 | BZ54: 0.0025 | CA54: 0.0025 | CB54: 0.02 | CC54: 0.02 | CD54: 0.02 | CE54: 0.02 | CF54: 0.02 | CG54: 0 | CH54: 0 | CI54: 0 | CJ54: 0 | CK54: 0 | CL54: 0 | CM54: 0 | CN54: 0 | CO54: 0 | CP54: 0 | CQ54: 0 | CR54: 0 | CS54: 0 | CT54: 0 | CU54: 0 | CV54: 0.1 | CW54: 2 | CX54: 0.007701836455 | CY54: 0.04 | CZ54: FALSE | DA54: FALSE | DB54: FALSE | DC54: FALSE | DD54: FALSE | DE54: FALSE | DF54: FALSE | DG54: FALSE | DH54: FALSE | DI54: FALSE | DJ54: 0 | DK54: 0 | DL54: 0 | DM54: 0 | DN54: 0 | DO54: Waterfall_1 | DP54: =waterfall_1(C54:DN54) -> 373906.18 | DQ54: 0 | DR54: 0 | DS54: 5778.19 | DT54: 0 | DU54: 0 | DV54: 0 | DW54: 0 | DX54: 0 | DY54: 394013.47 | DZ54: 0 | EA54: 394013.47 | EB54: 0 | EC54: 2959783.37 | ED54: 0 | EE54: 211419.18 | EF54: 172326.58 | EG54: 56398.9 | EH54: 58862.47 | EI54: 46255.34 | EJ54: 55022.47 | EK54: 0 | EL54: 0 | EM54: 0 | EN54: 0 | EO54: 0 | EP54: 0 | EQ54: 0 | ER54: 0 | ES54: 0 | ET54: 0 | EU54: 0 | EV54: 0 | EW54: 0 | EX54: 0 | EY54: 0 | EZ54: 0 | FA54: 0 | FB54: 0 | FC54: 1266485.49 | FD54: 66487.13 | FE54: 1 | FF54: 0 | FG54: 0 | FH54: 0 | FI54: 18285090.83 | FJ54: 0 | FK54: 0 | FL54: 0 | FM54: 0 | FN54: 0 | FO54: 0 | FP54: 0 | FQ54: 1139863420 | FR54: 0 | FS54: 70000000 | FT54: 48000000 | FU54: 14000000 | FV54: 12000000 | FW54: 8000000 | FX54: 8000000 | FY54: 0 | FZ54: 0 | GA54: 0 | GB54: 0 | GC54: 0 | GD54: 0 | GE54: 0 | GF54: 0 | GG54: 1139863420 | GH54: 0 | GI54: 70000000 | GJ54: 48000000 | GK54: 14000000 | GL54: 12000000 | GM54: 8000000 | GN54: 8000000 | GO54: 0 | GP54: 0 | GQ54: FALSE | GR54: FALSE | GS54: FALSE | GT54: 0 | GU54: 0 | GV54: 0 | GW54: 373906.18 | GX54: 0 | GY54: 0 | GZ54: 5778.19 | HA54: 0 | HB54: 0 | HC54: 0 | HD54: 0 | HE54: 0 | HF54: 0 | HG54: 0 | HH54: 0 | HI54: 0 | HJ54: 2959783.37 | HK54: 0 | HL54: 211419.18 | HM54: 172326.58 | HN54: 56398.9 | HO54: 58862.47 | HP54: 46255.34 | HQ54: 55022.47 | HR54: 0 | HS54: 0 | HT54: 0 | HU54: 0 | HV54: 0 | HW54: 0 | HX54: 0 | HY54: 0 | HZ54: 0 | IA54: 0 | IB54: 0 | IC54: 0 | ID54: 0 | IE54: 0 | IF54: 0 | IG54: 0 | IH54: 0 | II54: 0 | IJ54: 0 | IK54: 0 | IL54: 987142.85 | IM54: 0 | IN54: 0 | IO54: 0 | IP54: 18679104.3 | IQ54: 0 | IR54: 0 | IS54: 0 | IT54: 0 | IU54: 0 | IV54: 0 | IW54: 0 | IX54: 1139469407 | IY54: 0 | IZ54: 70000000 | JA54: 48000000 | JB54: 14000000 | JC54: 12000000 | JD54: 8000000 | JE54: 8000000 | JF54: 0 | JG54: 0 | JH54: 0 | JI54: 0 | JJ54: 0 | JK54: 0 | JL54: 0 | JM54: 0 | JN54: 1139469407 | JO54: 0 | JP54: 70000000 | JQ54: 48000000 | JR54: 14000000 | JS54: 12000000 | JT54: 8000000 | JU54: 8000000 | JV54: 0 | JW54: 0 | JX54: FALSE | JY54: FALSE | JZ54: FALSE | KA54: 0 | KB54: 0 | KC54: 0 | KD54: =IF(GW54="NR","NR",ROUNDDOWN(GW54-DP54,0)) -> 0 | KE54: =IF(GX54="NR","NR",ROUNDDOWN(GX54-DQ54,0)) -> 0 | KF54: =IF(GY54="NR","NR",ROUNDDOWN(GY54-DR54,0)) -> 0 | KG54: =IF(GZ54="NR","NR",ROUNDDOWN(GZ54-DS54,0)) -> 0 | KH54: =IF(HA54="NR","NR",ROUNDDOWN(HA54-DT54,0)) -> 0 | KI54: =IF(HB54="NR","NR",ROUNDDOWN(HB54-DU54,0)) -> 0 | KJ54: =IF(HC54="NR","NR",ROUNDDOWN(HC54-DV54,0)) -> 0 | KK54: =IF(HD54="NR","NR",ROUNDDOWN(HD54-DW54,0)) -> 0 | KL54: =IF(HE54="NR","NR",ROUNDDOWN(HE54-DX54,0)) -> 0 | KM54: =IF(HF54="NR","NR",ROUNDDOWN(HF54-DY54,0)) -> -394013 | KN54: =IF(HG54="NR","NR",ROUNDDOWN(HG54-DZ54,0)) -> 0 | KO54: =IF(HH54="NR","NR",ROUNDDOWN(HH54-EA54,0)) -> -394013 | KP54: =IF(HI54="NR","NR",ROUNDDOWN(HI54-EB54,0)) -> 0 | KQ54: =IF(HJ54="NR","NR",ROUNDDOWN(HJ54-EC54,0)) -> 0 | KR54: =IF(HK54="NR","NR",ROUNDDOWN(HK54-ED54,0)) -> 0 | KS54: =IF(HL54="NR","NR",ROUNDDOWN(HL54-EE54,0)) -> 0 | KT54: =IF(HM54="NR","NR",ROUNDDOWN(HM54-EF54,0)) -> 0 | KU54: =IF(HN54="NR","NR",ROUNDDOWN(HN54-EG54,0)) -> 0 | KV54: =IF(HO54="NR","NR",ROUNDDOWN(HO54-EH54,0)) -> 0 | KW54: =IF(HP54="NR","NR",ROUNDDOWN(HP54-EI54,0)) -> 0 | KX54: =IF(HQ54="NR","NR",ROUNDDOWN(HQ54-EJ54,0)) -> 0 | KY54: =IF(HR54="NR","NR",ROUNDDOWN(HR54-EK54,0)) -> 0 | KZ54: =IF(HS54="NR","NR",ROUNDDOWN(HS54-EL54,0)) -> 0 | LA54: =IF(HT54="NR","NR",ROUNDDOWN(HT54-EM54,0)) -> 0 | LB54: =IF(HU54="NR","NR",ROUNDDOWN(HU54-EN54,0)) -> 0 | LC54: =IF(HV54="NR","NR",ROUNDDOWN(HV54-EO54,0)) -> 0 | LD54: =IF(HW54="NR","NR",ROUNDDOWN(HW54-EP54,0)) -> 0 | LE54: =IF(HX54="NR","NR",ROUNDDOWN(HX54-EQ54,0)) -> 0 | LF54: =IF(HY54="NR","NR",ROUNDDOWN(HY54-ER54,0)) -> 0 | LG54: =IF(HZ54="NR","NR",ROUNDDOWN(HZ54-ES54,0)) -> 0 | LH54: =IF(IA54="NR","NR",ROUNDDOWN(IA54-ET54,0)) -> 0 | LI54: =IF(IB54="NR","NR",ROUNDDOWN(IB54-EU54,0)) -> 0 | LJ54: =IF(IC54="NR","NR",ROUNDDOWN(IC54-EV54,0)) -> 0 | LK54: =IF(ID54="NR","NR",ROUNDDOWN(ID54-EW54,0)) -> 0 | LL54: =IF(IE54="NR","NR",ROUNDDOWN(IE54-EX54,0)) -> 0 | LM54: =IF(IF54="NR","NR",ROUNDDOWN(IF54-EY54,0)) -> 0 | LN54: =IF(IG54="NR","NR",ROUNDDOWN(IG54-EZ54,0)) -> 0 | LO54: =IF(IH54="NR","NR",ROUNDDOWN(IH54-FA54,0)) -> 0 | LP54: =IF(II54="NR","NR",ROUNDDOWN(II54-FB54,0)) -> 0 | LQ54: =IF(IJ54="NR","NR",ROUNDDOWN(IJ54-FC54,0)) -> -1266485 | LR54: =IF(IK54="NR","NR",ROUNDDOWN(IK54-FD54,0)) -> -66487 | LS54: =IF(IL54="NR","NR",ROUNDDOWN(IL54-FE54,0)) -> 987141 | LT54: =IF(IM54="NR","NR",ROUNDDOWN(IM54-FF54,0)) -> 0 | LU54: =IF(IN54="NR","NR",ROUNDDOWN(IN54-FG54,0)) -> 0 | LV54: =IF(IO54="NR","NR",ROUNDDOWN(IO54-FH54,0)) -> 0 | LW54: =IF(IP54="NR","NR",ROUNDDOWN(IP54-FI54,0)) -> 394013 | LX54: =IF(IQ54="NR","NR",ROUNDDOWN(IQ54-FJ54,0)) -> 0 | LY54: =IF(IR54="NR","NR",ROUNDDOWN(IR54-FK54,0)) -> 0 | LZ54: =IF(IS54="NR","NR",ROUNDDOWN(IS54-FL54,0)) -> 0 | MA54: =IF(IT54="NR","NR",ROUNDDOWN(IT54-FM54,0)) -> 0 | MB54: =IF(IU54="NR","NR",ROUNDDOWN(IU54-FN54,0)) -> 0 | MC54: =IF(IV54="NR","NR",ROUNDDOWN(IV54-FO54,0)) -> 0 | MD54: =IF(IW54="NR","NR",ROUNDDOWN(IW54-FP54,0)) -> 0 | ME54: =IF(IX54="NR","NR",ROUNDDOWN(IX54-FQ54,0)) -> -394013 | MF54: =IF(IY54="NR","NR",ROUNDDOWN(IY54-FR54,0)) -> 0 | MG54: =IF(IZ54="NR","NR",ROUNDDOWN(IZ54-FS54,0)) -> 0 | MH54: =IF(JA54="NR","NR",ROUNDDOWN(JA54-FT54,0)) -> 0 | MI54: =IF(JB54="NR","NR",ROUNDDOWN(JB54-FU54,0)) -> 0 | MJ54: =IF(JC54="NR","NR",ROUNDDOWN(JC54-FV54,0)) -> 0 | MK54: =IF(JD54="NR","NR",ROUNDDOWN(JD54-FW54,0)) -> 0 | ML54: =IF(JE54="NR","NR",ROUNDDOWN(JE54-FX54,0)) -> 0 | MM54: =IF(JF54="NR","NR",ROUNDDOWN(JF54-FY54,0)) -> 0 | MN54: =IF(JG54="NR","NR",ROUNDDOWN(JG54-FZ54,0)) -> 0 | MO54: =IF(JH54="NR","NR",ROUNDDOWN(JH54-GA54,0)) -> 0 | MP54: =IF(JI54="NR","NR",ROUNDDOWN(JI54-GB54,0)) -> 0 | MQ54: =IF(JJ54="NR","NR",ROUNDDOWN(JJ54-GC54,0)) -> 0 | MR54: =IF(JK54="NR","NR",ROUNDDOWN(JK54-GD54,0)) -> 0 | MS54: =IF(JL54="NR","NR",ROUNDDOWN(JL54-GE54,0)) -> 0 | MT54: =IF(JM54="NR","NR",ROUNDDOWN(JM54-GF54,0)) -> 0 | MU54: =IF(JN54="NR","NR",ROUNDDOWN(JN54-GG54,0)) -> -394013 | MV54: =IF(JO54="NR","NR",ROUNDDOWN(JO54-GH54,0)) -> 0 | MW54: =IF(JP54="NR","NR",ROUNDDOWN(JP54-GI54,0)) -> 0 | MX54: =IF(JQ54="NR","NR",ROUNDDOWN(JQ54-GJ54,0)) -> 0 | MY54: =IF(JR54="NR","NR",ROUNDDOWN(JR54-GK54,0)) -> 0 | MZ54: =IF(JS54="NR","NR",ROUNDDOWN(JS54-GL54,0)) -> 0 | NA54: =IF(JT54="NR","NR",ROUNDDOWN(JT54-GM54,0)) -> 0 | NB54: =IF(JU54="NR","NR",ROUNDDOWN(JU54-GN54,0)) -> 0 | NC54: =IF(JV54="NR","NR",ROUNDDOWN(JV54-GO54,0)) -> 0 | ND54: =IF(JW54="NR","NR",ROUNDDOWN(JW54-GP54,0)) -> 0 | NE54: NR | NF54: NR | NG54: NR | NH54: =IF(KA54="NR","NR",ROUNDDOWN(KA54-GT54,0)) -> 0 | NI54: =IF(KB54="NR","NR",ROUNDDOWN(KB54-GU54,0)) -> 0 | NJ54: =IF(KC54="NR","NR",ROUNDDOWN(KC54-GV54,0)) -> 0
B55: 2018-07-24 | C55: 2018-06-01 | D55: 2018-07-02 | E55: 2018-07-19 | F55: 2018-07-24 | G55: 29 | H55: 0.0201 | I55: 2016-12-01 | J55: 1999995073 | K55: 1299469407 | L55: 78128554.13 | M55: 1280217670 | N55: 76260677.77 | O55: 1293229250 | P55: 78128554.13 | Q55: 6231134.04 | R55: 0.011966 | S55: 0 | T55: 5800912.41 | U55: 2735016.53 | V55: 0 | W55: 4910209.84 | X55: 294414.72 | Y55: 4172327.08 | Z55: 22317632.58 | AA55: 18.25 | AB55: 0 | AC55: 0 | AD55: 0 | AE55: 0 | AF55: 12994694.07 | AG55: 0 | AH55: 1840000000 | AI55: 0 | AJ55: 70000000 | AK55: 48000000 | AL55: 14000000 | AM55: 12000000 | AN55: 8000000 | AO55: 8000000 | AP55: 10000 | AQ55: 1139469407 | AR55: 0 | AS55: 70000000 | AT55: 48000000 | AU55: 14000000 | AV55: 12000000 | AW55: 8000000 | AX55: 8000000 | AY55: 0 | AZ55: 0 | BA55: 0 | BB55: 0 | BC55: 0 | BD55: 0 | BE55: 0 | BF55: 0 | BG55: 1 | BH55: 339325.63 | BI55: 0 | BJ55: 5162.28 | BK55: 0 | BL55: 0 | BM55: 0 | BN55: 0 | BO55: 0 | BP55: 0 | BQ55: 0 | BR55: 0.0107 | BS55: 0 | BT55: 0.016 | BU55: 0.0225 | BV55: 0.0275 | BW55: 0.0375 | BX55: 0.0475 | BY55: 0.06 | BZ55: 0.0025 | CA55: 0.0025 | CB55: 0.02 | CC55: 0.02 | CD55: 0.02 | CE55: 0.02 | CF55: 0.02 | CG55: 0 | CH55: 0 | CI55: 0 | CJ55: 0 | CK55: 0 | CL55: 0 | CM55: 0 | CN55: 0 | CO55: 0 | CP55: 0 | CQ55: 0 | CR55: 0 | CS55: 0 | CT55: 0 | CU55: 0 | CV55: 0.1 | CW55: 2 | CX55: 0.007772029133 | CY55: 0.04 | CZ55: FALSE | DA55: FALSE | DB55: FALSE | DC55: FALSE | DD55: FALSE | DE55: FALSE | DF55: FALSE | DG55: FALSE | DH55: FALSE | DI55: FALSE | DJ55: 0 | DK55: 0 | DL55: 0 | DM55: 0 | DN55: 0 | DO55: Waterfall_1 | DP55: =waterfall_1(C55:DN55) -> 339325.63 | DQ55: 0 | DR55: 0 | DS55: 5162.28 | DT55: 0 | DU55: 0 | DV55: 0 | DW55: 0 | DX55: 0 | DY55: 360573.98 | DZ55: 0 | EA55: 360573.98 | EB55: 0 | EC55: 2788422.12 | ED55: 0 | EE55: 200775.34 | EF55: 162463.56 | EG55: 52946.85 | EH55: 54917.26 | EI55: 42967.67 | EJ55: 50912.88 | EK55: 0 | EL55: 0 | EM55: 0 | EN55: 0 | EO55: 0 | EP55: 0 | EQ55: 0 | ER55: 0 | ES55: 0 | ET55: 0 | EU55: 0 | EV55: 0 | EW55: 0 | EX55: 0 | EY55: 0 | EZ55: 0 | FA55: 0 | FB55: 0 | FC55: 1774525.72 | FD55: 92796.48 | FE55: 1 | FF55: 0 | FG55: 0 | FH55: 0 | FI55: 18891162.72 | FJ55: 0 | FK55: 0 | FL55: 0 | FM55: 0 | FN55: 0 | FO55: 0 | FP55: 0 | FQ55: 1120578244 | FR55: 0 | FS55: 70000000 | FT55: 48000000 | FU55: 14000000 | FV55: 12000000 | FW55: 8000000 | FX55: 8000000 | FY55: 0 | FZ55: 0 | GA55: 0 | GB55: 0 | GC55: 0 | GD55: 0 | GE55: 0 | GF55: 0 | GG55: 1120578244 | GH55: 0 | GI55: 70000000 | GJ55: 48000000 | GK55: 14000000 | GL55: 12000000 | GM55: 8000000 | GN55: 8000000 | GO55: 0 | GP55: 0 | GQ55: FALSE | GR55: FALSE | GS55: FALSE | GT55: 0 | GU55: 0 | GV55: 0 | GW55: 339325.63 | GX55: 0 | GY55: 0 | GZ55: 5162.28 | HA55: 0 | HB55: 0 | HC55: 0 | HD55: 0 | HE55: 0 | HF55: 0 | HG55: 0 | HH55: 0 | HI55: 0 | HJ55: 2788422.12 | HK55: 0 | HL55: 200775.34 | HM55: 162463.56 | HN55: 52946.85 | HO55: 54917.26 | HP55: 42967.67 | HQ55: 50912.88 | HR55: 0 | HS55: 0 | HT55: 0 | HU55: 0 | HV55: 0 | HW55: 0 | HX55: 0 | HY55: 0 | HZ55: 0 | IA55: 0 | IB55: 0 | IC55: 0 | ID55: 0 | IE55: 0 | IF55: 0 | IG55: 0 | IH55: 0 | II55: 0 | IJ55: 616018.76 | IK55: 18306.79 | IL55: 872423.67 | IM55: 0 | IN55: 0 | IO55: 0 | IP55: 19251736.7 | IQ55: 0 | IR55: 0 | IS55: 0 | IT55: 0 | IU55: 0 | IV55: 0 | IW55: 0 | IX55: 1120217670 | IY55: 0 | IZ55: 70000000 | JA55: 48000000 | JB55: 14000000 | JC55: 12000000 | JD55: 8000000 | JE55: 8000000 | JF55: 0 | JG55: 0 | JH55: 0 | JI55: 0 | JJ55: 0 | JK55: 0 | JL55: 0 | JM55: 0 | JN55: 1120217670 | JO55: 0 | JP55: 70000000 | JQ55: 48000000 | JR55: 14000000 | JS55: 12000000 | JT55: 8000000 | JU55: 8000000 | JV55: 0 | JW55: 0 | JX55: FALSE | JY55: FALSE | JZ55: FALSE | KA55: 0 | KB55: 0 | KC55: 0 | KD55: =IF(GW55="NR","NR",ROUNDDOWN(GW55-DP55,0)) -> 0 | KE55: =IF(GX55="NR","NR",ROUNDDOWN(GX55-DQ55,0)) -> 0 | KF55: =IF(GY55="NR","NR",ROUNDDOWN(GY55-DR55,0)) -> 0 | KG55: =IF(GZ55="NR","NR",ROUNDDOWN(GZ55-DS55,0)) -> 0 | KH55: =IF(HA55="NR","NR",ROUNDDOWN(HA55-DT55,0)) -> 0 | KI55: =IF(HB55="NR","NR",ROUNDDOWN(HB55-DU55,0)) -> 0 | KJ55: =IF(HC55="NR","NR",ROUNDDOWN(HC55-DV55,0)) -> 0 | KK55: =IF(HD55="NR","NR",ROUNDDOWN(HD55-DW55,0)) -> 0 | KL55: =IF(HE55="NR","NR",ROUNDDOWN(HE55-DX55,0)) -> 0 | KM55: =IF(HF55="NR","NR",ROUNDDOWN(HF55-DY55,0)) -> -360573 | KN55: =IF(HG55="NR","NR",ROUNDDOWN(HG55-DZ55,0)) -> 0 | KO55: =IF(HH55="NR","NR",ROUNDDOWN(HH55-EA55,0)) -> -360573 | KP55: =IF(HI55="NR","NR",ROUNDDOWN(HI55-EB55,0)) -> 0 | KQ55: =IF(HJ55="NR","NR",ROUNDDOWN(HJ55-EC55,0)) -> 0 | KR55: =IF(HK55="NR","NR",ROUNDDOWN(HK55-ED55,0)) -> 0 | KS55: =IF(HL55="NR","NR",ROUNDDOWN(HL55-EE55,0)) -> 0 | KT55: =IF(HM55="NR","NR",ROUNDDOWN(HM55-EF55,0)) -> 0 | KU55: =IF(HN55="NR","NR",ROUNDDOWN(HN55-EG55,0)) -> 0 | KV55: =IF(HO55="NR","NR",ROUNDDOWN(HO55-EH55,0)) -> 0 | KW55: =IF(HP55="NR","NR",ROUNDDOWN(HP55-EI55,0)) -> 0 | KX55: =IF(HQ55="NR","NR",ROUNDDOWN(HQ55-EJ55,0)) -> 0 | KY55: =IF(HR55="NR","NR",ROUNDDOWN(HR55-EK55,0)) -> 0 | KZ55: =IF(HS55="NR","NR",ROUNDDOWN(HS55-EL55,0)) -> 0 | LA55: =IF(HT55="NR","NR",ROUNDDOWN(HT55-EM55,0)) -> 0 | LB55: =IF(HU55="NR","NR",ROUNDDOWN(HU55-EN55,0)) -> 0 | LC55: =IF(HV55="NR","NR",ROUNDDOWN(HV55-EO55,0)) -> 0 | LD55: =IF(HW55="NR","NR",ROUNDDOWN(HW55-EP55,0)) -> 0 | LE55: =IF(HX55="NR","NR",ROUNDDOWN(HX55-EQ55,0)) -> 0 | LF55: =IF(HY55="NR","NR",ROUNDDOWN(HY55-ER55,0)) -> 0 | LG55: =IF(HZ55="NR","NR",ROUNDDOWN(HZ55-ES55,0)) -> 0 | LH55: =IF(IA55="NR","NR",ROUNDDOWN(IA55-ET55,0)) -> 0 | LI55: =IF(IB55="NR","NR",ROUNDDOWN(IB55-EU55,0)) -> 0 | LJ55: =IF(IC55="NR","NR",ROUNDDOWN(IC55-EV55,0)) -> 0 | LK55: =IF(ID55="NR","NR",ROUNDDOWN(ID55-EW55,0)) -> 0 | LL55: =IF(IE55="NR","NR",ROUNDDOWN(IE55-EX55,0)) -> 0 | LM55: =IF(IF55="NR","NR",ROUNDDOWN(IF55-EY55,0)) -> 0 | LN55: =IF(IG55="NR","NR",ROUNDDOWN(IG55-EZ55,0)) -> 0 | LO55: =IF(IH55="NR","NR",ROUNDDOWN(IH55-FA55,0)) -> 0 | LP55: =IF(II55="NR","NR",ROUNDDOWN(II55-FB55,0)) -> 0 | LQ55: =IF(IJ55="NR","NR",ROUNDDOWN(IJ55-FC55,0)) -> -1158506 | LR55: =IF(IK55="NR","NR",ROUNDDOWN(IK55-FD55,0)) -> -74489 | LS55: =IF(IL55="NR","NR",ROUNDDOWN(IL55-FE55,0)) -> 872422 | LT55: =IF(IM55="NR","NR",ROUNDDOWN(IM55-FF55,0)) -> 0 | LU55: =IF(IN55="NR","NR",ROUNDDOWN(IN55-FG55,0)) -> 0 | LV55: =IF(IO55="NR","NR",ROUNDDOWN(IO55-FH55,0)) -> 0 | LW55: =IF(IP55="NR","NR",ROUNDDOWN(IP55-FI55,0)) -> 360573 | LX55: =IF(IQ55="NR","NR",ROUNDDOWN(IQ55-FJ55,0)) -> 0 | LY55: =IF(IR55="NR","NR",ROUNDDOWN(IR55-FK55,0)) -> 0 | LZ55: =IF(IS55="NR","NR",ROUNDDOWN(IS55-FL55,0)) -> 0 | MA55: =IF(IT55="NR","NR",ROUNDDOWN(IT55-FM55,0)) -> 0 | MB55: =IF(IU55="NR","NR",ROUNDDOWN(IU55-FN55,0)) -> 0 | MC55: =IF(IV55="NR","NR",ROUNDDOWN(IV55-FO55,0)) -> 0 | MD55: =IF(IW55="NR","NR",ROUNDDOWN(IW55-FP55,0)) -> 0 | ME55: =IF(IX55="NR","NR",ROUNDDOWN(IX55-FQ55,0)) -> -360573 | MF55: =IF(IY55="NR","NR",ROUNDDOWN(IY55-FR55,0)) -> 0 | MG55: =IF(IZ55="NR","NR",ROUNDDOWN(IZ55-FS55,0)) -> 0 | MH55: =IF(JA55="NR","NR",ROUNDDOWN(JA55-FT55,0)) -> 0 | MI55: =IF(JB55="NR","NR",ROUNDDOWN(JB55-FU55,0)) -> 0 | MJ55: =IF(JC55="NR","NR",ROUNDDOWN(JC55-FV55,0)) -> 0 | MK55: =IF(JD55="NR","NR",ROUNDDOWN(JD55-FW55,0)) -> 0 | ML55: =IF(JE55="NR","NR",ROUNDDOWN(JE55-FX55,0)) -> 0 | MM55: =IF(JF55="NR","NR",ROUNDDOWN(JF55-FY55,0)) -> 0 | MN55: =IF(JG55="NR","NR",ROUNDDOWN(JG55-FZ55,0)) -> 0 | MO55: =IF(JH55="NR","NR",ROUNDDOWN(JH55-GA55,0)) -> 0 | MP55: =IF(JI55="NR","NR",ROUNDDOWN(JI55-GB55,0)) -> 0 | MQ55: =IF(JJ55="NR","NR",ROUNDDOWN(JJ55-GC55,0)) -> 0 | MR55: =IF(JK55="NR","NR",ROUNDDOWN(JK55-GD55,0)) -> 0 | MS55: =IF(JL55="NR","NR",ROUNDDOWN(JL55-GE55,0)) -> 0 | MT55: =IF(JM55="NR","NR",ROUNDDOWN(JM55-GF55,0)) -> 0 | MU55: =IF(JN55="NR","NR",ROUNDDOWN(JN55-GG55,0)) -> -360573 | MV55: =IF(JO55="NR","NR",ROUNDDOWN(JO55-GH55,0)) -> 0 | MW55: =IF(JP55="NR","NR",ROUNDDOWN(JP55-GI55,0)) -> 0 | MX55: =IF(JQ55="NR","NR",ROUNDDOWN(JQ55-GJ55,0)) -> 0 | MY55: =IF(JR55="NR","NR",ROUNDDOWN(JR55-GK55,0)) -> 0 | MZ55: =IF(JS55="NR","NR",ROUNDDOWN(JS55-GL55,0)) -> 0 | NA55: =IF(JT55="NR","NR",ROUNDDOWN(JT55-GM55,0)) -> 0 | NB55: =IF(JU55="NR","NR",ROUNDDOWN(JU55-GN55,0)) -> 0 | NC55: =IF(JV55="NR","NR",ROUNDDOWN(JV55-GO55,0)) -> 0 | ND55: =IF(JW55="NR","NR",ROUNDDOWN(JW55-GP55,0)) -> 0 | NE55: NR | NF55: NR | NG55: NR | NH55: =IF(KA55="NR","NR",ROUNDDOWN(KA55-GT55,0)) -> 0 | NI55: =IF(KB55="NR","NR",ROUNDDOWN(KB55-GU55,0)) -> 0 | NJ55: =IF(KC55="NR","NR",ROUNDDOWN(KC55-GV55,0)) -> 0
B56: 2018-08-24 | C56: 2018-07-03 | D56: 2018-07-31 | E56: 2018-08-21 | F56: 2018-08-24 | G56: 31 | H56: 0.01885 | I56: 2016-12-01 | J56: 1999995073 | K56: 1280217670 | L56: 76260677.77 | M56: 1254456735 | N56: 73155198.72 | O56: 1273986536 | P56: 76260677.77 | Q56: 6402713.84 | R56: 0.012749 | S56: 0 | T56: 4860805.94 | U56: 2565121.13 | V56: 0 | W56: 4202607.43 | X56: 247762.32 | Y56: 4708692.47 | Z56: 28056620.27 | AA56: 4080.09 | AB56: 0 | AC56: 0 | AD56: 0 | AE56: 0 | AF56: 12802176.7 | AG56: 0 | AH56: 1840000000 | AI56: 0 | AJ56: 70000000 | AK56: 48000000 | AL56: 14000000 | AM56: 12000000 | AN56: 8000000 | AO56: 8000000 | AP56: 10000 | AQ56: 1120217670 | AR56: 0 | AS56: 70000000 | AT56: 48000000 | AU56: 14000000 | AV56: 12000000 | AW56: 8000000 | AX56: 8000000 | AY56: 0 | AZ56: 0 | BA56: 0 | BB56: 0 | BC56: 0 | BD56: 0 | BE56: 0 | BF56: 0 | BG56: 1 | BH56: 351675.61 | BI56: 0 | BJ56: 5436.54 | BK56: 0 | BL56: 0 | BM56: 0 | BN56: 0 | BO56: 0 | BP56: 0 | BQ56: 0 | BR56: 0.0107 | BS56: 0 | BT56: 0.016 | BU56: 0.0225 | BV56: 0.0275 | BW56: 0.0375 | BX56: 0.0475 | BY56: 0.06 | BZ56: 0.0025 | CA56: 0.0025 | CB56: 0.02 | CC56: 0.02 | CD56: 0.02 | CE56: 0.02 | CF56: 0.02 | CG56: 0 | CH56: 0 | CI56: 0 | CJ56: 0 | CK56: 0 | CL56: 0 | CM56: 0 | CN56: 0 | CO56: 0 | CP56: 0 | CQ56: 0 | CR56: 0 | CS56: 0 | CT56: 0 | CU56: 0 | CV56: 0.1 | CW56: 2 | CX56: 0.007472242206 | CY56: 0.04 | CZ56: FALSE | DA56: FALSE | DB56: FALSE | DC56: FALSE | DD56: FALSE | DE56: FALSE | DF56: FALSE | DG56: FALSE | DH56: FALSE | DI56: FALSE | DJ56: 0 | DK56: 0 | DL56: 0 | DM56: 0 | DN56: 0 | DO56: Waterfall_1 | DP56: =waterfall_1(C56:DN56) -> 351675.61 | DQ56: 0 | DR56: 0 | DS56: 5436.54 | DT56: 0 | DU56: 0 | DV56: 0 | DW56: 0 | DX56: 0 | DY56: 369573.89 | DZ56: 0 | EA56: 369573.89 | EB56: 0 | EC56: 2811439.44 | ED56: 0 | EE56: 207190.41 | EF56: 168572.05 | EG56: 55112.05 | EH56: 57430.68 | EI56: 45081.64 | EJ56: 53574.79 | EK56: 0 | EL56: 0 | EM56: 0 | EN56: 0 | EO56: 0 | EP56: 0 | EQ56: 0 | ER56: 0 | ES56: 0 | ET56: 0 | EU56: 0 | EV56: 0 | EW56: 0 | EX56: 0 | EY56: 0 | EZ56: 0 | FA56: 0 | FB56: 0 | FC56: 1023184.94 | FD56: 45324.58 | FE56: 1 | FF56: 0 | FG56: 0 | FH56: 0 | FI56: 25391361.57 | FJ56: 0 | FK56: 0 | FL56: 0 | FM56: 0 | FN56: 0 | FO56: 0 | FP56: 0 | FQ56: 1094826308 | FR56: 0 | FS56: 70000000 | FT56: 48000000 | FU56: 14000000 | FV56: 12000000 | FW56: 8000000 | FX56: 8000000 | FY56: 0 | FZ56: 0 | GA56: 0 | GB56: 0 | GC56: 0 | GD56: 0 | GE56: 0 | GF56: 0 | GG56: 1094826308 | GH56: 0 | GI56: 70000000 | GJ56: 48000000 | GK56: 14000000 | GL56: 12000000 | GM56: 8000000 | GN56: 8000000 | GO56: 0 | GP56: 0 | GQ56: FALSE | GR56: FALSE | GS56: FALSE | GT56: 0 | GU56: 0 | GV56: 0 | GW56: 351675.61 | GX56: 0 | GY56: 0 | GZ56: 5436.54 | HA56: 0 | HB56: 0 | HC56: 0 | HD56: 0 | HE56: 0 | HF56: 0 | HG56: 0 | HH56: 0 | HI56: 0 | HJ56: 2811439.44 | HK56: 0 | HL56: 207190.41 | HM56: 168572.05 | HN56: 55112.05 | HO56: 57430.68 | HP56: 45081.64 | HQ56: 53574.79 | HR56: 0 | HS56: 0 | HT56: 0 | HU56: 0 | HV56: 0 | HW56: 0 | HX56: 0 | HY56: 0 | HZ56: 0 | IA56: 0 | IB56: 0 | IC56: 0 | ID56: 0 | IE56: 0 | IF56: 0 | IG56: 0 | IH56: 0 | II56: 0 | IJ56: 0 | IK56: 0 | IL56: 928846.26 | IM56: 0 | IN56: 0 | IO56: 0 | IP56: 25760935.46 | IQ56: 0 | IR56: 0 | IS56: 0 | IT56: 0 | IU56: 0 | IV56: 0 | IW56: 0 | IX56: 1094456735 | IY56: 0 | IZ56: 70000000 | JA56: 48000000 | JB56: 14000000 | JC56: 12000000 | JD56: 8000000 | JE56: 8000000 | JF56: 0 | JG56: 0 | JH56: 0 | JI56: 0 | JJ56: 0 | JK56: 0 | JL56: 0 | JM56: 0 | JN56: 1094456735 | JO56: 0 | JP56: 70000000 | JQ56: 48000000 | JR56: 14000000 | JS56: 12000000 | JT56: 8000000 | JU56: 8000000 | JV56: 0 | JW56: 0 | JX56: FALSE | JY56: FALSE | JZ56: FALSE | KA56: 0 | KB56: 0 | KC56: 0 | KD56: =IF(GW56="NR","NR",ROUNDDOWN(GW56-DP56,0)) -> 0 | KE56: =IF(GX56="NR","NR",ROUNDDOWN(GX56-DQ56,0)) -> 0 | KF56: =IF(GY56="NR","NR",ROUNDDOWN(GY56-DR56,0)) -> 0 | KG56: =IF(GZ56="NR","NR",ROUNDDOWN(GZ56-DS56,0)) -> 0 | KH56: =IF(HA56="NR","NR",ROUNDDOWN(HA56-DT56,0)) -> 0 | KI56: =IF(HB56="NR","NR",ROUNDDOWN(HB56-DU56,0)) -> 0 | KJ56: =IF(HC56="NR","NR",ROUNDDOWN(HC56-DV56,0)) -> 0 | KK56: =IF(HD56="NR","NR",ROUNDDOWN(HD56-DW56,0)) -> 0 | KL56: =IF(HE56="NR","NR",ROUNDDOWN(HE56-DX56,0)) -> 0 | KM56: =IF(HF56="NR","NR",ROUNDDOWN(HF56-DY56,0)) -> -369573 | KN56: =IF(HG56="NR","NR",ROUNDDOWN(HG56-DZ56,0)) -> 0 | KO56: =IF(HH56="NR","NR",ROUNDDOWN(HH56-EA56,0)) -> -369573 | KP56: =IF(HI56="NR","NR",ROUNDDOWN(HI56-EB56,0)) -> 0 | KQ56: =IF(HJ56="NR","NR",ROUNDDOWN(HJ56-EC56,0)) -> 0 | KR56: =IF(HK56="NR","NR",ROUNDDOWN(HK56-ED56,0)) -> 0 | KS56: =IF(HL56="NR","NR",ROUNDDOWN(HL56-EE56,0)) -> 0 | KT56: =IF(HM56="NR","NR",ROUNDDOWN(HM56-EF56,0)) -> 0 | KU56: =IF(HN56="NR","NR",ROUNDDOWN(HN56-EG56,0)) -> 0 | KV56: =IF(HO56="NR","NR",ROUNDDOWN(HO56-EH56,0)) -> 0 | KW56: =IF(HP56="NR","NR",ROUNDDOWN(HP56-EI56,0)) -> 0 | KX56: =IF(HQ56="NR","NR",ROUNDDOWN(HQ56-EJ56,0)) -> 0 | KY56: =IF(HR56="NR","NR",ROUNDDOWN(HR56-EK56,0)) -> 0 | KZ56: =IF(HS56="NR","NR",ROUNDDOWN(HS56-EL56,0)) -> 0 | LA56: =IF(HT56="NR","NR",ROUNDDOWN(HT56-EM56,0)) -> 0 | LB56: =IF(HU56="NR","NR",ROUNDDOWN(HU56-EN56,0)) -> 0 | LC56: =IF(HV56="NR","NR",ROUNDDOWN(HV56-EO56,0)) -> 0 | LD56: =IF(HW56="NR","NR",ROUNDDOWN(HW56-EP56,0)) -> 0 | LE56: =IF(HX56="NR","NR",ROUNDDOWN(HX56-EQ56,0)) -> 0 | LF56: =IF(HY56="NR","NR",ROUNDDOWN(HY56-ER56,0)) -> 0 | LG56: =IF(HZ56="NR","NR",ROUNDDOWN(HZ56-ES56,0)) -> 0 | LH56: =IF(IA56="NR","NR",ROUNDDOWN(IA56-ET56,0)) -> 0 | LI56: =IF(IB56="NR","NR",ROUNDDOWN(IB56-EU56,0)) -> 0 | LJ56: =IF(IC56="NR","NR",ROUNDDOWN(IC56-EV56,0)) -> 0 | LK56: =IF(ID56="NR","NR",ROUNDDOWN(ID56-EW56,0)) -> 0 | LL56: =IF(IE56="NR","NR",ROUNDDOWN(IE56-EX56,0)) -> 0 | LM56: =IF(IF56="NR","NR",ROUNDDOWN(IF56-EY56,0)) -> 0 | LN56: =IF(IG56="NR","NR",ROUNDDOWN(IG56-EZ56,0)) -> 0 | LO56: =IF(IH56="NR","NR",ROUNDDOWN(IH56-FA56,0)) -> 0 | LP56: =IF(II56="NR","NR",ROUNDDOWN(II56-FB56,0)) -> 0 | LQ56: =IF(IJ56="NR","NR",ROUNDDOWN(IJ56-FC56,0)) -> -1023184 | LR56: =IF(IK56="NR","NR",ROUNDDOWN(IK56-FD56,0)) -> -45324 | LS56: =IF(IL56="NR","NR",ROUNDDOWN(IL56-FE56,0)) -> 928845 | LT56: =IF(IM56="NR","NR",ROUNDDOWN(IM56-FF56,0)) -> 0 | LU56: =IF(IN56="NR","NR",ROUNDDOWN(IN56-FG56,0)) -> 0 | LV56: =IF(IO56="NR","NR",ROUNDDOWN(IO56-FH56,0)) -> 0 | LW56: =IF(IP56="NR","NR",ROUNDDOWN(IP56-FI56,0)) -> 369573 | LX56: =IF(IQ56="NR","NR",ROUNDDOWN(IQ56-FJ56,0)) -> 0 | LY56: =IF(IR56="NR","NR",ROUNDDOWN(IR56-FK56,0)) -> 0 | LZ56: =IF(IS56="NR","NR",ROUNDDOWN(IS56-FL56,0)) -> 0 | MA56: =IF(IT56="NR","NR",ROUNDDOWN(IT56-FM56,0)) -> 0 | MB56: =IF(IU56="NR","NR",ROUNDDOWN(IU56-FN56,0)) -> 0 | MC56: =IF(IV56="NR","NR",ROUNDDOWN(IV56-FO56,0)) -> 0 | MD56: =IF(IW56="NR","NR",ROUNDDOWN(IW56-FP56,0)) -> 0 | ME56: =IF(IX56="NR","NR",ROUNDDOWN(IX56-FQ56,0)) -> -369573 | MF56: =IF(IY56="NR","NR",ROUNDDOWN(IY56-FR56,0)) -> 0 | MG56: =IF(IZ56="NR","NR",ROUNDDOWN(IZ56-FS56,0)) -> 0 | MH56: =IF(JA56="NR","NR",ROUNDDOWN(JA56-FT56,0)) -> 0 | MI56: =IF(JB56="NR","NR",ROUNDDOWN(JB56-FU56,0)) -> 0 | MJ56: =IF(JC56="NR","NR",ROUNDDOWN(JC56-FV56,0)) -> 0 | MK56: =IF(JD56="NR","NR",ROUNDDOWN(JD56-FW56,0)) -> 0 | ML56: =IF(JE56="NR","NR",ROUNDDOWN(JE56-FX56,0)) -> 0 | MM56: =IF(JF56="NR","NR",ROUNDDOWN(JF56-FY56,0)) -> 0 | MN56: =IF(JG56="NR","NR",ROUNDDOWN(JG56-FZ56,0)) -> 0 | MO56: =IF(JH56="NR","NR",ROUNDDOWN(JH56-GA56,0)) -> 0 | MP56: =IF(JI56="NR","NR",ROUNDDOWN(JI56-GB56,0)) -> 0 | MQ56: =IF(JJ56="NR","NR",ROUNDDOWN(JJ56-GC56,0)) -> 0 | MR56: =IF(JK56="NR","NR",ROUNDDOWN(JK56-GD56,0)) -> 0 | MS56: =IF(JL56="NR","NR",ROUNDDOWN(JL56-GE56,0)) -> 0 | MT56: =IF(JM56="NR","NR",ROUNDDOWN(JM56-GF56,0)) -> 0 | MU56: =IF(JN56="NR","NR",ROUNDDOWN(JN56-GG56,0)) -> -369573 | MV56: =IF(JO56="NR","NR",ROUNDDOWN(JO56-GH56,0)) -> 0 | MW56: =IF(JP56="NR","NR",ROUNDDOWN(JP56-GI56,0)) -> 0 | MX56: =IF(JQ56="NR","NR",ROUNDDOWN(JQ56-GJ56,0)) -> 0 | MY56: =IF(JR56="NR","NR",ROUNDDOWN(JR56-GK56,0)) -> 0 | MZ56: =IF(JS56="NR","NR",ROUNDDOWN(JS56-GL56,0)) -> 0 | NA56: =IF(JT56="NR","NR",ROUNDDOWN(JT56-GM56,0)) -> 0 | NB56: =IF(JU56="NR","NR",ROUNDDOWN(JU56-GN56,0)) -> 0 | NC56: =IF(JV56="NR","NR",ROUNDDOWN(JV56-GO56,0)) -> 0 | ND56: =IF(JW56="NR","NR",ROUNDDOWN(JW56-GP56,0)) -> 0 | NE56: NR | NF56: NR | NG56: NR | NH56: =IF(KA56="NR","NR",ROUNDDOWN(KA56-GT56,0)) -> 0 | NI56: =IF(KB56="NR","NR",ROUNDDOWN(KB56-GU56,0)) -> 0 | NJ56: =IF(KC56="NR","NR",ROUNDDOWN(KC56-GV56,0)) -> 0
B57: 2018-09-24 | C57: 2018-08-01 | D57: 2018-08-31 | E57: 2018-09-19 | F57: 2018-09-24 | G57: 31 | H57: 0.0186 | I57: 2016-12-01 | J57: 1999995073 | K57: 1254456735 | L57: 73155198.72 | M57: 1231276385 | N57: 73084162.83 | O57: 1248054021 | P57: 73155198.72 | Q57: 4743315.66 | R57: 0.011256 | S57: 0 | T57: 5513941.67 | U57: 5070802.01 | V57: 0 | W57: 4489362.35 | X57: 273643.03 | Y57: 4339921.24 | Z57: 23623489.32 | AA57: 425.15 | AB57: 0 | AC57: 0 | AD57: 0 | AE57: 0 | AF57: 12544567.35 | AG57: 0 | AH57: 1840000000 | AI57: 0 | AJ57: 70000000 | AK57: 48000000 | AL57: 14000000 | AM57: 12000000 | AN57: 8000000 | AO57: 8000000 | AP57: 10000 | AQ57: 1094456735 | AR57: 0 | AS57: 70000000 | AT57: 48000000 | AU57: 14000000 | AV57: 12000000 | AW57: 8000000 | AX57: 8000000 | AY57: 0 | AZ57: 0 | BA57: 0 | BB57: 0 | BC57: 0 | BD57: 0 | BE57: 0 | BF57: 0 | BG57: 1 | BH57: 344606.12 | BI57: 0 | BJ57: 5327.15 | BK57: 0 | BL57: 0 | BM57: 0 | BN57: 0 | BO57: 0 | BP57: 0 | BQ57: 0 | BR57: 0.0107 | BS57: 0 | BT57: 0.016 | BU57: 0.0225 | BV57: 0.0275 | BW57: 0.0375 | BX57: 0.0475 | BY57: 0.06 | BZ57: 0.0025 | CA57: 0.0025 | CB57: 0.02 | CC57: 0.02 | CD57: 0.02 | CE57: 0.02 | CF57: 0.02 | CG57: 0 | CH57: 0 | CI57: 0 | CJ57: 0 | CK57: 0 | CL57: 0 | CM57: 0 | CN57: 0 | CO57: 0 | CP57: 0 | CQ57: 0 | CR57: 0 | CS57: 0 | CT57: 0 | CU57: 0 | CV57: 0.1 | CW57: 2 | CX57: 0.006968178432 | CY57: 0.04 | CZ57: FALSE | DA57: FALSE | DB57: FALSE | DC57: FALSE | DD57: FALSE | DE57: FALSE | DF57: FALSE | DG57: FALSE | DH57: FALSE | DI57: FALSE | DJ57: 0 | DK57: 0 | DL57: 0 | DM57: 0 | DN57: 0 | DO57: Waterfall_1 | DP57: =waterfall_1(C57:DN57) -> 344606.12 | DQ57: 0 | DR57: 0 | DS57: 5327.15 | DT57: 0 | DU57: 0 | DV57: 0 | DW57: 0 | DX57: 0 | DY57: 366388.53 | DZ57: 0 | EA57: 366388.53 | EB57: 0 | EC57: 2723548.09 | ED57: 0 | EE57: 205704.11 | EF57: 167552.88 | EG57: 54814.79 | EH57: 57175.89 | EI57: 44911.78 | EJ57: 53404.93 | EK57: 0 | EL57: 0 | EM57: 0 | EN57: 0 | EO57: 0 | EP57: 0 | EQ57: 0 | ER57: 0 | ES57: 0 | ET57: 0 | EU57: 0 | EV57: 0 | EW57: 0 | EX57: 0 | EY57: 0 | EZ57: 0 | FA57: 0 | FB57: 0 | FC57: 1391987.65 | FD57: 80784.67 | FE57: 1 | FF57: 0 | FG57: 0 | FH57: 0 | FI57: 22813961.13 | FJ57: 0 | FK57: 0 | FL57: 0 | FM57: 0 | FN57: 0 | FO57: 0 | FP57: 0 | FQ57: 1071642773 | FR57: 0 | FS57: 70000000 | FT57: 48000000 | FU57: 14000000 | FV57: 12000000 | FW57: 8000000 | FX57: 8000000 | FY57: 0 | FZ57: 0 | GA57: 0 | GB57: 0 | GC57: 0 | GD57: 0 | GE57: 0 | GF57: 0 | GG57: 1071642773 | GH57: 0 | GI57: 70000000 | GJ57: 48000000 | GK57: 14000000 | GL57: 12000000 | GM57: 8000000 | GN57: 8000000 | GO57: 0 | GP57: 0 | GQ57: FALSE | GR57: FALSE | GS57: FALSE | GT57: 0 | GU57: 0 | GV57: 0 | GW57: 344606.12 | GX57: 0 | GY57: 0 | GZ57: 5327.15 | HA57: 0 | HB57: 0 | HC57: 0 | HD57: 0 | HE57: 0 | HF57: 0 | HG57: 0 | HH57: 0 | HI57: 0 | HJ57: 2723548.09 | HK57: 0 | HL57: 205704.11 | HM57: 167552.88 | HN57: 54814.79 | HO57: 57175.89 | HP57: 44911.78 | HQ57: 53404.93 | HR57: 0 | HS57: 0 | HT57: 0 | HU57: 0 | HV57: 0 | HW57: 0 | HX57: 0 | HY57: 0 | HZ57: 0 | IA57: 0 | IB57: 0 | IC57: 0 | ID57: 0 | IE57: 0 | IF57: 0 | IG57: 0 | IH57: 0 | II57: 0 | IJ57: 194556.53 | IK57: 6226.49 | IL57: 905601.77 | IM57: 0 | IN57: 0 | IO57: 0 | IP57: 23180349.66 | IQ57: 0 | IR57: 0 | IS57: 0 | IT57: 0 | IU57: 0 | IV57: 0 | IW57: 0 | IX57: 1071276385 | IY57: 0 | IZ57: 70000000 | JA57: 48000000 | JB57: 14000000 | JC57: 12000000 | JD57: 8000000 | JE57: 8000000 | JF57: 0 | JG57: 0 | JH57: 0 | JI57: 0 | JJ57: 0 | JK57: 0 | JL57: 0 | JM57: 0 | JN57: 1071276385 | JO57: 0 | JP57: 70000000 | JQ57: 48000000 | JR57: 14000000 | JS57: 12000000 | JT57: 8000000 | JU57: 8000000 | JV57: 0 | JW57: 0 | JX57: FALSE | JY57: FALSE | JZ57: FALSE | KA57: 0 | KB57: 0 | KC57: 0 | KD57: =IF(GW57="NR","NR",ROUNDDOWN(GW57-DP57,0)) -> 0 | KE57: =IF(GX57="NR","NR",ROUNDDOWN(GX57-DQ57,0)) -> 0 | KF57: =IF(GY57="NR","NR",ROUNDDOWN(GY57-DR57,0)) -> 0 | KG57: =IF(GZ57="NR","NR",ROUNDDOWN(GZ57-DS57,0)) -> 0 | KH57: =IF(HA57="NR","NR",ROUNDDOWN(HA57-DT57,0)) -> 0 | KI57: =IF(HB57="NR","NR",ROUNDDOWN(HB57-DU57,0)) -> 0 | KJ57: =IF(HC57="NR","NR",ROUNDDOWN(HC57-DV57,0)) -> 0 | KK57: =IF(HD57="NR","NR",ROUNDDOWN(HD57-DW57,0)) -> 0 | KL57: =IF(HE57="NR","NR",ROUNDDOWN(HE57-DX57,0)) -> 0 | KM57: =IF(HF57="NR","NR",ROUNDDOWN(HF57-DY57,0)) -> -366388 | KN57: =IF(HG57="NR","NR",ROUNDDOWN(HG57-DZ57,0)) -> 0 | KO57: =IF(HH57="NR","NR",ROUNDDOWN(HH57-EA57,0)) -> -366388 | KP57: =IF(HI57="NR","NR",ROUNDDOWN(HI57-EB57,0)) -> 0 | KQ57: =IF(HJ57="NR","NR",ROUNDDOWN(HJ57-EC57,0)) -> 0 | KR57: =IF(HK57="NR","NR",ROUNDDOWN(HK57-ED57,0)) -> 0 | KS57: =IF(HL57="NR","NR",ROUNDDOWN(HL57-EE57,0)) -> 0 | KT57: =IF(HM57="NR","NR",ROUNDDOWN(HM57-EF57,0)) -> 0 | KU57: =IF(HN57="NR","NR",ROUNDDOWN(HN57-EG57,0)) -> 0 | KV57: =IF(HO57="NR","NR",ROUNDDOWN(HO57-EH57,0)) -> 0 | KW57: =IF(HP57="NR","NR",ROUNDDOWN(HP57-EI57,0)) -> 0 | KX57: =IF(HQ57="NR","NR",ROUNDDOWN(HQ57-EJ57,0)) -> 0 | KY57: =IF(HR57="NR","NR",ROUNDDOWN(HR57-EK57,0)) -> 0 | KZ57: =IF(HS57="NR","NR",ROUNDDOWN(HS57-EL57,0)) -> 0 | LA57: =IF(HT57="NR","NR",ROUNDDOWN(HT57-EM57,0)) -> 0 | LB57: =IF(HU57="NR","NR",ROUNDDOWN(HU57-EN57,0)) -> 0 | LC57: =IF(HV57="NR","NR",ROUNDDOWN(HV57-EO57,0)) -> 0 | LD57: =IF(HW57="NR","NR",ROUNDDOWN(HW57-EP57,0)) -> 0 | LE57: =IF(HX57="NR","NR",ROUNDDOWN(HX57-EQ57,0)) -> 0 | LF57: =IF(HY57="NR","NR",ROUNDDOWN(HY57-ER57,0)) -> 0 | LG57: =IF(HZ57="NR","NR",ROUNDDOWN(HZ57-ES57,0)) -> 0 | LH57: =IF(IA57="NR","NR",ROUNDDOWN(IA57-ET57,0)) -> 0 | LI57: =IF(IB57="NR","NR",ROUNDDOWN(IB57-EU57,0)) -> 0 | LJ57: =IF(IC57="NR","NR",ROUNDDOWN(IC57-EV57,0)) -> 0 | LK57: =IF(ID57="NR","NR",ROUNDDOWN(ID57-EW57,0)) -> 0 | LL57: =IF(IE57="NR","NR",ROUNDDOWN(IE57-EX57,0)) -> 0 | LM57: =IF(IF57="NR","NR",ROUNDDOWN(IF57-EY57,0)) -> 0 | LN57: =IF(IG57="NR","NR",ROUNDDOWN(IG57-EZ57,0)) -> 0 | LO57: =IF(IH57="NR","NR",ROUNDDOWN(IH57-FA57,0)) -> 0 | LP57: =IF(II57="NR","NR",ROUNDDOWN(II57-FB57,0)) -> 0 | LQ57: =IF(IJ57="NR","NR",ROUNDDOWN(IJ57-FC57,0)) -> -1197431 | LR57: =IF(IK57="NR","NR",ROUNDDOWN(IK57-FD57,0)) -> -74558 | LS57: =IF(IL57="NR","NR",ROUNDDOWN(IL57-FE57,0)) -> 905600 | LT57: =IF(IM57="NR","NR",ROUNDDOWN(IM57-FF57,0)) -> 0 | LU57: =IF(IN57="NR","NR",ROUNDDOWN(IN57-FG57,0)) -> 0 | LV57: =IF(IO57="NR","NR",ROUNDDOWN(IO57-FH57,0)) -> 0 | LW57: =IF(IP57="NR","NR",ROUNDDOWN(IP57-FI57,0)) -> 366388 | LX57: =IF(IQ57="NR","NR",ROUNDDOWN(IQ57-FJ57,0)) -> 0 | LY57: =IF(IR57="NR","NR",ROUNDDOWN(IR57-FK57,0)) -> 0 | LZ57: =IF(IS57="NR","NR",ROUNDDOWN(IS57-FL57,0)) -> 0 | MA57: =IF(IT57="NR","NR",ROUNDDOWN(IT57-FM57,0)) -> 0 | MB57: =IF(IU57="NR","NR",ROUNDDOWN(IU57-FN57,0)) -> 0 | MC57: =IF(IV57="NR","NR",ROUNDDOWN(IV57-FO57,0)) -> 0 | MD57: =IF(IW57="NR","NR",ROUNDDOWN(IW57-FP57,0)) -> 0 | ME57: =IF(IX57="NR","NR",ROUNDDOWN(IX57-FQ57,0)) -> -366388 | MF57: =IF(IY57="NR","NR",ROUNDDOWN(IY57-FR57,0)) -> 0 | MG57: =IF(IZ57="NR","NR",ROUNDDOWN(IZ57-FS57,0)) -> 0 | MH57: =IF(JA57="NR","NR",ROUNDDOWN(JA57-FT57,0)) -> 0 | MI57: =IF(JB57="NR","NR",ROUNDDOWN(JB57-FU57,0)) -> 0 | MJ57: =IF(JC57="NR","NR",ROUNDDOWN(JC57-FV57,0)) -> 0 | MK57: =IF(JD57="NR","NR",ROUNDDOWN(JD57-FW57,0)) -> 0 | ML57: =IF(JE57="NR","NR",ROUNDDOWN(JE57-FX57,0)) -> 0 | MM57: =IF(JF57="NR","NR",ROUNDDOWN(JF57-FY57,0)) -> 0 | MN57: =IF(JG57="NR","NR",ROUNDDOWN(JG57-FZ57,0)) -> 0 | MO57: =IF(JH57="NR","NR",ROUNDDOWN(JH57-GA57,0)) -> 0 | MP57: =IF(JI57="NR","NR",ROUNDDOWN(JI57-GB57,0)) -> 0 | MQ57: =IF(JJ57="NR","NR",ROUNDDOWN(JJ57-GC57,0)) -> 0 | MR57: =IF(JK57="NR","NR",ROUNDDOWN(JK57-GD57,0)) -> 0 | MS57: =IF(JL57="NR","NR",ROUNDDOWN(JL57-GE57,0)) -> 0 | MT57: =IF(JM57="NR","NR",ROUNDDOWN(JM57-GF57,0)) -> 0 | MU57: =IF(JN57="NR","NR",ROUNDDOWN(JN57-GG57,0)) -> -366388 | MV57: =IF(JO57="NR","NR",ROUNDDOWN(JO57-GH57,0)) -> 0 | MW57: =IF(JP57="NR","NR",ROUNDDOWN(JP57-GI57,0)) -> 0 | MX57: =IF(JQ57="NR","NR",ROUNDDOWN(JQ57-GJ57,0)) -> 0 | MY57: =IF(JR57="NR","NR",ROUNDDOWN(JR57-GK57,0)) -> 0 | MZ57: =IF(JS57="NR","NR",ROUNDDOWN(JS57-GL57,0)) -> 0 | NA57: =IF(JT57="NR","NR",ROUNDDOWN(JT57-GM57,0)) -> 0 | NB57: =IF(JU57="NR","NR",ROUNDDOWN(JU57-GN57,0)) -> 0 | NC57: =IF(JV57="NR","NR",ROUNDDOWN(JV57-GO57,0)) -> 0 | ND57: =IF(JW57="NR","NR",ROUNDDOWN(JW57-GP57,0)) -> 0 | NE57: NR | NF57: NR | NG57: NR | NH57: =IF(KA57="NR","NR",ROUNDDOWN(KA57-GT57,0)) -> 0 | NI57: =IF(KB57="NR","NR",ROUNDDOWN(KB57-GU57,0)) -> 0 | NJ57: =IF(KC57="NR","NR",ROUNDDOWN(KC57-GV57,0)) -> 0
B58: 2018-10-24 | C58: 2018-09-01 | D58: 2018-10-01 | E58: 2018-10-19 | F58: 2018-10-24 | G58: 30 | H58: 0.0185 | I58: 2016-12-01 | J58: 1999995073 | K58: 1231276385 | L58: 73084162.83 | M58: 1208464034 | N58: 74146711.67 | O58: 1226533069 | P58: 73084162.83 | Q58: 4259627.53 | R58: 0.01224 | S58: 0 | T58: 5257608.24 | U58: 2331871.28 | V58: 0 | W58: 4526851.64 | X58: 272591.47 | Y58: 4210452.24 | Z58: 25738087.79 | AA58: 50.08 | AB58: 0 | AC58: 0 | AD58: 0 | AE58: 0 | AF58: 12312763.85 | AG58: 0 | AH58: 1840000000 | AI58: 0 | AJ58: 70000000 | AK58: 48000000 | AL58: 14000000 | AM58: 12000000 | AN58: 8000000 | AO58: 8000000 | AP58: 10000 | AQ58: 1071276385 | AR58: 0 | AS58: 70000000 | AT58: 48000000 | AU58: 14000000 | AV58: 12000000 | AW58: 8000000 | AX58: 8000000 | AY58: 0 | AZ58: 0 | BA58: 0 | BB58: 0 | BC58: 0 | BD58: 0 | BE58: 0 | BF58: 0 | BG58: 1 | BH58: 337689.92 | BI58: 0 | BJ58: 5060.04 | BK58: 0 | BL58: 0 | BM58: 0 | BN58: 0 | BO58: 0 | BP58: 0 | BQ58: 0 | BR58: 0.0107 | BS58: 0 | BT58: 0.016 | BU58: 0.0225 | BV58: 0.0275 | BW58: 0.0375 | BX58: 0.0475 | BY58: 0.06 | BZ58: 0.0025 | CA58: 0.0025 | CB58: 0.02 | CC58: 0.02 | CD58: 0.02 | CE58: 0.02 | CF58: 0.02 | CG58: 0 | CH58: 0 | CI58: 0 | CJ58: 0 | CK58: 0 | CL58: 0 | CM58: 0 | CN58: 0 | CO58: 0 | CP58: 0 | CQ58: 0 | CR58: 0 | CS58: 0 | CT58: 0 | CU58: 0 | CV58: 0.1 | CW58: 2 | CX58: 0.006225748554 | CY58: 0.04 | CZ58: FALSE | DA58: FALSE | DB58: FALSE | DC58: FALSE | DD58: FALSE | DE58: FALSE | DF58: FALSE | DG58: FALSE | DH58: FALSE | DI58: FALSE | DJ58: 0 | DK58: 0 | DL58: 0 | DM58: 0 | DN58: 0 | DO58: Waterfall_1 | DP58: =waterfall_1(C58:DN58) -> 337689.92 | DQ58: 0 | DR58: 0 | DS58: 5060.04 | DT58: 0 | DU58: 0 | DV58: 0 | DW58: 0 | DX58: 0 | DY58: 354776.04 | DZ58: 0 | EA58: 354776.04 | EB58: 0 | EC58: 2571063.32 | ED58: 0 | EE58: 198493.15 | EF58: 161753.42 | EG58: 52931.51 | EH58: 55232.88 | EI58: 43397.26 | EJ58: 51616.44 | EK58: 0 | EL58: 0 | EM58: 0 | EN58: 0 | EO58: 0 | EP58: 0 | EQ58: 0 | ER58: 0 | ES58: 0 | ET58: 0 | EU58: 0 | EV58: 0 | EW58: 0 | EX58: 0 | EY58: 0 | EZ58: 0 | FA58: 0 | FB58: 0 | FC58: 1590490.82 | FD58: 86539.47 | FE58: 1 | FF58: 0 | FG58: 0 | FH58: 0 | FI58: 22457574.79 | FJ58: 0 | FK58: 0 | FL58: 0 | FM58: 0 | FN58: 0 | FO58: 0 | FP58: 0 | FQ58: 1048818810 | FR58: 0 | FS58: 70000000 | FT58: 48000000 | FU58: 14000000 | FV58: 12000000 | FW58: 8000000 | FX58: 8000000 | FY58: 0 | FZ58: 0 | GA58: 0 | GB58: 0 | GC58: 0 | GD58: 0 | GE58: 0 | GF58: 0 | GG58: 1048818810 | GH58: 0 | GI58: 70000000 | GJ58: 48000000 | GK58: 14000000 | GL58: 12000000 | GM58: 8000000 | GN58: 8000000 | GO58: 0 | GP58: 0 | GQ58: FALSE | GR58: FALSE | GS58: FALSE | GT58: 0 | GU58: 0 | GV58: 0 | GW58: 337689.92 | GX58: 0 | GY58: 0 | GZ58: 5060.04 | HA58: 0 | HB58: 0 | HC58: 0 | HD58: 0 | HE58: 0 | HF58: 0 | HG58: 0 | HH58: 0 | HI58: 0 | HJ58: 2571063.32 | HK58: 0 | HL58: 198493.15 | HM58: 161753.42 | HN58: 52931.51 | HO58: 55232.88 | HP58: 43397.26 | HQ58: 51616.44 | HR58: 0 | HS58: 0 | HT58: 0 | HU58: 0 | HV58: 0 | HW58: 0 | HX58: 0 | HY58: 0 | HZ58: 0 | IA58: 0 | IB58: 0 | IC58: 0 | ID58: 0 | IE58: 0 | IF58: 0 | IG58: 0 | IH58: 0 | II58: 0 | IJ58: 452842.58 | IK58: 14456.46 | IL58: 854956.21 | IM58: 0 | IN58: 0 | IO58: 0 | IP58: 22812350.83 | IQ58: 0 | IR58: 0 | IS58: 0 | IT58: 0 | IU58: 0 | IV58: 0 | IW58: 0 | IX58: 1048464034 | IY58: 0 | IZ58: 70000000 | JA58: 48000000 | JB58: 14000000 | JC58: 12000000 | JD58: 8000000 | JE58: 8000000 | JF58: 0 | JG58: 0 | JH58: 0 | JI58: 0 | JJ58: 0 | JK58: 0 | JL58: 0 | JM58: 0 | JN58: 1048464034 | JO58: 0 | JP58: 70000000 | JQ58: 48000000 | JR58: 14000000 | JS58: 12000000 | JT58: 8000000 | JU58: 8000000 | JV58: 0 | JW58: 0 | JX58: FALSE | JY58: FALSE | JZ58: FALSE | KA58: 0 | KB58: 0 | KC58: 0 | KD58: =IF(GW58="NR","NR",ROUNDDOWN(GW58-DP58,0)) -> 0 | KE58: =IF(GX58="NR","NR",ROUNDDOWN(GX58-DQ58,0)) -> 0 | KF58: =IF(GY58="NR","NR",ROUNDDOWN(GY58-DR58,0)) -> 0 | KG58: =IF(GZ58="NR","NR",ROUNDDOWN(GZ58-DS58,0)) -> 0 | KH58: =IF(HA58="NR","NR",ROUNDDOWN(HA58-DT58,0)) -> 0 | KI58: =IF(HB58="NR","NR",ROUNDDOWN(HB58-DU58,0)) -> 0 | KJ58: =IF(HC58="NR","NR",ROUNDDOWN(HC58-DV58,0)) -> 0 | KK58: =IF(HD58="NR","NR",ROUNDDOWN(HD58-DW58,0)) -> 0 | KL58: =IF(HE58="NR","NR",ROUNDDOWN(HE58-DX58,0)) -> 0 | KM58: =IF(HF58="NR","NR",ROUNDDOWN(HF58-DY58,0)) -> -354776 | KN58: =IF(HG58="NR","NR",ROUNDDOWN(HG58-DZ58,0)) -> 0 | KO58: =IF(HH58="NR","NR",ROUNDDOWN(HH58-EA58,0)) -> -354776 | KP58: =IF(HI58="NR","NR",ROUNDDOWN(HI58-EB58,0)) -> 0 | KQ58: =IF(HJ58="NR","NR",ROUNDDOWN(HJ58-EC58,0)) -> 0 | KR58: =IF(HK58="NR","NR",ROUNDDOWN(HK58-ED58,0)) -> 0 | KS58: =IF(HL58="NR","NR",ROUNDDOWN(HL58-EE58,0)) -> 0 | KT58: =IF(HM58="NR","NR",ROUNDDOWN(HM58-EF58,0)) -> 0 | KU58: =IF(HN58="NR","NR",ROUNDDOWN(HN58-EG58,0)) -> 0 | KV58: =IF(HO58="NR","NR",ROUNDDOWN(HO58-EH58,0)) -> 0 | KW58: =IF(HP58="NR","NR",ROUNDDOWN(HP58-EI58,0)) -> 0 | KX58: =IF(HQ58="NR","NR",ROUNDDOWN(HQ58-EJ58,0)) -> 0 | KY58: =IF(HR58="NR","NR",ROUNDDOWN(HR58-EK58,0)) -> 0 | KZ58: =IF(HS58="NR","NR",ROUNDDOWN(HS58-EL58,0)) -> 0 | LA58: =IF(HT58="NR","NR",ROUNDDOWN(HT58-EM58,0)) -> 0 | LB58: =IF(HU58="NR","NR",ROUNDDOWN(HU58-EN58,0)) -> 0 | LC58: =IF(HV58="NR","NR",ROUNDDOWN(HV58-EO58,0)) -> 0 | LD58: =IF(HW58="NR","NR",ROUNDDOWN(HW58-EP58,0)) -> 0 | LE58: =IF(HX58="NR","NR",ROUNDDOWN(HX58-EQ58,0)) -> 0 | LF58: =IF(HY58="NR","NR",ROUNDDOWN(HY58-ER58,0)) -> 0 | LG58: =IF(HZ58="NR","NR",ROUNDDOWN(HZ58-ES58,0)) -> 0 | LH58: =IF(IA58="NR","NR",ROUNDDOWN(IA58-ET58,0)) -> 0 | LI58: =IF(IB58="NR","NR",ROUNDDOWN(IB58-EU58,0)) -> 0 | LJ58: =IF(IC58="NR","NR",ROUNDDOWN(IC58-EV58,0)) -> 0 | LK58: =IF(ID58="NR","NR",ROUNDDOWN(ID58-EW58,0)) -> 0 | LL58: =IF(IE58="NR","NR",ROUNDDOWN(IE58-EX58,0)) -> 0 | LM58: =IF(IF58="NR","NR",ROUNDDOWN(IF58-EY58,0)) -> 0 | LN58: =IF(IG58="NR","NR",ROUNDDOWN(IG58-EZ58,0)) -> 0 | LO58: =IF(IH58="NR","NR",ROUNDDOWN(IH58-FA58,0)) -> 0 | LP58: =IF(II58="NR","NR",ROUNDDOWN(II58-FB58,0)) -> 0 | LQ58: =IF(IJ58="NR","NR",ROUNDDOWN(IJ58-FC58,0)) -> -1137648 | LR58: =IF(IK58="NR","NR",ROUNDDOWN(IK58-FD58,0)) -> -72083 | LS58: =IF(IL58="NR","NR",ROUNDDOWN(IL58-FE58,0)) -> 854955 | LT58: =IF(IM58="NR","NR",ROUNDDOWN(IM58-FF58,0)) -> 0 | LU58: =IF(IN58="NR","NR",ROUNDDOWN(IN58-FG58,0)) -> 0 | LV58: =IF(IO58="NR","NR",ROUNDDOWN(IO58-FH58,0)) -> 0 | LW58: =IF(IP58="NR","NR",ROUNDDOWN(IP58-FI58,0)) -> 354776 | LX58: =IF(IQ58="NR","NR",ROUNDDOWN(IQ58-FJ58,0)) -> 0 | LY58: =IF(IR58="NR","NR",ROUNDDOWN(IR58-FK58,0)) -> 0 | LZ58: =IF(IS58="NR","NR",ROUNDDOWN(IS58-FL58,0)) -> 0 | MA58: =IF(IT58="NR","NR",ROUNDDOWN(IT58-FM58,0)) -> 0 | MB58: =IF(IU58="NR","NR",ROUNDDOWN(IU58-FN58,0)) -> 0 | MC58: =IF(IV58="NR","NR",ROUNDDOWN(IV58-FO58,0)) -> 0 | MD58: =IF(IW58="NR","NR",ROUNDDOWN(IW58-FP58,0)) -> 0 | ME58: =IF(IX58="NR","NR",ROUNDDOWN(IX58-FQ58,0)) -> -354776 | MF58: =IF(IY58="NR","NR",ROUNDDOWN(IY58-FR58,0)) -> 0 | MG58: =IF(IZ58="NR","NR",ROUNDDOWN(IZ58-FS58,0)) -> 0 | MH58: =IF(JA58="NR","NR",ROUNDDOWN(JA58-FT58,0)) -> 0 | MI58: =IF(JB58="NR","NR",ROUNDDOWN(JB58-FU58,0)) -> 0 | MJ58: =IF(JC58="NR","NR",ROUNDDOWN(JC58-FV58,0)) -> 0 | MK58: =IF(JD58="NR","NR",ROUNDDOWN(JD58-FW58,0)) -> 0 | ML58: =IF(JE58="NR","NR",ROUNDDOWN(JE58-FX58,0)) -> 0 | MM58: =IF(JF58="NR","NR",ROUNDDOWN(JF58-FY58,0)) -> 0 | MN58: =IF(JG58="NR","NR",ROUNDDOWN(JG58-FZ58,0)) -> 0 | MO58: =IF(JH58="NR","NR",ROUNDDOWN(JH58-GA58,0)) -> 0 | MP58: =IF(JI58="NR","NR",ROUNDDOWN(JI58-GB58,0)) -> 0 | MQ58: =IF(JJ58="NR","NR",ROUNDDOWN(JJ58-GC58,0)) -> 0 | MR58: =IF(JK58="NR","NR",ROUNDDOWN(JK58-GD58,0)) -> 0 | MS58: =IF(JL58="NR","NR",ROUNDDOWN(JL58-GE58,0)) -> 0 | MT58: =IF(JM58="NR","NR",ROUNDDOWN(JM58-GF58,0)) -> 0 | MU58: =IF(JN58="NR","NR",ROUNDDOWN(JN58-GG58,0)) -> -354776 | MV58: =IF(JO58="NR","NR",ROUNDDOWN(JO58-GH58,0)) -> 0 | MW58: =IF(JP58="NR","NR",ROUNDDOWN(JP58-GI58,0)) -> 0 | MX58: =IF(JQ58="NR","NR",ROUNDDOWN(JQ58-GJ58,0)) -> 0 | MY58: =IF(JR58="NR","NR",ROUNDDOWN(JR58-GK58,0)) -> 0 | MZ58: =IF(JS58="NR","NR",ROUNDDOWN(JS58-GL58,0)) -> 0 | NA58: =IF(JT58="NR","NR",ROUNDDOWN(JT58-GM58,0)) -> 0 | NB58: =IF(JU58="NR","NR",ROUNDDOWN(JU58-GN58,0)) -> 0 | NC58: =IF(JV58="NR","NR",ROUNDDOWN(JV58-GO58,0)) -> 0 | ND58: =IF(JW58="NR","NR",ROUNDDOWN(JW58-GP58,0)) -> 0 | NE58: NR | NF58: NR | NG58: NR | NH58: =IF(KA58="NR","NR",ROUNDDOWN(KA58-GT58,0)) -> 0 | NI58: =IF(KB58="NR","NR",ROUNDDOWN(KB58-GU58,0)) -> 0 | NJ58: =IF(KC58="NR","NR",ROUNDDOWN(KC58-GV58,0)) -> 0
B59: 2018-11-26 | C59: 2018-10-02 | D59: 2018-10-31 | E59: 2018-11-21 | F59: 2018-11-26 | G59: 33 | H59: 0.01845 | I59: 2016-12-01 | J59: 1999995073 | K59: 1208464034 | L59: 74146711.67 | M59: 1185289155 | N59: 73905915.51 | O59: 1204204407 | P59: 74146711.67 | Q59: 5097737.88 | R59: 0.012349 | S59: 0 | T59: 4394832.47 | U59: 1246087.1 | V59: 0 | W59: 4161543.55 | X59: 256342.06 | Y59: 4410336.72 | Z59: 26323624.26 | AA59: 66.77 | AB59: 0 | AC59: 0 | AD59: 0 | AE59: 0 | AF59: 12084640.34 | AG59: 0 | AH59: 1840000000 | AI59: 0 | AJ59: 70000000 | AK59: 48000000 | AL59: 14000000 | AM59: 12000000 | AN59: 8000000 | AO59: 8000000 | AP59: 10000 | AQ59: 1048464034 | AR59: 0 | AS59: 70000000 | AT59: 48000000 | AU59: 14000000 | AV59: 12000000 | AW59: 8000000 | AX59: 8000000 | AY59: 0 | AZ59: 0 | BA59: 0 | BB59: 0 | BC59: 0 | BD59: 0 | BE59: 0 | BF59: 0 | BG59: 1 | BH59: 364189.04 | BI59: 0 | BJ59: 5462.92 | BK59: 0 | BL59: 0 | BM59: 0 | BN59: 0 | BO59: 0 | BP59: 0 | BQ59: 0 | BR59: 0.0107 | BS59: 0 | BT59: 0.016 | BU59: 0.0225 | BV59: 0.0275 | BW59: 0.0375 | BX59: 0.0475 | BY59: 0.06 | BZ59: 0.0025 | CA59: 0.0025 | CB59: 0.02 | CC59: 0.02 | CD59: 0.02 | CE59: 0.02 | CF59: 0.02 | CG59: 0 | CH59: 0 | CI59: 0 | CJ59: 0 | CK59: 0 | CL59: 0 | CM59: 0 | CN59: 0 | CO59: 0 | CP59: 0 | CQ59: 0 | CR59: 0 | CS59: 0 | CT59: 0 | CU59: 0 | CV59: 0.1 | CW59: 2 | CX59: 0.006458905482 | CY59: 0.04 | CZ59: FALSE | DA59: FALSE | DB59: FALSE | DC59: FALSE | DD59: FALSE | DE59: FALSE | DF59: FALSE | DG59: FALSE | DH59: FALSE | DI59: FALSE | DJ59: 0 | DK59: 0 | DL59: 0 | DM59: 0 | DN59: 0 | DO59: Waterfall_1 | DP59: =waterfall_1(C59:DN59) -> 364189.04 | DQ59: 0 | DR59: 0 | DS59: 5462.92 | DT59: 0 | DU59: 0 | DV59: 0 | DW59: 0 | DX59: 0 | DY59: 381508.05 | DZ59: 0 | EA59: 381508.05 | EB59: 0 | EC59: 2763205.42 | ED59: 0 | EE59: 218026.03 | EF59: 177711.78 | EG59: 58161.37 | EH59: 60701.92 | EI59: 47700.82 | EJ59: 56741.92 | EK59: 0 | EL59: 0 | EM59: 0 | EN59: 0 | EO59: 0 | EP59: 0 | EQ59: 0 | ER59: 0 | ES59: 0 | ET59: 0 | EU59: 0 | EV59: 0 | EW59: 0 | EX59: 0 | EY59: 0 | EZ59: 0 | FA59: 0 | FB59: 0 | FC59: 998737.97 | FD59: 48820.24 | FE59: 1 | FF59: 0 | FG59: 0 | FH59: 0 | FI59: 22793370.84 | FJ59: 0 | FK59: 0 | FL59: 0 | FM59: 0 | FN59: 0 | FO59: 0 | FP59: 0 | FQ59: 1025670663 | FR59: 0 | FS59: 70000000 | FT59: 48000000 | FU59: 14000000 | FV59: 12000000 | FW59: 8000000 | FX59: 8000000 | FY59: 0 | FZ59: 0 | GA59: 0 | GB59: 0 | GC59: 0 | GD59: 0 | GE59: 0 | GF59: 0 | GG59: 1025670663 | GH59: 0 | GI59: 70000000 | GJ59: 48000000 | GK59: 14000000 | GL59: 12000000 | GM59: 8000000 | GN59: 8000000 | GO59: 0 | GP59: 0 | GQ59: FALSE | GR59: FALSE | GS59: FALSE | GT59: 0 | GU59: 0 | GV59: 0 | GW59: 364189.04 | GX59: 0 | GY59: 0 | GZ59: 5462.92 | HA59: 0 | HB59: 0 | HC59: 0 | HD59: 0 | HE59: 0 | HF59: 0 | HG59: 0 | HH59: 0 | HI59: 0 | HJ59: 2763205.42 | HK59: 0 | HL59: 218026.03 | HM59: 177711.78 | HN59: 58161.37 | HO59: 60701.92 | HP59: 47700.82 | HQ59: 56741.92 | HR59: 0 | HS59: 0 | HT59: 0 | HU59: 0 | HV59: 0 | HW59: 0 | HX59: 0 | HY59: 0 | HZ59: 0 | IA59: 0 | IB59: 0 | IC59: 0 | ID59: 0 | IE59: 0 | IF59: 0 | IG59: 0 | IH59: 0 | II59: 0 | IJ59: 0 | IK59: 0 | IL59: 924972.26 | IM59: 0 | IN59: 0 | IO59: 0 | IP59: 23174878.89 | IQ59: 0 | IR59: 0 | IS59: 0 | IT59: 0 | IU59: 0 | IV59: 0 | IW59: 0 | IX59: 1025289155 | IY59: 0 | IZ59: 70000000 | JA59: 48000000 | JB59: 14000000 | JC59: 12000000 | JD59: 8000000 | JE59: 8000000 | JF59: 0 | JG59: 0 | JH59: 0 | JI59: 0 | JJ59: 0 | JK59: 0 | JL59: 0 | JM59: 0 | JN59: 1025289155 | JO59: 0 | JP59: 70000000 | JQ59: 48000000 | JR59: 14000000 | JS59: 12000000 | JT59: 8000000 | JU59: 8000000 | JV59: 0 | JW59: 0 | JX59: FALSE | JY59: FALSE | JZ59: FALSE | KA59: 0 | KB59: 0 | KC59: 0 | KD59: =IF(GW59="NR","NR",ROUNDDOWN(GW59-DP59,0)) -> 0 | KE59: =IF(GX59="NR","NR",ROUNDDOWN(GX59-DQ59,0)) -> 0 | KF59: =IF(GY59="NR","NR",ROUNDDOWN(GY59-DR59,0)) -> 0 | KG59: =IF(GZ59="NR","NR",ROUNDDOWN(GZ59-DS59,0)) -> 0 | KH59: =IF(HA59="NR","NR",ROUNDDOWN(HA59-DT59,0)) -> 0 | KI59: =IF(HB59="NR","NR",ROUNDDOWN(HB59-DU59,0)) -> 0 | KJ59: =IF(HC59="NR","NR",ROUNDDOWN(HC59-DV59,0)) -> 0 | KK59: =IF(HD59="NR","NR",ROUNDDOWN(HD59-DW59,0)) -> 0 | KL59: =IF(HE59="NR","NR",ROUNDDOWN(HE59-DX59,0)) -> 0 | KM59: =IF(HF59="NR","NR",ROUNDDOWN(HF59-DY59,0)) -> -381508 | KN59: =IF(HG59="NR","NR",ROUNDDOWN(HG59-DZ59,0)) -> 0 | KO59: =IF(HH59="NR","NR",ROUNDDOWN(HH59-EA59,0)) -> -381508 | KP59: =IF(HI59="NR","NR",ROUNDDOWN(HI59-EB59,0)) -> 0 | KQ59: =IF(HJ59="NR","NR",ROUNDDOWN(HJ59-EC59,0)) -> 0 | KR59: =IF(HK59="NR","NR",ROUNDDOWN(HK59-ED59,0)) -> 0 | KS59: =IF(HL59="NR","NR",ROUNDDOWN(HL59-EE59,0)) -> 0 | KT59: =IF(HM59="NR","NR",ROUNDDOWN(HM59-EF59,0)) -> 0 | KU59: =IF(HN59="NR","NR",ROUNDDOWN(HN59-EG59,0)) -> 0 | KV59: =IF(HO59="NR","NR",ROUNDDOWN(HO59-EH59,0)) -> 0 | KW59: =IF(HP59="NR","NR",ROUNDDOWN(HP59-EI59,0)) -> 0 | KX59: =IF(HQ59="NR","NR",ROUNDDOWN(HQ59-EJ59,0)) -> 0 | KY59: =IF(HR59="NR","NR",ROUNDDOWN(HR59-EK59,0)) -> 0 | KZ59: =IF(HS59="NR","NR",ROUNDDOWN(HS59-EL59,0)) -> 0 | LA59: =IF(HT59="NR","NR",ROUNDDOWN(HT59-EM59,0)) -> 0 | LB59: =IF(HU59="NR","NR",ROUNDDOWN(HU59-EN59,0)) -> 0 | LC59: =IF(HV59="NR","NR",ROUNDDOWN(HV59-EO59,0)) -> 0 | LD59: =IF(HW59="NR","NR",ROUNDDOWN(HW59-EP59,0)) -> 0 | LE59: =IF(HX59="NR","NR",ROUNDDOWN(HX59-EQ59,0)) -> 0 | LF59: =IF(HY59="NR","NR",ROUNDDOWN(HY59-ER59,0)) -> 0 | LG59: =IF(HZ59="NR","NR",ROUNDDOWN(HZ59-ES59,0)) -> 0 | LH59: =IF(IA59="NR","NR",ROUNDDOWN(IA59-ET59,0)) -> 0 | LI59: =IF(IB59="NR","NR",ROUNDDOWN(IB59-EU59,0)) -> 0 | LJ59: =IF(IC59="NR","NR",ROUNDDOWN(IC59-EV59,0)) -> 0 | LK59: =IF(ID59="NR","NR",ROUNDDOWN(ID59-EW59,0)) -> 0 | LL59: =IF(IE59="NR","NR",ROUNDDOWN(IE59-EX59,0)) -> 0 | LM59: =IF(IF59="NR","NR",ROUNDDOWN(IF59-EY59,0)) -> 0 | LN59: =IF(IG59="NR","NR",ROUNDDOWN(IG59-EZ59,0)) -> 0 | LO59: =IF(IH59="NR","NR",ROUNDDOWN(IH59-FA59,0)) -> 0 | LP59: =IF(II59="NR","NR",ROUNDDOWN(II59-FB59,0)) -> 0 | LQ59: =IF(IJ59="NR","NR",ROUNDDOWN(IJ59-FC59,0)) -> -998737 | LR59: =IF(IK59="NR","NR",ROUNDDOWN(IK59-FD59,0)) -> -48820 | LS59: =IF(IL59="NR","NR",ROUNDDOWN(IL59-FE59,0)) -> 924971 | LT59: =IF(IM59="NR","NR",ROUNDDOWN(IM59-FF59,0)) -> 0 | LU59: =IF(IN59="NR","NR",ROUNDDOWN(IN59-FG59,0)) -> 0 | LV59: =IF(IO59="NR","NR",ROUNDDOWN(IO59-FH59,0)) -> 0 | LW59: =IF(IP59="NR","NR",ROUNDDOWN(IP59-FI59,0)) -> 381508 | LX59: =IF(IQ59="NR","NR",ROUNDDOWN(IQ59-FJ59,0)) -> 0 | LY59: =IF(IR59="NR","NR",ROUNDDOWN(IR59-FK59,0)) -> 0 | LZ59: =IF(IS59="NR","NR",ROUNDDOWN(IS59-FL59,0)) -> 0 | MA59: =IF(IT59="NR","NR",ROUNDDOWN(IT59-FM59,0)) -> 0 | MB59: =IF(IU59="NR","NR",ROUNDDOWN(IU59-FN59,0)) -> 0 | MC59: =IF(IV59="NR","NR",ROUNDDOWN(IV59-FO59,0)) -> 0 | MD59: =IF(IW59="NR","NR",ROUNDDOWN(IW59-FP59,0)) -> 0 | ME59: =IF(IX59="NR","NR",ROUNDDOWN(IX59-FQ59,0)) -> -381508 | MF59: =IF(IY59="NR","NR",ROUNDDOWN(IY59-FR59,0)) -> 0 | MG59: =IF(IZ59="NR","NR",ROUNDDOWN(IZ59-FS59,0)) -> 0 | MH59: =IF(JA59="NR","NR",ROUNDDOWN(JA59-FT59,0)) -> 0 | MI59: =IF(JB59="NR","NR",ROUNDDOWN(JB59-FU59,0)) -> 0 | MJ59: =IF(JC59="NR","NR",ROUNDDOWN(JC59-FV59,0)) -> 0 | MK59: =IF(JD59="NR","NR",ROUNDDOWN(JD59-FW59,0)) -> 0 | ML59: =IF(JE59="NR","NR",ROUNDDOWN(JE59-FX59,0)) -> 0 | MM59: =IF(JF59="NR","NR",ROUNDDOWN(JF59-FY59,0)) -> 0 | MN59: =IF(JG59="NR","NR",ROUNDDOWN(JG59-FZ59,0)) -> 0 | MO59: =IF(JH59="NR","NR",ROUNDDOWN(JH59-GA59,0)) -> 0 | MP59: =IF(JI59="NR","NR",ROUNDDOWN(JI59-GB59,0)) -> 0 | MQ59: =IF(JJ59="NR","NR",ROUNDDOWN(JJ59-GC59,0)) -> 0 | MR59: =IF(JK59="NR","NR",ROUNDDOWN(JK59-GD59,0)) -> 0 | MS59: =IF(JL59="NR","NR",ROUNDDOWN(JL59-GE59,0)) -> 0 | MT59: =IF(JM59="NR","NR",ROUNDDOWN(JM59-GF59,0)) -> 0 | MU59: =IF(JN59="NR","NR",ROUNDDOWN(JN59-GG59,0)) -> -381508 | MV59: =IF(JO59="NR","NR",ROUNDDOWN(JO59-GH59,0)) -> 0 | MW59: =IF(JP59="NR","NR",ROUNDDOWN(JP59-GI59,0)) -> 0 | MX59: =IF(JQ59="NR","NR",ROUNDDOWN(JQ59-GJ59,0)) -> 0 | MY59: =IF(JR59="NR","NR",ROUNDDOWN(JR59-GK59,0)) -> 0 | MZ59: =IF(JS59="NR","NR",ROUNDDOWN(JS59-GL59,0)) -> 0 | NA59: =IF(JT59="NR","NR",ROUNDDOWN(JT59-GM59,0)) -> 0 | NB59: =IF(JU59="NR","NR",ROUNDDOWN(JU59-GN59,0)) -> 0 | NC59: =IF(JV59="NR","NR",ROUNDDOWN(JV59-GO59,0)) -> 0 | ND59: =IF(JW59="NR","NR",ROUNDDOWN(JW59-GP59,0)) -> 0 | NE59: NR | NF59: NR | NG59: NR | NH59: =IF(KA59="NR","NR",ROUNDDOWN(KA59-GT59,0)) -> 0 | NI59: =IF(KB59="NR","NR",ROUNDDOWN(KB59-GU59,0)) -> 0 | NJ59: =IF(KC59="NR","NR",ROUNDDOWN(KC59-GV59,0)) -> 0
B60: 2018-12-24 | C60: 2018-11-01 | D60: 2018-11-30 | E60: 2018-12-19 | F60: 2018-12-24 | G60: 28 | H60: 0.01863 | I60: 2016-12-01 | J60: 1999995073 | K60: 1185289155 | L60: 73905915.51 | M60: 1162190220 | N60: 74552416.91 | O60: 1180191417 | P60: 73905915.51 | Q60: 4506934.91 | R60: 0.010295 | S60: 0 | T60: 4861927.15 | U60: 3529667.27 | V60: 0 | W60: 4338766.42 | X60: 270228.03 | Y60: 4155248.76 | Z60: 24431195.29 | AA60: 41.55 | AB60: 0 | AC60: 0 | AD60: 0 | AE60: 0 | AF60: 11852891.55 | AG60: 0 | AH60: 1840000000 | AI60: 0 | AJ60: 70000000 | AK60: 48000000 | AL60: 14000000 | AM60: 12000000 | AN60: 8000000 | AO60: 8000000 | AP60: 10000 | AQ60: 1025289155 | AR60: 0 | AS60: 70000000 | AT60: 48000000 | AU60: 14000000 | AV60: 12000000 | AW60: 8000000 | AX60: 8000000 | AY60: 0 | AZ60: 0 | BA60: 0 | BB60: 0 | BC60: 0 | BD60: 0 | BE60: 0 | BF60: 0 | BG60: 1 | BH60: 326455.55 | BI60: 0 | BJ60: 4546.31 | BK60: 0 | BL60: 0 | BM60: 0 | BN60: 0 | BO60: 0 | BP60: 0 | BQ60: 0 | BR60: 0.0107 | BS60: 0 | BT60: 0.016 | BU60: 0.0225 | BV60: 0.0275 | BW60: 0.0375 | BX60: 0.0475 | BY60: 0.06 | BZ60: 0.0025 | CA60: 0.0025 | CB60: 0.02 | CC60: 0.02 | CD60: 0.02 | CE60: 0.02 | CF60: 0.02 | CG60: 0 | CH60: 0 | CI60: 0 | CJ60: 0 | CK60: 0 | CL60: 0 | CM60: 0 | CN60: 0 | CO60: 0 | CP60: 0 | CQ60: 0 | CR60: 0 | CS60: 0 | CT60: 0 | CU60: 0 | CV60: 0.1 | CW60: 2 | CX60: 0.006742389965 | CY60: 0.04 | CZ60: FALSE | DA60: FALSE | DB60: FALSE | DC60: FALSE | DD60: FALSE | DE60: FALSE | DF60: FALSE | DG60: FALSE | DH60: FALSE | DI60: FALSE | DJ60: 0 | DK60: 0 | DL60: 0 | DM60: 0 | DN60: 0 | DO60: Waterfall_1 | DP60: =waterfall_1(C60:DN60) -> 326455.55 | DQ60: 0 | DR60: 0 | DS60: 4546.31 | DT60: 0 | DU60: 0 | DV60: 0 | DW60: 0 | DX60: 0 | DY60: 343151.32 | DZ60: 0 | EA60: 343151.32 | EB60: 0 | EC60: 2306872.51 | ED60: 0 | EE60: 185958.36 | EF60: 151448.55 | EG60: 49542.36 | EH60: 51670.36 | EI60: 40583.89 | EJ60: 48255.12 | EK60: 0 | EL60: 0 | EM60: 0 | EN60: 0 | EO60: 0 | EP60: 0 | EQ60: 0 | ER60: 0 | ES60: 0 | ET60: 0 | EU60: 0 | EV60: 0 | EW60: 0 | EX60: 0 | EY60: 0 | EZ60: 0 | FA60: 0 | FB60: 0 | FC60: 1693353.33 | FD60: 93499.98 | FE60: 1 | FF60: 0 | FG60: 0 | FH60: 0 | FI60: 22755784.09 | FJ60: 0 | FK60: 0 | FL60: 0 | FM60: 0 | FN60: 0 | FO60: 0 | FP60: 0 | FQ60: 1002533371 | FR60: 0 | FS60: 70000000 | FT60: 48000000 | FU60: 14000000 | FV60: 12000000 | FW60: 8000000 | FX60: 8000000 | FY60: 0 | FZ60: 0 | GA60: 0 | GB60: 0 | GC60: 0 | GD60: 0 | GE60: 0 | GF60: 0 | GG60: 1002533371 | GH60: 0 | GI60: 70000000 | GJ60: 48000000 | GK60: 14000000 | GL60: 12000000 | GM60: 8000000 | GN60: 8000000 | GO60: 0 | GP60: 0 | GQ60: FALSE | GR60: FALSE | GS60: FALSE | GT60: 0 | GU60: 0 | GV60: 0 | GW60: 326455.55 | GX60: 0 | GY60: 0 | GZ60: 4546.31 | HA60: 0 | HB60: 0 | HC60: 0 | HD60: 0 | HE60: 0 | HF60: 0 | HG60: 0 | HH60: 0 | HI60: 0 | HJ60: 2306872.51 | HK60: 0 | HL60: 185958.36 | HM60: 151448.55 | HN60: 49542.36 | HO60: 51670.36 | HP60: 40583.89 | HQ60: 48255.12 | HR60: 0 | HS60: 0 | HT60: 0 | HU60: 0 | HV60: 0 | HW60: 0 | HX60: 0 | HY60: 0 | HZ60: 0 | IA60: 0 | IB60: 0 | IC60: 0 | ID60: 0 | IE60: 0 | IF60: 0 | IG60: 0 | IH60: 0 | II60: 0 | IJ60: 674964.48 | IK60: 25466.04 | IL60: 743272.47 | IM60: 0 | IN60: 0 | IO60: 0 | IP60: 23098935.41 | IQ60: 0 | IR60: 0 | IS60: 0 | IT60: 0 | IU60: 0 | IV60: 0 | IW60: 0 | IX60: 1002190220 | IY60: 0 | IZ60: 70000000 | JA60: 48000000 | JB60: 14000000 | JC60: 12000000 | JD60: 8000000 | JE60: 8000000 | JF60: 0 | JG60: 0 | JH60: 0 | JI60: 0 | JJ60: 0 | JK60: 0 | JL60: 0 | JM60: 0 | JN60: 1002190220 | JO60: 0 | JP60: 70000000 | JQ60: 48000000 | JR60: 14000000 | JS60: 12000000 | JT60: 8000000 | JU60: 8000000 | JV60: 0 | JW60: 0 | JX60: FALSE | JY60: FALSE | JZ60: FALSE | KA60: 0 | KB60: 0 | KC60: 0 | KD60: =IF(GW60="NR","NR",ROUNDDOWN(GW60-DP60,0)) -> 0 | KE60: =IF(GX60="NR","NR",ROUNDDOWN(GX60-DQ60,0)) -> 0 | KF60: =IF(GY60="NR","NR",ROUNDDOWN(GY60-DR60,0)) -> 0 | KG60: =IF(GZ60="NR","NR",ROUNDDOWN(GZ60-DS60,0)) -> 0 | KH60: =IF(HA60="NR","NR",ROUNDDOWN(HA60-DT60,0)) -> 0 | KI60: =IF(HB60="NR","NR",ROUNDDOWN(HB60-DU60,0)) -> 0 | KJ60: =IF(HC60="NR","NR",ROUNDDOWN(HC60-DV60,0)) -> 0 | KK60: =IF(HD60="NR","NR",ROUNDDOWN(HD60-DW60,0)) -> 0 | KL60: =IF(HE60="NR","NR",ROUNDDOWN(HE60-DX60,0)) -> 0 | KM60: =IF(HF60="NR","NR",ROUNDDOWN(HF60-DY60,0)) -> -343151 | KN60: =IF(HG60="NR","NR",ROUNDDOWN(HG60-DZ60,0)) -> 0 | KO60: =IF(HH60="NR","NR",ROUNDDOWN(HH60-EA60,0)) -> -343151 | KP60: =IF(HI60="NR","NR",ROUNDDOWN(HI60-EB60,0)) -> 0 | KQ60: =IF(HJ60="NR","NR",ROUNDDOWN(HJ60-EC60,0)) -> 0 | KR60: =IF(HK60="NR","NR",ROUNDDOWN(HK60-ED60,0)) -> 0 | KS60: =IF(HL60="NR","NR",ROUNDDOWN(HL60-EE60,0)) -> 0 | KT60: =IF(HM60="NR","NR",ROUNDDOWN(HM60-EF60,0)) -> 0 | KU60: =IF(HN60="NR","NR",ROUNDDOWN(HN60-EG60,0)) -> 0 | KV60: =IF(HO60="NR","NR",ROUNDDOWN(HO60-EH60,0)) -> 0 | KW60: =IF(HP60="NR","NR",ROUNDDOWN(HP60-EI60,0)) -> 0 | KX60: =IF(HQ60="NR","NR",ROUNDDOWN(HQ60-EJ60,0)) -> 0 | KY60: =IF(HR60="NR","NR",ROUNDDOWN(HR60-EK60,0)) -> 0 | KZ60: =IF(HS60="NR","NR",ROUNDDOWN(HS60-EL60,0)) -> 0 | LA60: =IF(HT60="NR","NR",ROUNDDOWN(HT60-EM60,0)) -> 0 | LB60: =IF(HU60="NR","NR",ROUNDDOWN(HU60-EN60,0)) -> 0 | LC60: =IF(HV60="NR","NR",ROUNDDOWN(HV60-EO60,0)) -> 0 | LD60: =IF(HW60="NR","NR",ROUNDDOWN(HW60-EP60,0)) -> 0 | LE60: =IF(HX60="NR","NR",ROUNDDOWN(HX60-EQ60,0)) -> 0 | LF60: =IF(HY60="NR","NR",ROUNDDOWN(HY60-ER60,0)) -> 0 | LG60: =IF(HZ60="NR","NR",ROUNDDOWN(HZ60-ES60,0)) -> 0 | LH60: =IF(IA60="NR","NR",ROUNDDOWN(IA60-ET60,0)) -> 0 | LI60: =IF(IB60="NR","NR",ROUNDDOWN(IB60-EU60,0)) -> 0 | LJ60: =IF(IC60="NR","NR",ROUNDDOWN(IC60-EV60,0)) -> 0 | LK60: =IF(ID60="NR","NR",ROUNDDOWN(ID60-EW60,0)) -> 0 | LL60: =IF(IE60="NR","NR",ROUNDDOWN(IE60-EX60,0)) -> 0 | LM60: =IF(IF60="NR","NR",ROUNDDOWN(IF60-EY60,0)) -> 0 | LN60: =IF(IG60="NR","NR",ROUNDDOWN(IG60-EZ60,0)) -> 0 | LO60: =IF(IH60="NR","NR",ROUNDDOWN(IH60-FA60,0)) -> 0 | LP60: =IF(II60="NR","NR",ROUNDDOWN(II60-FB60,0)) -> 0 | LQ60: =IF(IJ60="NR","NR",ROUNDDOWN(IJ60-FC60,0)) -> -1018388 | LR60: =IF(IK60="NR","NR",ROUNDDOWN(IK60-FD60,0)) -> -68033 | LS60: =IF(IL60="NR","NR",ROUNDDOWN(IL60-FE60,0)) -> 743271 | LT60: =IF(IM60="NR","NR",ROUNDDOWN(IM60-FF60,0)) -> 0 | LU60: =IF(IN60="NR","NR",ROUNDDOWN(IN60-FG60,0)) -> 0 | LV60: =IF(IO60="NR","NR",ROUNDDOWN(IO60-FH60,0)) -> 0 | LW60: =IF(IP60="NR","NR",ROUNDDOWN(IP60-FI60,0)) -> 343151 | LX60: =IF(IQ60="NR","NR",ROUNDDOWN(IQ60-FJ60,0)) -> 0 | LY60: =IF(IR60="NR","NR",ROUNDDOWN(IR60-FK60,0)) -> 0 | LZ60: =IF(IS60="NR","NR",ROUNDDOWN(IS60-FL60,0)) -> 0 | MA60: =IF(IT60="NR","NR",ROUNDDOWN(IT60-FM60,0)) -> 0 | MB60: =IF(IU60="NR","NR",ROUNDDOWN(IU60-FN60,0)) -> 0 | MC60: =IF(IV60="NR","NR",ROUNDDOWN(IV60-FO60,0)) -> 0 | MD60: =IF(IW60="NR","NR",ROUNDDOWN(IW60-FP60,0)) -> 0 | ME60: =IF(IX60="NR","NR",ROUNDDOWN(IX60-FQ60,0)) -> -343151 | MF60: =IF(IY60="NR","NR",ROUNDDOWN(IY60-FR60,0)) -> 0 | MG60: =IF(IZ60="NR","NR",ROUNDDOWN(IZ60-FS60,0)) -> 0 | MH60: =IF(JA60="NR","NR",ROUNDDOWN(JA60-FT60,0)) -> 0 | MI60: =IF(JB60="NR","NR",ROUNDDOWN(JB60-FU60,0)) -> 0 | MJ60: =IF(JC60="NR","NR",ROUNDDOWN(JC60-FV60,0)) -> 0 | MK60: =IF(JD60="NR","NR",ROUNDDOWN(JD60-FW60,0)) -> 0 | ML60: =IF(JE60="NR","NR",ROUNDDOWN(JE60-FX60,0)) -> 0 | MM60: =IF(JF60="NR","NR",ROUNDDOWN(JF60-FY60,0)) -> 0 | MN60: =IF(JG60="NR","NR",ROUNDDOWN(JG60-FZ60,0)) -> 0 | MO60: =IF(JH60="NR","NR",ROUNDDOWN(JH60-GA60,0)) -> 0 | MP60: =IF(JI60="NR","NR",ROUNDDOWN(JI60-GB60,0)) -> 0 | MQ60: =IF(JJ60="NR","NR",ROUNDDOWN(JJ60-GC60,0)) -> 0 | MR60: =IF(JK60="NR","NR",ROUNDDOWN(JK60-GD60,0)) -> 0 | MS60: =IF(JL60="NR","NR",ROUNDDOWN(JL60-GE60,0)) -> 0 | MT60: =IF(JM60="NR","NR",ROUNDDOWN(JM60-GF60,0)) -> 0 | MU60: =IF(JN60="NR","NR",ROUNDDOWN(JN60-GG60,0)) -> -343151 | MV60: =IF(JO60="NR","NR",ROUNDDOWN(JO60-GH60,0)) -> 0 | MW60: =IF(JP60="NR","NR",ROUNDDOWN(JP60-GI60,0)) -> 0 | MX60: =IF(JQ60="NR","NR",ROUNDDOWN(JQ60-GJ60,0)) -> 0 | MY60: =IF(JR60="NR","NR",ROUNDDOWN(JR60-GK60,0)) -> 0 | MZ60: =IF(JS60="NR","NR",ROUNDDOWN(JS60-GL60,0)) -> 0 | NA60: =IF(JT60="NR","NR",ROUNDDOWN(JT60-GM60,0)) -> 0 | NB60: =IF(JU60="NR","NR",ROUNDDOWN(JU60-GN60,0)) -> 0 | NC60: =IF(JV60="NR","NR",ROUNDDOWN(JV60-GO60,0)) -> 0 | ND60: =IF(JW60="NR","NR",ROUNDDOWN(JW60-GP60,0)) -> 0 | NE60: NR | NF60: NR | NG60: NR | NH60: =IF(KA60="NR","NR",ROUNDDOWN(KA60-GT60,0)) -> 0 | NI60: =IF(KB60="NR","NR",ROUNDDOWN(KB60-GU60,0)) -> 0 | NJ60: =IF(KC60="NR","NR",ROUNDDOWN(KC60-GV60,0)) -> 0
B61: 2019-01-24 | C61: 2018-12-01 | D61: 2018-12-31 | E61: 2019-01-21 | F61: 2019-01-24 | G61: 31 | H61: 0.02025 | I61: 2016-12-01 | J61: 1999995073 | K61: 1162190220 | L61: 74552416.91 | M61: 1142218654 | N61: 71491831.78 | O61: 1157683285 | P61: 74552416.91 | Q61: 5418330.42 | R61: 0.010966 | S61: 0 | T61: 4024133.4 | U61: 2028395.99 | V61: 0 | W61: 4137770.62 | X61: 253748.34 | Y61: 4253630.28 | Z61: 21967303.62 | AA61: 51.31 | AB61: 0 | AC61: 0 | AD61: 0 | AE61: 0 | AF61: 11621902.2 | AG61: 0 | AH61: 1840000000 | AI61: 0 | AJ61: 70000000 | AK61: 48000000 | AL61: 14000000 | AM61: 12000000 | AN61: 8000000 | AO61: 8000000 | AP61: 10000 | AQ61: 1002190220 | AR61: 0 | AS61: 70000000 | AT61: 48000000 | AU61: 14000000 | AV61: 12000000 | AW61: 8000000 | AX61: 8000000 | AY61: 0 | AZ61: 0 | BA61: 0 | BB61: 0 | BC61: 0 | BD61: 0 | BE61: 0 | BF61: 0 | BG61: 1 | BH61: 332077.82 | BI61: 0 | BJ61: 4935.33 | BK61: 0 | BL61: 0 | BM61: 0 | BN61: 0 | BO61: 0 | BP61: 0 | BQ61: 0 | BR61: 0.0107 | BS61: 0 | BT61: 0.016 | BU61: 0.0225 | BV61: 0.0275 | BW61: 0.0375 | BX61: 0.0475 | BY61: 0.06 | BZ61: 0.0025 | CA61: 0.0025 | CB61: 0.02 | CC61: 0.02 | CD61: 0.02 | CE61: 0.02 | CF61: 0.02 | CG61: 0 | CH61: 0 | CI61: 0 | CJ61: 0 | CK61: 0 | CL61: 0 | CM61: 0 | CN61: 0 | CO61: 0 | CP61: 0 | CQ61: 0 | CR61: 0 | CS61: 0 | CT61: 0 | CU61: 0 | CV61: 0.1 | CW61: 2 | CX61: 0.007128363997 | CY61: 0.04 | CZ61: FALSE | DA61: FALSE | DB61: FALSE | DC61: FALSE | DD61: FALSE | DE61: FALSE | DF61: FALSE | DG61: FALSE | DH61: FALSE | DI61: FALSE | DJ61: 0 | DK61: 0 | DL61: 0 | DM61: 0 | DN61: 0 | DO61: Waterfall_1 | DP61: =waterfall_1(C61:DN61) -> 332077.82 | DQ61: 0 | DR61: 0 | DS61: 4935.33 | DT61: 0 | DU61: 0 | DV61: 0 | DW61: 0 | DX61: 0 | DY61: 349528.89 | DZ61: 0 | EA61: 349528.89 | EB61: 0 | EC61: 2634387.41 | ED61: 0 | EE61: 215513.7 | EF61: 174279.45 | EG61: 56776.71 | EH61: 58857.53 | EI61: 46032.88 | EJ61: 54526.03 | EK61: 0 | EL61: 0 | EM61: 0 | EN61: 0 | EO61: 0 | EP61: 0 | EQ61: 0 | ER61: 0 | ES61: 0 | ET61: 0 | EU61: 0 | EV61: 0 | EW61: 0 | EX61: 0 | EY61: 0 | EZ61: 0 | FA61: 0 | FB61: 0 | FC61: 1117827.12 | FD61: 45884.18 | FE61: 1 | FF61: 0 | FG61: 0 | FH61: 0 | FI61: 19622037.32 | FJ61: 0 | FK61: 0 | FL61: 0 | FM61: 0 | FN61: 0 | FO61: 0 | FP61: 0 | FQ61: 982568182.4 | FR61: 0 | FS61: 70000000 | FT61: 48000000 | FU61: 14000000 | FV61: 12000000 | FW61: 8000000 | FX61: 8000000 | FY61: 0 | FZ61: 0 | GA61: 0 | GB61: 0 | GC61: 0 | GD61: 0 | GE61: 0 | GF61: 0 | GG61: 982568182.4 | GH61: 0 | GI61: 70000000 | GJ61: 48000000 | GK61: 14000000 | GL61: 12000000 | GM61: 8000000 | GN61: 8000000 | GO61: 0 | GP61: 0 | GQ61: FALSE | GR61: FALSE | GS61: FALSE | GT61: 0 | GU61: 0 | GV61: 0 | GW61: 332077.82 | GX61: 0 | GY61: 0 | GZ61: 4935.33 | HA61: 0 | HB61: 0 | HC61: 0 | HD61: 0 | HE61: 0 | HF61: 0 | HG61: 0 | HH61: 0 | HI61: 0 | HJ61: 2634387.41 | HK61: 0 | HL61: 215513.7 | HM61: 174279.45 | HN61: 56776.71 | HO61: 58857.53 | HP61: 46032.88 | HQ61: 54526.03 | HR61: 0 | HS61: 0 | HT61: 0 | HU61: 0 | HV61: 0 | HW61: 0 | HX61: 0 | HY61: 0 | HZ61: 0 | IA61: 0 | IB61: 0 | IC61: 0 | ID61: 0 | IE61: 0 | IF61: 0 | IG61: 0 | IH61: 0 | II61: 0 | IJ61: 13923.88 | IK61: 0 | IL61: 830357.54 | IM61: 0 | IN61: 0 | IO61: 0 | IP61: 19971566.21 | IQ61: 0 | IR61: 0 | IS61: 0 | IT61: 0 | IU61: 0 | IV61: 0 | IW61: 0 | IX61: 982218653.5 | IY61: 0 | IZ61: 70000000 | JA61: 48000000 | JB61: 14000000 | JC61: 12000000 | JD61: 8000000 | JE61: 8000000 | JF61: 0 | JG61: 0 | JH61: 0 | JI61: 0 | JJ61: 0 | JK61: 0 | JL61: 0 | JM61: 0 | JN61: 982218653.5 | JO61: 0 | JP61: 70000000 | JQ61: 48000000 | JR61: 14000000 | JS61: 12000000 | JT61: 8000000 | JU61: 8000000 | JV61: 0 | JW61: 0 | JX61: FALSE | JY61: FALSE | JZ61: FALSE | KA61: 0 | KB61: 0 | KC61: 0 | KD61: =IF(GW61="NR","NR",ROUNDDOWN(GW61-DP61,0)) -> 0 | KE61: =IF(GX61="NR","NR",ROUNDDOWN(GX61-DQ61,0)) -> 0 | KF61: =IF(GY61="NR","NR",ROUNDDOWN(GY61-DR61,0)) -> 0 | KG61: =IF(GZ61="NR","NR",ROUNDDOWN(GZ61-DS61,0)) -> 0 | KH61: =IF(HA61="NR","NR",ROUNDDOWN(HA61-DT61,0)) -> 0 | KI61: =IF(HB61="NR","NR",ROUNDDOWN(HB61-DU61,0)) -> 0 | KJ61: =IF(HC61="NR","NR",ROUNDDOWN(HC61-DV61,0)) -> 0 | KK61: =IF(HD61="NR","NR",ROUNDDOWN(HD61-DW61,0)) -> 0 | KL61: =IF(HE61="NR","NR",ROUNDDOWN(HE61-DX61,0)) -> 0 | KM61: =IF(HF61="NR","NR",ROUNDDOWN(HF61-DY61,0)) -> -349528 | KN61: =IF(HG61="NR","NR",ROUNDDOWN(HG61-DZ61,0)) -> 0 | KO61: =IF(HH61="NR","NR",ROUNDDOWN(HH61-EA61,0)) -> -349528 | KP61: =IF(HI61="NR","NR",ROUNDDOWN(HI61-EB61,0)) -> 0 | KQ61: =IF(HJ61="NR","NR",ROUNDDOWN(HJ61-EC61,0)) -> 0 | KR61: =IF(HK61="NR","NR",ROUNDDOWN(HK61-ED61,0)) -> 0 | KS61: =IF(HL61="NR","NR",ROUNDDOWN(HL61-EE61,0)) -> 0 | KT61: =IF(HM61="NR","NR",ROUNDDOWN(HM61-EF61,0)) -> 0 | KU61: =IF(HN61="NR","NR",ROUNDDOWN(HN61-EG61,0)) -> 0 | KV61: =IF(HO61="NR","NR",ROUNDDOWN(HO61-EH61,0)) -> 0 | KW61: =IF(HP61="NR","NR",ROUNDDOWN(HP61-EI61,0)) -> 0 | KX61: =IF(HQ61="NR","NR",ROUNDDOWN(HQ61-EJ61,0)) -> 0 | KY61: =IF(HR61="NR","NR",ROUNDDOWN(HR61-EK61,0)) -> 0 | KZ61: =IF(HS61="NR","NR",ROUNDDOWN(HS61-EL61,0)) -> 0 | LA61: =IF(HT61="NR","NR",ROUNDDOWN(HT61-EM61,0)) -> 0 | LB61: =IF(HU61="NR","NR",ROUNDDOWN(HU61-EN61,0)) -> 0 | LC61: =IF(HV61="NR","NR",ROUNDDOWN(HV61-EO61,0)) -> 0 | LD61: =IF(HW61="NR","NR",ROUNDDOWN(HW61-EP61,0)) -> 0 | LE61: =IF(HX61="NR","NR",ROUNDDOWN(HX61-EQ61,0)) -> 0 | LF61: =IF(HY61="NR","NR",ROUNDDOWN(HY61-ER61,0)) -> 0 | LG61: =IF(HZ61="NR","NR",ROUNDDOWN(HZ61-ES61,0)) -> 0 | LH61: =IF(IA61="NR","NR",ROUNDDOWN(IA61-ET61,0)) -> 0 | LI61: =IF(IB61="NR","NR",ROUNDDOWN(IB61-EU61,0)) -> 0 | LJ61: =IF(IC61="NR","NR",ROUNDDOWN(IC61-EV61,0)) -> 0 | LK61: =IF(ID61="NR","NR",ROUNDDOWN(ID61-EW61,0)) -> 0 | LL61: =IF(IE61="NR","NR",ROUNDDOWN(IE61-EX61,0)) -> 0 | LM61: =IF(IF61="NR","NR",ROUNDDOWN(IF61-EY61,0)) -> 0 | LN61: =IF(IG61="NR","NR",ROUNDDOWN(IG61-EZ61,0)) -> 0 | LO61: =IF(IH61="NR","NR",ROUNDDOWN(IH61-FA61,0)) -> 0 | LP61: =IF(II61="NR","NR",ROUNDDOWN(II61-FB61,0)) -> 0 | LQ61: =IF(IJ61="NR","NR",ROUNDDOWN(IJ61-FC61,0)) -> -1103903 | LR61: =IF(IK61="NR","NR",ROUNDDOWN(IK61-FD61,0)) -> -45884 | LS61: =IF(IL61="NR","NR",ROUNDDOWN(IL61-FE61,0)) -> 830356 | LT61: =IF(IM61="NR","NR",ROUNDDOWN(IM61-FF61,0)) -> 0 | LU61: =IF(IN61="NR","NR",ROUNDDOWN(IN61-FG61,0)) -> 0 | LV61: =IF(IO61="NR","NR",ROUNDDOWN(IO61-FH61,0)) -> 0 | LW61: =IF(IP61="NR","NR",ROUNDDOWN(IP61-FI61,0)) -> 349528 | LX61: =IF(IQ61="NR","NR",ROUNDDOWN(IQ61-FJ61,0)) -> 0 | LY61: =IF(IR61="NR","NR",ROUNDDOWN(IR61-FK61,0)) -> 0 | LZ61: =IF(IS61="NR","NR",ROUNDDOWN(IS61-FL61,0)) -> 0 | MA61: =IF(IT61="NR","NR",ROUNDDOWN(IT61-FM61,0)) -> 0 | MB61: =IF(IU61="NR","NR",ROUNDDOWN(IU61-FN61,0)) -> 0 | MC61: =IF(IV61="NR","NR",ROUNDDOWN(IV61-FO61,0)) -> 0 | MD61: =IF(IW61="NR","NR",ROUNDDOWN(IW61-FP61,0)) -> 0 | ME61: =IF(IX61="NR","NR",ROUNDDOWN(IX61-FQ61,0)) -> -349528 | MF61: =IF(IY61="NR","NR",ROUNDDOWN(IY61-FR61,0)) -> 0 | MG61: =IF(IZ61="NR","NR",ROUNDDOWN(IZ61-FS61,0)) -> 0 | MH61: =IF(JA61="NR","NR",ROUNDDOWN(JA61-FT61,0)) -> 0 | MI61: =IF(JB61="NR","NR",ROUNDDOWN(JB61-FU61,0)) -> 0 | MJ61: =IF(JC61="NR","NR",ROUNDDOWN(JC61-FV61,0)) -> 0 | MK61: =IF(JD61="NR","NR",ROUNDDOWN(JD61-FW61,0)) -> 0 | ML61: =IF(JE61="NR","NR",ROUNDDOWN(JE61-FX61,0)) -> 0 | MM61: =IF(JF61="NR","NR",ROUNDDOWN(JF61-FY61,0)) -> 0 | MN61: =IF(JG61="NR","NR",ROUNDDOWN(JG61-FZ61,0)) -> 0 | MO61: =IF(JH61="NR","NR",ROUNDDOWN(JH61-GA61,0)) -> 0 | MP61: =IF(JI61="NR","NR",ROUNDDOWN(JI61-GB61,0)) -> 0 | MQ61: =IF(JJ61="NR","NR",ROUNDDOWN(JJ61-GC61,0)) -> 0 | MR61: =IF(JK61="NR","NR",ROUNDDOWN(JK61-GD61,0)) -> 0 | MS61: =IF(JL61="NR","NR",ROUNDDOWN(JL61-GE61,0)) -> 0 | MT61: =IF(JM61="NR","NR",ROUNDDOWN(JM61-GF61,0)) -> 0 | MU61: =IF(JN61="NR","NR",ROUNDDOWN(JN61-GG61,0)) -> -349528 | MV61: =IF(JO61="NR","NR",ROUNDDOWN(JO61-GH61,0)) -> 0 | MW61: =IF(JP61="NR","NR",ROUNDDOWN(JP61-GI61,0)) -> 0 | MX61: =IF(JQ61="NR","NR",ROUNDDOWN(JQ61-GJ61,0)) -> 0 | MY61: =IF(JR61="NR","NR",ROUNDDOWN(JR61-GK61,0)) -> 0 | MZ61: =IF(JS61="NR","NR",ROUNDDOWN(JS61-GL61,0)) -> 0 | NA61: =IF(JT61="NR","NR",ROUNDDOWN(JT61-GM61,0)) -> 0 | NB61: =IF(JU61="NR","NR",ROUNDDOWN(JU61-GN61,0)) -> 0 | NC61: =IF(JV61="NR","NR",ROUNDDOWN(JV61-GO61,0)) -> 0 | ND61: =IF(JW61="NR","NR",ROUNDDOWN(JW61-GP61,0)) -> 0 | NE61: NR | NF61: NR | NG61: NR | NH61: =IF(KA61="NR","NR",ROUNDDOWN(KA61-GT61,0)) -> 0 | NI61: =IF(KB61="NR","NR",ROUNDDOWN(KB61-GU61,0)) -> 0 | NJ61: =IF(KC61="NR","NR",ROUNDDOWN(KC61-GV61,0)) -> 0
B62: 2019-02-25 | C62: 2019-01-01 | D62: 2019-01-31 | E62: 2019-02-20 | F62: 2019-02-25 | G62: 32 | H62: 0.020233 | I62: 2016-12-01 | J62: 1999995073 | K62: 1142218654 | L62: 71491831.78 | M62: 1122926737 | N62: 70500095.7 | O62: 1136800323 | P62: 71491831.78 | Q62: 6070619.29 | R62: 0.013109 | S62: 0 | T62: 3549840.57 | U62: 2075455.63 | V62: 0 | W62: 4194272.96 | X62: 249851.91 | Y62: 4120104.15 | Z62: 20766301.14 | AA62: 2064.11 | AB62: 0 | AC62: 0 | AD62: 0 | AE62: 0 | AF62: 11422186.54 | AG62: 0 | AH62: 1840000000 | AI62: 0 | AJ62: 70000000 | AK62: 48000000 | AL62: 14000000 | AM62: 12000000 | AN62: 8000000 | AO62: 8000000 | AP62: 10000 | AQ62: 982218653.5 | AR62: 0 | AS62: 70000000 | AT62: 48000000 | AU62: 14000000 | AV62: 12000000 | AW62: 8000000 | AX62: 8000000 | AY62: 0 | AZ62: 0 | BA62: 0 | BB62: 0 | BC62: 0 | BD62: 0 | BE62: 0 | BF62: 0 | BG62: 1 | BH62: 426663.97 | BI62: 0 | BJ62: 5006.99 | BK62: 0 | BL62: 0 | BM62: 0 | BN62: 0 | BO62: 0 | BP62: 0 | BQ62: 0 | BR62: 0.0107 | BS62: 0 | BT62: 0.016 | BU62: 0.0225 | BV62: 0.0275 | BW62: 0.0375 | BX62: 0.0475 | BY62: 0.06 | BZ62: 0.0025 | CA62: 0.0025 | CB62: 0.02 | CC62: 0.02 | CD62: 0.02 | CE62: 0.02 | CF62: 0.02 | CG62: 0 | CH62: 0 | CI62: 0 | CJ62: 0 | CK62: 0 | CL62: 0 | CM62: 0 | CN62: 0 | CO62: 0 | CP62: 0 | CQ62: 0 | CR62: 0 | CS62: 0 | CT62: 0 | CU62: 0 | CV62: 0.1 | CW62: 2 | CX62: 0.007029560343 | CY62: 0.04 | CZ62: FALSE | DA62: FALSE | DB62: FALSE | DC62: FALSE | DD62: FALSE | DE62: FALSE | DF62: FALSE | DG62: FALSE | DH62: FALSE | DI62: FALSE | DJ62: 0 | DK62: 0 | DL62: 0 | DM62: 0 | DN62: 0 | DO62: Waterfall_1 | DP62: =waterfall_1(C62:DN62) -> 426663.97 | DQ62: 0 | DR62: 0 | DS62: 5006.99 | DT62: 0 | DU62: 0 | DV62: 0 | DW62: 0 | DX62: 0 | DY62: 445209.86 | DZ62: 0 | EA62: 445209.86 | EB62: 0 | EC62: 2663712.4 | ED62: 0 | EE62: 222361.42 | EF62: 179829.83 | EG62: 58587.35 | EH62: 60738.28 | EI62: 47505.88 | EJ62: 56273.01 | EK62: 0 | EL62: 0 | EM62: 0 | EN62: 0 | EO62: 0 | EP62: 0 | EQ62: 0 | ER62: 0 | ES62: 0 | ET62: 0 | EU62: 0 | EV62: 0 | EW62: 0 | EX62: 0 | EY62: 0 | EZ62: 0 | FA62: 0 | FB62: 0 | FC62: 1126726.88 | FD62: 43991.83 | FE62: 1 | FF62: 0 | FG62: 0 | FH62: 0 | FI62: 18846706.34 | FJ62: 0 | FK62: 0 | FL62: 0 | FM62: 0 | FN62: 0 | FO62: 0 | FP62: 0 | FQ62: 963371947.2 | FR62: 0 | FS62: 70000000 | FT62: 48000000 | FU62: 14000000 | FV62: 12000000 | FW62: 8000000 | FX62: 8000000 | FY62: 0 | FZ62: 0 | GA62: 0 | GB62: 0 | GC62: 0 | GD62: 0 | GE62: 0 | GF62: 0 | GG62: 963371947.2 | GH62: 0 | GI62: 70000000 | GJ62: 48000000 | GK62: 14000000 | GL62: 12000000 | GM62: 8000000 | GN62: 8000000 | GO62: 0 | GP62: 0 | GQ62: FALSE | GR62: FALSE | GS62: FALSE | GT62: 0 | GU62: 0 | GV62: 0 | GW62: 426663.97 | GX62: 0 | GY62: 0 | GZ62: 5006.99 | HA62: 0 | HB62: 0 | HC62: 0 | HD62: 0 | HE62: 0 | HF62: 0 | HG62: 0 | HH62: 0 | HI62: 0 | HJ62: 2663712.4 | HK62: 0 | HL62: 222361.42 | HM62: 179829.83 | HN62: 58587.35 | HO62: 60738.28 | HP62: 47505.88 | HQ62: 56273.01 | HR62: 0 | HS62: 0 | HT62: 0 | HU62: 0 | HV62: 0 | HW62: 0 | HX62: 0 | HY62: 0 | HZ62: 0 | IA62: 0 | IB62: 0 | IC62: 0 | ID62: 0 | IE62: 0 | IF62: 0 | IG62: 0 | IH62: 0 | II62: 0 | IJ62: 5963.98 | IK62: 0 | IL62: 750767.36 | IM62: 0 | IN62: 0 | IO62: 0 | IP62: 19291916.2 | IQ62: 0 | IR62: 0 | IS62: 0 | IT62: 0 | IU62: 0 | IV62: 0 | IW62: 0 | IX62: 962926737.3 | IY62: 0 | IZ62: 70000000 | JA62: 48000000 | JB62: 14000000 | JC62: 12000000 | JD62: 8000000 | JE62: 8000000 | JF62: 0 | JG62: 0 | JH62: 0 | JI62: 0 | JJ62: 0 | JK62: 0 | JL62: 0 | JM62: 0 | JN62: 962926737.3 | JO62: 0 | JP62: 70000000 | JQ62: 48000000 | JR62: 14000000 | JS62: 12000000 | JT62: 8000000 | JU62: 8000000 | JV62: 0 | JW62: 0 | JX62: FALSE | JY62: FALSE | JZ62: FALSE | KA62: 0 | KB62: 0 | KC62: 0 | KD62: =IF(GW62="NR","NR",ROUNDDOWN(GW62-DP62,0)) -> 0 | KE62: =IF(GX62="NR","NR",ROUNDDOWN(GX62-DQ62,0)) -> 0 | KF62: =IF(GY62="NR","NR",ROUNDDOWN(GY62-DR62,0)) -> 0 | KG62: =IF(GZ62="NR","NR",ROUNDDOWN(GZ62-DS62,0)) -> 0 | KH62: =IF(HA62="NR","NR",ROUNDDOWN(HA62-DT62,0)) -> 0 | KI62: =IF(HB62="NR","NR",ROUNDDOWN(HB62-DU62,0)) -> 0 | KJ62: =IF(HC62="NR","NR",ROUNDDOWN(HC62-DV62,0)) -> 0 | KK62: =IF(HD62="NR","NR",ROUNDDOWN(HD62-DW62,0)) -> 0 | KL62: =IF(HE62="NR","NR",ROUNDDOWN(HE62-DX62,0)) -> 0 | KM62: =IF(HF62="NR","NR",ROUNDDOWN(HF62-DY62,0)) -> -445209 | KN62: =IF(HG62="NR","NR",ROUNDDOWN(HG62-DZ62,0)) -> 0 | KO62: =IF(HH62="NR","NR",ROUNDDOWN(HH62-EA62,0)) -> -445209 | KP62: =IF(HI62="NR","NR",ROUNDDOWN(HI62-EB62,0)) -> 0 | KQ62: =IF(HJ62="NR","NR",ROUNDDOWN(HJ62-EC62,0)) -> 0 | KR62: =IF(HK62="NR","NR",ROUNDDOWN(HK62-ED62,0)) -> 0 | KS62: =IF(HL62="NR","NR",ROUNDDOWN(HL62-EE62,0)) -> 0 | KT62: =IF(HM62="NR","NR",ROUNDDOWN(HM62-EF62,0)) -> 0 | KU62: =IF(HN62="NR","NR",ROUNDDOWN(HN62-EG62,0)) -> 0 | KV62: =IF(HO62="NR","NR",ROUNDDOWN(HO62-EH62,0)) -> 0 | KW62: =IF(HP62="NR","NR",ROUNDDOWN(HP62-EI62,0)) -> 0 | KX62: =IF(HQ62="NR","NR",ROUNDDOWN(HQ62-EJ62,0)) -> 0 | KY62: =IF(HR62="NR","NR",ROUNDDOWN(HR62-EK62,0)) -> 0 | KZ62: =IF(HS62="NR","NR",ROUNDDOWN(HS62-EL62,0)) -> 0 | LA62: =IF(HT62="NR","NR",ROUNDDOWN(HT62-EM62,0)) -> 0 | LB62: =IF(HU62="NR","NR",ROUNDDOWN(HU62-EN62,0)) -> 0 | LC62: =IF(HV62="NR","NR",ROUNDDOWN(HV62-EO62,0)) -> 0 | LD62: =IF(HW62="NR","NR",ROUNDDOWN(HW62-EP62,0)) -> 0 | LE62: =IF(HX62="NR","NR",ROUNDDOWN(HX62-EQ62,0)) -> 0 | LF62: =IF(HY62="NR","NR",ROUNDDOWN(HY62-ER62,0)) -> 0 | LG62: =IF(HZ62="NR","NR",ROUNDDOWN(HZ62-ES62,0)) -> 0 | LH62: =IF(IA62="NR","NR",ROUNDDOWN(IA62-ET62,0)) -> 0 | LI62: =IF(IB62="NR","NR",ROUNDDOWN(IB62-EU62,0)) -> 0 | LJ62: =IF(IC62="NR","NR",ROUNDDOWN(IC62-EV62,0)) -> 0 | LK62: =IF(ID62="NR","NR",ROUNDDOWN(ID62-EW62,0)) -> 0 | LL62: =IF(IE62="NR","NR",ROUNDDOWN(IE62-EX62,0)) -> 0 | LM62: =IF(IF62="NR","NR",ROUNDDOWN(IF62-EY62,0)) -> 0 | LN62: =IF(IG62="NR","NR",ROUNDDOWN(IG62-EZ62,0)) -> 0 | LO62: =IF(IH62="NR","NR",ROUNDDOWN(IH62-FA62,0)) -> 0 | LP62: =IF(II62="NR","NR",ROUNDDOWN(II62-FB62,0)) -> 0 | LQ62: =IF(IJ62="NR","NR",ROUNDDOWN(IJ62-FC62,0)) -> -1120762 | LR62: =IF(IK62="NR","NR",ROUNDDOWN(IK62-FD62,0)) -> -43991 | LS62: =IF(IL62="NR","NR",ROUNDDOWN(IL62-FE62,0)) -> 750766 | LT62: =IF(IM62="NR","NR",ROUNDDOWN(IM62-FF62,0)) -> 0 | LU62: =IF(IN62="NR","NR",ROUNDDOWN(IN62-FG62,0)) -> 0 | LV62: =IF(IO62="NR","NR",ROUNDDOWN(IO62-FH62,0)) -> 0 | LW62: =IF(IP62="NR","NR",ROUNDDOWN(IP62-FI62,0)) -> 445209 | LX62: =IF(IQ62="NR","NR",ROUNDDOWN(IQ62-FJ62,0)) -> 0 | LY62: =IF(IR62="NR","NR",ROUNDDOWN(IR62-FK62,0)) -> 0 | LZ62: =IF(IS62="NR","NR",ROUNDDOWN(IS62-FL62,0)) -> 0 | MA62: =IF(IT62="NR","NR",ROUNDDOWN(IT62-FM62,0)) -> 0 | MB62: =IF(IU62="NR","NR",ROUNDDOWN(IU62-FN62,0)) -> 0 | MC62: =IF(IV62="NR","NR",ROUNDDOWN(IV62-FO62,0)) -> 0 | MD62: =IF(IW62="NR","NR",ROUNDDOWN(IW62-FP62,0)) -> 0 | ME62: =IF(IX62="NR","NR",ROUNDDOWN(IX62-FQ62,0)) -> -445209 | MF62: =IF(IY62="NR","NR",ROUNDDOWN(IY62-FR62,0)) -> 0 | MG62: =IF(IZ62="NR","NR",ROUNDDOWN(IZ62-FS62,0)) -> 0 | MH62: =IF(JA62="NR","NR",ROUNDDOWN(JA62-FT62,0)) -> 0 | MI62: =IF(JB62="NR","NR",ROUNDDOWN(JB62-FU62,0)) -> 0 | MJ62: =IF(JC62="NR","NR",ROUNDDOWN(JC62-FV62,0)) -> 0 | MK62: =IF(JD62="NR","NR",ROUNDDOWN(JD62-FW62,0)) -> 0 | ML62: =IF(JE62="NR","NR",ROUNDDOWN(JE62-FX62,0)) -> 0 | MM62: =IF(JF62="NR","NR",ROUNDDOWN(JF62-FY62,0)) -> 0 | MN62: =IF(JG62="NR","NR",ROUNDDOWN(JG62-FZ62,0)) -> 0 | MO62: =IF(JH62="NR","NR",ROUNDDOWN(JH62-GA62,0)) -> 0 | MP62: =IF(JI62="NR","NR",ROUNDDOWN(JI62-GB62,0)) -> 0 | MQ62: =IF(JJ62="NR","NR",ROUNDDOWN(JJ62-GC62,0)) -> 0 | MR62: =IF(JK62="NR","NR",ROUNDDOWN(JK62-GD62,0)) -> 0 | MS62: =IF(JL62="NR","NR",ROUNDDOWN(JL62-GE62,0)) -> 0 | MT62: =IF(JM62="NR","NR",ROUNDDOWN(JM62-GF62,0)) -> 0 | MU62: =IF(JN62="NR","NR",ROUNDDOWN(JN62-GG62,0)) -> -445209 | MV62: =IF(JO62="NR","NR",ROUNDDOWN(JO62-GH62,0)) -> 0 | MW62: =IF(JP62="NR","NR",ROUNDDOWN(JP62-GI62,0)) -> 0 | MX62: =IF(JQ62="NR","NR",ROUNDDOWN(JQ62-GJ62,0)) -> 0 | MY62: =IF(JR62="NR","NR",ROUNDDOWN(JR62-GK62,0)) -> 0 | MZ62: =IF(JS62="NR","NR",ROUNDDOWN(JS62-GL62,0)) -> 0 | NA62: =IF(JT62="NR","NR",ROUNDDOWN(JT62-GM62,0)) -> 0 | NB62: =IF(JU62="NR","NR",ROUNDDOWN(JU62-GN62,0)) -> 0 | NC62: =IF(JV62="NR","NR",ROUNDDOWN(JV62-GO62,0)) -> 0 | ND62: =IF(JW62="NR","NR",ROUNDDOWN(JW62-GP62,0)) -> 0 | NE62: NR | NF62: NR | NG62: NR | NH62: =IF(KA62="NR","NR",ROUNDDOWN(KA62-GT62,0)) -> 0 | NI62: =IF(KB62="NR","NR",ROUNDDOWN(KB62-GU62,0)) -> 0 | NJ62: =IF(KC62="NR","NR",ROUNDDOWN(KC62-GV62,0)) -> 0
B63: 2019-03-25 | C63: 2019-02-01 | D63: 2019-02-28 | E63: 2019-03-20 | F63: 2019-03-25 | G63: 28 | H63: 0.018552 | I63: 2016-12-01 | J63: 1999995073 | K63: 1122926737 | L63: 70500095.7 | M63: 1107771114 | N63: 69479461.61 | O63: 1116856118 | P63: 70500095.7 | Q63: 5642594.83 | R63: 0.013932 | S63: 0 | T63: 3816970.42 | U63: 1919501.54 | V63: 0 | W63: 4069284.44 | X63: 246085.61 | Y63: 4101000.94 | Z63: 17053092.69 | AA63: 57.14 | AB63: 0 | AC63: 0 | AD63: 0 | AE63: 0 | AF63: 11229267.37 | AG63: 0 | AH63: 1840000000 | AI63: 0 | AJ63: 70000000 | AK63: 48000000 | AL63: 14000000 | AM63: 12000000 | AN63: 8000000 | AO63: 8000000 | AP63: 10000 | AQ63: 962926737.3 | AR63: 0 | AS63: 70000000 | AT63: 48000000 | AU63: 14000000 | AV63: 12000000 | AW63: 8000000 | AX63: 8000000 | AY63: 0 | AZ63: 0 | BA63: 0 | BB63: 0 | BC63: 0 | BD63: 0 | BE63: 0 | BF63: 0 | BG63: 1 | BH63: 287257.99 | BI63: 0 | BJ63: 4307.12 | BK63: 0 | BL63: 0 | BM63: 0 | BN63: 0 | BO63: 0 | BP63: 0 | BQ63: 0 | BR63: 0.0107 | BS63: 0 | BT63: 0.016 | BU63: 0.0225 | BV63: 0.0275 | BW63: 0.0375 | BX63: 0.0475 | BY63: 0.06 | BZ63: 0.0025 | CA63: 0.0025 | CB63: 0.02 | CC63: 0.02 | CD63: 0.02 | CE63: 0.02 | CF63: 0.02 | CG63: 0 | CH63: 0 | CI63: 0 | CJ63: 0 | CK63: 0 | CL63: 0 | CM63: 0 | CN63: 0 | CO63: 0 | CP63: 0 | CQ63: 0 | CR63: 0 | CS63: 0 | CT63: 0 | CU63: 0 | CV63: 0.1 | CW63: 2 | CX63: 0.007070093969 | CY63: 0.04 | CZ63: FALSE | DA63: FALSE | DB63: FALSE | DC63: FALSE | DD63: FALSE | DE63: FALSE | DF63: FALSE | DG63: FALSE | DH63: FALSE | DI63: FALSE | DJ63: 0 | DK63: 0 | DL63: 0 | DM63: 0 | DN63: 0 | DO63: Waterfall_1 | DP63: =waterfall_1(C63:DN63) -> 287257.99 | DQ63: 0 | DR63: 0 | DS63: 4307.12 | DT63: 0 | DU63: 0 | DV63: 0 | DW63: 0 | DX63: 0 | DY63: 306036.69 | DZ63: 0 | EA63: 306036.69 | EB63: 0 | EC63: 2160797.05 | ED63: 0 | EE63: 185539.51 | EF63: 151161.34 | EG63: 49458.59 | EH63: 51598.55 | EI63: 40536.02 | EJ63: 48207.25 | EK63: 0 | EL63: 0 | EM63: 0 | EN63: 0 | EO63: 0 | EP63: 0 | EQ63: 0 | ER63: 0 | ES63: 0 | ET63: 0 | EU63: 0 | EV63: 0 | EW63: 0 | EX63: 0 | EY63: 0 | EZ63: 0 | FA63: 0 | FB63: 0 | FC63: 1565229.03 | FD63: 77370.43 | FE63: 1 | FF63: 0 | FG63: 0 | FH63: 0 | FI63: 14849587.12 | FJ63: 0 | FK63: 0 | FL63: 0 | FM63: 0 | FN63: 0 | FO63: 0 | FP63: 0 | FQ63: 948077150.2 | FR63: 0 | FS63: 70000000 | FT63: 48000000 | FU63: 14000000 | FV63: 12000000 | FW63: 8000000 | FX63: 8000000 | FY63: 0 | FZ63: 0 | GA63: 0 | GB63: 0 | GC63: 0 | GD63: 0 | GE63: 0 | GF63: 0 | GG63: 948077150.2 | GH63: 0 | GI63: 70000000 | GJ63: 48000000 | GK63: 14000000 | GL63: 12000000 | GM63: 8000000 | GN63: 8000000 | GO63: 0 | GP63: 0 | GQ63: FALSE | GR63: FALSE | GS63: FALSE | GT63: 0 | GU63: 0 | GV63: 0 | GW63: 287257.99 | GX63: 0 | GY63: 0 | GZ63: 4307.12 | HA63: 0 | HB63: 0 | HC63: 0 | HD63: 0 | HE63: 0 | HF63: 0 | HG63: 0 | HH63: 0 | HI63: 0 | HJ63: 2160797.05 | HK63: 0 | HL63: 185539.51 | HM63: 151161.34 | HN63: 49458.59 | HO63: 51598.55 | HP63: 40536.02 | HQ63: 48207.25 | HR63: 0 | HS63: 0 | HT63: 0 | HU63: 0 | HV63: 0 | HW63: 0 | HX63: 0 | HY63: 0 | HZ63: 0 | IA63: 0 | IB63: 0 | IC63: 0 | ID63: 0 | IE63: 0 | IF63: 0 | IG63: 0 | IH63: 0 | II63: 0 | IJ63: 602008.15 | IK63: 12471.71 | IL63: 722083.91 | IM63: 0 | IN63: 0 | IO63: 0 | IP63: 15155623.81 | IQ63: 0 | IR63: 0 | IS63: 0 | IT63: 0 | IU63: 0 | IV63: 0 | IW63: 0 | IX63: 947771113.5 | IY63: 0 | IZ63: 70000000 | JA63: 48000000 | JB63: 14000000 | JC63: 12000000 | JD63: 8000000 | JE63: 8000000 | JF63: 0 | JG63: 0 | JH63: 0 | JI63: 0 | JJ63: 0 | JK63: 0 | JL63: 0 | JM63: 0 | JN63: 947771113.5 | JO63: 0 | JP63: 70000000 | JQ63: 48000000 | JR63: 14000000 | JS63: 12000000 | JT63: 8000000 | JU63: 8000000 | JV63: 0 | JW63: 0 | JX63: FALSE | JY63: FALSE | JZ63: FALSE | KA63: 0 | KB63: 0 | KC63: 0 | KD63: =IF(GW63="NR","NR",ROUNDDOWN(GW63-DP63,0)) -> 0 | KE63: =IF(GX63="NR","NR",ROUNDDOWN(GX63-DQ63,0)) -> 0 | KF63: =IF(GY63="NR","NR",ROUNDDOWN(GY63-DR63,0)) -> 0 | KG63: =IF(GZ63="NR","NR",ROUNDDOWN(GZ63-DS63,0)) -> 0 | KH63: =IF(HA63="NR","NR",ROUNDDOWN(HA63-DT63,0)) -> 0 | KI63: =IF(HB63="NR","NR",ROUNDDOWN(HB63-DU63,0)) -> 0 | KJ63: =IF(HC63="NR","NR",ROUNDDOWN(HC63-DV63,0)) -> 0 | KK63: =IF(HD63="NR","NR",ROUNDDOWN(HD63-DW63,0)) -> 0 | KL63: =IF(HE63="NR","NR",ROUNDDOWN(HE63-DX63,0)) -> 0 | KM63: =IF(HF63="NR","NR",ROUNDDOWN(HF63-DY63,0)) -> -306036 | KN63: =IF(HG63="NR","NR",ROUNDDOWN(HG63-DZ63,0)) -> 0 | KO63: =IF(HH63="NR","NR",ROUNDDOWN(HH63-EA63,0)) -> -306036 | KP63: =IF(HI63="NR","NR",ROUNDDOWN(HI63-EB63,0)) -> 0 | KQ63: =IF(HJ63="NR","NR",ROUNDDOWN(HJ63-EC63,0)) -> 0 | KR63: =IF(HK63="NR","NR",ROUNDDOWN(HK63-ED63,0)) -> 0 | KS63: =IF(HL63="NR","NR",ROUNDDOWN(HL63-EE63,0)) -> 0 | KT63: =IF(HM63="NR","NR",ROUNDDOWN(HM63-EF63,0)) -> 0 | KU63: =IF(HN63="NR","NR",ROUNDDOWN(HN63-EG63,0)) -> 0 | KV63: =IF(HO63="NR","NR",ROUNDDOWN(HO63-EH63,0)) -> 0 | KW63: =IF(HP63="NR","NR",ROUNDDOWN(HP63-EI63,0)) -> 0 | KX63: =IF(HQ63="NR","NR",ROUNDDOWN(HQ63-EJ63,0)) -> 0 | KY63: =IF(HR63="NR","NR",ROUNDDOWN(HR63-EK63,0)) -> 0 | KZ63: =IF(HS63="NR","NR",ROUNDDOWN(HS63-EL63,0)) -> 0 | LA63: =IF(HT63="NR","NR",ROUNDDOWN(HT63-EM63,0)) -> 0 | LB63: =IF(HU63="NR","NR",ROUNDDOWN(HU63-EN63,0)) -> 0 | LC63: =IF(HV63="NR","NR",ROUNDDOWN(HV63-EO63,0)) -> 0 | LD63: =IF(HW63="NR","NR",ROUNDDOWN(HW63-EP63,0)) -> 0 | LE63: =IF(HX63="NR","NR",ROUNDDOWN(HX63-EQ63,0)) -> 0 | LF63: =IF(HY63="NR","NR",ROUNDDOWN(HY63-ER63,0)) -> 0 | LG63: =IF(HZ63="NR","NR",ROUNDDOWN(HZ63-ES63,0)) -> 0 | LH63: =IF(IA63="NR","NR",ROUNDDOWN(IA63-ET63,0)) -> 0 | LI63: =IF(IB63="NR","NR",ROUNDDOWN(IB63-EU63,0)) -> 0 | LJ63: =IF(IC63="NR","NR",ROUNDDOWN(IC63-EV63,0)) -> 0 | LK63: =IF(ID63="NR","NR",ROUNDDOWN(ID63-EW63,0)) -> 0 | LL63: =IF(IE63="NR","NR",ROUNDDOWN(IE63-EX63,0)) -> 0 | LM63: =IF(IF63="NR","NR",ROUNDDOWN(IF63-EY63,0)) -> 0 | LN63: =IF(IG63="NR","NR",ROUNDDOWN(IG63-EZ63,0)) -> 0 | LO63: =IF(IH63="NR","NR",ROUNDDOWN(IH63-FA63,0)) -> 0 | LP63: =IF(II63="NR","NR",ROUNDDOWN(II63-FB63,0)) -> 0 | LQ63: =IF(IJ63="NR","NR",ROUNDDOWN(IJ63-FC63,0)) -> -963220 | LR63: =IF(IK63="NR","NR",ROUNDDOWN(IK63-FD63,0)) -> -64898 | LS63: =IF(IL63="NR","NR",ROUNDDOWN(IL63-FE63,0)) -> 722082 | LT63: =IF(IM63="NR","NR",ROUNDDOWN(IM63-FF63,0)) -> 0 | LU63: =IF(IN63="NR","NR",ROUNDDOWN(IN63-FG63,0)) -> 0 | LV63: =IF(IO63="NR","NR",ROUNDDOWN(IO63-FH63,0)) -> 0 | LW63: =IF(IP63="NR","NR",ROUNDDOWN(IP63-FI63,0)) -> 306036 | LX63: =IF(IQ63="NR","NR",ROUNDDOWN(IQ63-FJ63,0)) -> 0 | LY63: =IF(IR63="NR","NR",ROUNDDOWN(IR63-FK63,0)) -> 0 | LZ63: =IF(IS63="NR","NR",ROUNDDOWN(IS63-FL63,0)) -> 0 | MA63: =IF(IT63="NR","NR",ROUNDDOWN(IT63-FM63,0)) -> 0 | MB63: =IF(IU63="NR","NR",ROUNDDOWN(IU63-FN63,0)) -> 0 | MC63: =IF(IV63="NR","NR",ROUNDDOWN(IV63-FO63,0)) -> 0 | MD63: =IF(IW63="NR","NR",ROUNDDOWN(IW63-FP63,0)) -> 0 | ME63: =IF(IX63="NR","NR",ROUNDDOWN(IX63-FQ63,0)) -> -306036 | MF63: =IF(IY63="NR","NR",ROUNDDOWN(IY63-FR63,0)) -> 0 | MG63: =IF(IZ63="NR","NR",ROUNDDOWN(IZ63-FS63,0)) -> 0 | MH63: =IF(JA63="NR","NR",ROUNDDOWN(JA63-FT63,0)) -> 0 | MI63: =IF(JB63="NR","NR",ROUNDDOWN(JB63-FU63,0)) -> 0 | MJ63: =IF(JC63="NR","NR",ROUNDDOWN(JC63-FV63,0)) -> 0 | MK63: =IF(JD63="NR","NR",ROUNDDOWN(JD63-FW63,0)) -> 0 | ML63: =IF(JE63="NR","NR",ROUNDDOWN(JE63-FX63,0)) -> 0 | MM63: =IF(JF63="NR","NR",ROUNDDOWN(JF63-FY63,0)) -> 0 | MN63: =IF(JG63="NR","NR",ROUNDDOWN(JG63-FZ63,0)) -> 0 | MO63: =IF(JH63="NR","NR",ROUNDDOWN(JH63-GA63,0)) -> 0 | MP63: =IF(JI63="NR","NR",ROUNDDOWN(JI63-GB63,0)) -> 0 | MQ63: =IF(JJ63="NR","NR",ROUNDDOWN(JJ63-GC63,0)) -> 0 | MR63: =IF(JK63="NR","NR",ROUNDDOWN(JK63-GD63,0)) -> 0 | MS63: =IF(JL63="NR","NR",ROUNDDOWN(JL63-GE63,0)) -> 0 | MT63: =IF(JM63="NR","NR",ROUNDDOWN(JM63-GF63,0)) -> 0 | MU63: =IF(JN63="NR","NR",ROUNDDOWN(JN63-GG63,0)) -> -306036 | MV63: =IF(JO63="NR","NR",ROUNDDOWN(JO63-GH63,0)) -> 0 | MW63: =IF(JP63="NR","NR",ROUNDDOWN(JP63-GI63,0)) -> 0 | MX63: =IF(JQ63="NR","NR",ROUNDDOWN(JQ63-GJ63,0)) -> 0 | MY63: =IF(JR63="NR","NR",ROUNDDOWN(JR63-GK63,0)) -> 0 | MZ63: =IF(JS63="NR","NR",ROUNDDOWN(JS63-GL63,0)) -> 0 | NA63: =IF(JT63="NR","NR",ROUNDDOWN(JT63-GM63,0)) -> 0 | NB63: =IF(JU63="NR","NR",ROUNDDOWN(JU63-GN63,0)) -> 0 | NC63: =IF(JV63="NR","NR",ROUNDDOWN(JV63-GO63,0)) -> 0 | ND63: =IF(JW63="NR","NR",ROUNDDOWN(JW63-GP63,0)) -> 0 | NE63: NR | NF63: NR | NG63: NR | NH63: =IF(KA63="NR","NR",ROUNDDOWN(KA63-GT63,0)) -> 0 | NI63: =IF(KB63="NR","NR",ROUNDDOWN(KB63-GU63,0)) -> 0 | NJ63: =IF(KC63="NR","NR",ROUNDDOWN(KC63-GV63,0)) -> 0
